Workbook

Sheet INTRO
B2: Joint request for selected PC medicines v.4.1 (Loa)
B4: As part of global efforts to accelerate expansion of preventive chemotherapy (PC) for control and elimination of lymphatic filariasis, schistosomiasis and soil-transmitted helminthiases, the World Health Organization (WHO) facilitates the supply of albendazole 400 mg tablets (GSK) to national lymphatic filariasis elimination programmes and national soil-transmitted helminth control programmes; diethylcarbamazine citrate 100 mg tablets (Eisai) to national lymphatic filariasis elimination programmes; mebendazole 500 mg tablets (J&J) for national soil-transmitted helminth control programmes; and praziquantel 600 mg tablets (Merck KGaA) for school-age children to national schistosomiasis control programmes. WHO also collaborates to supply ivermectin 3 mg tablets (Merck) for onchocerciasis and lymphatic filariasis donation programmes. This Excel-based tool is designed to assist countries in quantifying the number of tablets of relevant PC medicines required to reach the planned target population and districts for the year of request. Output of the tool is a joint request for PC medicines, which can be printed, signed and submitted to WHO to request these medicines.
B6: Structure of the application (worksheets):
B8: INTRO | C8: This worksheet includes guides on how to complete the joint request for selected PC medicines and information about the status of PC for endemic diseases in the country.
B9: COUNTRY_INFO | C9: This worksheet includes information about administrative structure of the country, population by age group, status of endemicity for each disease, population requiring PC and planned interventions.
B10: DEC, ALB_MBD, PZQ and IVM | C10: These worksheets include information about endemic districts targeted for treatment with specified PC medicines, treatment plan, and number of tablets required and requested.
B11: SUMMARY | C11: This worksheet includes summary of number of tablets requested, information about stock, and date for submission of requested medicines. Before generating the report (run macros) please select the medicine for which the report is needed. Follow the same rule to see the number of people to be treated for the specific disease. This worksheet should be printed and submitted as a joint request for selected PC medicines (see the instruction for submission in the SUMMARY worksheet).
B13: Instruction for data entry
B15: Most of the cells in the above-mentioned worksheets include formula that are calculated automatically according to the treatment policy recommended by WHO for each disease. See the link https://www.who.int/publications/i/item/9789241599993.
B17: Please enter your data into the cells according to their colour code:
C19: White - cell is not protected. Please enter the value of the requested indicator.
C21: Yellow - cell is protected and includes name of indicator. No data entry required.
C23: Orange - cell is not protected and includes a drop-down menu. Please select the value from the drop-down list.
C26: Green - cell is not protected and includes formula. Please change the value only if your data are different from those that are calculated automatically.
C29: Blue - cell is protected and includes formula. No data entry required.
B31: Country data
B33: COUNTRY | E33: Gabon | G33: GA | H33: GAB
E34: 5
B35: Year for request of the medicine | E35: 2024
B37: Is country endemic for lymphatic filariasis (LF)? | E37: Endemic
B39: Is country endemic for onchocerciasis (ONCHO)? | E39: Endemic
B41: Is country endemic for soil-transmitted helminthiases (STH)? | E41: Endemic
B43: Is country endemic for schistosomiasis (SCH)? | E43: Endemic
B45: How many administrative units in the country? | E45: 51
B47: If demographical data at the second administrative level are not available by age group, please enter the proportion (%) of population by age group in the country. If data are available, please leave these cells blank.
B48: 1-4 years age | C48: Preschool-age children (PreSAC) | E48: 0.1045
B49: 5-14 years age | C49: School-age children (SAC) | E49: 0.2333
B50: 15 years + | C50: Adults | E50: 0.6358
B51: 15-49 years | C51: Women of reproductive age (WRA) | E51: 0.2481

Sheet COUNTRY_INFO
A1: COUNTRY INFORMATION
A2: Administrative structure, population by age group, status of endemicity and planned interventions | AB2: 1.02053
A4: TOTAL | D4: =SUBTOTAL(9,D$10:D$1010) -> 2324961 | E4: =SUBTOTAL(9,E$10:E$1010) -> 242956 | F4: 542412 | G4: 1478207 | M4: =SUBTOTAL(9,M$10:M$1010) -> 391742 | N4: 802400 | O4: 151476 | P4: 338180 | Q4: 359635 | R4: 849291 | S4: 26706 | T4: 26704 | U4: 63882 | V4: 117292
A6: Country administrative structure | D6: Population | H6: Endemicity | M6: Population requiring PC | W6: Number of treatment rounds planned for the year | AA6: Epidemiological surveys planned for the year
A7: Country | B7: Province/State | C7: District | D7: Total | E7: PreSAC | F7: SAC | G7: Adults | H7: LF | I7: Oncho | J7: STH | K7: SCH | L7: Loa | M7: LF | N7: ONCHO | O7: STH | S7: SCH | W7: LF | X7: Oncho | Y7: STH | Z7: SCH | AA7: LF | AB7: Oncho | AC7: STH | AD7: SCH
O8: PreSAC | P8: SAC | Q8: WRA | R8: TOTAL | S8: PreSAC | T8: SAC | U8: Adults | V8: TOTAL | AH8: IU_ID | AI8: IU_NAME
AE9: x | AF9: x | AG9: x | AH9: x | AI9: x | AJ9: x | AK9: x | AL9: x | AP9: x | AQ9: x | AR9: x | AS9: x | AT9: x | AU9: x | AV9: xx | AW9: x | AX9: x | AY9: x | AZ9: x | BA9: xx | BB9: x | BC9: x | BD9: xx | BE9: x | BF9: x | BG9: x | BH9: xx | BI9: x
A10: =IF(INTRO!$E$33<>0,INTRO!$E$33, " ") -> Gabon | B10: Libreville -Owendo | C10: Libreville 1 | D10: 322572 | E10: =IF(INTRO!$E$48="","",ROUND($D10*INTRO!$E$48,0)) -> 33709 | F10: =IF(INTRO!$E$49="","",ROUND($D10*INTRO!$E$49,0)) -> 75256 | G10: =IF(INTRO!$E$50="","",ROUND($D10*INTRO!$E$50,0)) -> 205091 | H10: 0 | I10: 4 | J10: 2 | K10: 1 | L10: 1 | M10: =IF(INTRO!$E$37="Endemic",IF($H10>0,IF($H10=4,"Unknown",IF($H10=99,"Stopped",$D10)),0),"Not required") -> 0 | N10: =IF(INTRO!$E$39="Endemic", IF($I10>0, IF($I10=4,"Unknown",IF($I10=99,"Stopped",$D10)), 0),"Not required") -> Unknown | O10: =IF(INTRO!$E$41="Endemic", IF($J10>1, IF($J10=4, "Unknown", IF($J10=99, "Surveillance", E10)), 0),"Not required") -> 33709 | P10: =IF(INTRO!$E$41="Endemic", IF($J10>1, IF($J10=4, "Unknown", IF($J10=99, "Surveillance", F10)), 0),"Not required") -> 75256 | Q10: =IF(INTRO!$E$41="Endemic", IF($J10>1, IF($J10=4, "Unknown", IF($J10=99, "Surveillance", ROUND(D10*INTRO!$E$51,0))), 0),"Not required") -> 80030 | R10: =IF(INTRO!$E$41="Endemic", IF($J10>1, IF($J10=4, "Unknown", IF($J10=99, "Surveillance", SUM($O10:$Q10))), 0),"Not required") -> 188995 | S10: 0 | T10: 0 | U10: 0 | V10: =IF(INTRO!$E$43="Endemic", IF($K10>1, IF($K10=4, "Unknown", IF($K10=99, "Surveillance", SUM($S10:$U10))), 0),"Not required") -> 0 | W10: 0 | X10: 0 | Y10: 1 | Z10: 0 | AH10: 20330 | AI10: Libreville 1 | AJ10: =ROUND(D10*$AB$2,0) -> 329194
A11: =IF(INTRO!$E$33<>0,INTRO!$E$33, " ") -> Gabon | B11: Libreville -Owendo | C11: Libreville 2 | D11: 341197 | E11: =IF(INTRO!$E$48="","",ROUND($D11*INTRO!$E$48,0)) -> 35655 | F11: =IF(INTRO!$E$49="","",ROUND($D11*INTRO!$E$49,0)) -> 79601 | G11: =IF(INTRO!$E$50="","",ROUND($D11*INTRO!$E$50,0)) -> 216933 | H11: 0 | I11: 4 | J11: 1 | K11: 1 | L11: 1 | M11: =IF(INTRO!$E$37="Endemic",IF($H11>0,IF($H11=4,"Unknown",IF($H11=99,"Stopped",$D11)),0),"Not required") -> 0 | N11: =IF(INTRO!$E$39="Endemic", IF($I11>0, IF($I11=4,"Unknown",IF($I11=99,"Stopped",$D11)), 0),"Not required") -> Unknown | O11: =IF(INTRO!$E$41="Endemic", IF($J11>1, IF($J11=4, "Unknown", IF($J11=99, "Surveillance", E11)), 0),"Not required") -> 0 | P11: =IF(INTRO!$E$41="Endemic", IF($J11>1, IF($J11=4, "Unknown", IF($J11=99, "Surveillance", F11)), 0),"Not required") -> 0 | Q11: =IF(INTRO!$E$41="Endemic", IF($J11>1, IF($J11=4, "Unknown", IF($J11=99, "Surveillance", ROUND(D11*INTRO!$E$51,0))), 0),"Not required") -> 0 | R11: =IF(INTRO!$E$41="Endemic", IF($J11>1, IF($J11=4, "Unknown", IF($J11=99, "Surveillance", SUM($O11:$Q11))), 0),"Not required") -> 0 | S11: 0 | T11: 0 | U11: 0 | V11: =IF(INTRO!$E$43="Endemic", IF($K11>1, IF($K11=4, "Unknown", IF($K11=99, "Surveillance", SUM($S11:$U11))), 0),"Not required") -> 0 | W11: 0 | X11: 0 | Y11: 0 | Z11: 0 | AH11: 20331 | AI11: Libreville 2 | AJ11: =ROUND(D11*$AB$2,0) -> 348202
A12: =IF(INTRO!$E$33<>0,INTRO!$E$33, " ") -> Gabon | B12: Libreville -Owendo | C12: Libreville 3 | D12: 265620 | E12: =IF(INTRO!$E$48="","",ROUND($D12*INTRO!$E$48,0)) -> 27757 | F12: =IF(INTRO!$E$49="","",ROUND($D12*INTRO!$E$49,0)) -> 61969 | G12: =IF(INTRO!$E$50="","",ROUND($D12*INTRO!$E$50,0)) -> 168881 | H12: 0 | I12: 4 | J12: 1 | K12: 1 | L12: 1 | M12: =IF(INTRO!$E$37="Endemic",IF($H12>0,IF($H12=4,"Unknown",IF($H12=99,"Stopped",$D12)),0),"Not required") -> 0 | N12: =IF(INTRO!$E$39="Endemic", IF($I12>0, IF($I12=4,"Unknown",IF($I12=99,"Stopped",$D12)), 0),"Not required") -> Unknown | O12: =IF(INTRO!$E$41="Endemic", IF($J12>1, IF($J12=4, "Unknown", IF($J12=99, "Surveillance", E12)), 0),"Not required") -> 0 | P12: =IF(INTRO!$E$41="Endemic", IF($J12>1, IF($J12=4, "Unknown", IF($J12=99, "Surveillance", F12)), 0),"Not required") -> 0 | Q12: =IF(INTRO!$E$41="Endemic", IF($J12>1, IF($J12=4, "Unknown", IF($J12=99, "Surveillance", ROUND(D12*INTRO!$E$51,0))), 0),"Not required") -> 0 | R12: =IF(INTRO!$E$41="Endemic", IF($J12>1, IF($J12=4, "Unknown", IF($J12=99, "Surveillance", SUM($O12:$Q12))), 0),"Not required") -> 0 | S12: 0 | T12: 0 | U12: 0 | V12: =IF(INTRO!$E$43="Endemic", IF($K12>1, IF($K12=4, "Unknown", IF($K12=99, "Surveillance", SUM($S12:$U12))), 0),"Not required") -> 0 | W12: 0 | X12: 0 | Y12: 0 | Z12: 0 | AH12: 20332 | AI12: Libreville 3 | AJ12: 271073
A13: =IF(INTRO!$E$33<>0,INTRO!$E$33, " ") -> Gabon | B13: Libreville -Owendo | C13: Owendo | D13: 101060 | E13: =IF(INTRO!$E$48="","",ROUND($D13*INTRO!$E$48,0)) -> 10561 | F13: =IF(INTRO!$E$49="","",ROUND($D13*INTRO!$E$49,0)) -> 23577 | G13: =IF(INTRO!$E$50="","",ROUND($D13*INTRO!$E$50,0)) -> 64254 | H13: 0 | I13: 4 | J13: 1 | K13: 1 | L13: 1 | M13: =IF(INTRO!$E$37="Endemic",IF($H13>0,IF($H13=4,"Unknown",IF($H13=99,"Stopped",$D13)),0),"Not required") -> 0 | N13: =IF(INTRO!$E$39="Endemic", IF($I13>0, IF($I13=4,"Unknown",IF($I13=99,"Stopped",$D13)), 0),"Not required") -> Unknown | O13: =IF(INTRO!$E$41="Endemic", IF($J13>1, IF($J13=4, "Unknown", IF($J13=99, "Surveillance", E13)), 0),"Not required") -> 0 | P13: =IF(INTRO!$E$41="Endemic", IF($J13>1, IF($J13=4, "Unknown", IF($J13=99, "Surveillance", F13)), 0),"Not required") -> 0 | Q13: =IF(INTRO!$E$41="Endemic", IF($J13>1, IF($J13=4, "Unknown", IF($J13=99, "Surveillance", ROUND(D13*INTRO!$E$51,0))), 0),"Not required") -> 0 | R13: =IF(INTRO!$E$41="Endemic", IF($J13>1, IF($J13=4, "Unknown", IF($J13=99, "Surveillance", SUM($O13:$Q13))), 0),"Not required") -> 0 | S13: 0 | T13: 0 | U13: 0 | V13: =IF(INTRO!$E$43="Endemic", IF($K13>1, IF($K13=4, "Unknown", IF($K13=99, "Surveillance", SUM($S13:$U13))), 0),"Not required") -> 0 | W13: 0 | X13: 0 | Y13: 0 | Z13: 0 | AH13: 20334 | AI13: Owendo | AJ13: 103135
A14: =IF(INTRO!$E$33<>0,INTRO!$E$33, " ") -> Gabon | B14: Estuaire | C14: Komo-Mondah | D14: 111239 | E14: =IF(INTRO!$E$48="","",ROUND($D14*INTRO!$E$48,0)) -> 11624 | F14: =IF(INTRO!$E$49="","",ROUND($D14*INTRO!$E$49,0)) -> 25952 | G14: =IF(INTRO!$E$50="","",ROUND($D14*INTRO!$E$50,0)) -> 70726 | H14: 1 | I14: 0 | J14: 2 | K14: 2 | L14: 1 | M14: =IF(INTRO!$E$37="Endemic",IF($H14>0,IF($H14=4,"Unknown",IF($H14=99,"Stopped",$D14)),0),"Not required") -> 111239 | N14: =IF(INTRO!$E$39="Endemic", IF($I14>0, IF($I14=4,"Unknown",IF($I14=99,"Stopped",$D14)), 0),"Not required") -> 0 | O14: =IF(INTRO!$E$41="Endemic", IF($J14>1, IF($J14=4, "Unknown", IF($J14=99, "Surveillance", E14)), 0),"Not required") -> 11624 | P14: =IF(INTRO!$E$41="Endemic", IF($J14>1, IF($J14=4, "Unknown", IF($J14=99, "Surveillance", F14)), 0),"Not required") -> 25952 | Q14: =IF(INTRO!$E$41="Endemic", IF($J14>1, IF($J14=4, "Unknown", IF($J14=99, "Surveillance", ROUND(D14*INTRO!$E$51,0))), 0),"Not required") -> 27598 | R14: =IF(INTRO!$E$41="Endemic", IF($J14>1, IF($J14=4, "Unknown", IF($J14=99, "Surveillance", SUM($O14:$Q14))), 0),"Not required") -> 65174 | S14: 3037 | T14: 3037 | U14: 7266 | V14: =IF(INTRO!$E$43="Endemic", IF($K14>1, IF($K14=4, "Unknown", IF($K14=99, "Surveillance", SUM($S14:$U14))), 0),"Not required") -> 13340 | W14: 1 | X14: 0 | Y14: 1 | Z14: 1 | AH14: 20333 | AI14: Komo-Mondah | AJ14: 113523
A15: =IF(INTRO!$E$33<>0,INTRO!$E$33, " ") -> Gabon | B15: Estuaire | C15: Komo-Kango | D15: 21639 | E15: =IF(INTRO!$E$48="","",ROUND($D15*INTRO!$E$48,0)) -> 2261 | F15: =IF(INTRO!$E$49="","",ROUND($D15*INTRO!$E$49,0)) -> 5048 | G15: =IF(INTRO!$E$50="","",ROUND($D15*INTRO!$E$50,0)) -> 13758 | H15: 0 | I15: 4 | J15: 2 | K15: 2 | L15: 1 | M15: =IF(INTRO!$E$37="Endemic",IF($H15>0,IF($H15=4,"Unknown",IF($H15=99,"Stopped",$D15)),0),"Not required") -> 0 | N15: =IF(INTRO!$E$39="Endemic", IF($I15>0, IF($I15=4,"Unknown",IF($I15=99,"Stopped",$D15)), 0),"Not required") -> Unknown | O15: =IF(INTRO!$E$41="Endemic", IF($J15>1, IF($J15=4, "Unknown", IF($J15=99, "Surveillance", E15)), 0),"Not required") -> 2261 | P15: =IF(INTRO!$E$41="Endemic", IF($J15>1, IF($J15=4, "Unknown", IF($J15=99, "Surveillance", F15)), 0),"Not required") -> 5048 | Q15: =IF(INTRO!$E$41="Endemic", IF($J15>1, IF($J15=4, "Unknown", IF($J15=99, "Surveillance", ROUND(D15*INTRO!$E$51,0))), 0),"Not required") -> 5369 | R15: =IF(INTRO!$E$41="Endemic", IF($J15>1, IF($J15=4, "Unknown", IF($J15=99, "Surveillance", SUM($O15:$Q15))), 0),"Not required") -> 12678 | S15: 630 | T15: 630 | U15: 1507 | V15: =IF(INTRO!$E$43="Endemic", IF($K15>1, IF($K15=4, "Unknown", IF($K15=99, "Surveillance", SUM($S15:$U15))), 0),"Not required") -> 2767 | W15: 0 | X15: 0 | Y15: 1 | Z15: 1 | AH15: 20329 | AI15: Komo-Kango | AJ15: 22083
A16: =IF(INTRO!$E$33<>0,INTRO!$E$33, " ") -> Gabon | B16: Estuaire | C16: Noya | D16: 4674 | E16: =IF(INTRO!$E$48="","",ROUND($D16*INTRO!$E$48,0)) -> 488 | F16: =IF(INTRO!$E$49="","",ROUND($D16*INTRO!$E$49,0)) -> 1090 | G16: =IF(INTRO!$E$50="","",ROUND($D16*INTRO!$E$50,0)) -> 2972 | H16: 0 | I16: 0 | J16: 3 | K16: 1 | L16: 1 | M16: =IF(INTRO!$E$37="Endemic",IF($H16>0,IF($H16=4,"Unknown",IF($H16=99,"Stopped",$D16)),0),"Not required") -> 0 | N16: =IF(INTRO!$E$39="Endemic", IF($I16>0, IF($I16=4,"Unknown",IF($I16=99,"Stopped",$D16)), 0),"Not required") -> 0 | O16: =IF(INTRO!$E$41="Endemic", IF($J16>1, IF($J16=4, "Unknown", IF($J16=99, "Surveillance", E16)), 0),"Not required") -> 488 | P16: =IF(INTRO!$E$41="Endemic", IF($J16>1, IF($J16=4, "Unknown", IF($J16=99, "Surveillance", F16)), 0),"Not required") -> 1090 | Q16: =IF(INTRO!$E$41="Endemic", IF($J16>1, IF($J16=4, "Unknown", IF($J16=99, "Surveillance", ROUND(D16*INTRO!$E$51,0))), 0),"Not required") -> 1160 | R16: =IF(INTRO!$E$41="Endemic", IF($J16>1, IF($J16=4, "Unknown", IF($J16=99, "Surveillance", SUM($O16:$Q16))), 0),"Not required") -> 2738 | S16: 0 | T16: 0 | U16: 0 | V16: =IF(INTRO!$E$43="Endemic", IF($K16>1, IF($K16=4, "Unknown", IF($K16=99, "Surveillance", SUM($S16:$U16))), 0),"Not required") -> 0 | W16: 0 | X16: 0 | Y16: 2 | Z16: 0 | AH16: 20328 | AI16: Noya | AJ16: 4770
A17: =IF(INTRO!$E$33<>0,INTRO!$E$33, " ") -> Gabon | B17: Haut Ogooué | C17: Bayi-brikolo | D17: 4084 | E17: =IF(INTRO!$E$48="","",ROUND($D17*INTRO!$E$48,0)) -> 427 | F17: =IF(INTRO!$E$49="","",ROUND($D17*INTRO!$E$49,0)) -> 953 | G17: =IF(INTRO!$E$50="","",ROUND($D17*INTRO!$E$50,0)) -> 2597 | H17: 0 | I17: 4 | J17: 3 | K17: 0 | L17: 1 | M17: =IF(INTRO!$E$37="Endemic",IF($H17>0,IF($H17=4,"Unknown",IF($H17=99,"Stopped",$D17)),0),"Not required") -> 0 | N17: =IF(INTRO!$E$39="Endemic", IF($I17>0, IF($I17=4,"Unknown",IF($I17=99,"Stopped",$D17)), 0),"Not required") -> Unknown | O17: =IF(INTRO!$E$41="Endemic", IF($J17>1, IF($J17=4, "Unknown", IF($J17=99, "Surveillance", E17)), 0),"Not required") -> 427 | P17: =IF(INTRO!$E$41="Endemic", IF($J17>1, IF($J17=4, "Unknown", IF($J17=99, "Surveillance", F17)), 0),"Not required") -> 953 | Q17: =IF(INTRO!$E$41="Endemic", IF($J17>1, IF($J17=4, "Unknown", IF($J17=99, "Surveillance", ROUND(D17*INTRO!$E$51,0))), 0),"Not required") -> 1013 | R17: =IF(INTRO!$E$41="Endemic", IF($J17>1, IF($J17=4, "Unknown", IF($J17=99, "Surveillance", SUM($O17:$Q17))), 0),"Not required") -> 2393 | S17: 0 | T17: 0 | U17: 0 | V17: =IF(INTRO!$E$43="Endemic", IF($K17>1, IF($K17=4, "Unknown", IF($K17=99, "Surveillance", SUM($S17:$U17))), 0),"Not required") -> 0 | W17: 0 | X17: 0 | Y17: 2 | Z17: 0 | AH17: 20335 | AI17: Bayi-brikolo | AJ17: 4168
A18: =IF(INTRO!$E$33<>0,INTRO!$E$33, " ") -> Gabon | B18: Haut Ogooué | C18: Lékoni-lékori | D18: 11293 | E18: =IF(INTRO!$E$48="","",ROUND($D18*INTRO!$E$48,0)) -> 1180 | F18: =IF(INTRO!$E$49="","",ROUND($D18*INTRO!$E$49,0)) -> 2635 | G18: =IF(INTRO!$E$50="","",ROUND($D18*INTRO!$E$50,0)) -> 7180 | H18: 0 | I18: 0 | J18: 3 | K18: 1 | L18: 1 | M18: =IF(INTRO!$E$37="Endemic",IF($H18>0,IF($H18=4,"Unknown",IF($H18=99,"Stopped",$D18)),0),"Not required") -> 0 | N18: =IF(INTRO!$E$39="Endemic", IF($I18>0, IF($I18=4,"Unknown",IF($I18=99,"Stopped",$D18)), 0),"Not required") -> 0 | O18: =IF(INTRO!$E$41="Endemic", IF($J18>1, IF($J18=4, "Unknown", IF($J18=99, "Surveillance", E18)), 0),"Not required") -> 1180 | P18: =IF(INTRO!$E$41="Endemic", IF($J18>1, IF($J18=4, "Unknown", IF($J18=99, "Surveillance", F18)), 0),"Not required") -> 2635 | Q18: =IF(INTRO!$E$41="Endemic", IF($J18>1, IF($J18=4, "Unknown", IF($J18=99, "Surveillance", ROUND(D18*INTRO!$E$51,0))), 0),"Not required") -> 2802 | R18: =IF(INTRO!$E$41="Endemic", IF($J18>1, IF($J18=4, "Unknown", IF($J18=99, "Surveillance", SUM($O18:$Q18))), 0),"Not required") -> 6617 | S18: 0 | T18: 0 | U18: 0 | V18: =IF(INTRO!$E$43="Endemic", IF($K18>1, IF($K18=4, "Unknown", IF($K18=99, "Surveillance", SUM($S18:$U18))), 0),"Not required") -> 0 | W18: 0 | X18: 0 | Y18: 2 | Z18: 0 | AH18: 20336 | AI18: Lékoni-lékori | AJ18: 11525
A19: =IF(INTRO!$E$33<>0,INTRO!$E$33, " ") -> Gabon | B19: Haut Ogooué | C19: Lékoko | D19: 6803 | E19: =IF(INTRO!$E$48="","",ROUND($D19*INTRO!$E$48,0)) -> 711 | F19: =IF(INTRO!$E$49="","",ROUND($D19*INTRO!$E$49,0)) -> 1587 | G19: =IF(INTRO!$E$50="","",ROUND($D19*INTRO!$E$50,0)) -> 4325 | H19: 0 | I19: 0 | J19: 2 | K19: 1 | L19: 1 | M19: =IF(INTRO!$E$37="Endemic",IF($H19>0,IF($H19=4,"Unknown",IF($H19=99,"Stopped",$D19)),0),"Not required") -> 0 | N19: =IF(INTRO!$E$39="Endemic", IF($I19>0, IF($I19=4,"Unknown",IF($I19=99,"Stopped",$D19)), 0),"Not required") -> 0 | O19: =IF(INTRO!$E$41="Endemic", IF($J19>1, IF($J19=4, "Unknown", IF($J19=99, "Surveillance", E19)), 0),"Not required") -> 711 | P19: =IF(INTRO!$E$41="Endemic", IF($J19>1, IF($J19=4, "Unknown", IF($J19=99, "Surveillance", F19)), 0),"Not required") -> 1587 | Q19: =IF(INTRO!$E$41="Endemic", IF($J19>1, IF($J19=4, "Unknown", IF($J19=99, "Surveillance", ROUND(D19*INTRO!$E$51,0))), 0),"Not required") -> 1688 | R19: =IF(INTRO!$E$41="Endemic", IF($J19>1, IF($J19=4, "Unknown", IF($J19=99, "Surveillance", SUM($O19:$Q19))), 0),"Not required") -> 3986 | S19: 0 | T19: 0 | U19: 0 | V19: =IF(INTRO!$E$43="Endemic", IF($K19>1, IF($K19=4, "Unknown", IF($K19=99, "Surveillance", SUM($S19:$U19))), 0),"Not required") -> 0 | W19: 0 | X19: 0 | Y19: 1 | Z19: 0 | AH19: 20337 | AI19: Lékoko | AJ19: 6943
A20: =IF(INTRO!$E$33<>0,INTRO!$E$33, " ") -> Gabon | B20: Haut Ogooué | C20: Djouori-Agnili | D20: 7451 | E20: =IF(INTRO!$E$48="","",ROUND($D20*INTRO!$E$48,0)) -> 779 | F20: =IF(INTRO!$E$49="","",ROUND($D20*INTRO!$E$49,0)) -> 1738 | G20: =IF(INTRO!$E$50="","",ROUND($D20*INTRO!$E$50,0)) -> 4737 | H20: 1 | I20: 4 | J20: 2 | K20: 0 | L20: 1 | M20: =IF(INTRO!$E$37="Endemic",IF($H20>0,IF($H20=4,"Unknown",IF($H20=99,"Stopped",$D20)),0),"Not required") -> 7451 | N20: =IF(INTRO!$E$39="Endemic", IF($I20>0, IF($I20=4,"Unknown",IF($I20=99,"Stopped",$D20)), 0),"Not required") -> Unknown | O20: =IF(INTRO!$E$41="Endemic", IF($J20>1, IF($J20=4, "Unknown", IF($J20=99, "Surveillance", E20)), 0),"Not required") -> 779 | P20: =IF(INTRO!$E$41="Endemic", IF($J20>1, IF($J20=4, "Unknown", IF($J20=99, "Surveillance", F20)), 0),"Not required") -> 1738 | Q20: =IF(INTRO!$E$41="Endemic", IF($J20>1, IF($J20=4, "Unknown", IF($J20=99, "Surveillance", ROUND(D20*INTRO!$E$51,0))), 0),"Not required") -> 1849 | R20: =IF(INTRO!$E$41="Endemic", IF($J20>1, IF($J20=4, "Unknown", IF($J20=99, "Surveillance", SUM($O20:$Q20))), 0),"Not required") -> 4366 | S20: 0 | T20: 0 | U20: 0 | V20: =IF(INTRO!$E$43="Endemic", IF($K20>1, IF($K20=4, "Unknown", IF($K20=99, "Surveillance", SUM($S20:$U20))), 0),"Not required") -> 0 | W20: 1 | X20: 0 | Y20: 1 | Z20: 0 | AH20: 20338 | AI20: Djouori-Agnili | AJ20: 7604
A21: =IF(INTRO!$E$33<>0,INTRO!$E$33, " ") -> Gabon | B21: Haut Ogooué | C21: Ogooué -létili | D21: 4336 | E21: =IF(INTRO!$E$48="","",ROUND($D21*INTRO!$E$48,0)) -> 453 | F21: =IF(INTRO!$E$49="","",ROUND($D21*INTRO!$E$49,0)) -> 1012 | G21: =IF(INTRO!$E$50="","",ROUND($D21*INTRO!$E$50,0)) -> 2757 | H21: 0 | I21: 4 | J21: 3 | K21: 0 | L21: 1 | M21: =IF(INTRO!$E$37="Endemic",IF($H21>0,IF($H21=4,"Unknown",IF($H21=99,"Stopped",$D21)),0),"Not required") -> 0 | N21: =IF(INTRO!$E$39="Endemic", IF($I21>0, IF($I21=4,"Unknown",IF($I21=99,"Stopped",$D21)), 0),"Not required") -> Unknown | O21: =IF(INTRO!$E$41="Endemic", IF($J21>1, IF($J21=4, "Unknown", IF($J21=99, "Surveillance", E21)), 0),"Not required") -> 453 | P21: =IF(INTRO!$E$41="Endemic", IF($J21>1, IF($J21=4, "Unknown", IF($J21=99, "Surveillance", F21)), 0),"Not required") -> 1012 | Q21: =IF(INTRO!$E$41="Endemic", IF($J21>1, IF($J21=4, "Unknown", IF($J21=99, "Surveillance", ROUND(D21*INTRO!$E$51,0))), 0),"Not required") -> 1076 | R21: =IF(INTRO!$E$41="Endemic", IF($J21>1, IF($J21=4, "Unknown", IF($J21=99, "Surveillance", SUM($O21:$Q21))), 0),"Not required") -> 2541 | S21: 0 | T21: 0 | U21: 0 | V21: =IF(INTRO!$E$43="Endemic", IF($K21>1, IF($K21=4, "Unknown", IF($K21=99, "Surveillance", SUM($S21:$U21))), 0),"Not required") -> 0 | W21: 0 | X21: 0 | Y21: 2 | Z21: 0 | AH21: 20339 | AI21: Ogooué -létili | AJ21: 4425
A22: =IF(INTRO!$E$33<>0,INTRO!$E$33, " ") -> Gabon | B22: Haut Ogooué | C22: Mpassa | D22: 188297 | E22: =IF(INTRO!$E$48="","",ROUND($D22*INTRO!$E$48,0)) -> 19677 | F22: =IF(INTRO!$E$49="","",ROUND($D22*INTRO!$E$49,0)) -> 43930 | G22: =IF(INTRO!$E$50="","",ROUND($D22*INTRO!$E$50,0)) -> 119719 | H22: 0 | I22: 1 | J22: 2 | K22: 2 | L22: 1 | M22: =IF(INTRO!$E$37="Endemic",IF($H22>0,IF($H22=4,"Unknown",IF($H22=99,"Stopped",$D22)),0),"Not required") -> 0 | N22: =IF(INTRO!$E$39="Endemic", IF($I22>0, IF($I22=4,"Unknown",IF($I22=99,"Stopped",$D22)), 0),"Not required") -> 188297 | O22: =IF(INTRO!$E$41="Endemic", IF($J22>1, IF($J22=4, "Unknown", IF($J22=99, "Surveillance", E22)), 0),"Not required") -> 19677 | P22: =IF(INTRO!$E$41="Endemic", IF($J22>1, IF($J22=4, "Unknown", IF($J22=99, "Surveillance", F22)), 0),"Not required") -> 43930 | Q22: =IF(INTRO!$E$41="Endemic", IF($J22>1, IF($J22=4, "Unknown", IF($J22=99, "Surveillance", ROUND(D22*INTRO!$E$51,0))), 0),"Not required") -> 46716 | R22: =IF(INTRO!$E$41="Endemic", IF($J22>1, IF($J22=4, "Unknown", IF($J22=99, "Surveillance", SUM($O22:$Q22))), 0),"Not required") -> 110323 | S22: 2982 | T22: 2982 | U22: 7135 | V22: =IF(INTRO!$E$43="Endemic", IF($K22>1, IF($K22=4, "Unknown", IF($K22=99, "Surveillance", SUM($S22:$U22))), 0),"Not required") -> 13099 | W22: 0 | X22: 0 | Y22: 1 | Z22: 1 | AH22: 20340 | AI22: Mpassa | AJ22: 192163
A23: =IF(INTRO!$E$33<>0,INTRO!$E$33, " ") -> Gabon | B23: Haut Ogooué | C23: Plateaux | D23: 11311 | E23: =IF(INTRO!$E$48="","",ROUND($D23*INTRO!$E$48,0)) -> 1182 | F23: =IF(INTRO!$E$49="","",ROUND($D23*INTRO!$E$49,0)) -> 2639 | G23: =IF(INTRO!$E$50="","",ROUND($D23*INTRO!$E$50,0)) -> 7192 | H23: 0 | I23: 4 | J23: 3 | K23: 1 | L23: 0 | M23: =IF(INTRO!$E$37="Endemic",IF($H23>0,IF($H23=4,"Unknown",IF($H23=99,"Stopped",$D23)),0),"Not required") -> 0 | N23: =IF(INTRO!$E$39="Endemic", IF($I23>0, IF($I23=4,"Unknown",IF($I23=99,"Stopped",$D23)), 0),"Not required") -> Unknown | O23: =IF(INTRO!$E$41="Endemic", IF($J23>1, IF($J23=4, "Unknown", IF($J23=99, "Surveillance", E23)), 0),"Not required") -> 1182 | P23: =IF(INTRO!$E$41="Endemic", IF($J23>1, IF($J23=4, "Unknown", IF($J23=99, "Surveillance", F23)), 0),"Not required") -> 2639 | Q23: =IF(INTRO!$E$41="Endemic", IF($J23>1, IF($J23=4, "Unknown", IF($J23=99, "Surveillance", ROUND(D23*INTRO!$E$51,0))), 0),"Not required") -> 2806 | R23: =IF(INTRO!$E$41="Endemic", IF($J23>1, IF($J23=4, "Unknown", IF($J23=99, "Surveillance", SUM($O23:$Q23))), 0),"Not required") -> 6627 | S23: 0 | T23: 0 | U23: 0 | V23: =IF(INTRO!$E$43="Endemic", IF($K23>1, IF($K23=4, "Unknown", IF($K23=99, "Surveillance", SUM($S23:$U23))), 0),"Not required") -> 0 | W23: 0 | X23: 0 | Y23: 2 | Z23: 0 | AH23: 20341 | AI23: Plateaux | AJ23: 11543
A24: =IF(INTRO!$E$33<>0,INTRO!$E$33, " ") -> Gabon | B24: Haut Ogooué | C24: Lébombi-Léyou | D24: 83427 | E24: =IF(INTRO!$E$48="","",ROUND($D24*INTRO!$E$48,0)) -> 8718 | F24: =IF(INTRO!$E$49="","",ROUND($D24*INTRO!$E$49,0)) -> 19464 | G24: =IF(INTRO!$E$50="","",ROUND($D24*INTRO!$E$50,0)) -> 53043 | H24: 0 | I24: 1 | J24: 2 | K24: 1 | L24: 1 | M24: =IF(INTRO!$E$37="Endemic",IF($H24>0,IF($H24=4,"Unknown",IF($H24=99,"Stopped",$D24)),0),"Not required") -> 0 | N24: =IF(INTRO!$E$39="Endemic", IF($I24>0, IF($I24=4,"Unknown",IF($I24=99,"Stopped",$D24)), 0),"Not required") -> 83427 | O24: =IF(INTRO!$E$41="Endemic", IF($J24>1, IF($J24=4, "Unknown", IF($J24=99, "Surveillance", E24)), 0),"Not required") -> 8718 | P24: =IF(INTRO!$E$41="Endemic", IF($J24>1, IF($J24=4, "Unknown", IF($J24=99, "Surveillance", F24)), 0),"Not required") -> 19464 | Q24: =IF(INTRO!$E$41="Endemic", IF($J24>1, IF($J24=4, "Unknown", IF($J24=99, "Surveillance", ROUND(D24*INTRO!$E$51,0))), 0),"Not required") -> 20698 | R24: =IF(INTRO!$E$41="Endemic", IF($J24>1, IF($J24=4, "Unknown", IF($J24=99, "Surveillance", SUM($O24:$Q24))), 0),"Not required") -> 48880 | S24: 0 | T24: 0 | U24: 0 | V24: =IF(INTRO!$E$43="Endemic", IF($K24>1, IF($K24=4, "Unknown", IF($K24=99, "Surveillance", SUM($S24:$U24))), 0),"Not required") -> 0 | W24: 0 | X24: 0 | Y24: 1 | Z24: 0 | AH24: 20342 | AI24: Lébombi-Léyou | AJ24: 85140
A25: =IF(INTRO!$E$33<>0,INTRO!$E$33, " ") -> Gabon | B25: Haut Ogooué | C25: Lékabi-léwolo | D25: 12148 | E25: =IF(INTRO!$E$48="","",ROUND($D25*INTRO!$E$48,0)) -> 1269 | F25: =IF(INTRO!$E$49="","",ROUND($D25*INTRO!$E$49,0)) -> 2834 | G25: =IF(INTRO!$E$50="","",ROUND($D25*INTRO!$E$50,0)) -> 7724 | H25: 0 | I25: 4 | J25: 2 | K25: 1 | L25: 1 | M25: =IF(INTRO!$E$37="Endemic",IF($H25>0,IF($H25=4,"Unknown",IF($H25=99,"Stopped",$D25)),0),"Not required") -> 0 | N25: =IF(INTRO!$E$39="Endemic", IF($I25>0, IF($I25=4,"Unknown",IF($I25=99,"Stopped",$D25)), 0),"Not required") -> Unknown | O25: =IF(INTRO!$E$41="Endemic", IF($J25>1, IF($J25=4, "Unknown", IF($J25=99, "Surveillance", E25)), 0),"Not required") -> 1269 | P25: =IF(INTRO!$E$41="Endemic", IF($J25>1, IF($J25=4, "Unknown", IF($J25=99, "Surveillance", F25)), 0),"Not required") -> 2834 | Q25: =IF(INTRO!$E$41="Endemic", IF($J25>1, IF($J25=4, "Unknown", IF($J25=99, "Surveillance", ROUND(D25*INTRO!$E$51,0))), 0),"Not required") -> 3014 | R25: =IF(INTRO!$E$41="Endemic", IF($J25>1, IF($J25=4, "Unknown", IF($J25=99, "Surveillance", SUM($O25:$Q25))), 0),"Not required") -> 7117 | S25: 0 | T25: 0 | U25: 0 | V25: =IF(INTRO!$E$43="Endemic", IF($K25>1, IF($K25=4, "Unknown", IF($K25=99, "Surveillance", SUM($S25:$U25))), 0),"Not required") -> 0 | W25: 0 | X25: 0 | Y25: 1 | Z25: 0 | AH25: 20343 | AI25: Lékabi-léwolo | AJ25: 12397
A26: =IF(INTRO!$E$33<>0,INTRO!$E$33, " ") -> Gabon | B26: Haut Ogooué | C26: Sébé-brikoli | D26: 22826 | E26: =IF(INTRO!$E$48="","",ROUND($D26*INTRO!$E$48,0)) -> 2385 | F26: =IF(INTRO!$E$49="","",ROUND($D26*INTRO!$E$49,0)) -> 5325 | G26: =IF(INTRO!$E$50="","",ROUND($D26*INTRO!$E$50,0)) -> 14513 | H26: 0 | I26: 1 | J26: 2 | K26: 2 | L26: 1 | M26: =IF(INTRO!$E$37="Endemic",IF($H26>0,IF($H26=4,"Unknown",IF($H26=99,"Stopped",$D26)),0),"Not required") -> 0 | N26: =IF(INTRO!$E$39="Endemic", IF($I26>0, IF($I26=4,"Unknown",IF($I26=99,"Stopped",$D26)), 0),"Not required") -> 22826 | O26: =IF(INTRO!$E$41="Endemic", IF($J26>1, IF($J26=4, "Unknown", IF($J26=99, "Surveillance", E26)), 0),"Not required") -> 2385 | P26: =IF(INTRO!$E$41="Endemic", IF($J26>1, IF($J26=4, "Unknown", IF($J26=99, "Surveillance", F26)), 0),"Not required") -> 5325 | Q26: =IF(INTRO!$E$41="Endemic", IF($J26>1, IF($J26=4, "Unknown", IF($J26=99, "Surveillance", ROUND(D26*INTRO!$E$51,0))), 0),"Not required") -> 5663 | R26: =IF(INTRO!$E$41="Endemic", IF($J26>1, IF($J26=4, "Unknown", IF($J26=99, "Surveillance", SUM($O26:$Q26))), 0),"Not required") -> 13373 | S26: 107 | T26: 107 | U26: 256 | V26: =IF(INTRO!$E$43="Endemic", IF($K26>1, IF($K26=4, "Unknown", IF($K26=99, "Surveillance", SUM($S26:$U26))), 0),"Not required") -> 470 | W26: 0 | X26: 0 | Y26: 1 | Z26: 1 | AH26: 20344 | AI26: Sébé-brikoli | AJ26: 23295
A27: =IF(INTRO!$E$33<>0,INTRO!$E$33, " ") -> Gabon | B27: Haut Ogooué | C27: Djoué | D27: 5129 | E27: =IF(INTRO!$E$48="","",ROUND($D27*INTRO!$E$48,0)) -> 536 | F27: =IF(INTRO!$E$49="","",ROUND($D27*INTRO!$E$49,0)) -> 1197 | G27: =IF(INTRO!$E$50="","",ROUND($D27*INTRO!$E$50,0)) -> 3261 | H27: 0 | I27: 4 | J27: 3 | K27: 1 | L27: 1 | M27: =IF(INTRO!$E$37="Endemic",IF($H27>0,IF($H27=4,"Unknown",IF($H27=99,"Stopped",$D27)),0),"Not required") -> 0 | N27: =IF(INTRO!$E$39="Endemic", IF($I27>0, IF($I27=4,"Unknown",IF($I27=99,"Stopped",$D27)), 0),"Not required") -> Unknown | O27: =IF(INTRO!$E$41="Endemic", IF($J27>1, IF($J27=4, "Unknown", IF($J27=99, "Surveillance", E27)), 0),"Not required") -> 536 | P27: =IF(INTRO!$E$41="Endemic", IF($J27>1, IF($J27=4, "Unknown", IF($J27=99, "Surveillance", F27)), 0),"Not required") -> 1197 | Q27: =IF(INTRO!$E$41="Endemic", IF($J27>1, IF($J27=4, "Unknown", IF($J27=99, "Surveillance", ROUND(D27*INTRO!$E$51,0))), 0),"Not required") -> 1273 | R27: =IF(INTRO!$E$41="Endemic", IF($J27>1, IF($J27=4, "Unknown", IF($J27=99, "Surveillance", SUM($O27:$Q27))), 0),"Not required") -> 3006 | S27: 0 | T27: 0 | U27: 0 | V27: =IF(INTRO!$E$43="Endemic", IF($K27>1, IF($K27=4, "Unknown", IF($K27=99, "Surveillance", SUM($S27:$U27))), 0),"Not required") -> 0 | W27: 0 | X27: 0 | Y27: 2 | Z27: 0 | AH27: 20345 | AI27: Djoué | AJ27: 5234
A28: =IF(INTRO!$E$33<>0,INTRO!$E$33, " ") -> Gabon | B28: Moyen Ogooué | C28: Ogooué et Lacs | D28: 70887 | E28: =IF(INTRO!$E$48="","",ROUND($D28*INTRO!$E$48,0)) -> 7408 | F28: =IF(INTRO!$E$49="","",ROUND($D28*INTRO!$E$49,0)) -> 16538 | G28: =IF(INTRO!$E$50="","",ROUND($D28*INTRO!$E$50,0)) -> 45070 | H28: 0 | I28: 0 | J28: 2 | K28: 2 | L28: 1 | M28: =IF(INTRO!$E$37="Endemic",IF($H28>0,IF($H28=4,"Unknown",IF($H28=99,"Stopped",$D28)),0),"Not required") -> 0 | N28: =IF(INTRO!$E$39="Endemic", IF($I28>0, IF($I28=4,"Unknown",IF($I28=99,"Stopped",$D28)), 0),"Not required") -> 0 | O28: =IF(INTRO!$E$41="Endemic", IF($J28>1, IF($J28=4, "Unknown", IF($J28=99, "Surveillance", E28)), 0),"Not required") -> 7408 | P28: =IF(INTRO!$E$41="Endemic", IF($J28>1, IF($J28=4, "Unknown", IF($J28=99, "Surveillance", F28)), 0),"Not required") -> 16538 | Q28: =IF(INTRO!$E$41="Endemic", IF($J28>1, IF($J28=4, "Unknown", IF($J28=99, "Surveillance", ROUND(D28*INTRO!$E$51,0))), 0),"Not required") -> 17587 | R28: =IF(INTRO!$E$41="Endemic", IF($J28>1, IF($J28=4, "Unknown", IF($J28=99, "Surveillance", SUM($O28:$Q28))), 0),"Not required") -> 41533 | S28: 4392 | T28: 4391 | U28: 10503 | V28: =IF(INTRO!$E$43="Endemic", IF($K28>1, IF($K28=4, "Unknown", IF($K28=99, "Surveillance", SUM($S28:$U28))), 0),"Not required") -> 19286 | W28: 0 | X28: 0 | Y28: 1 | Z28: 1 | AH28: 20346 | AI28: Ogooué et Lacs | AJ28: 72342
A29: =IF(INTRO!$E$33<>0,INTRO!$E$33, " ") -> Gabon | B29: Moyen Ogooué | C29: Abanga -Bigné | D29: 19958 | E29: =IF(INTRO!$E$48="","",ROUND($D29*INTRO!$E$48,0)) -> 2086 | F29: =IF(INTRO!$E$49="","",ROUND($D29*INTRO!$E$49,0)) -> 4656 | G29: =IF(INTRO!$E$50="","",ROUND($D29*INTRO!$E$50,0)) -> 12689 | H29: 1 | I29: 1 | J29: 2 | K29: 2 | L29: 1 | M29: =IF(INTRO!$E$37="Endemic",IF($H29>0,IF($H29=4,"Unknown",IF($H29=99,"Stopped",$D29)),0),"Not required") -> 19958 | N29: =IF(INTRO!$E$39="Endemic", IF($I29>0, IF($I29=4,"Unknown",IF($I29=99,"Stopped",$D29)), 0),"Not required") -> 19958 | O29: =IF(INTRO!$E$41="Endemic", IF($J29>1, IF($J29=4, "Unknown", IF($J29=99, "Surveillance", E29)), 0),"Not required") -> 2086 | P29: =IF(INTRO!$E$41="Endemic", IF($J29>1, IF($J29=4, "Unknown", IF($J29=99, "Surveillance", F29)), 0),"Not required") -> 4656 | Q29: =IF(INTRO!$E$41="Endemic", IF($J29>1, IF($J29=4, "Unknown", IF($J29=99, "Surveillance", ROUND(D29*INTRO!$E$51,0))), 0),"Not required") -> 4952 | R29: =IF(INTRO!$E$41="Endemic", IF($J29>1, IF($J29=4, "Unknown", IF($J29=99, "Surveillance", SUM($O29:$Q29))), 0),"Not required") -> 11694 | S29: 91 | T29: 91 | U29: 215 | V29: =IF(INTRO!$E$43="Endemic", IF($K29>1, IF($K29=4, "Unknown", IF($K29=99, "Surveillance", SUM($S29:$U29))), 0),"Not required") -> 397 | W29: 1 | X29: 0 | Y29: 1 | Z29: 1 | AH29: 20347 | AI29: Abanga -Bigné | AJ29: 20368
A30: =IF(INTRO!$E$33<>0,INTRO!$E$33, " ") -> Gabon | B30: Ngounié | C30: Tsamba -Magotsi | D30: 17092 | E30: =IF(INTRO!$E$48="","",ROUND($D30*INTRO!$E$48,0)) -> 1786 | F30: =IF(INTRO!$E$49="","",ROUND($D30*INTRO!$E$49,0)) -> 3988 | G30: =IF(INTRO!$E$50="","",ROUND($D30*INTRO!$E$50,0)) -> 10867 | H30: 0 | I30: 1 | J30: 2 | K30: 2 | L30: 1 | M30: =IF(INTRO!$E$37="Endemic",IF($H30>0,IF($H30=4,"Unknown",IF($H30=99,"Stopped",$D30)),0),"Not required") -> 0 | N30: =IF(INTRO!$E$39="Endemic", IF($I30>0, IF($I30=4,"Unknown",IF($I30=99,"Stopped",$D30)), 0),"Not required") -> 17092 | O30: =IF(INTRO!$E$41="Endemic", IF($J30>1, IF($J30=4, "Unknown", IF($J30=99, "Surveillance", E30)), 0),"Not required") -> 1786 | P30: =IF(INTRO!$E$41="Endemic", IF($J30>1, IF($J30=4, "Unknown", IF($J30=99, "Surveillance", F30)), 0),"Not required") -> 3988 | Q30: =IF(INTRO!$E$41="Endemic", IF($J30>1, IF($J30=4, "Unknown", IF($J30=99, "Surveillance", ROUND(D30*INTRO!$E$51,0))), 0),"Not required") -> 4241 | R30: =IF(INTRO!$E$41="Endemic", IF($J30>1, IF($J30=4, "Unknown", IF($J30=99, "Surveillance", SUM($O30:$Q30))), 0),"Not required") -> 10015 | S30: 684 | T30: 684 | U30: 1639 | V30: =IF(INTRO!$E$43="Endemic", IF($K30>1, IF($K30=4, "Unknown", IF($K30=99, "Surveillance", SUM($S30:$U30))), 0),"Not required") -> 3007 | W30: 0 | X30: 0 | Y30: 1 | Z30: 1 | AH30: 20348 | AI30: Tsamba -Magotsi | AJ30: 17443
A31: =IF(INTRO!$E$33<>0,INTRO!$E$33, " ") -> Gabon | B31: Ngounié | C31: Louetsi-Wano | D31: 12351 | E31: =IF(INTRO!$E$48="","",ROUND($D31*INTRO!$E$48,0)) -> 1291 | F31: =IF(INTRO!$E$49="","",ROUND($D31*INTRO!$E$49,0)) -> 2881 | G31: =IF(INTRO!$E$50="","",ROUND($D31*INTRO!$E$50,0)) -> 7853 | H31: 1 | I31: 1 | J31: 3 | K31: 1 | L31: 1 | M31: =IF(INTRO!$E$37="Endemic",IF($H31>0,IF($H31=4,"Unknown",IF($H31=99,"Stopped",$D31)),0),"Not required") -> 12351 | N31: =IF(INTRO!$E$39="Endemic", IF($I31>0, IF($I31=4,"Unknown",IF($I31=99,"Stopped",$D31)), 0),"Not required") -> 12351 | O31: =IF(INTRO!$E$41="Endemic", IF($J31>1, IF($J31=4, "Unknown", IF($J31=99, "Surveillance", E31)), 0),"Not required") -> 1291 | P31: =IF(INTRO!$E$41="Endemic", IF($J31>1, IF($J31=4, "Unknown", IF($J31=99, "Surveillance", F31)), 0),"Not required") -> 2881 | Q31: =IF(INTRO!$E$41="Endemic", IF($J31>1, IF($J31=4, "Unknown", IF($J31=99, "Surveillance", ROUND(D31*INTRO!$E$51,0))), 0),"Not required") -> 3064 | R31: =IF(INTRO!$E$41="Endemic", IF($J31>1, IF($J31=4, "Unknown", IF($J31=99, "Surveillance", SUM($O31:$Q31))), 0),"Not required") -> 7236 | S31: 0 | T31: 0 | U31: 0 | V31: =IF(INTRO!$E$43="Endemic", IF($K31>1, IF($K31=4, "Unknown", IF($K31=99, "Surveillance", SUM($S31:$U31))), 0),"Not required") -> 0 | W31: 1 | X31: 0 | Y31: 2 | Z31: 0 | AH31: 20349 | AI31: Louetsi-Wano | AJ31: 12605
A32: =IF(INTRO!$E$33<>0,INTRO!$E$33, " ") -> Gabon | B32: Ngounié | C32: Louetsi-Bibaka | D32: 2882 | E32: =IF(INTRO!$E$48="","",ROUND($D32*INTRO!$E$48,0)) -> 301 | F32: =IF(INTRO!$E$49="","",ROUND($D32*INTRO!$E$49,0)) -> 672 | G32: =IF(INTRO!$E$50="","",ROUND($D32*INTRO!$E$50,0)) -> 1832 | H32: 1 | I32: 0 | J32: 3 | K32: 0 | L32: 1 | M32: =IF(INTRO!$E$37="Endemic",IF($H32>0,IF($H32=4,"Unknown",IF($H32=99,"Stopped",$D32)),0),"Not required") -> 2882 | N32: =IF(INTRO!$E$39="Endemic", IF($I32>0, IF($I32=4,"Unknown",IF($I32=99,"Stopped",$D32)), 0),"Not required") -> 0 | O32: =IF(INTRO!$E$41="Endemic", IF($J32>1, IF($J32=4, "Unknown", IF($J32=99, "Surveillance", E32)), 0),"Not required") -> 301 | P32: =IF(INTRO!$E$41="Endemic", IF($J32>1, IF($J32=4, "Unknown", IF($J32=99, "Surveillance", F32)), 0),"Not required") -> 672 | Q32: =IF(INTRO!$E$41="Endemic", IF($J32>1, IF($J32=4, "Unknown", IF($J32=99, "Surveillance", ROUND(D32*INTRO!$E$51,0))), 0),"Not required") -> 715 | R32: =IF(INTRO!$E$41="Endemic", IF($J32>1, IF($J32=4, "Unknown", IF($J32=99, "Surveillance", SUM($O32:$Q32))), 0),"Not required") -> 1688 | S32: 0 | T32: 0 | U32: 0 | V32: =IF(INTRO!$E$43="Endemic", IF($K32>1, IF($K32=4, "Unknown", IF($K32=99, "Surveillance", SUM($S32:$U32))), 0),"Not required") -> 0 | W32: 1 | X32: 0 | Y32: 2 | Z32: 0 | AH32: 20350 | AI32: Louetsi-Bibaka | AJ32: 2941
A33: =IF(INTRO!$E$33<>0,INTRO!$E$33, " ") -> Gabon | B33: Ngounié | C33: Ndolou | D33: 6758 | E33: =IF(INTRO!$E$48="","",ROUND($D33*INTRO!$E$48,0)) -> 706 | F33: =IF(INTRO!$E$49="","",ROUND($D33*INTRO!$E$49,0)) -> 1577 | G33: =IF(INTRO!$E$50="","",ROUND($D33*INTRO!$E$50,0)) -> 4297 | H33: 1 | I33: 0 | J33: 2 | K33: 1 | L33: 1 | M33: =IF(INTRO!$E$37="Endemic",IF($H33>0,IF($H33=4,"Unknown",IF($H33=99,"Stopped",$D33)),0),"Not required") -> 6758 | N33: =IF(INTRO!$E$39="Endemic", IF($I33>0, IF($I33=4,"Unknown",IF($I33=99,"Stopped",$D33)), 0),"Not required") -> 0 | O33: =IF(INTRO!$E$41="Endemic", IF($J33>1, IF($J33=4, "Unknown", IF($J33=99, "Surveillance", E33)), 0),"Not required") -> 706 | P33: =IF(INTRO!$E$41="Endemic", IF($J33>1, IF($J33=4, "Unknown", IF($J33=99, "Surveillance", F33)), 0),"Not required") -> 1577 | Q33: =IF(INTRO!$E$41="Endemic", IF($J33>1, IF($J33=4, "Unknown", IF($J33=99, "Surveillance", ROUND(D33*INTRO!$E$51,0))), 0),"Not required") -> 1677 | R33: =IF(INTRO!$E$41="Endemic", IF($J33>1, IF($J33=4, "Unknown", IF($J33=99, "Surveillance", SUM($O33:$Q33))), 0),"Not required") -> 3960 | S33: 0 | T33: 0 | U33: 0 | V33: =IF(INTRO!$E$43="Endemic", IF($K33>1, IF($K33=4, "Unknown", IF($K33=99, "Surveillance", SUM($S33:$U33))), 0),"Not required") -> 0 | W33: 1 | X33: 0 | Y33: 1 | Z33: 0 | AH33: 20351 | AI33: Ndolou | AJ33: 6897
A34: =IF(INTRO!$E$33<>0,INTRO!$E$33, " ") -> Gabon | B34: Ngounié | C34: Boumi-Louetsi | D34: 17411 | E34: =IF(INTRO!$E$48="","",ROUND($D34*INTRO!$E$48,0)) -> 1819 | F34: =IF(INTRO!$E$49="","",ROUND($D34*INTRO!$E$49,0)) -> 4062 | G34: =IF(INTRO!$E$50="","",ROUND($D34*INTRO!$E$50,0)) -> 11070 | H34: 1 | I34: 1 | J34: 3 | K34: 0 | L34: 1 | M34: =IF(INTRO!$E$37="Endemic",IF($H34>0,IF($H34=4,"Unknown",IF($H34=99,"Stopped",$D34)),0),"Not required") -> 17411 | N34: =IF(INTRO!$E$39="Endemic", IF($I34>0, IF($I34=4,"Unknown",IF($I34=99,"Stopped",$D34)), 0),"Not required") -> 17411 | O34: =IF(INTRO!$E$41="Endemic", IF($J34>1, IF($J34=4, "Unknown", IF($J34=99, "Surveillance", E34)), 0),"Not required") -> 1819 | P34: =IF(INTRO!$E$41="Endemic", IF($J34>1, IF($J34=4, "Unknown", IF($J34=99, "Surveillance", F34)), 0),"Not required") -> 4062 | Q34: =IF(INTRO!$E$41="Endemic", IF($J34>1, IF($J34=4, "Unknown", IF($J34=99, "Surveillance", ROUND(D34*INTRO!$E$51,0))), 0),"Not required") -> 4320 | R34: =IF(INTRO!$E$41="Endemic", IF($J34>1, IF($J34=4, "Unknown", IF($J34=99, "Surveillance", SUM($O34:$Q34))), 0),"Not required") -> 10201 | S34: 0 | T34: 0 | U34: 0 | V34: =IF(INTRO!$E$43="Endemic", IF($K34>1, IF($K34=4, "Unknown", IF($K34=99, "Surveillance", SUM($S34:$U34))), 0),"Not required") -> 0 | W34: 1 | X34: 0 | Y34: 2 | Z34: 0 | AH34: 20352 | AI34: Boumi-Louetsi | AJ34: 17768
A35: =IF(INTRO!$E$33<>0,INTRO!$E$33, " ") -> Gabon | B35: Ngounié | C35: Ogoulou | D35: 9417 | E35: =IF(INTRO!$E$48="","",ROUND($D35*INTRO!$E$48,0)) -> 984 | F35: =IF(INTRO!$E$49="","",ROUND($D35*INTRO!$E$49,0)) -> 2197 | G35: =IF(INTRO!$E$50="","",ROUND($D35*INTRO!$E$50,0)) -> 5987 | H35: 1 | I35: 1 | J35: 3 | K35: 1 | L35: 1 | M35: =IF(INTRO!$E$37="Endemic",IF($H35>0,IF($H35=4,"Unknown",IF($H35=99,"Stopped",$D35)),0),"Not required") -> 9417 | N35: =IF(INTRO!$E$39="Endemic", IF($I35>0, IF($I35=4,"Unknown",IF($I35=99,"Stopped",$D35)), 0),"Not required") -> 9417 | O35: =IF(INTRO!$E$41="Endemic", IF($J35>1, IF($J35=4, "Unknown", IF($J35=99, "Surveillance", E35)), 0),"Not required") -> 984 | P35: =IF(INTRO!$E$41="Endemic", IF($J35>1, IF($J35=4, "Unknown", IF($J35=99, "Surveillance", F35)), 0),"Not required") -> 2197 | Q35: =IF(INTRO!$E$41="Endemic", IF($J35>1, IF($J35=4, "Unknown", IF($J35=99, "Surveillance", ROUND(D35*INTRO!$E$51,0))), 0),"Not required") -> 2336 | R35: =IF(INTRO!$E$41="Endemic", IF($J35>1, IF($J35=4, "Unknown", IF($J35=99, "Surveillance", SUM($O35:$Q35))), 0),"Not required") -> 5517 | S35: 0 | T35: 0 | U35: 0 | V35: =IF(INTRO!$E$43="Endemic", IF($K35>1, IF($K35=4, "Unknown", IF($K35=99, "Surveillance", SUM($S35:$U35))), 0),"Not required") -> 0 | W35: 1 | X35: 0 | Y35: 2 | Z35: 0 | AH35: 20353 | AI35: Ogoulou | AJ35: 9610
A36: =IF(INTRO!$E$33<>0,INTRO!$E$33, " ") -> Gabon | B36: Ngounié | C36: Douya-Onoye | D36: 39925 | E36: =IF(INTRO!$E$48="","",ROUND($D36*INTRO!$E$48,0)) -> 4172 | F36: =IF(INTRO!$E$49="","",ROUND($D36*INTRO!$E$49,0)) -> 9315 | G36: =IF(INTRO!$E$50="","",ROUND($D36*INTRO!$E$50,0)) -> 25384 | H36: 1 | I36: 1 | J36: 2 | K36: 2 | L36: 1 | M36: =IF(INTRO!$E$37="Endemic",IF($H36>0,IF($H36=4,"Unknown",IF($H36=99,"Stopped",$D36)),0),"Not required") -> 39925 | N36: =IF(INTRO!$E$39="Endemic", IF($I36>0, IF($I36=4,"Unknown",IF($I36=99,"Stopped",$D36)), 0),"Not required") -> 39925 | O36: =IF(INTRO!$E$41="Endemic", IF($J36>1, IF($J36=4, "Unknown", IF($J36=99, "Surveillance", E36)), 0),"Not required") -> 4172 | P36: =IF(INTRO!$E$41="Endemic", IF($J36>1, IF($J36=4, "Unknown", IF($J36=99, "Surveillance", F36)), 0),"Not required") -> 9315 | Q36: =IF(INTRO!$E$41="Endemic", IF($J36>1, IF($J36=4, "Unknown", IF($J36=99, "Surveillance", ROUND(D36*INTRO!$E$51,0))), 0),"Not required") -> 9905 | R36: =IF(INTRO!$E$41="Endemic", IF($J36>1, IF($J36=4, "Unknown", IF($J36=99, "Surveillance", SUM($O36:$Q36))), 0),"Not required") -> 23392 | S36: 2998 | T36: 2998 | U36: 7175 | V36: =IF(INTRO!$E$43="Endemic", IF($K36>1, IF($K36=4, "Unknown", IF($K36=99, "Surveillance", SUM($S36:$U36))), 0),"Not required") -> 13171 | W36: 1 | X36: 0 | Y36: 1 | Z36: 1 | AH36: 20354 | AI36: Douya-Onoye | AJ36: 40745
A37: =IF(INTRO!$E$33<>0,INTRO!$E$33, " ") -> Gabon | B37: Ngounié | C37: Dola | D37: 10050 | E37: =IF(INTRO!$E$48="","",ROUND($D37*INTRO!$E$48,0)) -> 1050 | F37: =IF(INTRO!$E$49="","",ROUND($D37*INTRO!$E$49,0)) -> 2345 | G37: =IF(INTRO!$E$50="","",ROUND($D37*INTRO!$E$50,0)) -> 6390 | H37: 0 | I37: 1 | J37: 2 | K37: 2 | L37: 1 | M37: =IF(INTRO!$E$37="Endemic",IF($H37>0,IF($H37=4,"Unknown",IF($H37=99,"Stopped",$D37)),0),"Not required") -> 0 | N37: =IF(INTRO!$E$39="Endemic", IF($I37>0, IF($I37=4,"Unknown",IF($I37=99,"Stopped",$D37)), 0),"Not required") -> 10050 | O37: =IF(INTRO!$E$41="Endemic", IF($J37>1, IF($J37=4, "Unknown", IF($J37=99, "Surveillance", E37)), 0),"Not required") -> 1050 | P37: =IF(INTRO!$E$41="Endemic", IF($J37>1, IF($J37=4, "Unknown", IF($J37=99, "Surveillance", F37)), 0),"Not required") -> 2345 | Q37: =IF(INTRO!$E$41="Endemic", IF($J37>1, IF($J37=4, "Unknown", IF($J37=99, "Surveillance", ROUND(D37*INTRO!$E$51,0))), 0),"Not required") -> 2493 | R37: =IF(INTRO!$E$41="Endemic", IF($J37>1, IF($J37=4, "Unknown", IF($J37=99, "Surveillance", SUM($O37:$Q37))), 0),"Not required") -> 5888 | S37: 672 | T37: 672 | U37: 1608 | V37: =IF(INTRO!$E$43="Endemic", IF($K37>1, IF($K37=4, "Unknown", IF($K37=99, "Surveillance", SUM($S37:$U37))), 0),"Not required") -> 2952 | W37: 0 | X37: 0 | Y37: 1 | Z37: 1 | AH37: 20355 | AI37: Dola | AJ37: 10256
A38: =IF(INTRO!$E$33<>0,INTRO!$E$33, " ") -> Gabon | B38: Ngounié | C38: Mougalaba | D38: 1296 | E38: =IF(INTRO!$E$48="","",ROUND($D38*INTRO!$E$48,0)) -> 135 | F38: =IF(INTRO!$E$49="","",ROUND($D38*INTRO!$E$49,0)) -> 302 | G38: =IF(INTRO!$E$50="","",ROUND($D38*INTRO!$E$50,0)) -> 824 | H38: 1 | I38: 1 | J38: 3 | K38: 1 | L38: 1 | M38: =IF(INTRO!$E$37="Endemic",IF($H38>0,IF($H38=4,"Unknown",IF($H38=99,"Stopped",$D38)),0),"Not required") -> 1296 | N38: =IF(INTRO!$E$39="Endemic", IF($I38>0, IF($I38=4,"Unknown",IF($I38=99,"Stopped",$D38)), 0),"Not required") -> 1296 | O38: =IF(INTRO!$E$41="Endemic", IF($J38>1, IF($J38=4, "Unknown", IF($J38=99, "Surveillance", E38)), 0),"Not required") -> 135 | P38: =IF(INTRO!$E$41="Endemic", IF($J38>1, IF($J38=4, "Unknown", IF($J38=99, "Surveillance", F38)), 0),"Not required") -> 302 | Q38: =IF(INTRO!$E$41="Endemic", IF($J38>1, IF($J38=4, "Unknown", IF($J38=99, "Surveillance", ROUND(D38*INTRO!$E$51,0))), 0),"Not required") -> 322 | R38: =IF(INTRO!$E$41="Endemic", IF($J38>1, IF($J38=4, "Unknown", IF($J38=99, "Surveillance", SUM($O38:$Q38))), 0),"Not required") -> 759 | S38: 0 | T38: 0 | U38: 0 | V38: =IF(INTRO!$E$43="Endemic", IF($K38>1, IF($K38=4, "Unknown", IF($K38=99, "Surveillance", SUM($S38:$U38))), 0),"Not required") -> 0 | W38: 1 | X38: 0 | Y38: 2 | Z38: 0 | AH38: 20356 | AI38: Mougalaba | AJ38: 1323
A39: =IF(INTRO!$E$33<>0,INTRO!$E$33, " ") -> Gabon | B39: Nyanga | C39: Doutsila | D39: 3640 | E39: =IF(INTRO!$E$48="","",ROUND($D39*INTRO!$E$48,0)) -> 380 | F39: =IF(INTRO!$E$49="","",ROUND($D39*INTRO!$E$49,0)) -> 849 | G39: =IF(INTRO!$E$50="","",ROUND($D39*INTRO!$E$50,0)) -> 2314 | H39: 0 | I39: 4 | J39: 3 | K39: 1 | L39: 1 | M39: =IF(INTRO!$E$37="Endemic",IF($H39>0,IF($H39=4,"Unknown",IF($H39=99,"Stopped",$D39)),0),"Not required") -> 0 | N39: =IF(INTRO!$E$39="Endemic", IF($I39>0, IF($I39=4,"Unknown",IF($I39=99,"Stopped",$D39)), 0),"Not required") -> Unknown | O39: =IF(INTRO!$E$41="Endemic", IF($J39>1, IF($J39=4, "Unknown", IF($J39=99, "Surveillance", E39)), 0),"Not required") -> 380 | P39: =IF(INTRO!$E$41="Endemic", IF($J39>1, IF($J39=4, "Unknown", IF($J39=99, "Surveillance", F39)), 0),"Not required") -> 849 | Q39: =IF(INTRO!$E$41="Endemic", IF($J39>1, IF($J39=4, "Unknown", IF($J39=99, "Surveillance", ROUND(D39*INTRO!$E$51,0))), 0),"Not required") -> 903 | R39: =IF(INTRO!$E$41="Endemic", IF($J39>1, IF($J39=4, "Unknown", IF($J39=99, "Surveillance", SUM($O39:$Q39))), 0),"Not required") -> 2132 | S39: 0 | T39: 0 | U39: 0 | V39: =IF(INTRO!$E$43="Endemic", IF($K39>1, IF($K39=4, "Unknown", IF($K39=99, "Surveillance", SUM($S39:$U39))), 0),"Not required") -> 0 | W39: 0 | X39: 0 | Y39: 2 | Z39: 0 | AH39: 20357 | AI39: Doutsila | AJ39: 3715
A40: =IF(INTRO!$E$33<>0,INTRO!$E$33, " ") -> Gabon | B40: Nyanga | C40: Basse-Banio | D40: 8068 | E40: =IF(INTRO!$E$48="","",ROUND($D40*INTRO!$E$48,0)) -> 843 | F40: =IF(INTRO!$E$49="","",ROUND($D40*INTRO!$E$49,0)) -> 1882 | G40: =IF(INTRO!$E$50="","",ROUND($D40*INTRO!$E$50,0)) -> 5130 | H40: 1 | I40: 1 | J40: 2 | K40: 1 | L40: 1 | M40: =IF(INTRO!$E$37="Endemic",IF($H40>0,IF($H40=4,"Unknown",IF($H40=99,"Stopped",$D40)),0),"Not required") -> 8068 | N40: =IF(INTRO!$E$39="Endemic", IF($I40>0, IF($I40=4,"Unknown",IF($I40=99,"Stopped",$D40)), 0),"Not required") -> 8068 | O40: =IF(INTRO!$E$41="Endemic", IF($J40>1, IF($J40=4, "Unknown", IF($J40=99, "Surveillance", E40)), 0),"Not required") -> 843 | P40: =IF(INTRO!$E$41="Endemic", IF($J40>1, IF($J40=4, "Unknown", IF($J40=99, "Surveillance", F40)), 0),"Not required") -> 1882 | Q40: =IF(INTRO!$E$41="Endemic", IF($J40>1, IF($J40=4, "Unknown", IF($J40=99, "Surveillance", ROUND(D40*INTRO!$E$51,0))), 0),"Not required") -> 2002 | R40: =IF(INTRO!$E$41="Endemic", IF($J40>1, IF($J40=4, "Unknown", IF($J40=99, "Surveillance", SUM($O40:$Q40))), 0),"Not required") -> 4727 | S40: 0 | T40: 0 | U40: 0 | V40: =IF(INTRO!$E$43="Endemic", IF($K40>1, IF($K40=4, "Unknown", IF($K40=99, "Surveillance", SUM($S40:$U40))), 0),"Not required") -> 0 | W40: 1 | X40: 0 | Y40: 1 | Z40: 0 | AH40: 20358 | AI40: Basse-Banio | AJ40: 8234
A41: =IF(INTRO!$E$33<>0,INTRO!$E$33, " ") -> Gabon | B41: Nyanga | C41: Douigny | D41: 6287 | E41: =IF(INTRO!$E$48="","",ROUND($D41*INTRO!$E$48,0)) -> 657 | F41: =IF(INTRO!$E$49="","",ROUND($D41*INTRO!$E$49,0)) -> 1467 | G41: =IF(INTRO!$E$50="","",ROUND($D41*INTRO!$E$50,0)) -> 3997 | H41: 0 | I41: 1 | J41: 3 | K41: 0 | L41: 1 | M41: =IF(INTRO!$E$37="Endemic",IF($H41>0,IF($H41=4,"Unknown",IF($H41=99,"Stopped",$D41)),0),"Not required") -> 0 | N41: =IF(INTRO!$E$39="Endemic", IF($I41>0, IF($I41=4,"Unknown",IF($I41=99,"Stopped",$D41)), 0),"Not required") -> 6287 | O41: =IF(INTRO!$E$41="Endemic", IF($J41>1, IF($J41=4, "Unknown", IF($J41=99, "Surveillance", E41)), 0),"Not required") -> 657 | P41: =IF(INTRO!$E$41="Endemic", IF($J41>1, IF($J41=4, "Unknown", IF($J41=99, "Surveillance", F41)), 0),"Not required") -> 1467 | Q41: =IF(INTRO!$E$41="Endemic", IF($J41>1, IF($J41=4, "Unknown", IF($J41=99, "Surveillance", ROUND(D41*INTRO!$E$51,0))), 0),"Not required") -> 1560 | R41: =IF(INTRO!$E$41="Endemic", IF($J41>1, IF($J41=4, "Unknown", IF($J41=99, "Surveillance", SUM($O41:$Q41))), 0),"Not required") -> 3684 | S41: 0 | T41: 0 | U41: 0 | V41: =IF(INTRO!$E$43="Endemic", IF($K41>1, IF($K41=4, "Unknown", IF($K41=99, "Surveillance", SUM($S41:$U41))), 0),"Not required") -> 0 | W41: 0 | X41: 0 | Y41: 2 | Z41: 0 | AH41: 20359 | AI41: Douigny | AJ41: 6416
A42: =IF(INTRO!$E$33<>0,INTRO!$E$33, " ") -> Gabon | B42: Nyanga | C42: Mongo | D42: 4112 | E42: =IF(INTRO!$E$48="","",ROUND($D42*INTRO!$E$48,0)) -> 430 | F42: =IF(INTRO!$E$49="","",ROUND($D42*INTRO!$E$49,0)) -> 959 | G42: =IF(INTRO!$E$50="","",ROUND($D42*INTRO!$E$50,0)) -> 2614 | H42: 0 | I42: 1 | J42: 2 | K42: 1 | L42: 1 | M42: =IF(INTRO!$E$37="Endemic",IF($H42>0,IF($H42=4,"Unknown",IF($H42=99,"Stopped",$D42)),0),"Not required") -> 0 | N42: =IF(INTRO!$E$39="Endemic", IF($I42>0, IF($I42=4,"Unknown",IF($I42=99,"Stopped",$D42)), 0),"Not required") -> 4112 | O42: =IF(INTRO!$E$41="Endemic", IF($J42>1, IF($J42=4, "Unknown", IF($J42=99, "Surveillance", E42)), 0),"Not required") -> 430 | P42: =IF(INTRO!$E$41="Endemic", IF($J42>1, IF($J42=4, "Unknown", IF($J42=99, "Surveillance", F42)), 0),"Not required") -> 959 | Q42: =IF(INTRO!$E$41="Endemic", IF($J42>1, IF($J42=4, "Unknown", IF($J42=99, "Surveillance", ROUND(D42*INTRO!$E$51,0))), 0),"Not required") -> 1020 | R42: =IF(INTRO!$E$41="Endemic", IF($J42>1, IF($J42=4, "Unknown", IF($J42=99, "Surveillance", SUM($O42:$Q42))), 0),"Not required") -> 2409 | S42: 0 | T42: 0 | U42: 0 | V42: =IF(INTRO!$E$43="Endemic", IF($K42>1, IF($K42=4, "Unknown", IF($K42=99, "Surveillance", SUM($S42:$U42))), 0),"Not required") -> 0 | W42: 0 | X42: 0 | Y42: 1 | Z42: 0 | AH42: 20360 | AI42: Mongo | AJ42: 4196
A43: =IF(INTRO!$E$33<>0,INTRO!$E$33, " ") -> Gabon | B43: Nyanga | C43: Haute-Banio | D43: 2069 | E43: =IF(INTRO!$E$48="","",ROUND($D43*INTRO!$E$48,0)) -> 216 | F43: =IF(INTRO!$E$49="","",ROUND($D43*INTRO!$E$49,0)) -> 483 | G43: =IF(INTRO!$E$50="","",ROUND($D43*INTRO!$E$50,0)) -> 1315 | H43: 0 | I43: 4 | J43: 3 | K43: 0 | L43: 1 | M43: =IF(INTRO!$E$37="Endemic",IF($H43>0,IF($H43=4,"Unknown",IF($H43=99,"Stopped",$D43)),0),"Not required") -> 0 | N43: =IF(INTRO!$E$39="Endemic", IF($I43>0, IF($I43=4,"Unknown",IF($I43=99,"Stopped",$D43)), 0),"Not required") -> Unknown | O43: =IF(INTRO!$E$41="Endemic", IF($J43>1, IF($J43=4, "Unknown", IF($J43=99, "Surveillance", E43)), 0),"Not required") -> 216 | P43: =IF(INTRO!$E$41="Endemic", IF($J43>1, IF($J43=4, "Unknown", IF($J43=99, "Surveillance", F43)), 0),"Not required") -> 483 | Q43: =IF(INTRO!$E$41="Endemic", IF($J43>1, IF($J43=4, "Unknown", IF($J43=99, "Surveillance", ROUND(D43*INTRO!$E$51,0))), 0),"Not required") -> 513 | R43: =IF(INTRO!$E$41="Endemic", IF($J43>1, IF($J43=4, "Unknown", IF($J43=99, "Surveillance", SUM($O43:$Q43))), 0),"Not required") -> 1212 | S43: 0 | T43: 0 | U43: 0 | V43: =IF(INTRO!$E$43="Endemic", IF($K43>1, IF($K43=4, "Unknown", IF($K43=99, "Surveillance", SUM($S43:$U43))), 0),"Not required") -> 0 | W43: 0 | X43: 0 | Y43: 2 | Z43: 0 | AH43: 20361 | AI43: Haute-Banio | AJ43: 2111
A44: =IF(INTRO!$E$33<>0,INTRO!$E$33, " ") -> Gabon | B44: Nyanga | C44: Mougoutsi | D44: 34862 | E44: =IF(INTRO!$E$48="","",ROUND($D44*INTRO!$E$48,0)) -> 3643 | F44: =IF(INTRO!$E$49="","",ROUND($D44*INTRO!$E$49,0)) -> 8133 | G44: =IF(INTRO!$E$50="","",ROUND($D44*INTRO!$E$50,0)) -> 22165 | H44: 0 | I44: 1 | J44: 2 | K44: 1 | L44: 1 | M44: =IF(INTRO!$E$37="Endemic",IF($H44>0,IF($H44=4,"Unknown",IF($H44=99,"Stopped",$D44)),0),"Not required") -> 0 | N44: =IF(INTRO!$E$39="Endemic", IF($I44>0, IF($I44=4,"Unknown",IF($I44=99,"Stopped",$D44)), 0),"Not required") -> 34862 | O44: =IF(INTRO!$E$41="Endemic", IF($J44>1, IF($J44=4, "Unknown", IF($J44=99, "Surveillance", E44)), 0),"Not required") -> 3643 | P44: =IF(INTRO!$E$41="Endemic", IF($J44>1, IF($J44=4, "Unknown", IF($J44=99, "Surveillance", F44)), 0),"Not required") -> 8133 | Q44: =IF(INTRO!$E$41="Endemic", IF($J44>1, IF($J44=4, "Unknown", IF($J44=99, "Surveillance", ROUND(D44*INTRO!$E$51,0))), 0),"Not required") -> 8649 | R44: =IF(INTRO!$E$41="Endemic", IF($J44>1, IF($J44=4, "Unknown", IF($J44=99, "Surveillance", SUM($O44:$Q44))), 0),"Not required") -> 20425 | S44: 0 | T44: 0 | U44: 0 | V44: =IF(INTRO!$E$43="Endemic", IF($K44>1, IF($K44=4, "Unknown", IF($K44=99, "Surveillance", SUM($S44:$U44))), 0),"Not required") -> 0 | W44: 0 | X44: 0 | Y44: 1 | Z44: 0 | AH44: 20362 | AI44: Mougoutsi | AJ44: 35578
A45: =IF(INTRO!$E$33<>0,INTRO!$E$33, " ") -> Gabon | B45: Ogooué-Ivindo | C45: Lopé | D45: 17507 | E45: =IF(INTRO!$E$48="","",ROUND($D45*INTRO!$E$48,0)) -> 1829 | F45: =IF(INTRO!$E$49="","",ROUND($D45*INTRO!$E$49,0)) -> 4084 | G45: =IF(INTRO!$E$50="","",ROUND($D45*INTRO!$E$50,0)) -> 11131 | H45: 1 | I45: 1 | J45: 2 | K45: 1 | L45: 1 | M45: =IF(INTRO!$E$37="Endemic",IF($H45>0,IF($H45=4,"Unknown",IF($H45=99,"Stopped",$D45)),0),"Not required") -> 17507 | N45: =IF(INTRO!$E$39="Endemic", IF($I45>0, IF($I45=4,"Unknown",IF($I45=99,"Stopped",$D45)), 0),"Not required") -> 17507 | O45: =IF(INTRO!$E$41="Endemic", IF($J45>1, IF($J45=4, "Unknown", IF($J45=99, "Surveillance", E45)), 0),"Not required") -> 1829 | P45: =IF(INTRO!$E$41="Endemic", IF($J45>1, IF($J45=4, "Unknown", IF($J45=99, "Surveillance", F45)), 0),"Not required") -> 4084 | Q45: =IF(INTRO!$E$41="Endemic", IF($J45>1, IF($J45=4, "Unknown", IF($J45=99, "Surveillance", ROUND(D45*INTRO!$E$51,0))), 0),"Not required") -> 4343 | R45: =IF(INTRO!$E$41="Endemic", IF($J45>1, IF($J45=4, "Unknown", IF($J45=99, "Surveillance", SUM($O45:$Q45))), 0),"Not required") -> 10256 | S45: 0 | T45: 0 | U45: 0 | V45: =IF(INTRO!$E$43="Endemic", IF($K45>1, IF($K45=4, "Unknown", IF($K45=99, "Surveillance", SUM($S45:$U45))), 0),"Not required") -> 0 | W45: 1 | X45: 0 | Y45: 1 | Z45: 0 | AH45: 20363 | AI45: Lopé | AJ45: 17866
A46: =IF(INTRO!$E$33<>0,INTRO!$E$33, " ") -> Gabon | B46: Ogooué-Ivindo | C46: Ivindo | D46: 38547 | E46: =IF(INTRO!$E$48="","",ROUND($D46*INTRO!$E$48,0)) -> 4028 | F46: =IF(INTRO!$E$49="","",ROUND($D46*INTRO!$E$49,0)) -> 8993 | G46: =IF(INTRO!$E$50="","",ROUND($D46*INTRO!$E$50,0)) -> 24508 | H46: 1 | I46: 1 | J46: 2 | K46: 1 | L46: 1 | M46: =IF(INTRO!$E$37="Endemic",IF($H46>0,IF($H46=4,"Unknown",IF($H46=99,"Stopped",$D46)),0),"Not required") -> 38547 | N46: =IF(INTRO!$E$39="Endemic", IF($I46>0, IF($I46=4,"Unknown",IF($I46=99,"Stopped",$D46)), 0),"Not required") -> 38547 | O46: =IF(INTRO!$E$41="Endemic", IF($J46>1, IF($J46=4, "Unknown", IF($J46=99, "Surveillance", E46)), 0),"Not required") -> 4028 | P46: =IF(INTRO!$E$41="Endemic", IF($J46>1, IF($J46=4, "Unknown", IF($J46=99, "Surveillance", F46)), 0),"Not required") -> 8993 | Q46: =IF(INTRO!$E$41="Endemic", IF($J46>1, IF($J46=4, "Unknown", IF($J46=99, "Surveillance", ROUND(D46*INTRO!$E$51,0))), 0),"Not required") -> 9564 | R46: =IF(INTRO!$E$41="Endemic", IF($J46>1, IF($J46=4, "Unknown", IF($J46=99, "Surveillance", SUM($O46:$Q46))), 0),"Not required") -> 22585 | S46: 0 | T46: 0 | U46: 0 | V46: =IF(INTRO!$E$43="Endemic", IF($K46>1, IF($K46=4, "Unknown", IF($K46=99, "Surveillance", SUM($S46:$U46))), 0),"Not required") -> 0 | W46: 1 | X46: 0 | Y46: 1 | Z46: 0 | AH46: 20364 | AI46: Ivindo | AJ46: 39338
A47: =IF(INTRO!$E$33<>0,INTRO!$E$33, " ") -> Gabon | B47: Ogooué-Ivindo | C47: Zadié | D47: 15908 | E47: =IF(INTRO!$E$48="","",ROUND($D47*INTRO!$E$48,0)) -> 1662 | F47: =IF(INTRO!$E$49="","",ROUND($D47*INTRO!$E$49,0)) -> 3711 | G47: =IF(INTRO!$E$50="","",ROUND($D47*INTRO!$E$50,0)) -> 10114 | H47: 1 | I47: 1 | J47: 3 | K47: 0 | L47: 1 | M47: =IF(INTRO!$E$37="Endemic",IF($H47>0,IF($H47=4,"Unknown",IF($H47=99,"Stopped",$D47)),0),"Not required") -> 15908 | N47: =IF(INTRO!$E$39="Endemic", IF($I47>0, IF($I47=4,"Unknown",IF($I47=99,"Stopped",$D47)), 0),"Not required") -> 15908 | O47: =IF(INTRO!$E$41="Endemic", IF($J47>1, IF($J47=4, "Unknown", IF($J47=99, "Surveillance", E47)), 0),"Not required") -> 1662 | P47: =IF(INTRO!$E$41="Endemic", IF($J47>1, IF($J47=4, "Unknown", IF($J47=99, "Surveillance", F47)), 0),"Not required") -> 3711 | Q47: =IF(INTRO!$E$41="Endemic", IF($J47>1, IF($J47=4, "Unknown", IF($J47=99, "Surveillance", ROUND(D47*INTRO!$E$51,0))), 0),"Not required") -> 3947 | R47: =IF(INTRO!$E$41="Endemic", IF($J47>1, IF($J47=4, "Unknown", IF($J47=99, "Surveillance", SUM($O47:$Q47))), 0),"Not required") -> 9320 | S47: 0 | T47: 0 | U47: 0 | V47: =IF(INTRO!$E$43="Endemic", IF($K47>1, IF($K47=4, "Unknown", IF($K47=99, "Surveillance", SUM($S47:$U47))), 0),"Not required") -> 0 | W47: 1 | X47: 0 | Y47: 2 | Z47: 0 | AH47: 20365 | AI47: Zadié | AJ47: 16235
A48: =IF(INTRO!$E$33<>0,INTRO!$E$33, " ") -> Gabon | B48: Ogooué-Ivindo | C48: Mvoung | D48: 4997 | E48: =IF(INTRO!$E$48="","",ROUND($D48*INTRO!$E$48,0)) -> 522 | F48: =IF(INTRO!$E$49="","",ROUND($D48*INTRO!$E$49,0)) -> 1166 | G48: =IF(INTRO!$E$50="","",ROUND($D48*INTRO!$E$50,0)) -> 3177 | H48: 1 | I48: 1 | J48: 3 | K48: 2 | L48: 1 | M48: =IF(INTRO!$E$37="Endemic",IF($H48>0,IF($H48=4,"Unknown",IF($H48=99,"Stopped",$D48)),0),"Not required") -> 4997 | N48: =IF(INTRO!$E$39="Endemic", IF($I48>0, IF($I48=4,"Unknown",IF($I48=99,"Stopped",$D48)), 0),"Not required") -> 4997 | O48: =IF(INTRO!$E$41="Endemic", IF($J48>1, IF($J48=4, "Unknown", IF($J48=99, "Surveillance", E48)), 0),"Not required") -> 522 | P48: =IF(INTRO!$E$41="Endemic", IF($J48>1, IF($J48=4, "Unknown", IF($J48=99, "Surveillance", F48)), 0),"Not required") -> 1166 | Q48: =IF(INTRO!$E$41="Endemic", IF($J48>1, IF($J48=4, "Unknown", IF($J48=99, "Surveillance", ROUND(D48*INTRO!$E$51,0))), 0),"Not required") -> 1240 | R48: =IF(INTRO!$E$41="Endemic", IF($J48>1, IF($J48=4, "Unknown", IF($J48=99, "Surveillance", SUM($O48:$Q48))), 0),"Not required") -> 2928 | S48: 46 | T48: 46 | U48: 108 | V48: =IF(INTRO!$E$43="Endemic", IF($K48>1, IF($K48=4, "Unknown", IF($K48=99, "Surveillance", SUM($S48:$U48))), 0),"Not required") -> 200 | W48: 1 | X48: 0 | Y48: 2 | Z48: 1 | AH48: 20366 | AI48: Mvoung | AJ48: 5100
A49: =IF(INTRO!$E$33<>0,INTRO!$E$33, " ") -> Gabon | B49: Ogooué-Lolo | C49: Offoué-Onoye | D49: 3546 | E49: =IF(INTRO!$E$48="","",ROUND($D49*INTRO!$E$48,0)) -> 371 | F49: =IF(INTRO!$E$49="","",ROUND($D49*INTRO!$E$49,0)) -> 827 | G49: =IF(INTRO!$E$50="","",ROUND($D49*INTRO!$E$50,0)) -> 2255 | H49: 1 | I49: 1 | J49: 3 | K49: 2 | L49: 1 | M49: =IF(INTRO!$E$37="Endemic",IF($H49>0,IF($H49=4,"Unknown",IF($H49=99,"Stopped",$D49)),0),"Not required") -> 3546 | N49: =IF(INTRO!$E$39="Endemic", IF($I49>0, IF($I49=4,"Unknown",IF($I49=99,"Stopped",$D49)), 0),"Not required") -> 3546 | O49: =IF(INTRO!$E$41="Endemic", IF($J49>1, IF($J49=4, "Unknown", IF($J49=99, "Surveillance", E49)), 0),"Not required") -> 371 | P49: =IF(INTRO!$E$41="Endemic", IF($J49>1, IF($J49=4, "Unknown", IF($J49=99, "Surveillance", F49)), 0),"Not required") -> 827 | Q49: =IF(INTRO!$E$41="Endemic", IF($J49>1, IF($J49=4, "Unknown", IF($J49=99, "Surveillance", ROUND(D49*INTRO!$E$51,0))), 0),"Not required") -> 880 | R49: =IF(INTRO!$E$41="Endemic", IF($J49>1, IF($J49=4, "Unknown", IF($J49=99, "Surveillance", SUM($O49:$Q49))), 0),"Not required") -> 2078 | S49: 55 | T49: 55 | U49: 132 | V49: =IF(INTRO!$E$43="Endemic", IF($K49>1, IF($K49=4, "Unknown", IF($K49=99, "Surveillance", SUM($S49:$U49))), 0),"Not required") -> 242 | W49: 1 | X49: 0 | Y49: 2 | Z49: 1 | AH49: 20367 | AI49: Offoué-Onoye | AJ49: 3619
A50: =IF(INTRO!$E$33<>0,INTRO!$E$33, " ") -> Gabon | B50: Ogooué-Lolo | C50: Lolo-Bouenguidi | D50: 37065 | E50: =IF(INTRO!$E$48="","",ROUND($D50*INTRO!$E$48,0)) -> 3873 | F50: =IF(INTRO!$E$49="","",ROUND($D50*INTRO!$E$49,0)) -> 8647 | G50: =IF(INTRO!$E$50="","",ROUND($D50*INTRO!$E$50,0)) -> 23566 | H50: 1 | I50: 1 | J50: 2 | K50: 2 | L50: 1 | M50: =IF(INTRO!$E$37="Endemic",IF($H50>0,IF($H50=4,"Unknown",IF($H50=99,"Stopped",$D50)),0),"Not required") -> 37065 | N50: =IF(INTRO!$E$39="Endemic", IF($I50>0, IF($I50=4,"Unknown",IF($I50=99,"Stopped",$D50)), 0),"Not required") -> 37065 | O50: =IF(INTRO!$E$41="Endemic", IF($J50>1, IF($J50=4, "Unknown", IF($J50=99, "Surveillance", E50)), 0),"Not required") -> 3873 | P50: =IF(INTRO!$E$41="Endemic", IF($J50>1, IF($J50=4, "Unknown", IF($J50=99, "Surveillance", F50)), 0),"Not required") -> 8647 | Q50: =IF(INTRO!$E$41="Endemic", IF($J50>1, IF($J50=4, "Unknown", IF($J50=99, "Surveillance", ROUND(D50*INTRO!$E$51,0))), 0),"Not required") -> 9196 | R50: =IF(INTRO!$E$41="Endemic", IF($J50>1, IF($J50=4, "Unknown", IF($J50=99, "Surveillance", SUM($O50:$Q50))), 0),"Not required") -> 21716 | S50: 2468 | T50: 2468 | U50: 5903 | V50: =IF(INTRO!$E$43="Endemic", IF($K50>1, IF($K50=4, "Unknown", IF($K50=99, "Surveillance", SUM($S50:$U50))), 0),"Not required") -> 10839 | W50: 1 | X50: 0 | Y50: 1 | Z50: 1 | AH50: 20368 | AI50: Lolo-Bouenguidi | AJ50: 37826
A51: =IF(INTRO!$E$33<>0,INTRO!$E$33, " ") -> Gabon | B51: Ogooué-Lolo | C51: Mulundu | D51: 37416 | E51: =IF(INTRO!$E$48="","",ROUND($D51*INTRO!$E$48,0)) -> 3910 | F51: =IF(INTRO!$E$49="","",ROUND($D51*INTRO!$E$49,0)) -> 8729 | G51: =IF(INTRO!$E$50="","",ROUND($D51*INTRO!$E$50,0)) -> 23789 | H51: 1 | I51: 1 | J51: 2 | K51: 2 | L51: 1 | M51: =IF(INTRO!$E$37="Endemic",IF($H51>0,IF($H51=4,"Unknown",IF($H51=99,"Stopped",$D51)),0),"Not required") -> 37416 | N51: =IF(INTRO!$E$39="Endemic", IF($I51>0, IF($I51=4,"Unknown",IF($I51=99,"Stopped",$D51)), 0),"Not required") -> 37416 | O51: =IF(INTRO!$E$41="Endemic", IF($J51>1, IF($J51=4, "Unknown", IF($J51=99, "Surveillance", E51)), 0),"Not required") -> 3910 | P51: =IF(INTRO!$E$41="Endemic", IF($J51>1, IF($J51=4, "Unknown", IF($J51=99, "Surveillance", F51)), 0),"Not required") -> 8729 | Q51: =IF(INTRO!$E$41="Endemic", IF($J51>1, IF($J51=4, "Unknown", IF($J51=99, "Surveillance", ROUND(D51*INTRO!$E$51,0))), 0),"Not required") -> 9283 | R51: =IF(INTRO!$E$41="Endemic", IF($J51>1, IF($J51=4, "Unknown", IF($J51=99, "Surveillance", SUM($O51:$Q51))), 0),"Not required") -> 21922 | S51: 752 | T51: 752 | U51: 1797 | V51: =IF(INTRO!$E$43="Endemic", IF($K51>1, IF($K51=4, "Unknown", IF($K51=99, "Surveillance", SUM($S51:$U51))), 0),"Not required") -> 3301 | W51: 1 | X51: 0 | Y51: 1 | Z51: 1 | AH51: 20369 | AI51: Mulundu | AJ51: 38184
A52: =IF(INTRO!$E$33<>0,INTRO!$E$33, " ") -> Gabon | B52: Ogooué-Lolo | C52: Lombo-Bouenguidi | D52: 4893 | E52: =IF(INTRO!$E$48="","",ROUND($D52*INTRO!$E$48,0)) -> 511 | F52: =IF(INTRO!$E$49="","",ROUND($D52*INTRO!$E$49,0)) -> 1142 | G52: =IF(INTRO!$E$50="","",ROUND($D52*INTRO!$E$50,0)) -> 3111 | H52: 0 | I52: 1 | J52: 3 | K52: 1 | L52: 1 | M52: =IF(INTRO!$E$37="Endemic",IF($H52>0,IF($H52=4,"Unknown",IF($H52=99,"Stopped",$D52)),0),"Not required") -> 0 | N52: =IF(INTRO!$E$39="Endemic", IF($I52>0, IF($I52=4,"Unknown",IF($I52=99,"Stopped",$D52)), 0),"Not required") -> 4893 | O52: =IF(INTRO!$E$41="Endemic", IF($J52>1, IF($J52=4, "Unknown", IF($J52=99, "Surveillance", E52)), 0),"Not required") -> 511 | P52: =IF(INTRO!$E$41="Endemic", IF($J52>1, IF($J52=4, "Unknown", IF($J52=99, "Surveillance", F52)), 0),"Not required") -> 1142 | Q52: =IF(INTRO!$E$41="Endemic", IF($J52>1, IF($J52=4, "Unknown", IF($J52=99, "Surveillance", ROUND(D52*INTRO!$E$51,0))), 0),"Not required") -> 1214 | R52: =IF(INTRO!$E$41="Endemic", IF($J52>1, IF($J52=4, "Unknown", IF($J52=99, "Surveillance", SUM($O52:$Q52))), 0),"Not required") -> 2867 | S52: 0 | T52: 0 | U52: 0 | V52: =IF(INTRO!$E$43="Endemic", IF($K52>1, IF($K52=4, "Unknown", IF($K52=99, "Surveillance", SUM($S52:$U52))), 0),"Not required") -> 0 | W52: 0 | X52: 0 | Y52: 2 | Z52: 0 | AH52: 20370 | AI52: Lombo-Bouenguidi | AJ52: 4993
A53: =IF(INTRO!$E$33<>0,INTRO!$E$33, " ") -> Gabon | B53: Ogooué-maritime | C53: Ndougou | D53: 13192 | E53: =IF(INTRO!$E$48="","",ROUND($D53*INTRO!$E$48,0)) -> 1379 | F53: =IF(INTRO!$E$49="","",ROUND($D53*INTRO!$E$49,0)) -> 3078 | G53: =IF(INTRO!$E$50="","",ROUND($D53*INTRO!$E$50,0)) -> 8387 | H53: 0 | I53: 4 | J53: 2 | K53: 1 | L53: 1 | M53: =IF(INTRO!$E$37="Endemic",IF($H53>0,IF($H53=4,"Unknown",IF($H53=99,"Stopped",$D53)),0),"Not required") -> 0 | N53: =IF(INTRO!$E$39="Endemic", IF($I53>0, IF($I53=4,"Unknown",IF($I53=99,"Stopped",$D53)), 0),"Not required") -> Unknown | O53: =IF(INTRO!$E$41="Endemic", IF($J53>1, IF($J53=4, "Unknown", IF($J53=99, "Surveillance", E53)), 0),"Not required") -> 1379 | P53: =IF(INTRO!$E$41="Endemic", IF($J53>1, IF($J53=4, "Unknown", IF($J53=99, "Surveillance", F53)), 0),"Not required") -> 3078 | Q53: =IF(INTRO!$E$41="Endemic", IF($J53>1, IF($J53=4, "Unknown", IF($J53=99, "Surveillance", ROUND(D53*INTRO!$E$51,0))), 0),"Not required") -> 3273 | R53: =IF(INTRO!$E$41="Endemic", IF($J53>1, IF($J53=4, "Unknown", IF($J53=99, "Surveillance", SUM($O53:$Q53))), 0),"Not required") -> 7730 | S53: 0 | T53: 0 | U53: 0 | V53: =IF(INTRO!$E$43="Endemic", IF($K53>1, IF($K53=4, "Unknown", IF($K53=99, "Surveillance", SUM($S53:$U53))), 0),"Not required") -> 0 | W53: 0 | X53: 0 | Y53: 1 | Z53: 0 | AH53: 20371 | AI53: Ndougou | AJ53: 13463
A54: =IF(INTRO!$E$33<>0,INTRO!$E$33, " ") -> Gabon | B54: Ogooué-maritime | C54: Etimboué | D54: 5890 | E54: =IF(INTRO!$E$48="","",ROUND($D54*INTRO!$E$48,0)) -> 616 | F54: =IF(INTRO!$E$49="","",ROUND($D54*INTRO!$E$49,0)) -> 1374 | G54: =IF(INTRO!$E$50="","",ROUND($D54*INTRO!$E$50,0)) -> 3745 | H54: 0 | I54: 0 | J54: 2 | K54: 1 | L54: 1 | M54: =IF(INTRO!$E$37="Endemic",IF($H54>0,IF($H54=4,"Unknown",IF($H54=99,"Stopped",$D54)),0),"Not required") -> 0 | N54: =IF(INTRO!$E$39="Endemic", IF($I54>0, IF($I54=4,"Unknown",IF($I54=99,"Stopped",$D54)), 0),"Not required") -> 0 | O54: =IF(INTRO!$E$41="Endemic", IF($J54>1, IF($J54=4, "Unknown", IF($J54=99, "Surveillance", E54)), 0),"Not required") -> 616 | P54: =IF(INTRO!$E$41="Endemic", IF($J54>1, IF($J54=4, "Unknown", IF($J54=99, "Surveillance", F54)), 0),"Not required") -> 1374 | Q54: =IF(INTRO!$E$41="Endemic", IF($J54>1, IF($J54=4, "Unknown", IF($J54=99, "Surveillance", ROUND(D54*INTRO!$E$51,0))), 0),"Not required") -> 1461 | R54: =IF(INTRO!$E$41="Endemic", IF($J54>1, IF($J54=4, "Unknown", IF($J54=99, "Surveillance", SUM($O54:$Q54))), 0),"Not required") -> 3451 | S54: 0 | T54: 0 | U54: 0 | V54: =IF(INTRO!$E$43="Endemic", IF($K54>1, IF($K54=4, "Unknown", IF($K54=99, "Surveillance", SUM($S54:$U54))), 0),"Not required") -> 0 | W54: 0 | X54: 0 | Y54: 1 | Z54: 0 | AH54: 20372 | AI54: Etimboué | AJ54: 6011
A55: =IF(INTRO!$E$33<>0,INTRO!$E$33, " ") -> Gabon | B55: Ogooué-maritime | C55: Bendjé | D55: 167533 | E55: =IF(INTRO!$E$48="","",ROUND($D55*INTRO!$E$48,0)) -> 17507 | F55: =IF(INTRO!$E$49="","",ROUND($D55*INTRO!$E$49,0)) -> 39085 | G55: =IF(INTRO!$E$50="","",ROUND($D55*INTRO!$E$50,0)) -> 106517 | H55: 0 | I55: 4 | J55: 1 | K55: 2 | L55: 1 | M55: =IF(INTRO!$E$37="Endemic",IF($H55>0,IF($H55=4,"Unknown",IF($H55=99,"Stopped",$D55)),0),"Not required") -> 0 | N55: =IF(INTRO!$E$39="Endemic", IF($I55>0, IF($I55=4,"Unknown",IF($I55=99,"Stopped",$D55)), 0),"Not required") -> Unknown | O55: =IF(INTRO!$E$41="Endemic", IF($J55>1, IF($J55=4, "Unknown", IF($J55=99, "Surveillance", E55)), 0),"Not required") -> 0 | P55: =IF(INTRO!$E$41="Endemic", IF($J55>1, IF($J55=4, "Unknown", IF($J55=99, "Surveillance", F55)), 0),"Not required") -> 0 | Q55: =IF(INTRO!$E$41="Endemic", IF($J55>1, IF($J55=4, "Unknown", IF($J55=99, "Surveillance", ROUND(D55*INTRO!$E$51,0))), 0),"Not required") -> 0 | R55: =IF(INTRO!$E$41="Endemic", IF($J55>1, IF($J55=4, "Unknown", IF($J55=99, "Surveillance", SUM($O55:$Q55))), 0),"Not required") -> 0 | S55: 7792 | T55: 7791 | U55: 18638 | V55: =IF(INTRO!$E$43="Endemic", IF($K55>1, IF($K55=4, "Unknown", IF($K55=99, "Surveillance", SUM($S55:$U55))), 0),"Not required") -> 34221 | W55: 0 | X55: 0 | Y55: 0 | Z55: 1 | AH55: 20373 | AI55: Bendjé | AJ55: 170972
A56: =IF(INTRO!$E$33<>0,INTRO!$E$33, " ") -> Gabon | B56: Woleu-Ntem | C56: Ntem | D56: 49060 | E56: =IF(INTRO!$E$48="","",ROUND($D56*INTRO!$E$48,0)) -> 5127 | F56: =IF(INTRO!$E$49="","",ROUND($D56*INTRO!$E$49,0)) -> 11446 | G56: =IF(INTRO!$E$50="","",ROUND($D56*INTRO!$E$50,0)) -> 31192 | H56: 0 | I56: 1 | J56: 3 | K56: 1 | L56: 1 | M56: =IF(INTRO!$E$37="Endemic",IF($H56>0,IF($H56=4,"Unknown",IF($H56=99,"Stopped",$D56)),0),"Not required") -> 0 | N56: =IF(INTRO!$E$39="Endemic", IF($I56>0, IF($I56=4,"Unknown",IF($I56=99,"Stopped",$D56)), 0),"Not required") -> 49060 | O56: =IF(INTRO!$E$41="Endemic", IF($J56>1, IF($J56=4, "Unknown", IF($J56=99, "Surveillance", E56)), 0),"Not required") -> 5127 | P56: =IF(INTRO!$E$41="Endemic", IF($J56>1, IF($J56=4, "Unknown", IF($J56=99, "Surveillance", F56)), 0),"Not required") -> 11446 | Q56: =IF(INTRO!$E$41="Endemic", IF($J56>1, IF($J56=4, "Unknown", IF($J56=99, "Surveillance", ROUND(D56*INTRO!$E$51,0))), 0),"Not required") -> 12172 | R56: =IF(INTRO!$E$41="Endemic", IF($J56>1, IF($J56=4, "Unknown", IF($J56=99, "Surveillance", SUM($O56:$Q56))), 0),"Not required") -> 28745 | S56: 0 | T56: 0 | U56: 0 | V56: =IF(INTRO!$E$43="Endemic", IF($K56>1, IF($K56=4, "Unknown", IF($K56=99, "Surveillance", SUM($S56:$U56))), 0),"Not required") -> 0 | W56: 0 | X56: 0 | Y56: 2 | Z56: 0 | AH56: 20374 | AI56: Ntem | AJ56: 50067
A57: =IF(INTRO!$E$33<>0,INTRO!$E$33, " ") -> Gabon | B57: Woleu-Ntem | C57: Haut-Komo | D57: 4690 | E57: =IF(INTRO!$E$48="","",ROUND($D57*INTRO!$E$48,0)) -> 490 | F57: =IF(INTRO!$E$49="","",ROUND($D57*INTRO!$E$49,0)) -> 1094 | G57: =IF(INTRO!$E$50="","",ROUND($D57*INTRO!$E$50,0)) -> 2982 | H57: 0 | I57: 1 | J57: 3 | K57: 1 | L57: 1 | M57: =IF(INTRO!$E$37="Endemic",IF($H57>0,IF($H57=4,"Unknown",IF($H57=99,"Stopped",$D57)),0),"Not required") -> 0 | N57: =IF(INTRO!$E$39="Endemic", IF($I57>0, IF($I57=4,"Unknown",IF($I57=99,"Stopped",$D57)), 0),"Not required") -> 4690 | O57: =IF(INTRO!$E$41="Endemic", IF($J57>1, IF($J57=4, "Unknown", IF($J57=99, "Surveillance", E57)), 0),"Not required") -> 490 | P57: =IF(INTRO!$E$41="Endemic", IF($J57>1, IF($J57=4, "Unknown", IF($J57=99, "Surveillance", F57)), 0),"Not required") -> 1094 | Q57: =IF(INTRO!$E$41="Endemic", IF($J57>1, IF($J57=4, "Unknown", IF($J57=99, "Surveillance", ROUND(D57*INTRO!$E$51,0))), 0),"Not required") -> 1164 | R57: =IF(INTRO!$E$41="Endemic", IF($J57>1, IF($J57=4, "Unknown", IF($J57=99, "Surveillance", SUM($O57:$Q57))), 0),"Not required") -> 2748 | S57: 0 | T57: 0 | U57: 0 | V57: =IF(INTRO!$E$43="Endemic", IF($K57>1, IF($K57=4, "Unknown", IF($K57=99, "Surveillance", SUM($S57:$U57))), 0),"Not required") -> 0 | W57: 0 | X57: 0 | Y57: 2 | Z57: 0 | AH57: 20375 | AI57: Haut-Komo | AJ57: 4786
A58: =IF(INTRO!$E$33<>0,INTRO!$E$33, " ") -> Gabon | B58: Woleu-Ntem | C58: Haut-Ntem | D58: 15422 | E58: =IF(INTRO!$E$48="","",ROUND($D58*INTRO!$E$48,0)) -> 1612 | F58: =IF(INTRO!$E$49="","",ROUND($D58*INTRO!$E$49,0)) -> 3598 | G58: =IF(INTRO!$E$50="","",ROUND($D58*INTRO!$E$50,0)) -> 9805 | H58: 0 | I58: 1 | J58: 3 | K58: 1 | L58: 1 | M58: =IF(INTRO!$E$37="Endemic",IF($H58>0,IF($H58=4,"Unknown",IF($H58=99,"Stopped",$D58)),0),"Not required") -> 0 | N58: =IF(INTRO!$E$39="Endemic", IF($I58>0, IF($I58=4,"Unknown",IF($I58=99,"Stopped",$D58)), 0),"Not required") -> 15422 | O58: =IF(INTRO!$E$41="Endemic", IF($J58>1, IF($J58=4, "Unknown", IF($J58=99, "Surveillance", E58)), 0),"Not required") -> 1612 | P58: =IF(INTRO!$E$41="Endemic", IF($J58>1, IF($J58=4, "Unknown", IF($J58=99, "Surveillance", F58)), 0),"Not required") -> 3598 | Q58: =IF(INTRO!$E$41="Endemic", IF($J58>1, IF($J58=4, "Unknown", IF($J58=99, "Surveillance", ROUND(D58*INTRO!$E$51,0))), 0),"Not required") -> 3826 | R58: =IF(INTRO!$E$41="Endemic", IF($J58>1, IF($J58=4, "Unknown", IF($J58=99, "Surveillance", SUM($O58:$Q58))), 0),"Not required") -> 9036 | S58: 0 | T58: 0 | U58: 0 | V58: =IF(INTRO!$E$43="Endemic", IF($K58>1, IF($K58=4, "Unknown", IF($K58=99, "Surveillance", SUM($S58:$U58))), 0),"Not required") -> 0 | W58: 0 | X58: 0 | Y58: 2 | Z58: 0 | AH58: 20376 | AI58: Haut-Ntem | AJ58: 15739
A59: =IF(INTRO!$E$33<>0,INTRO!$E$33, " ") -> Gabon | B59: Woleu-Ntem | C59: Okano | D59: 19154 | E59: =IF(INTRO!$E$48="","",ROUND($D59*INTRO!$E$48,0)) -> 2002 | F59: =IF(INTRO!$E$49="","",ROUND($D59*INTRO!$E$49,0)) -> 4469 | G59: =IF(INTRO!$E$50="","",ROUND($D59*INTRO!$E$50,0)) -> 12178 | H59: 0 | I59: 0 | J59: 3 | K59: 1 | L59: 1 | M59: =IF(INTRO!$E$37="Endemic",IF($H59>0,IF($H59=4,"Unknown",IF($H59=99,"Stopped",$D59)),0),"Not required") -> 0 | N59: =IF(INTRO!$E$39="Endemic", IF($I59>0, IF($I59=4,"Unknown",IF($I59=99,"Stopped",$D59)), 0),"Not required") -> 0 | O59: =IF(INTRO!$E$41="Endemic", IF($J59>1, IF($J59=4, "Unknown", IF($J59=99, "Surveillance", E59)), 0),"Not required") -> 2002 | P59: =IF(INTRO!$E$41="Endemic", IF($J59>1, IF($J59=4, "Unknown", IF($J59=99, "Surveillance", F59)), 0),"Not required") -> 4469 | Q59: =IF(INTRO!$E$41="Endemic", IF($J59>1, IF($J59=4, "Unknown", IF($J59=99, "Surveillance", ROUND(D59*INTRO!$E$51,0))), 0),"Not required") -> 4752 | R59: =IF(INTRO!$E$41="Endemic", IF($J59>1, IF($J59=4, "Unknown", IF($J59=99, "Surveillance", SUM($O59:$Q59))), 0),"Not required") -> 11223 | S59: 0 | T59: 0 | U59: 0 | V59: =IF(INTRO!$E$43="Endemic", IF($K59>1, IF($K59=4, "Unknown", IF($K59=99, "Surveillance", SUM($S59:$U59))), 0),"Not required") -> 0 | W59: 0 | X59: 0 | Y59: 2 | Z59: 0 | AH59: 20377 | AI59: Okano | AJ59: 19547
A60: =IF(INTRO!$E$33<>0,INTRO!$E$33, " ") -> Gabon | B60: Woleu-Ntem | C60: Woleu | D60: 97970 | E60: =IF(INTRO!$E$48="","",ROUND($D60*INTRO!$E$48,0)) -> 10238 | F60: =IF(INTRO!$E$49="","",ROUND($D60*INTRO!$E$49,0)) -> 22856 | G60: =IF(INTRO!$E$50="","",ROUND($D60*INTRO!$E$50,0)) -> 62289 | H60: 0 | I60: 1 | J60: 2 | K60: 1 | L60: 1 | M60: =IF(INTRO!$E$37="Endemic",IF($H60>0,IF($H60=4,"Unknown",IF($H60=99,"Stopped",$D60)),0),"Not required") -> 0 | N60: =IF(INTRO!$E$39="Endemic", IF($I60>0, IF($I60=4,"Unknown",IF($I60=99,"Stopped",$D60)), 0),"Not required") -> 97970 | O60: =IF(INTRO!$E$41="Endemic", IF($J60>1, IF($J60=4, "Unknown", IF($J60=99, "Surveillance", E60)), 0),"Not required") -> 10238 | P60: =IF(INTRO!$E$41="Endemic", IF($J60>1, IF($J60=4, "Unknown", IF($J60=99, "Surveillance", F60)), 0),"Not required") -> 22856 | Q60: =IF(INTRO!$E$41="Endemic", IF($J60>1, IF($J60=4, "Unknown", IF($J60=99, "Surveillance", ROUND(D60*INTRO!$E$51,0))), 0),"Not required") -> 24306 | R60: =IF(INTRO!$E$41="Endemic", IF($J60>1, IF($J60=4, "Unknown", IF($J60=99, "Surveillance", SUM($O60:$Q60))), 0),"Not required") -> 57400 | S60: 0 | T60: 0 | U60: 0 | V60: =IF(INTRO!$E$43="Endemic", IF($K60>1, IF($K60=4, "Unknown", IF($K60=99, "Surveillance", SUM($S60:$U60))), 0),"Not required") -> 0 | W60: 0 | X60: 0 | Y60: 1 | Z60: 0 | AH60: 20378 | AI60: Woleu | AJ60: 99981

Sheet ALB_MBD
A1: Albendazole (ALB) and Mebendazole (MBD) | I1: Select medicine for treatment of STH for each age group
A2: Administrative structure, eligible population by age group, treatment plan and information about tablets | K2: ALB
A4: TOTAL | F4: =SUBTOTAL(9,F$10:F$1010) -> 26298 | G4: =SUBTOTAL(9,G$10:G$1010) -> 314162 | J4: =SUBTOTAL(9,J$10:J$1010) -> 173822 | K4: 281878.1625 | M4: 299755.7287 | N4: 755456 | O4: 654622 | P4: 0 | Q4: 654622 | R4: 281879 | S4: 0 | T4: 281879 | U4: 0 | V4: 0 | W4: 0
A6: Country administrative structure | D6: Treatment plan | F6: People targeted by PELF with ALB | G6: Loa endemic areas | I6: Target population for STH | O6: Albendazole (ALB) | U6: Mebendazole (MBD)
A7: Country | B7: Province/State | C7: District | D7: LF | E7: STH | G7: Population | H7: Rounds planned | I7: PreSAC | K7: SAC | L7: WRA | N7: Total | O7: Total required | P7: Remaining in stock (LF) | Q7: Tablets to be procured (LF) | R7: Total required | S7: Remaining in stock (STH) | T7: Tablets to be procured (STH) | U7: Total required | V7: Remaining in stock | W7: Tablets to be procured
I8: Rounds | J8: People | K8: People | L8: Rounds | M8: People
A10: =IF(AND(INTRO!$E$37="Non-endemic",INTRO!$E$41="Non-endemic")," ",IF(COUNTRY_INFO!A10=0," ",COUNTRY_INFO!A10)) -> Gabon | B10: =IF(AND(INTRO!$E$37="Non-endemic",INTRO!$E$41="Non-endemic")," ",IF(COUNTRY_INFO!B10=0," ",COUNTRY_INFO!B10)) -> Libreville -Owendo | C10: =IF(AND(INTRO!$E$37="Non-endemic",INTRO!$E$41="Non-endemic")," ",IF(COUNTRY_INFO!C10=0," ",COUNTRY_INFO!C10)) -> Libreville 1 | D10: =IF(AND(INTRO!$E$37="Non-endemic",INTRO!$E$41="Non-endemic"),0,COUNTRY_INFO!W10) -> 0 | E10: =IF(AND(INTRO!$E$37="Non-endemic",INTRO!$E$41="Non-endemic"),0,COUNTRY_INFO!Y10) -> 1 | F10: =IF($D10=1,IVM!G10,0) -> 0 | G10: =IF($D10=0, " ", IF(COUNTRY_INFO!$H10=1, IF(COUNTRY_INFO!$L10=1, 0," ")," ")) ->  | J10: =IF(OR(COUNTRY_INFO!O10="Unknown",COUNTRY_INFO!O10="Surveillance",COUNTRY_INFO!O10="Not required",COUNTRY_INFO!O10=0),0,IF(INTRO!$E$39="Non-endemic",IF(AND($E10<>0,$I10=""),IF($F10=0,COUNTRY_INFO!O10*$E10,COUNTRY_INFO!O10*($E10-$D10)),IF(AND($E10<>0,$I10<>0),IF($F10=0,COUNTRY_INFO!O10*$I10,COUNTRY_INFO!O10*($I10-$D10)),0)),IF($I10="",COUNTRY_INFO!O10*$E10,COUNTRY_INFO!O10*$I10))) -> 33709 | K10: =MAX(0,IF(OR(COUNTRY_INFO!P10="Unknown",COUNTRY_INFO!P10="Surveillance",COUNTRY_INFO!P10="Not required",COUNTRY_INFO!P10=0),0,IF($E10<>0,IF($D10=0,COUNTRY_INFO!P10*$E10,COUNTRY_INFO!P10*$E10-($F10*COUNTRY_INFO!$P10/(COUNTRY_INFO!$F10+COUNTRY_INFO!$G10)+IF($G10=" ",0,COUNTRY_INFO!$P10/(COUNTRY_INFO!$F10+COUNTRY_INFO!$G10)*$G10*$H10))),0))) -> 75256 | M10: =MAX(0,IF(OR(COUNTRY_INFO!Q10="Unknown",COUNTRY_INFO!Q10="Surveillance",COUNTRY_INFO!Q10="Not required",COUNTRY_INFO!Q10=0),0,IF($E10<>0,IF($D10=0,COUNTRY_INFO!Q10*MIN($E10,$L10),COUNTRY_INFO!Q10*MIN($E10,$L10)-($F10*COUNTRY_INFO!$Q10/(COUNTRY_INFO!$F10+COUNTRY_INFO!$G10)+IF($G10=" ",0,COUNTRY_INFO!$Q10/(COUNTRY_INFO!$F10+COUNTRY_INFO!$G10)*$G10*$H10))),0))) -> 80030 | N10: =ROUND($J10,0)+ROUND($K10,0)+ROUND($M10,0) -> 188995 | O10: =$F10+IF(OR(G10=0,G10=" "),0,G10*H10) -> 0 | Q10: =IF($O10>$P10, $O10-$P10,0) -> 0 | R10: =ROUND((IF($I$2="ALB",$J10,0)+IF($K$2="ALB",$K10,0)+IF($L$2="ALB",$M10,0)),0) -> 75256 | T10: =IF($R10>$S10,$R10-$S10,0) -> 75256 | U10: =ROUND((IF($I$2="MBD",$J10,0)+IF($K$2="MBD",$K10,0)+IF($L$2="MBD",$M10,0)),0) -> 0 | W10: =IF($U10>$V10,$U10-$V10,0) -> 0
A11: =IF(AND(INTRO!$E$37="Non-endemic",INTRO!$E$41="Non-endemic")," ",IF(COUNTRY_INFO!A11=0," ",COUNTRY_INFO!A11)) -> Gabon | B11: =IF(AND(INTRO!$E$37="Non-endemic",INTRO!$E$41="Non-endemic")," ",IF(COUNTRY_INFO!B11=0," ",COUNTRY_INFO!B11)) -> Libreville -Owendo | C11: =IF(AND(INTRO!$E$37="Non-endemic",INTRO!$E$41="Non-endemic")," ",IF(COUNTRY_INFO!C11=0," ",COUNTRY_INFO!C11)) -> Libreville 2 | D11: =IF(AND(INTRO!$E$37="Non-endemic",INTRO!$E$41="Non-endemic"),0,COUNTRY_INFO!W11) -> 0 | E11: =IF(AND(INTRO!$E$37="Non-endemic",INTRO!$E$41="Non-endemic"),0,COUNTRY_INFO!Y11) -> 0 | F11: =IF($D11=1,IVM!G11,0) -> 0 | G11: =IF($D11=0, " ", IF(COUNTRY_INFO!$H11=1, IF(COUNTRY_INFO!$L11=1, 0," ")," ")) ->  | J11: =IF(OR(COUNTRY_INFO!O11="Unknown",COUNTRY_INFO!O11="Surveillance",COUNTRY_INFO!O11="Not required",COUNTRY_INFO!O11=0),0,IF(INTRO!$E$39="Non-endemic",IF(AND($E11<>0,$I11=""),IF($F11=0,COUNTRY_INFO!O11*$E11,COUNTRY_INFO!O11*($E11-$D11)),IF(AND($E11<>0,$I11<>0),IF($F11=0,COUNTRY_INFO!O11*$I11,COUNTRY_INFO!O11*($I11-$D11)),0)),IF($I11="",COUNTRY_INFO!O11*$E11,COUNTRY_INFO!O11*$I11))) -> 0 | K11: =MAX(0,IF(OR(COUNTRY_INFO!P11="Unknown",COUNTRY_INFO!P11="Surveillance",COUNTRY_INFO!P11="Not required",COUNTRY_INFO!P11=0),0,IF($E11<>0,IF($D11=0,COUNTRY_INFO!P11*$E11,COUNTRY_INFO!P11*$E11-($F11*COUNTRY_INFO!$P11/(COUNTRY_INFO!$F11+COUNTRY_INFO!$G11)+IF($G11=" ",0,COUNTRY_INFO!$P11/(COUNTRY_INFO!$F11+COUNTRY_INFO!$G11)*$G11*$H11))),0))) -> 0 | M11: =MAX(0,IF(OR(COUNTRY_INFO!Q11="Unknown",COUNTRY_INFO!Q11="Surveillance",COUNTRY_INFO!Q11="Not required",COUNTRY_INFO!Q11=0),0,IF($E11<>0,IF($D11=0,COUNTRY_INFO!Q11*MIN($E11,$L11),COUNTRY_INFO!Q11*MIN($E11,$L11)-($F11*COUNTRY_INFO!$Q11/(COUNTRY_INFO!$F11+COUNTRY_INFO!$G11)+IF($G11=" ",0,COUNTRY_INFO!$Q11/(COUNTRY_INFO!$F11+COUNTRY_INFO!$G11)*$G11*$H11))),0))) -> 0 | N11: 0 | O11: =$F11+IF(OR(G11=0,G11=" "),0,G11*H11) -> 0 | Q11: 0 | R11: 0 | T11: 0 | U11: 0 | W11: 0
A12: =IF(AND(INTRO!$E$37="Non-endemic",INTRO!$E$41="Non-endemic")," ",IF(COUNTRY_INFO!A12=0," ",COUNTRY_INFO!A12)) -> Gabon | B12: =IF(AND(INTRO!$E$37="Non-endemic",INTRO!$E$41="Non-endemic")," ",IF(COUNTRY_INFO!B12=0," ",COUNTRY_INFO!B12)) -> Libreville -Owendo | C12: =IF(AND(INTRO!$E$37="Non-endemic",INTRO!$E$41="Non-endemic")," ",IF(COUNTRY_INFO!C12=0," ",COUNTRY_INFO!C12)) -> Libreville 3 | D12: =IF(AND(INTRO!$E$37="Non-endemic",INTRO!$E$41="Non-endemic"),0,COUNTRY_INFO!W12) -> 0 | E12: =IF(AND(INTRO!$E$37="Non-endemic",INTRO!$E$41="Non-endemic"),0,COUNTRY_INFO!Y12) -> 0 | F12: =IF($D12=1,IVM!G12,0) -> 0 | G12: =IF($D12=0, " ", IF(COUNTRY_INFO!$H12=1, IF(COUNTRY_INFO!$L12=1, 0," ")," ")) ->  | J12: =IF(OR(COUNTRY_INFO!O12="Unknown",COUNTRY_INFO!O12="Surveillance",COUNTRY_INFO!O12="Not required",COUNTRY_INFO!O12=0),0,IF(INTRO!$E$39="Non-endemic",IF(AND($E12<>0,$I12=""),IF($F12=0,COUNTRY_INFO!O12*$E12,COUNTRY_INFO!O12*($E12-$D12)),IF(AND($E12<>0,$I12<>0),IF($F12=0,COUNTRY_INFO!O12*$I12,COUNTRY_INFO!O12*($I12-$D12)),0)),IF($I12="",COUNTRY_INFO!O12*$E12,COUNTRY_INFO!O12*$I12))) -> 0 | K12: =MAX(0,IF(OR(COUNTRY_INFO!P12="Unknown",COUNTRY_INFO!P12="Surveillance",COUNTRY_INFO!P12="Not required",COUNTRY_INFO!P12=0),0,IF($E12<>0,IF($D12=0,COUNTRY_INFO!P12*$E12,COUNTRY_INFO!P12*$E12-($F12*COUNTRY_INFO!$P12/(COUNTRY_INFO!$F12+COUNTRY_INFO!$G12)+IF($G12=" ",0,COUNTRY_INFO!$P12/(COUNTRY_INFO!$F12+COUNTRY_INFO!$G12)*$G12*$H12))),0))) -> 0 | M12: =MAX(0,IF(OR(COUNTRY_INFO!Q12="Unknown",COUNTRY_INFO!Q12="Surveillance",COUNTRY_INFO!Q12="Not required",COUNTRY_INFO!Q12=0),0,IF($E12<>0,IF($D12=0,COUNTRY_INFO!Q12*MIN($E12,$L12),COUNTRY_INFO!Q12*MIN($E12,$L12)-($F12*COUNTRY_INFO!$Q12/(COUNTRY_INFO!$F12+COUNTRY_INFO!$G12)+IF($G12=" ",0,COUNTRY_INFO!$Q12/(COUNTRY_INFO!$F12+COUNTRY_INFO!$G12)*$G12*$H12))),0))) -> 0 | N12: 0 | O12: 0 | Q12: 0 | R12: 0 | T12: 0 | U12: 0 | W12: 0
A13: =IF(AND(INTRO!$E$37="Non-endemic",INTRO!$E$41="Non-endemic")," ",IF(COUNTRY_INFO!A13=0," ",COUNTRY_INFO!A13)) -> Gabon | B13: =IF(AND(INTRO!$E$37="Non-endemic",INTRO!$E$41="Non-endemic")," ",IF(COUNTRY_INFO!B13=0," ",COUNTRY_INFO!B13)) -> Libreville -Owendo | C13: =IF(AND(INTRO!$E$37="Non-endemic",INTRO!$E$41="Non-endemic")," ",IF(COUNTRY_INFO!C13=0," ",COUNTRY_INFO!C13)) -> Owendo | D13: =IF(AND(INTRO!$E$37="Non-endemic",INTRO!$E$41="Non-endemic"),0,COUNTRY_INFO!W13) -> 0 | E13: =IF(AND(INTRO!$E$37="Non-endemic",INTRO!$E$41="Non-endemic"),0,COUNTRY_INFO!Y13) -> 0 | F13: =IF($D13=1,IVM!G13,0) -> 0 | G13: =IF($D13=0, " ", IF(COUNTRY_INFO!$H13=1, IF(COUNTRY_INFO!$L13=1, 0," ")," ")) ->  | J13: =IF(OR(COUNTRY_INFO!O13="Unknown",COUNTRY_INFO!O13="Surveillance",COUNTRY_INFO!O13="Not required",COUNTRY_INFO!O13=0),0,IF(INTRO!$E$39="Non-endemic",IF(AND($E13<>0,$I13=""),IF($F13=0,COUNTRY_INFO!O13*$E13,COUNTRY_INFO!O13*($E13-$D13)),IF(AND($E13<>0,$I13<>0),IF($F13=0,COUNTRY_INFO!O13*$I13,COUNTRY_INFO!O13*($I13-$D13)),0)),IF($I13="",COUNTRY_INFO!O13*$E13,COUNTRY_INFO!O13*$I13))) -> 0 | K13: =MAX(0,IF(OR(COUNTRY_INFO!P13="Unknown",COUNTRY_INFO!P13="Surveillance",COUNTRY_INFO!P13="Not required",COUNTRY_INFO!P13=0),0,IF($E13<>0,IF($D13=0,COUNTRY_INFO!P13*$E13,COUNTRY_INFO!P13*$E13-($F13*COUNTRY_INFO!$P13/(COUNTRY_INFO!$F13+COUNTRY_INFO!$G13)+IF($G13=" ",0,COUNTRY_INFO!$P13/(COUNTRY_INFO!$F13+COUNTRY_INFO!$G13)*$G13*$H13))),0))) -> 0 | M13: =MAX(0,IF(OR(COUNTRY_INFO!Q13="Unknown",COUNTRY_INFO!Q13="Surveillance",COUNTRY_INFO!Q13="Not required",COUNTRY_INFO!Q13=0),0,IF($E13<>0,IF($D13=0,COUNTRY_INFO!Q13*MIN($E13,$L13),COUNTRY_INFO!Q13*MIN($E13,$L13)-($F13*COUNTRY_INFO!$Q13/(COUNTRY_INFO!$F13+COUNTRY_INFO!$G13)+IF($G13=" ",0,COUNTRY_INFO!$Q13/(COUNTRY_INFO!$F13+COUNTRY_INFO!$G13)*$G13*$H13))),0))) -> 0 | N13: 0 | O13: 0 | Q13: 0 | R13: 0 | T13: 0 | U13: 0 | W13: 0
A14: =IF(AND(INTRO!$E$37="Non-endemic",INTRO!$E$41="Non-endemic")," ",IF(COUNTRY_INFO!A14=0," ",COUNTRY_INFO!A14)) -> Gabon | B14: =IF(AND(INTRO!$E$37="Non-endemic",INTRO!$E$41="Non-endemic")," ",IF(COUNTRY_INFO!B14=0," ",COUNTRY_INFO!B14)) -> Estuaire | C14: =IF(AND(INTRO!$E$37="Non-endemic",INTRO!$E$41="Non-endemic")," ",IF(COUNTRY_INFO!C14=0," ",COUNTRY_INFO!C14)) -> Komo-Mondah | D14: =IF(AND(INTRO!$E$37="Non-endemic",INTRO!$E$41="Non-endemic"),0,COUNTRY_INFO!W14) -> 1 | E14: =IF(AND(INTRO!$E$37="Non-endemic",INTRO!$E$41="Non-endemic"),0,COUNTRY_INFO!Y14) -> 1 | F14: =IF($D14=1,IVM!G14,0) -> 8942 | G14: 87736 | H14: 2 | J14: =IF(OR(COUNTRY_INFO!O14="Unknown",COUNTRY_INFO!O14="Surveillance",COUNTRY_INFO!O14="Not required",COUNTRY_INFO!O14=0),0,IF(INTRO!$E$39="Non-endemic",IF(AND($E14<>0,$I14=""),IF($F14=0,COUNTRY_INFO!O14*$E14,COUNTRY_INFO!O14*($E14-$D14)),IF(AND($E14<>0,$I14<>0),IF($F14=0,COUNTRY_INFO!O14*$I14,COUNTRY_INFO!O14*($I14-$D14)),0)),IF($I14="",COUNTRY_INFO!O14*$E14,COUNTRY_INFO!O14*$I14))) -> 11624 | K14: =MAX(0,IF(OR(COUNTRY_INFO!P14="Unknown",COUNTRY_INFO!P14="Surveillance",COUNTRY_INFO!P14="Not required",COUNTRY_INFO!P14=0),0,IF($E14<>0,IF($D14=0,COUNTRY_INFO!P14*$E14,COUNTRY_INFO!P14*$E14-($F14*COUNTRY_INFO!$P14/(COUNTRY_INFO!$F14+COUNTRY_INFO!$G14)+IF($G14=" ",0,COUNTRY_INFO!$P14/(COUNTRY_INFO!$F14+COUNTRY_INFO!$G14)*$G14*$H14))),0))) -> 0 | M14: =MAX(0,IF(OR(COUNTRY_INFO!Q14="Unknown",COUNTRY_INFO!Q14="Surveillance",COUNTRY_INFO!Q14="Not required",COUNTRY_INFO!Q14=0),0,IF($E14<>0,IF($D14=0,COUNTRY_INFO!Q14*MIN($E14,$L14),COUNTRY_INFO!Q14*MIN($E14,$L14)-($F14*COUNTRY_INFO!$Q14/(COUNTRY_INFO!$F14+COUNTRY_INFO!$G14)+IF($G14=" ",0,COUNTRY_INFO!$Q14/(COUNTRY_INFO!$F14+COUNTRY_INFO!$G14)*$G14*$H14))),0))) -> 0 | N14: 11624 | O14: 184414 | Q14: 184414 | R14: 0 | T14: 0 | U14: 0 | W14: 0
A15: =IF(AND(INTRO!$E$37="Non-endemic",INTRO!$E$41="Non-endemic")," ",IF(COUNTRY_INFO!A15=0," ",COUNTRY_INFO!A15)) -> Gabon | B15: =IF(AND(INTRO!$E$37="Non-endemic",INTRO!$E$41="Non-endemic")," ",IF(COUNTRY_INFO!B15=0," ",COUNTRY_INFO!B15)) -> Estuaire | C15: =IF(AND(INTRO!$E$37="Non-endemic",INTRO!$E$41="Non-endemic")," ",IF(COUNTRY_INFO!C15=0," ",COUNTRY_INFO!C15)) -> Komo-Kango | D15: =IF(AND(INTRO!$E$37="Non-endemic",INTRO!$E$41="Non-endemic"),0,COUNTRY_INFO!W15) -> 0 | E15: =IF(AND(INTRO!$E$37="Non-endemic",INTRO!$E$41="Non-endemic"),0,COUNTRY_INFO!Y15) -> 1 | F15: =IF($D15=1,IVM!G15,0) -> 0 | G15: =IF($D15=0, " ", IF(COUNTRY_INFO!$H15=1, IF(COUNTRY_INFO!$L15=1, 0," ")," ")) ->  | J15: =IF(OR(COUNTRY_INFO!O15="Unknown",COUNTRY_INFO!O15="Surveillance",COUNTRY_INFO!O15="Not required",COUNTRY_INFO!O15=0),0,IF(INTRO!$E$39="Non-endemic",IF(AND($E15<>0,$I15=""),IF($F15=0,COUNTRY_INFO!O15*$E15,COUNTRY_INFO!O15*($E15-$D15)),IF(AND($E15<>0,$I15<>0),IF($F15=0,COUNTRY_INFO!O15*$I15,COUNTRY_INFO!O15*($I15-$D15)),0)),IF($I15="",COUNTRY_INFO!O15*$E15,COUNTRY_INFO!O15*$I15))) -> 2261 | K15: =MAX(0,IF(OR(COUNTRY_INFO!P15="Unknown",COUNTRY_INFO!P15="Surveillance",COUNTRY_INFO!P15="Not required",COUNTRY_INFO!P15=0),0,IF($E15<>0,IF($D15=0,COUNTRY_INFO!P15*$E15,COUNTRY_INFO!P15*$E15-($F15*COUNTRY_INFO!$P15/(COUNTRY_INFO!$F15+COUNTRY_INFO!$G15)+IF($G15=" ",0,COUNTRY_INFO!$P15/(COUNTRY_INFO!$F15+COUNTRY_INFO!$G15)*$G15*$H15))),0))) -> 5048 | M15: =MAX(0,IF(OR(COUNTRY_INFO!Q15="Unknown",COUNTRY_INFO!Q15="Surveillance",COUNTRY_INFO!Q15="Not required",COUNTRY_INFO!Q15=0),0,IF($E15<>0,IF($D15=0,COUNTRY_INFO!Q15*MIN($E15,$L15),COUNTRY_INFO!Q15*MIN($E15,$L15)-($F15*COUNTRY_INFO!$Q15/(COUNTRY_INFO!$F15+COUNTRY_INFO!$G15)+IF($G15=" ",0,COUNTRY_INFO!$Q15/(COUNTRY_INFO!$F15+COUNTRY_INFO!$G15)*$G15*$H15))),0))) -> 5369 | N15: 12678 | O15: 0 | Q15: 0 | R15: 5048 | T15: 5048 | U15: 0 | W15: 0
A16: =IF(AND(INTRO!$E$37="Non-endemic",INTRO!$E$41="Non-endemic")," ",IF(COUNTRY_INFO!A16=0," ",COUNTRY_INFO!A16)) -> Gabon | B16: =IF(AND(INTRO!$E$37="Non-endemic",INTRO!$E$41="Non-endemic")," ",IF(COUNTRY_INFO!B16=0," ",COUNTRY_INFO!B16)) -> Estuaire | C16: =IF(AND(INTRO!$E$37="Non-endemic",INTRO!$E$41="Non-endemic")," ",IF(COUNTRY_INFO!C16=0," ",COUNTRY_INFO!C16)) -> Noya | D16: =IF(AND(INTRO!$E$37="Non-endemic",INTRO!$E$41="Non-endemic"),0,COUNTRY_INFO!W16) -> 0 | E16: =IF(AND(INTRO!$E$37="Non-endemic",INTRO!$E$41="Non-endemic"),0,COUNTRY_INFO!Y16) -> 2 | F16: =IF($D16=1,IVM!G16,0) -> 0 | G16: =IF($D16=0, " ", IF(COUNTRY_INFO!$H16=1, IF(COUNTRY_INFO!$L16=1, 0," ")," ")) ->  | J16: =IF(OR(COUNTRY_INFO!O16="Unknown",COUNTRY_INFO!O16="Surveillance",COUNTRY_INFO!O16="Not required",COUNTRY_INFO!O16=0),0,IF(INTRO!$E$39="Non-endemic",IF(AND($E16<>0,$I16=""),IF($F16=0,COUNTRY_INFO!O16*$E16,COUNTRY_INFO!O16*($E16-$D16)),IF(AND($E16<>0,$I16<>0),IF($F16=0,COUNTRY_INFO!O16*$I16,COUNTRY_INFO!O16*($I16-$D16)),0)),IF($I16="",COUNTRY_INFO!O16*$E16,COUNTRY_INFO!O16*$I16))) -> 976 | K16: =MAX(0,IF(OR(COUNTRY_INFO!P16="Unknown",COUNTRY_INFO!P16="Surveillance",COUNTRY_INFO!P16="Not required",COUNTRY_INFO!P16=0),0,IF($E16<>0,IF($D16=0,COUNTRY_INFO!P16*$E16,COUNTRY_INFO!P16*$E16-($F16*COUNTRY_INFO!$P16/(COUNTRY_INFO!$F16+COUNTRY_INFO!$G16)+IF($G16=" ",0,COUNTRY_INFO!$P16/(COUNTRY_INFO!$F16+COUNTRY_INFO!$G16)*$G16*$H16))),0))) -> 2180 | M16: =MAX(0,IF(OR(COUNTRY_INFO!Q16="Unknown",COUNTRY_INFO!Q16="Surveillance",COUNTRY_INFO!Q16="Not required",COUNTRY_INFO!Q16=0),0,IF($E16<>0,IF($D16=0,COUNTRY_INFO!Q16*MIN($E16,$L16),COUNTRY_INFO!Q16*MIN($E16,$L16)-($F16*COUNTRY_INFO!$Q16/(COUNTRY_INFO!$F16+COUNTRY_INFO!$G16)+IF($G16=" ",0,COUNTRY_INFO!$Q16/(COUNTRY_INFO!$F16+COUNTRY_INFO!$G16)*$G16*$H16))),0))) -> 2320 | N16: 5476 | O16: 0 | Q16: 0 | R16: 2180 | T16: 2180 | U16: 0 | W16: 0
A17: =IF(AND(INTRO!$E$37="Non-endemic",INTRO!$E$41="Non-endemic")," ",IF(COUNTRY_INFO!A17=0," ",COUNTRY_INFO!A17)) -> Gabon | B17: =IF(AND(INTRO!$E$37="Non-endemic",INTRO!$E$41="Non-endemic")," ",IF(COUNTRY_INFO!B17=0," ",COUNTRY_INFO!B17)) -> Haut Ogooué | C17: =IF(AND(INTRO!$E$37="Non-endemic",INTRO!$E$41="Non-endemic")," ",IF(COUNTRY_INFO!C17=0," ",COUNTRY_INFO!C17)) -> Bayi-brikolo | D17: =IF(AND(INTRO!$E$37="Non-endemic",INTRO!$E$41="Non-endemic"),0,COUNTRY_INFO!W17) -> 0 | E17: =IF(AND(INTRO!$E$37="Non-endemic",INTRO!$E$41="Non-endemic"),0,COUNTRY_INFO!Y17) -> 2 | F17: =IF($D17=1,IVM!G17,0) -> 0 | G17: =IF($D17=0, " ", IF(COUNTRY_INFO!$H17=1, IF(COUNTRY_INFO!$L17=1, 0," ")," ")) ->  | J17: =IF(OR(COUNTRY_INFO!O17="Unknown",COUNTRY_INFO!O17="Surveillance",COUNTRY_INFO!O17="Not required",COUNTRY_INFO!O17=0),0,IF(INTRO!$E$39="Non-endemic",IF(AND($E17<>0,$I17=""),IF($F17=0,COUNTRY_INFO!O17*$E17,COUNTRY_INFO!O17*($E17-$D17)),IF(AND($E17<>0,$I17<>0),IF($F17=0,COUNTRY_INFO!O17*$I17,COUNTRY_INFO!O17*($I17-$D17)),0)),IF($I17="",COUNTRY_INFO!O17*$E17,COUNTRY_INFO!O17*$I17))) -> 854 | K17: =MAX(0,IF(OR(COUNTRY_INFO!P17="Unknown",COUNTRY_INFO!P17="Surveillance",COUNTRY_INFO!P17="Not required",COUNTRY_INFO!P17=0),0,IF($E17<>0,IF($D17=0,COUNTRY_INFO!P17*$E17,COUNTRY_INFO!P17*$E17-($F17*COUNTRY_INFO!$P17/(COUNTRY_INFO!$F17+COUNTRY_INFO!$G17)+IF($G17=" ",0,COUNTRY_INFO!$P17/(COUNTRY_INFO!$F17+COUNTRY_INFO!$G17)*$G17*$H17))),0))) -> 1906 | M17: =MAX(0,IF(OR(COUNTRY_INFO!Q17="Unknown",COUNTRY_INFO!Q17="Surveillance",COUNTRY_INFO!Q17="Not required",COUNTRY_INFO!Q17=0),0,IF($E17<>0,IF($D17=0,COUNTRY_INFO!Q17*MIN($E17,$L17),COUNTRY_INFO!Q17*MIN($E17,$L17)-($F17*COUNTRY_INFO!$Q17/(COUNTRY_INFO!$F17+COUNTRY_INFO!$G17)+IF($G17=" ",0,COUNTRY_INFO!$Q17/(COUNTRY_INFO!$F17+COUNTRY_INFO!$G17)*$G17*$H17))),0))) -> 2026 | N17: 4786 | O17: 0 | Q17: 0 | R17: 1906 | T17: 1906 | U17: 0 | W17: 0
A18: =IF(AND(INTRO!$E$37="Non-endemic",INTRO!$E$41="Non-endemic")," ",IF(COUNTRY_INFO!A18=0," ",COUNTRY_INFO!A18)) -> Gabon | B18: =IF(AND(INTRO!$E$37="Non-endemic",INTRO!$E$41="Non-endemic")," ",IF(COUNTRY_INFO!B18=0," ",COUNTRY_INFO!B18)) -> Haut Ogooué | C18: =IF(AND(INTRO!$E$37="Non-endemic",INTRO!$E$41="Non-endemic")," ",IF(COUNTRY_INFO!C18=0," ",COUNTRY_INFO!C18)) -> Lékoni-lékori | D18: =IF(AND(INTRO!$E$37="Non-endemic",INTRO!$E$41="Non-endemic"),0,COUNTRY_INFO!W18) -> 0 | E18: =IF(AND(INTRO!$E$37="Non-endemic",INTRO!$E$41="Non-endemic"),0,COUNTRY_INFO!Y18) -> 2 | F18: =IF($D18=1,IVM!G18,0) -> 0 | G18: =IF($D18=0, " ", IF(COUNTRY_INFO!$H18=1, IF(COUNTRY_INFO!$L18=1, 0," ")," ")) ->  | J18: =IF(OR(COUNTRY_INFO!O18="Unknown",COUNTRY_INFO!O18="Surveillance",COUNTRY_INFO!O18="Not required",COUNTRY_INFO!O18=0),0,IF(INTRO!$E$39="Non-endemic",IF(AND($E18<>0,$I18=""),IF($F18=0,COUNTRY_INFO!O18*$E18,COUNTRY_INFO!O18*($E18-$D18)),IF(AND($E18<>0,$I18<>0),IF($F18=0,COUNTRY_INFO!O18*$I18,COUNTRY_INFO!O18*($I18-$D18)),0)),IF($I18="",COUNTRY_INFO!O18*$E18,COUNTRY_INFO!O18*$I18))) -> 2360 | K18: =MAX(0,IF(OR(COUNTRY_INFO!P18="Unknown",COUNTRY_INFO!P18="Surveillance",COUNTRY_INFO!P18="Not required",COUNTRY_INFO!P18=0),0,IF($E18<>0,IF($D18=0,COUNTRY_INFO!P18*$E18,COUNTRY_INFO!P18*$E18-($F18*COUNTRY_INFO!$P18/(COUNTRY_INFO!$F18+COUNTRY_INFO!$G18)+IF($G18=" ",0,COUNTRY_INFO!$P18/(COUNTRY_INFO!$F18+COUNTRY_INFO!$G18)*$G18*$H18))),0))) -> 5270 | M18: =MAX(0,IF(OR(COUNTRY_INFO!Q18="Unknown",COUNTRY_INFO!Q18="Surveillance",COUNTRY_INFO!Q18="Not required",COUNTRY_INFO!Q18=0),0,IF($E18<>0,IF($D18=0,COUNTRY_INFO!Q18*MIN($E18,$L18),COUNTRY_INFO!Q18*MIN($E18,$L18)-($F18*COUNTRY_INFO!$Q18/(COUNTRY_INFO!$F18+COUNTRY_INFO!$G18)+IF($G18=" ",0,COUNTRY_INFO!$Q18/(COUNTRY_INFO!$F18+COUNTRY_INFO!$G18)*$G18*$H18))),0))) -> 5604 | N18: 13234 | O18: 0 | Q18: 0 | R18: 5270 | T18: 5270 | U18: 0 | W18: 0
A19: =IF(AND(INTRO!$E$37="Non-endemic",INTRO!$E$41="Non-endemic")," ",IF(COUNTRY_INFO!A19=0," ",COUNTRY_INFO!A19)) -> Gabon | B19: =IF(AND(INTRO!$E$37="Non-endemic",INTRO!$E$41="Non-endemic")," ",IF(COUNTRY_INFO!B19=0," ",COUNTRY_INFO!B19)) -> Haut Ogooué | C19: =IF(AND(INTRO!$E$37="Non-endemic",INTRO!$E$41="Non-endemic")," ",IF(COUNTRY_INFO!C19=0," ",COUNTRY_INFO!C19)) -> Lékoko | D19: =IF(AND(INTRO!$E$37="Non-endemic",INTRO!$E$41="Non-endemic"),0,COUNTRY_INFO!W19) -> 0 | E19: =IF(AND(INTRO!$E$37="Non-endemic",INTRO!$E$41="Non-endemic"),0,COUNTRY_INFO!Y19) -> 1 | F19: =IF($D19=1,IVM!G19,0) -> 0 | G19: =IF($D19=0, " ", IF(COUNTRY_INFO!$H19=1, IF(COUNTRY_INFO!$L19=1, 0," ")," ")) ->  | J19: =IF(OR(COUNTRY_INFO!O19="Unknown",COUNTRY_INFO!O19="Surveillance",COUNTRY_INFO!O19="Not required",COUNTRY_INFO!O19=0),0,IF(INTRO!$E$39="Non-endemic",IF(AND($E19<>0,$I19=""),IF($F19=0,COUNTRY_INFO!O19*$E19,COUNTRY_INFO!O19*($E19-$D19)),IF(AND($E19<>0,$I19<>0),IF($F19=0,COUNTRY_INFO!O19*$I19,COUNTRY_INFO!O19*($I19-$D19)),0)),IF($I19="",COUNTRY_INFO!O19*$E19,COUNTRY_INFO!O19*$I19))) -> 711 | K19: =MAX(0,IF(OR(COUNTRY_INFO!P19="Unknown",COUNTRY_INFO!P19="Surveillance",COUNTRY_INFO!P19="Not required",COUNTRY_INFO!P19=0),0,IF($E19<>0,IF($D19=0,COUNTRY_INFO!P19*$E19,COUNTRY_INFO!P19*$E19-($F19*COUNTRY_INFO!$P19/(COUNTRY_INFO!$F19+COUNTRY_INFO!$G19)+IF($G19=" ",0,COUNTRY_INFO!$P19/(COUNTRY_INFO!$F19+COUNTRY_INFO!$G19)*$G19*$H19))),0))) -> 1587 | M19: =MAX(0,IF(OR(COUNTRY_INFO!Q19="Unknown",COUNTRY_INFO!Q19="Surveillance",COUNTRY_INFO!Q19="Not required",COUNTRY_INFO!Q19=0),0,IF($E19<>0,IF($D19=0,COUNTRY_INFO!Q19*MIN($E19,$L19),COUNTRY_INFO!Q19*MIN($E19,$L19)-($F19*COUNTRY_INFO!$Q19/(COUNTRY_INFO!$F19+COUNTRY_INFO!$G19)+IF($G19=" ",0,COUNTRY_INFO!$Q19/(COUNTRY_INFO!$F19+COUNTRY_INFO!$G19)*$G19*$H19))),0))) -> 1688 | N19: 3986 | O19: 0 | Q19: 0 | R19: 1587 | T19: 1587 | U19: 0 | W19: 0
A20: =IF(AND(INTRO!$E$37="Non-endemic",INTRO!$E$41="Non-endemic")," ",IF(COUNTRY_INFO!A20=0," ",COUNTRY_INFO!A20)) -> Gabon | B20: =IF(AND(INTRO!$E$37="Non-endemic",INTRO!$E$41="Non-endemic")," ",IF(COUNTRY_INFO!B20=0," ",COUNTRY_INFO!B20)) -> Haut Ogooué | C20: =IF(AND(INTRO!$E$37="Non-endemic",INTRO!$E$41="Non-endemic")," ",IF(COUNTRY_INFO!C20=0," ",COUNTRY_INFO!C20)) -> Djouori-Agnili | D20: =IF(AND(INTRO!$E$37="Non-endemic",INTRO!$E$41="Non-endemic"),0,COUNTRY_INFO!W20) -> 1 | E20: =IF(AND(INTRO!$E$37="Non-endemic",INTRO!$E$41="Non-endemic"),0,COUNTRY_INFO!Y20) -> 1 | F20: =IF($D20=1,IVM!G20,0) -> 732 | G20: 5743 | H20: 2 | J20: =IF(OR(COUNTRY_INFO!O20="Unknown",COUNTRY_INFO!O20="Surveillance",COUNTRY_INFO!O20="Not required",COUNTRY_INFO!O20=0),0,IF(INTRO!$E$39="Non-endemic",IF(AND($E20<>0,$I20=""),IF($F20=0,COUNTRY_INFO!O20*$E20,COUNTRY_INFO!O20*($E20-$D20)),IF(AND($E20<>0,$I20<>0),IF($F20=0,COUNTRY_INFO!O20*$I20,COUNTRY_INFO!O20*($I20-$D20)),0)),IF($I20="",COUNTRY_INFO!O20*$E20,COUNTRY_INFO!O20*$I20))) -> 779 | K20: =MAX(0,IF(OR(COUNTRY_INFO!P20="Unknown",COUNTRY_INFO!P20="Surveillance",COUNTRY_INFO!P20="Not required",COUNTRY_INFO!P20=0),0,IF($E20<>0,IF($D20=0,COUNTRY_INFO!P20*$E20,COUNTRY_INFO!P20*$E20-($F20*COUNTRY_INFO!$P20/(COUNTRY_INFO!$F20+COUNTRY_INFO!$G20)+IF($G20=" ",0,COUNTRY_INFO!$P20/(COUNTRY_INFO!$F20+COUNTRY_INFO!$G20)*$G20*$H20))),0))) -> 0 | M20: =MAX(0,IF(OR(COUNTRY_INFO!Q20="Unknown",COUNTRY_INFO!Q20="Surveillance",COUNTRY_INFO!Q20="Not required",COUNTRY_INFO!Q20=0),0,IF($E20<>0,IF($D20=0,COUNTRY_INFO!Q20*MIN($E20,$L20),COUNTRY_INFO!Q20*MIN($E20,$L20)-($F20*COUNTRY_INFO!$Q20/(COUNTRY_INFO!$F20+COUNTRY_INFO!$G20)+IF($G20=" ",0,COUNTRY_INFO!$Q20/(COUNTRY_INFO!$F20+COUNTRY_INFO!$G20)*$G20*$H20))),0))) -> 0 | N20: 779 | O20: 12218 | Q20: 12218 | R20: 0 | T20: 0 | U20: 0 | W20: 0
A21: =IF(AND(INTRO!$E$37="Non-endemic",INTRO!$E$41="Non-endemic")," ",IF(COUNTRY_INFO!A21=0," ",COUNTRY_INFO!A21)) -> Gabon | B21: =IF(AND(INTRO!$E$37="Non-endemic",INTRO!$E$41="Non-endemic")," ",IF(COUNTRY_INFO!B21=0," ",COUNTRY_INFO!B21)) -> Haut Ogooué | C21: =IF(AND(INTRO!$E$37="Non-endemic",INTRO!$E$41="Non-endemic")," ",IF(COUNTRY_INFO!C21=0," ",COUNTRY_INFO!C21)) -> Ogooué -létili | D21: =IF(AND(INTRO!$E$37="Non-endemic",INTRO!$E$41="Non-endemic"),0,COUNTRY_INFO!W21) -> 0 | E21: =IF(AND(INTRO!$E$37="Non-endemic",INTRO!$E$41="Non-endemic"),0,COUNTRY_INFO!Y21) -> 2 | F21: =IF($D21=1,IVM!G21,0) -> 0 | G21: =IF($D21=0, " ", IF(COUNTRY_INFO!$H21=1, IF(COUNTRY_INFO!$L21=1, 0," ")," ")) ->  | J21: =IF(OR(COUNTRY_INFO!O21="Unknown",COUNTRY_INFO!O21="Surveillance",COUNTRY_INFO!O21="Not required",COUNTRY_INFO!O21=0),0,IF(INTRO!$E$39="Non-endemic",IF(AND($E21<>0,$I21=""),IF($F21=0,COUNTRY_INFO!O21*$E21,COUNTRY_INFO!O21*($E21-$D21)),IF(AND($E21<>0,$I21<>0),IF($F21=0,COUNTRY_INFO!O21*$I21,COUNTRY_INFO!O21*($I21-$D21)),0)),IF($I21="",COUNTRY_INFO!O21*$E21,COUNTRY_INFO!O21*$I21))) -> 906 | K21: =MAX(0,IF(OR(COUNTRY_INFO!P21="Unknown",COUNTRY_INFO!P21="Surveillance",COUNTRY_INFO!P21="Not required",COUNTRY_INFO!P21=0),0,IF($E21<>0,IF($D21=0,COUNTRY_INFO!P21*$E21,COUNTRY_INFO!P21*$E21-($F21*COUNTRY_INFO!$P21/(COUNTRY_INFO!$F21+COUNTRY_INFO!$G21)+IF($G21=" ",0,COUNTRY_INFO!$P21/(COUNTRY_INFO!$F21+COUNTRY_INFO!$G21)*$G21*$H21))),0))) -> 2024 | M21: =MAX(0,IF(OR(COUNTRY_INFO!Q21="Unknown",COUNTRY_INFO!Q21="Surveillance",COUNTRY_INFO!Q21="Not required",COUNTRY_INFO!Q21=0),0,IF($E21<>0,IF($D21=0,COUNTRY_INFO!Q21*MIN($E21,$L21),COUNTRY_INFO!Q21*MIN($E21,$L21)-($F21*COUNTRY_INFO!$Q21/(COUNTRY_INFO!$F21+COUNTRY_INFO!$G21)+IF($G21=" ",0,COUNTRY_INFO!$Q21/(COUNTRY_INFO!$F21+COUNTRY_INFO!$G21)*$G21*$H21))),0))) -> 2152 | N21: 5082 | O21: 0 | Q21: 0 | R21: 2024 | T21: 2024 | U21: 0 | W21: 0
A22: =IF(AND(INTRO!$E$37="Non-endemic",INTRO!$E$41="Non-endemic")," ",IF(COUNTRY_INFO!A22=0," ",COUNTRY_INFO!A22)) -> Gabon | B22: =IF(AND(INTRO!$E$37="Non-endemic",INTRO!$E$41="Non-endemic")," ",IF(COUNTRY_INFO!B22=0," ",COUNTRY_INFO!B22)) -> Haut Ogooué | C22: =IF(AND(INTRO!$E$37="Non-endemic",INTRO!$E$41="Non-endemic")," ",IF(COUNTRY_INFO!C22=0," ",COUNTRY_INFO!C22)) -> Mpassa | D22: =IF(AND(INTRO!$E$37="Non-endemic",INTRO!$E$41="Non-endemic"),0,COUNTRY_INFO!W22) -> 0 | E22: =IF(AND(INTRO!$E$37="Non-endemic",INTRO!$E$41="Non-endemic"),0,COUNTRY_INFO!Y22) -> 1 | F22: =IF($D22=1,IVM!G22,0) -> 0 | G22: =IF($D22=0, " ", IF(COUNTRY_INFO!$H22=1, IF(COUNTRY_INFO!$L22=1, 0," ")," ")) ->  | J22: =IF(OR(COUNTRY_INFO!O22="Unknown",COUNTRY_INFO!O22="Surveillance",COUNTRY_INFO!O22="Not required",COUNTRY_INFO!O22=0),0,IF(INTRO!$E$39="Non-endemic",IF(AND($E22<>0,$I22=""),IF($F22=0,COUNTRY_INFO!O22*$E22,COUNTRY_INFO!O22*($E22-$D22)),IF(AND($E22<>0,$I22<>0),IF($F22=0,COUNTRY_INFO!O22*$I22,COUNTRY_INFO!O22*($I22-$D22)),0)),IF($I22="",COUNTRY_INFO!O22*$E22,COUNTRY_INFO!O22*$I22))) -> 19677 | K22: =MAX(0,IF(OR(COUNTRY_INFO!P22="Unknown",COUNTRY_INFO!P22="Surveillance",COUNTRY_INFO!P22="Not required",COUNTRY_INFO!P22=0),0,IF($E22<>0,IF($D22=0,COUNTRY_INFO!P22*$E22,COUNTRY_INFO!P22*$E22-($F22*COUNTRY_INFO!$P22/(COUNTRY_INFO!$F22+COUNTRY_INFO!$G22)+IF($G22=" ",0,COUNTRY_INFO!$P22/(COUNTRY_INFO!$F22+COUNTRY_INFO!$G22)*$G22*$H22))),0))) -> 43930 | M22: =MAX(0,IF(OR(COUNTRY_INFO!Q22="Unknown",COUNTRY_INFO!Q22="Surveillance",COUNTRY_INFO!Q22="Not required",COUNTRY_INFO!Q22=0),0,IF($E22<>0,IF($D22=0,COUNTRY_INFO!Q22*MIN($E22,$L22),COUNTRY_INFO!Q22*MIN($E22,$L22)-($F22*COUNTRY_INFO!$Q22/(COUNTRY_INFO!$F22+COUNTRY_INFO!$G22)+IF($G22=" ",0,COUNTRY_INFO!$Q22/(COUNTRY_INFO!$F22+COUNTRY_INFO!$G22)*$G22*$H22))),0))) -> 46716 | N22: 110323 | O22: 0 | Q22: 0 | R22: 43930 | T22: 43930 | U22: 0 | W22: 0
A23: =IF(AND(INTRO!$E$37="Non-endemic",INTRO!$E$41="Non-endemic")," ",IF(COUNTRY_INFO!A23=0," ",COUNTRY_INFO!A23)) -> Gabon | B23: =IF(AND(INTRO!$E$37="Non-endemic",INTRO!$E$41="Non-endemic")," ",IF(COUNTRY_INFO!B23=0," ",COUNTRY_INFO!B23)) -> Haut Ogooué | C23: =IF(AND(INTRO!$E$37="Non-endemic",INTRO!$E$41="Non-endemic")," ",IF(COUNTRY_INFO!C23=0," ",COUNTRY_INFO!C23)) -> Plateaux | D23: =IF(AND(INTRO!$E$37="Non-endemic",INTRO!$E$41="Non-endemic"),0,COUNTRY_INFO!W23) -> 0 | E23: =IF(AND(INTRO!$E$37="Non-endemic",INTRO!$E$41="Non-endemic"),0,COUNTRY_INFO!Y23) -> 2 | F23: =IF($D23=1,IVM!G23,0) -> 0 | G23: =IF($D23=0, " ", IF(COUNTRY_INFO!$H23=1, IF(COUNTRY_INFO!$L23=1, 0," ")," ")) ->  | J23: =IF(OR(COUNTRY_INFO!O23="Unknown",COUNTRY_INFO!O23="Surveillance",COUNTRY_INFO!O23="Not required",COUNTRY_INFO!O23=0),0,IF(INTRO!$E$39="Non-endemic",IF(AND($E23<>0,$I23=""),IF($F23=0,COUNTRY_INFO!O23*$E23,COUNTRY_INFO!O23*($E23-$D23)),IF(AND($E23<>0,$I23<>0),IF($F23=0,COUNTRY_INFO!O23*$I23,COUNTRY_INFO!O23*($I23-$D23)),0)),IF($I23="",COUNTRY_INFO!O23*$E23,COUNTRY_INFO!O23*$I23))) -> 2364 | K23: =MAX(0,IF(OR(COUNTRY_INFO!P23="Unknown",COUNTRY_INFO!P23="Surveillance",COUNTRY_INFO!P23="Not required",COUNTRY_INFO!P23=0),0,IF($E23<>0,IF($D23=0,COUNTRY_INFO!P23*$E23,COUNTRY_INFO!P23*$E23-($F23*COUNTRY_INFO!$P23/(COUNTRY_INFO!$F23+COUNTRY_INFO!$G23)+IF($G23=" ",0,COUNTRY_INFO!$P23/(COUNTRY_INFO!$F23+COUNTRY_INFO!$G23)*$G23*$H23))),0))) -> 5278 | M23: =MAX(0,IF(OR(COUNTRY_INFO!Q23="Unknown",COUNTRY_INFO!Q23="Surveillance",COUNTRY_INFO!Q23="Not required",COUNTRY_INFO!Q23=0),0,IF($E23<>0,IF($D23=0,COUNTRY_INFO!Q23*MIN($E23,$L23),COUNTRY_INFO!Q23*MIN($E23,$L23)-($F23*COUNTRY_INFO!$Q23/(COUNTRY_INFO!$F23+COUNTRY_INFO!$G23)+IF($G23=" ",0,COUNTRY_INFO!$Q23/(COUNTRY_INFO!$F23+COUNTRY_INFO!$G23)*$G23*$H23))),0))) -> 5612 | N23: 13254 | O23: 0 | Q23: 0 | R23: 5278 | T23: 5278 | U23: 0 | W23: 0
A24: =IF(AND(INTRO!$E$37="Non-endemic",INTRO!$E$41="Non-endemic")," ",IF(COUNTRY_INFO!A24=0," ",COUNTRY_INFO!A24)) -> Gabon | B24: =IF(AND(INTRO!$E$37="Non-endemic",INTRO!$E$41="Non-endemic")," ",IF(COUNTRY_INFO!B24=0," ",COUNTRY_INFO!B24)) -> Haut Ogooué | C24: =IF(AND(INTRO!$E$37="Non-endemic",INTRO!$E$41="Non-endemic")," ",IF(COUNTRY_INFO!C24=0," ",COUNTRY_INFO!C24)) -> Lébombi-Léyou | D24: =IF(AND(INTRO!$E$37="Non-endemic",INTRO!$E$41="Non-endemic"),0,COUNTRY_INFO!W24) -> 0 | E24: =IF(AND(INTRO!$E$37="Non-endemic",INTRO!$E$41="Non-endemic"),0,COUNTRY_INFO!Y24) -> 1 | F24: =IF($D24=1,IVM!G24,0) -> 0 | G24: =IF($D24=0, " ", IF(COUNTRY_INFO!$H24=1, IF(COUNTRY_INFO!$L24=1, 0," ")," ")) ->  | J24: =IF(OR(COUNTRY_INFO!O24="Unknown",COUNTRY_INFO!O24="Surveillance",COUNTRY_INFO!O24="Not required",COUNTRY_INFO!O24=0),0,IF(INTRO!$E$39="Non-endemic",IF(AND($E24<>0,$I24=""),IF($F24=0,COUNTRY_INFO!O24*$E24,COUNTRY_INFO!O24*($E24-$D24)),IF(AND($E24<>0,$I24<>0),IF($F24=0,COUNTRY_INFO!O24*$I24,COUNTRY_INFO!O24*($I24-$D24)),0)),IF($I24="",COUNTRY_INFO!O24*$E24,COUNTRY_INFO!O24*$I24))) -> 8718 | K24: =MAX(0,IF(OR(COUNTRY_INFO!P24="Unknown",COUNTRY_INFO!P24="Surveillance",COUNTRY_INFO!P24="Not required",COUNTRY_INFO!P24=0),0,IF($E24<>0,IF($D24=0,COUNTRY_INFO!P24*$E24,COUNTRY_INFO!P24*$E24-($F24*COUNTRY_INFO!$P24/(COUNTRY_INFO!$F24+COUNTRY_INFO!$G24)+IF($G24=" ",0,COUNTRY_INFO!$P24/(COUNTRY_INFO!$F24+COUNTRY_INFO!$G24)*$G24*$H24))),0))) -> 19464 | M24: =MAX(0,IF(OR(COUNTRY_INFO!Q24="Unknown",COUNTRY_INFO!Q24="Surveillance",COUNTRY_INFO!Q24="Not required",COUNTRY_INFO!Q24=0),0,IF($E24<>0,IF($D24=0,COUNTRY_INFO!Q24*MIN($E24,$L24),COUNTRY_INFO!Q24*MIN($E24,$L24)-($F24*COUNTRY_INFO!$Q24/(COUNTRY_INFO!$F24+COUNTRY_INFO!$G24)+IF($G24=" ",0,COUNTRY_INFO!$Q24/(COUNTRY_INFO!$F24+COUNTRY_INFO!$G24)*$G24*$H24))),0))) -> 20698 | N24: 48880 | O24: 0 | Q24: 0 | R24: 19464 | T24: 19464 | U24: 0 | W24: 0
A25: =IF(AND(INTRO!$E$37="Non-endemic",INTRO!$E$41="Non-endemic")," ",IF(COUNTRY_INFO!A25=0," ",COUNTRY_INFO!A25)) -> Gabon | B25: =IF(AND(INTRO!$E$37="Non-endemic",INTRO!$E$41="Non-endemic")," ",IF(COUNTRY_INFO!B25=0," ",COUNTRY_INFO!B25)) -> Haut Ogooué | C25: =IF(AND(INTRO!$E$37="Non-endemic",INTRO!$E$41="Non-endemic")," ",IF(COUNTRY_INFO!C25=0," ",COUNTRY_INFO!C25)) -> Lékabi-léwolo | D25: =IF(AND(INTRO!$E$37="Non-endemic",INTRO!$E$41="Non-endemic"),0,COUNTRY_INFO!W25) -> 0 | E25: =IF(AND(INTRO!$E$37="Non-endemic",INTRO!$E$41="Non-endemic"),0,COUNTRY_INFO!Y25) -> 1 | F25: =IF($D25=1,IVM!G25,0) -> 0 | G25: =IF($D25=0, " ", IF(COUNTRY_INFO!$H25=1, IF(COUNTRY_INFO!$L25=1, 0," ")," ")) ->  | J25: =IF(OR(COUNTRY_INFO!O25="Unknown",COUNTRY_INFO!O25="Surveillance",COUNTRY_INFO!O25="Not required",COUNTRY_INFO!O25=0),0,IF(INTRO!$E$39="Non-endemic",IF(AND($E25<>0,$I25=""),IF($F25=0,COUNTRY_INFO!O25*$E25,COUNTRY_INFO!O25*($E25-$D25)),IF(AND($E25<>0,$I25<>0),IF($F25=0,COUNTRY_INFO!O25*$I25,COUNTRY_INFO!O25*($I25-$D25)),0)),IF($I25="",COUNTRY_INFO!O25*$E25,COUNTRY_INFO!O25*$I25))) -> 1269 | K25: =MAX(0,IF(OR(COUNTRY_INFO!P25="Unknown",COUNTRY_INFO!P25="Surveillance",COUNTRY_INFO!P25="Not required",COUNTRY_INFO!P25=0),0,IF($E25<>0,IF($D25=0,COUNTRY_INFO!P25*$E25,COUNTRY_INFO!P25*$E25-($F25*COUNTRY_INFO!$P25/(COUNTRY_INFO!$F25+COUNTRY_INFO!$G25)+IF($G25=" ",0,COUNTRY_INFO!$P25/(COUNTRY_INFO!$F25+COUNTRY_INFO!$G25)*$G25*$H25))),0))) -> 2834 | M25: =MAX(0,IF(OR(COUNTRY_INFO!Q25="Unknown",COUNTRY_INFO!Q25="Surveillance",COUNTRY_INFO!Q25="Not required",COUNTRY_INFO!Q25=0),0,IF($E25<>0,IF($D25=0,COUNTRY_INFO!Q25*MIN($E25,$L25),COUNTRY_INFO!Q25*MIN($E25,$L25)-($F25*COUNTRY_INFO!$Q25/(COUNTRY_INFO!$F25+COUNTRY_INFO!$G25)+IF($G25=" ",0,COUNTRY_INFO!$Q25/(COUNTRY_INFO!$F25+COUNTRY_INFO!$G25)*$G25*$H25))),0))) -> 3014 | N25: 7117 | O25: 0 | Q25: 0 | R25: 2834 | T25: 2834 | U25: 0 | W25: 0
A26: =IF(AND(INTRO!$E$37="Non-endemic",INTRO!$E$41="Non-endemic")," ",IF(COUNTRY_INFO!A26=0," ",COUNTRY_INFO!A26)) -> Gabon | B26: =IF(AND(INTRO!$E$37="Non-endemic",INTRO!$E$41="Non-endemic")," ",IF(COUNTRY_INFO!B26=0," ",COUNTRY_INFO!B26)) -> Haut Ogooué | C26: =IF(AND(INTRO!$E$37="Non-endemic",INTRO!$E$41="Non-endemic")," ",IF(COUNTRY_INFO!C26=0," ",COUNTRY_INFO!C26)) -> Sébé-brikoli | D26: =IF(AND(INTRO!$E$37="Non-endemic",INTRO!$E$41="Non-endemic"),0,COUNTRY_INFO!W26) -> 0 | E26: =IF(AND(INTRO!$E$37="Non-endemic",INTRO!$E$41="Non-endemic"),0,COUNTRY_INFO!Y26) -> 1 | F26: =IF($D26=1,IVM!G26,0) -> 0 | G26: =IF($D26=0, " ", IF(COUNTRY_INFO!$H26=1, IF(COUNTRY_INFO!$L26=1, 0," ")," ")) ->  | J26: =IF(OR(COUNTRY_INFO!O26="Unknown",COUNTRY_INFO!O26="Surveillance",COUNTRY_INFO!O26="Not required",COUNTRY_INFO!O26=0),0,IF(INTRO!$E$39="Non-endemic",IF(AND($E26<>0,$I26=""),IF($F26=0,COUNTRY_INFO!O26*$E26,COUNTRY_INFO!O26*($E26-$D26)),IF(AND($E26<>0,$I26<>0),IF($F26=0,COUNTRY_INFO!O26*$I26,COUNTRY_INFO!O26*($I26-$D26)),0)),IF($I26="",COUNTRY_INFO!O26*$E26,COUNTRY_INFO!O26*$I26))) -> 2385 | K26: =MAX(0,IF(OR(COUNTRY_INFO!P26="Unknown",COUNTRY_INFO!P26="Surveillance",COUNTRY_INFO!P26="Not required",COUNTRY_INFO!P26=0),0,IF($E26<>0,IF($D26=0,COUNTRY_INFO!P26*$E26,COUNTRY_INFO!P26*$E26-($F26*COUNTRY_INFO!$P26/(COUNTRY_INFO!$F26+COUNTRY_INFO!$G26)+IF($G26=" ",0,COUNTRY_INFO!$P26/(COUNTRY_INFO!$F26+COUNTRY_INFO!$G26)*$G26*$H26))),0))) -> 5325 | M26: =MAX(0,IF(OR(COUNTRY_INFO!Q26="Unknown",COUNTRY_INFO!Q26="Surveillance",COUNTRY_INFO!Q26="Not required",COUNTRY_INFO!Q26=0),0,IF($E26<>0,IF($D26=0,COUNTRY_INFO!Q26*MIN($E26,$L26),COUNTRY_INFO!Q26*MIN($E26,$L26)-($F26*COUNTRY_INFO!$Q26/(COUNTRY_INFO!$F26+COUNTRY_INFO!$G26)+IF($G26=" ",0,COUNTRY_INFO!$Q26/(COUNTRY_INFO!$F26+COUNTRY_INFO!$G26)*$G26*$H26))),0))) -> 5663 | N26: 13373 | O26: 0 | Q26: 0 | R26: 5325 | T26: 5325 | U26: 0 | W26: 0
A27: =IF(AND(INTRO!$E$37="Non-endemic",INTRO!$E$41="Non-endemic")," ",IF(COUNTRY_INFO!A27=0," ",COUNTRY_INFO!A27)) -> Gabon | B27: =IF(AND(INTRO!$E$37="Non-endemic",INTRO!$E$41="Non-endemic")," ",IF(COUNTRY_INFO!B27=0," ",COUNTRY_INFO!B27)) -> Haut Ogooué | C27: =IF(AND(INTRO!$E$37="Non-endemic",INTRO!$E$41="Non-endemic")," ",IF(COUNTRY_INFO!C27=0," ",COUNTRY_INFO!C27)) -> Djoué | D27: =IF(AND(INTRO!$E$37="Non-endemic",INTRO!$E$41="Non-endemic"),0,COUNTRY_INFO!W27) -> 0 | E27: =IF(AND(INTRO!$E$37="Non-endemic",INTRO!$E$41="Non-endemic"),0,COUNTRY_INFO!Y27) -> 2 | F27: =IF($D27=1,IVM!G27,0) -> 0 | G27: =IF($D27=0, " ", IF(COUNTRY_INFO!$H27=1, IF(COUNTRY_INFO!$L27=1, 0," ")," ")) ->  | J27: =IF(OR(COUNTRY_INFO!O27="Unknown",COUNTRY_INFO!O27="Surveillance",COUNTRY_INFO!O27="Not required",COUNTRY_INFO!O27=0),0,IF(INTRO!$E$39="Non-endemic",IF(AND($E27<>0,$I27=""),IF($F27=0,COUNTRY_INFO!O27*$E27,COUNTRY_INFO!O27*($E27-$D27)),IF(AND($E27<>0,$I27<>0),IF($F27=0,COUNTRY_INFO!O27*$I27,COUNTRY_INFO!O27*($I27-$D27)),0)),IF($I27="",COUNTRY_INFO!O27*$E27,COUNTRY_INFO!O27*$I27))) -> 1072 | K27: =MAX(0,IF(OR(COUNTRY_INFO!P27="Unknown",COUNTRY_INFO!P27="Surveillance",COUNTRY_INFO!P27="Not required",COUNTRY_INFO!P27=0),0,IF($E27<>0,IF($D27=0,COUNTRY_INFO!P27*$E27,COUNTRY_INFO!P27*$E27-($F27*COUNTRY_INFO!$P27/(COUNTRY_INFO!$F27+COUNTRY_INFO!$G27)+IF($G27=" ",0,COUNTRY_INFO!$P27/(COUNTRY_INFO!$F27+COUNTRY_INFO!$G27)*$G27*$H27))),0))) -> 2394 | M27: =MAX(0,IF(OR(COUNTRY_INFO!Q27="Unknown",COUNTRY_INFO!Q27="Surveillance",COUNTRY_INFO!Q27="Not required",COUNTRY_INFO!Q27=0),0,IF($E27<>0,IF($D27=0,COUNTRY_INFO!Q27*MIN($E27,$L27),COUNTRY_INFO!Q27*MIN($E27,$L27)-($F27*COUNTRY_INFO!$Q27/(COUNTRY_INFO!$F27+COUNTRY_INFO!$G27)+IF($G27=" ",0,COUNTRY_INFO!$Q27/(COUNTRY_INFO!$F27+COUNTRY_INFO!$G27)*$G27*$H27))),0))) -> 2546 | N27: 6012 | O27: 0 | Q27: 0 | R27: 2394 | T27: 2394 | U27: 0 | W27: 0
A28: =IF(AND(INTRO!$E$37="Non-endemic",INTRO!$E$41="Non-endemic")," ",IF(COUNTRY_INFO!A28=0," ",COUNTRY_INFO!A28)) -> Gabon | B28: =IF(AND(INTRO!$E$37="Non-endemic",INTRO!$E$41="Non-endemic")," ",IF(COUNTRY_INFO!B28=0," ",COUNTRY_INFO!B28)) -> Moyen Ogooué | C28: =IF(AND(INTRO!$E$37="Non-endemic",INTRO!$E$41="Non-endemic")," ",IF(COUNTRY_INFO!C28=0," ",COUNTRY_INFO!C28)) -> Ogooué et Lacs | D28: =IF(AND(INTRO!$E$37="Non-endemic",INTRO!$E$41="Non-endemic"),0,COUNTRY_INFO!W28) -> 0 | E28: =IF(AND(INTRO!$E$37="Non-endemic",INTRO!$E$41="Non-endemic"),0,COUNTRY_INFO!Y28) -> 1 | F28: =IF($D28=1,IVM!G28,0) -> 0 | G28: =IF($D28=0, " ", IF(COUNTRY_INFO!$H28=1, IF(COUNTRY_INFO!$L28=1, 0," ")," ")) ->  | J28: =IF(OR(COUNTRY_INFO!O28="Unknown",COUNTRY_INFO!O28="Surveillance",COUNTRY_INFO!O28="Not required",COUNTRY_INFO!O28=0),0,IF(INTRO!$E$39="Non-endemic",IF(AND($E28<>0,$I28=""),IF($F28=0,COUNTRY_INFO!O28*$E28,COUNTRY_INFO!O28*($E28-$D28)),IF(AND($E28<>0,$I28<>0),IF($F28=0,COUNTRY_INFO!O28*$I28,COUNTRY_INFO!O28*($I28-$D28)),0)),IF($I28="",COUNTRY_INFO!O28*$E28,COUNTRY_INFO!O28*$I28))) -> 7408 | K28: =MAX(0,IF(OR(COUNTRY_INFO!P28="Unknown",COUNTRY_INFO!P28="Surveillance",COUNTRY_INFO!P28="Not required",COUNTRY_INFO!P28=0),0,IF($E28<>0,IF($D28=0,COUNTRY_INFO!P28*$E28,COUNTRY_INFO!P28*$E28-($F28*COUNTRY_INFO!$P28/(COUNTRY_INFO!$F28+COUNTRY_INFO!$G28)+IF($G28=" ",0,COUNTRY_INFO!$P28/(COUNTRY_INFO!$F28+COUNTRY_INFO!$G28)*$G28*$H28))),0))) -> 16538 | M28: =MAX(0,IF(OR(COUNTRY_INFO!Q28="Unknown",COUNTRY_INFO!Q28="Surveillance",COUNTRY_INFO!Q28="Not required",COUNTRY_INFO!Q28=0),0,IF($E28<>0,IF($D28=0,COUNTRY_INFO!Q28*MIN($E28,$L28),COUNTRY_INFO!Q28*MIN($E28,$L28)-($F28*COUNTRY_INFO!$Q28/(COUNTRY_INFO!$F28+COUNTRY_INFO!$G28)+IF($G28=" ",0,COUNTRY_INFO!$Q28/(COUNTRY_INFO!$F28+COUNTRY_INFO!$G28)*$G28*$H28))),0))) -> 17587 | N28: 41533 | O28: 0 | Q28: 0 | R28: 16538 | T28: 16538 | U28: 0 | W28: 0
A29: =IF(AND(INTRO!$E$37="Non-endemic",INTRO!$E$41="Non-endemic")," ",IF(COUNTRY_INFO!A29=0," ",COUNTRY_INFO!A29)) -> Gabon | B29: =IF(AND(INTRO!$E$37="Non-endemic",INTRO!$E$41="Non-endemic")," ",IF(COUNTRY_INFO!B29=0," ",COUNTRY_INFO!B29)) -> Moyen Ogooué | C29: =IF(AND(INTRO!$E$37="Non-endemic",INTRO!$E$41="Non-endemic")," ",IF(COUNTRY_INFO!C29=0," ",COUNTRY_INFO!C29)) -> Abanga -Bigné | D29: =IF(AND(INTRO!$E$37="Non-endemic",INTRO!$E$41="Non-endemic"),0,COUNTRY_INFO!W29) -> 1 | E29: =IF(AND(INTRO!$E$37="Non-endemic",INTRO!$E$41="Non-endemic"),0,COUNTRY_INFO!Y29) -> 1 | F29: =IF($D29=1,IVM!G29,0) -> 1964 | G29: 15381 | H29: 2 | J29: =IF(OR(COUNTRY_INFO!O29="Unknown",COUNTRY_INFO!O29="Surveillance",COUNTRY_INFO!O29="Not required",COUNTRY_INFO!O29=0),0,IF(INTRO!$E$39="Non-endemic",IF(AND($E29<>0,$I29=""),IF($F29=0,COUNTRY_INFO!O29*$E29,COUNTRY_INFO!O29*($E29-$D29)),IF(AND($E29<>0,$I29<>0),IF($F29=0,COUNTRY_INFO!O29*$I29,COUNTRY_INFO!O29*($I29-$D29)),0)),IF($I29="",COUNTRY_INFO!O29*$E29,COUNTRY_INFO!O29*$I29))) -> 2086 | K29: =MAX(0,IF(OR(COUNTRY_INFO!P29="Unknown",COUNTRY_INFO!P29="Surveillance",COUNTRY_INFO!P29="Not required",COUNTRY_INFO!P29=0),0,IF($E29<>0,IF($D29=0,COUNTRY_INFO!P29*$E29,COUNTRY_INFO!P29*$E29-($F29*COUNTRY_INFO!$P29/(COUNTRY_INFO!$F29+COUNTRY_INFO!$G29)+IF($G29=" ",0,COUNTRY_INFO!$P29/(COUNTRY_INFO!$F29+COUNTRY_INFO!$G29)*$G29*$H29))),0))) -> 0 | M29: =MAX(0,IF(OR(COUNTRY_INFO!Q29="Unknown",COUNTRY_INFO!Q29="Surveillance",COUNTRY_INFO!Q29="Not required",COUNTRY_INFO!Q29=0),0,IF($E29<>0,IF($D29=0,COUNTRY_INFO!Q29*MIN($E29,$L29),COUNTRY_INFO!Q29*MIN($E29,$L29)-($F29*COUNTRY_INFO!$Q29/(COUNTRY_INFO!$F29+COUNTRY_INFO!$G29)+IF($G29=" ",0,COUNTRY_INFO!$Q29/(COUNTRY_INFO!$F29+COUNTRY_INFO!$G29)*$G29*$H29))),0))) -> 0 | N29: 2086 | O29: 32726 | Q29: 32726 | R29: 0 | T29: 0 | U29: 0 | W29: 0
A30: =IF(AND(INTRO!$E$37="Non-endemic",INTRO!$E$41="Non-endemic")," ",IF(COUNTRY_INFO!A30=0," ",COUNTRY_INFO!A30)) -> Gabon | B30: =IF(AND(INTRO!$E$37="Non-endemic",INTRO!$E$41="Non-endemic")," ",IF(COUNTRY_INFO!B30=0," ",COUNTRY_INFO!B30)) -> Ngounié | C30: =IF(AND(INTRO!$E$37="Non-endemic",INTRO!$E$41="Non-endemic")," ",IF(COUNTRY_INFO!C30=0," ",COUNTRY_INFO!C30)) -> Tsamba -Magotsi | D30: =IF(AND(INTRO!$E$37="Non-endemic",INTRO!$E$41="Non-endemic"),0,COUNTRY_INFO!W30) -> 0 | E30: =IF(AND(INTRO!$E$37="Non-endemic",INTRO!$E$41="Non-endemic"),0,COUNTRY_INFO!Y30) -> 1 | F30: =IF($D30=1,IVM!G30,0) -> 0 | G30: =IF($D30=0, " ", IF(COUNTRY_INFO!$H30=1, IF(COUNTRY_INFO!$L30=1, 0," ")," ")) ->  | J30: =IF(OR(COUNTRY_INFO!O30="Unknown",COUNTRY_INFO!O30="Surveillance",COUNTRY_INFO!O30="Not required",COUNTRY_INFO!O30=0),0,IF(INTRO!$E$39="Non-endemic",IF(AND($E30<>0,$I30=""),IF($F30=0,COUNTRY_INFO!O30*$E30,COUNTRY_INFO!O30*($E30-$D30)),IF(AND($E30<>0,$I30<>0),IF($F30=0,COUNTRY_INFO!O30*$I30,COUNTRY_INFO!O30*($I30-$D30)),0)),IF($I30="",COUNTRY_INFO!O30*$E30,COUNTRY_INFO!O30*$I30))) -> 1786 | K30: =MAX(0,IF(OR(COUNTRY_INFO!P30="Unknown",COUNTRY_INFO!P30="Surveillance",COUNTRY_INFO!P30="Not required",COUNTRY_INFO!P30=0),0,IF($E30<>0,IF($D30=0,COUNTRY_INFO!P30*$E30,COUNTRY_INFO!P30*$E30-($F30*COUNTRY_INFO!$P30/(COUNTRY_INFO!$F30+COUNTRY_INFO!$G30)+IF($G30=" ",0,COUNTRY_INFO!$P30/(COUNTRY_INFO!$F30+COUNTRY_INFO!$G30)*$G30*$H30))),0))) -> 3988 | M30: =MAX(0,IF(OR(COUNTRY_INFO!Q30="Unknown",COUNTRY_INFO!Q30="Surveillance",COUNTRY_INFO!Q30="Not required",COUNTRY_INFO!Q30=0),0,IF($E30<>0,IF($D30=0,COUNTRY_INFO!Q30*MIN($E30,$L30),COUNTRY_INFO!Q30*MIN($E30,$L30)-($F30*COUNTRY_INFO!$Q30/(COUNTRY_INFO!$F30+COUNTRY_INFO!$G30)+IF($G30=" ",0,COUNTRY_INFO!$Q30/(COUNTRY_INFO!$F30+COUNTRY_INFO!$G30)*$G30*$H30))),0))) -> 4241 | N30: 10015 | O30: 0 | Q30: 0 | R30: 3988 | T30: 3988 | U30: 0 | W30: 0
A31: =IF(AND(INTRO!$E$37="Non-endemic",INTRO!$E$41="Non-endemic")," ",IF(COUNTRY_INFO!A31=0," ",COUNTRY_INFO!A31)) -> Gabon | B31: =IF(AND(INTRO!$E$37="Non-endemic",INTRO!$E$41="Non-endemic")," ",IF(COUNTRY_INFO!B31=0," ",COUNTRY_INFO!B31)) -> Ngounié | C31: =IF(AND(INTRO!$E$37="Non-endemic",INTRO!$E$41="Non-endemic")," ",IF(COUNTRY_INFO!C31=0," ",COUNTRY_INFO!C31)) -> Louetsi-Wano | D31: =IF(AND(INTRO!$E$37="Non-endemic",INTRO!$E$41="Non-endemic"),0,COUNTRY_INFO!W31) -> 1 | E31: =IF(AND(INTRO!$E$37="Non-endemic",INTRO!$E$41="Non-endemic"),0,COUNTRY_INFO!Y31) -> 2 | F31: =IF($D31=1,IVM!G31,0) -> 684 | G31: 10050 | H31: 2 | J31: =IF(OR(COUNTRY_INFO!O31="Unknown",COUNTRY_INFO!O31="Surveillance",COUNTRY_INFO!O31="Not required",COUNTRY_INFO!O31=0),0,IF(INTRO!$E$39="Non-endemic",IF(AND($E31<>0,$I31=""),IF($F31=0,COUNTRY_INFO!O31*$E31,COUNTRY_INFO!O31*($E31-$D31)),IF(AND($E31<>0,$I31<>0),IF($F31=0,COUNTRY_INFO!O31*$I31,COUNTRY_INFO!O31*($I31-$D31)),0)),IF($I31="",COUNTRY_INFO!O31*$E31,COUNTRY_INFO!O31*$I31))) -> 2582 | K31: =MAX(0,IF(OR(COUNTRY_INFO!P31="Unknown",COUNTRY_INFO!P31="Surveillance",COUNTRY_INFO!P31="Not required",COUNTRY_INFO!P31=0),0,IF($E31<>0,IF($D31=0,COUNTRY_INFO!P31*$E31,COUNTRY_INFO!P31*$E31-($F31*COUNTRY_INFO!$P31/(COUNTRY_INFO!$F31+COUNTRY_INFO!$G31)+IF($G31=" ",0,COUNTRY_INFO!$P31/(COUNTRY_INFO!$F31+COUNTRY_INFO!$G31)*$G31*$H31))),0))) -> 183.5852432 | M31: =MAX(0,IF(OR(COUNTRY_INFO!Q31="Unknown",COUNTRY_INFO!Q31="Surveillance",COUNTRY_INFO!Q31="Not required",COUNTRY_INFO!Q31=0),0,IF($E31<>0,IF($D31=0,COUNTRY_INFO!Q31*MIN($E31,$L31),COUNTRY_INFO!Q31*MIN($E31,$L31)-($F31*COUNTRY_INFO!$Q31/(COUNTRY_INFO!$F31+COUNTRY_INFO!$G31)+IF($G31=" ",0,COUNTRY_INFO!$Q31/(COUNTRY_INFO!$F31+COUNTRY_INFO!$G31)*$G31*$H31))),0))) -> 195.2465064 | N31: 2961 | O31: 20784 | Q31: 20784 | R31: 184 | T31: 184 | U31: 0 | W31: 0
A32: =IF(AND(INTRO!$E$37="Non-endemic",INTRO!$E$41="Non-endemic")," ",IF(COUNTRY_INFO!A32=0," ",COUNTRY_INFO!A32)) -> Gabon | B32: =IF(AND(INTRO!$E$37="Non-endemic",INTRO!$E$41="Non-endemic")," ",IF(COUNTRY_INFO!B32=0," ",COUNTRY_INFO!B32)) -> Ngounié | C32: =IF(AND(INTRO!$E$37="Non-endemic",INTRO!$E$41="Non-endemic")," ",IF(COUNTRY_INFO!C32=0," ",COUNTRY_INFO!C32)) -> Louetsi-Bibaka | D32: =IF(AND(INTRO!$E$37="Non-endemic",INTRO!$E$41="Non-endemic"),0,COUNTRY_INFO!W32) -> 1 | E32: =IF(AND(INTRO!$E$37="Non-endemic",INTRO!$E$41="Non-endemic"),0,COUNTRY_INFO!Y32) -> 2 | F32: =IF($D32=1,IVM!G32,0) -> 159 | G32: 2345 | H32: 2 | J32: =IF(OR(COUNTRY_INFO!O32="Unknown",COUNTRY_INFO!O32="Surveillance",COUNTRY_INFO!O32="Not required",COUNTRY_INFO!O32=0),0,IF(INTRO!$E$39="Non-endemic",IF(AND($E32<>0,$I32=""),IF($F32=0,COUNTRY_INFO!O32*$E32,COUNTRY_INFO!O32*($E32-$D32)),IF(AND($E32<>0,$I32<>0),IF($F32=0,COUNTRY_INFO!O32*$I32,COUNTRY_INFO!O32*($I32-$D32)),0)),IF($I32="",COUNTRY_INFO!O32*$E32,COUNTRY_INFO!O32*$I32))) -> 602 | K32: =MAX(0,IF(OR(COUNTRY_INFO!P32="Unknown",COUNTRY_INFO!P32="Surveillance",COUNTRY_INFO!P32="Not required",COUNTRY_INFO!P32=0),0,IF($E32<>0,IF($D32=0,COUNTRY_INFO!P32*$E32,COUNTRY_INFO!P32*$E32-($F32*COUNTRY_INFO!$P32/(COUNTRY_INFO!$F32+COUNTRY_INFO!$G32)+IF($G32=" ",0,COUNTRY_INFO!$P32/(COUNTRY_INFO!$F32+COUNTRY_INFO!$G32)*$G32*$H32))),0))) -> 42.67092652 | M32: =MAX(0,IF(OR(COUNTRY_INFO!Q32="Unknown",COUNTRY_INFO!Q32="Surveillance",COUNTRY_INFO!Q32="Not required",COUNTRY_INFO!Q32=0),0,IF($E32<>0,IF($D32=0,COUNTRY_INFO!Q32*MIN($E32,$L32),COUNTRY_INFO!Q32*MIN($E32,$L32)-($F32*COUNTRY_INFO!$Q32/(COUNTRY_INFO!$F32+COUNTRY_INFO!$G32)+IF($G32=" ",0,COUNTRY_INFO!$Q32/(COUNTRY_INFO!$F32+COUNTRY_INFO!$G32)*$G32*$H32))),0))) -> 45.40135783 | N32: 690 | O32: 4849 | Q32: 4849 | R32: 43 | T32: 43 | U32: 0 | W32: 0
A33: =IF(AND(INTRO!$E$37="Non-endemic",INTRO!$E$41="Non-endemic")," ",IF(COUNTRY_INFO!A33=0," ",COUNTRY_INFO!A33)) -> Gabon | B33: =IF(AND(INTRO!$E$37="Non-endemic",INTRO!$E$41="Non-endemic")," ",IF(COUNTRY_INFO!B33=0," ",COUNTRY_INFO!B33)) -> Ngounié | C33: =IF(AND(INTRO!$E$37="Non-endemic",INTRO!$E$41="Non-endemic")," ",IF(COUNTRY_INFO!C33=0," ",COUNTRY_INFO!C33)) -> Ndolou | D33: =IF(AND(INTRO!$E$37="Non-endemic",INTRO!$E$41="Non-endemic"),0,COUNTRY_INFO!W33) -> 1 | E33: =IF(AND(INTRO!$E$37="Non-endemic",INTRO!$E$41="Non-endemic"),0,COUNTRY_INFO!Y33) -> 1 | F33: =IF($D33=1,IVM!G33,0) -> 374 | G33: 5500 | H33: 2 | J33: =IF(OR(COUNTRY_INFO!O33="Unknown",COUNTRY_INFO!O33="Surveillance",COUNTRY_INFO!O33="Not required",COUNTRY_INFO!O33=0),0,IF(INTRO!$E$39="Non-endemic",IF(AND($E33<>0,$I33=""),IF($F33=0,COUNTRY_INFO!O33*$E33,COUNTRY_INFO!O33*($E33-$D33)),IF(AND($E33<>0,$I33<>0),IF($F33=0,COUNTRY_INFO!O33*$I33,COUNTRY_INFO!O33*($I33-$D33)),0)),IF($I33="",COUNTRY_INFO!O33*$E33,COUNTRY_INFO!O33*$I33))) -> 706 | K33: =MAX(0,IF(OR(COUNTRY_INFO!P33="Unknown",COUNTRY_INFO!P33="Surveillance",COUNTRY_INFO!P33="Not required",COUNTRY_INFO!P33=0),0,IF($E33<>0,IF($D33=0,COUNTRY_INFO!P33*$E33,COUNTRY_INFO!P33*$E33-($F33*COUNTRY_INFO!$P33/(COUNTRY_INFO!$F33+COUNTRY_INFO!$G33)+IF($G33=" ",0,COUNTRY_INFO!$P33/(COUNTRY_INFO!$F33+COUNTRY_INFO!$G33)*$G33*$H33))),0))) -> 0 | M33: =MAX(0,IF(OR(COUNTRY_INFO!Q33="Unknown",COUNTRY_INFO!Q33="Surveillance",COUNTRY_INFO!Q33="Not required",COUNTRY_INFO!Q33=0),0,IF($E33<>0,IF($D33=0,COUNTRY_INFO!Q33*MIN($E33,$L33),COUNTRY_INFO!Q33*MIN($E33,$L33)-($F33*COUNTRY_INFO!$Q33/(COUNTRY_INFO!$F33+COUNTRY_INFO!$G33)+IF($G33=" ",0,COUNTRY_INFO!$Q33/(COUNTRY_INFO!$F33+COUNTRY_INFO!$G33)*$G33*$H33))),0))) -> 0 | N33: 706 | O33: 11374 | Q33: 11374 | R33: 0 | T33: 0 | U33: 0 | W33: 0
A34: =IF(AND(INTRO!$E$37="Non-endemic",INTRO!$E$41="Non-endemic")," ",IF(COUNTRY_INFO!A34=0," ",COUNTRY_INFO!A34)) -> Gabon | B34: =IF(AND(INTRO!$E$37="Non-endemic",INTRO!$E$41="Non-endemic")," ",IF(COUNTRY_INFO!B34=0," ",COUNTRY_INFO!B34)) -> Ngounié | C34: =IF(AND(INTRO!$E$37="Non-endemic",INTRO!$E$41="Non-endemic")," ",IF(COUNTRY_INFO!C34=0," ",COUNTRY_INFO!C34)) -> Boumi-Louetsi | D34: =IF(AND(INTRO!$E$37="Non-endemic",INTRO!$E$41="Non-endemic"),0,COUNTRY_INFO!W34) -> 1 | E34: =IF(AND(INTRO!$E$37="Non-endemic",INTRO!$E$41="Non-endemic"),0,COUNTRY_INFO!Y34) -> 2 | F34: =IF($D34=1,IVM!G34,0) -> 963 | G34: 14169 | H34: 2 | J34: =IF(OR(COUNTRY_INFO!O34="Unknown",COUNTRY_INFO!O34="Surveillance",COUNTRY_INFO!O34="Not required",COUNTRY_INFO!O34=0),0,IF(INTRO!$E$39="Non-endemic",IF(AND($E34<>0,$I34=""),IF($F34=0,COUNTRY_INFO!O34*$E34,COUNTRY_INFO!O34*($E34-$D34)),IF(AND($E34<>0,$I34<>0),IF($F34=0,COUNTRY_INFO!O34*$I34,COUNTRY_INFO!O34*($I34-$D34)),0)),IF($I34="",COUNTRY_INFO!O34*$E34,COUNTRY_INFO!O34*$I34))) -> 3638 | K34: =MAX(0,IF(OR(COUNTRY_INFO!P34="Unknown",COUNTRY_INFO!P34="Surveillance",COUNTRY_INFO!P34="Not required",COUNTRY_INFO!P34=0),0,IF($E34<>0,IF($D34=0,COUNTRY_INFO!P34*$E34,COUNTRY_INFO!P34*$E34-($F34*COUNTRY_INFO!$P34/(COUNTRY_INFO!$F34+COUNTRY_INFO!$G34)+IF($G34=" ",0,COUNTRY_INFO!$P34/(COUNTRY_INFO!$F34+COUNTRY_INFO!$G34)*$G34*$H34))),0))) -> 258.5055511 | M34: =MAX(0,IF(OR(COUNTRY_INFO!Q34="Unknown",COUNTRY_INFO!Q34="Surveillance",COUNTRY_INFO!Q34="Not required",COUNTRY_INFO!Q34=0),0,IF($E34<>0,IF($D34=0,COUNTRY_INFO!Q34*MIN($E34,$L34),COUNTRY_INFO!Q34*MIN($E34,$L34)-($F34*COUNTRY_INFO!$Q34/(COUNTRY_INFO!$F34+COUNTRY_INFO!$G34)+IF($G34=" ",0,COUNTRY_INFO!$Q34/(COUNTRY_INFO!$F34+COUNTRY_INFO!$G34)*$G34*$H34))),0))) -> 274.924663 | N34: 4172 | O34: 29301 | Q34: 29301 | R34: 259 | T34: 259 | U34: 0 | W34: 0
A35: =IF(AND(INTRO!$E$37="Non-endemic",INTRO!$E$41="Non-endemic")," ",IF(COUNTRY_INFO!A35=0," ",COUNTRY_INFO!A35)) -> Gabon | B35: =IF(AND(INTRO!$E$37="Non-endemic",INTRO!$E$41="Non-endemic")," ",IF(COUNTRY_INFO!B35=0," ",COUNTRY_INFO!B35)) -> Ngounié | C35: =IF(AND(INTRO!$E$37="Non-endemic",INTRO!$E$41="Non-endemic")," ",IF(COUNTRY_INFO!C35=0," ",COUNTRY_INFO!C35)) -> Ogoulou | D35: =IF(AND(INTRO!$E$37="Non-endemic",INTRO!$E$41="Non-endemic"),0,COUNTRY_INFO!W35) -> 1 | E35: =IF(AND(INTRO!$E$37="Non-endemic",INTRO!$E$41="Non-endemic"),0,COUNTRY_INFO!Y35) -> 2 | F35: =IF($D35=1,IVM!G35,0) -> 521 | G35: 7663 | H35: 2 | J35: =IF(OR(COUNTRY_INFO!O35="Unknown",COUNTRY_INFO!O35="Surveillance",COUNTRY_INFO!O35="Not required",COUNTRY_INFO!O35=0),0,IF(INTRO!$E$39="Non-endemic",IF(AND($E35<>0,$I35=""),IF($F35=0,COUNTRY_INFO!O35*$E35,COUNTRY_INFO!O35*($E35-$D35)),IF(AND($E35<>0,$I35<>0),IF($F35=0,COUNTRY_INFO!O35*$I35,COUNTRY_INFO!O35*($I35-$D35)),0)),IF($I35="",COUNTRY_INFO!O35*$E35,COUNTRY_INFO!O35*$I35))) -> 1968 | K35: =MAX(0,IF(OR(COUNTRY_INFO!P35="Unknown",COUNTRY_INFO!P35="Surveillance",COUNTRY_INFO!P35="Not required",COUNTRY_INFO!P35=0),0,IF($E35<>0,IF($D35=0,COUNTRY_INFO!P35*$E35,COUNTRY_INFO!P35*$E35-($F35*COUNTRY_INFO!$P35/(COUNTRY_INFO!$F35+COUNTRY_INFO!$G35)+IF($G35=" ",0,COUNTRY_INFO!$P35/(COUNTRY_INFO!$F35+COUNTRY_INFO!$G35)*$G35*$H35))),0))) -> 139.862781 | M35: =MAX(0,IF(OR(COUNTRY_INFO!Q35="Unknown",COUNTRY_INFO!Q35="Surveillance",COUNTRY_INFO!Q35="Not required",COUNTRY_INFO!Q35=0),0,IF($E35<>0,IF($D35=0,COUNTRY_INFO!Q35*MIN($E35,$L35),COUNTRY_INFO!Q35*MIN($E35,$L35)-($F35*COUNTRY_INFO!$Q35/(COUNTRY_INFO!$F35+COUNTRY_INFO!$G35)+IF($G35=" ",0,COUNTRY_INFO!$Q35/(COUNTRY_INFO!$F35+COUNTRY_INFO!$G35)*$G35*$H35))),0))) -> 148.7116325 | N35: 2257 | O35: 15847 | Q35: 15847 | R35: 140 | T35: 140 | U35: 0 | W35: 0
A36: =IF(AND(INTRO!$E$37="Non-endemic",INTRO!$E$41="Non-endemic")," ",IF(COUNTRY_INFO!A36=0," ",COUNTRY_INFO!A36)) -> Gabon | B36: =IF(AND(INTRO!$E$37="Non-endemic",INTRO!$E$41="Non-endemic")," ",IF(COUNTRY_INFO!B36=0," ",COUNTRY_INFO!B36)) -> Ngounié | C36: =IF(AND(INTRO!$E$37="Non-endemic",INTRO!$E$41="Non-endemic")," ",IF(COUNTRY_INFO!C36=0," ",COUNTRY_INFO!C36)) -> Douya-Onoye | D36: =IF(AND(INTRO!$E$37="Non-endemic",INTRO!$E$41="Non-endemic"),0,COUNTRY_INFO!W36) -> 1 | E36: =IF(AND(INTRO!$E$37="Non-endemic",INTRO!$E$41="Non-endemic"),0,COUNTRY_INFO!Y36) -> 1 | F36: =IF($D36=1,IVM!G36,0) -> 2210 | G36: 32489 | H36: 2 | J36: =IF(OR(COUNTRY_INFO!O36="Unknown",COUNTRY_INFO!O36="Surveillance",COUNTRY_INFO!O36="Not required",COUNTRY_INFO!O36=0),0,IF(INTRO!$E$39="Non-endemic",IF(AND($E36<>0,$I36=""),IF($F36=0,COUNTRY_INFO!O36*$E36,COUNTRY_INFO!O36*($E36-$D36)),IF(AND($E36<>0,$I36<>0),IF($F36=0,COUNTRY_INFO!O36*$I36,COUNTRY_INFO!O36*($I36-$D36)),0)),IF($I36="",COUNTRY_INFO!O36*$E36,COUNTRY_INFO!O36*$I36))) -> 4172 | K36: =MAX(0,IF(OR(COUNTRY_INFO!P36="Unknown",COUNTRY_INFO!P36="Surveillance",COUNTRY_INFO!P36="Not required",COUNTRY_INFO!P36=0),0,IF($E36<>0,IF($D36=0,COUNTRY_INFO!P36*$E36,COUNTRY_INFO!P36*$E36-($F36*COUNTRY_INFO!$P36/(COUNTRY_INFO!$F36+COUNTRY_INFO!$G36)+IF($G36=" ",0,COUNTRY_INFO!$P36/(COUNTRY_INFO!$F36+COUNTRY_INFO!$G36)*$G36*$H36))),0))) -> 0 | M36: =MAX(0,IF(OR(COUNTRY_INFO!Q36="Unknown",COUNTRY_INFO!Q36="Surveillance",COUNTRY_INFO!Q36="Not required",COUNTRY_INFO!Q36=0),0,IF($E36<>0,IF($D36=0,COUNTRY_INFO!Q36*MIN($E36,$L36),COUNTRY_INFO!Q36*MIN($E36,$L36)-($F36*COUNTRY_INFO!$Q36/(COUNTRY_INFO!$F36+COUNTRY_INFO!$G36)+IF($G36=" ",0,COUNTRY_INFO!$Q36/(COUNTRY_INFO!$F36+COUNTRY_INFO!$G36)*$G36*$H36))),0))) -> 0 | N36: 4172 | O36: 67188 | Q36: 67188 | R36: 0 | T36: 0 | U36: 0 | W36: 0
A37: =IF(AND(INTRO!$E$37="Non-endemic",INTRO!$E$41="Non-endemic")," ",IF(COUNTRY_INFO!A37=0," ",COUNTRY_INFO!A37)) -> Gabon | B37: =IF(AND(INTRO!$E$37="Non-endemic",INTRO!$E$41="Non-endemic")," ",IF(COUNTRY_INFO!B37=0," ",COUNTRY_INFO!B37)) -> Ngounié | C37: =IF(AND(INTRO!$E$37="Non-endemic",INTRO!$E$41="Non-endemic")," ",IF(COUNTRY_INFO!C37=0," ",COUNTRY_INFO!C37)) -> Dola | D37: =IF(AND(INTRO!$E$37="Non-endemic",INTRO!$E$41="Non-endemic"),0,COUNTRY_INFO!W37) -> 0 | E37: =IF(AND(INTRO!$E$37="Non-endemic",INTRO!$E$41="Non-endemic"),0,COUNTRY_INFO!Y37) -> 1 | F37: =IF($D37=1,IVM!G37,0) -> 0 | G37: =IF($D37=0, " ", IF(COUNTRY_INFO!$H37=1, IF(COUNTRY_INFO!$L37=1, 0," ")," ")) ->  | J37: =IF(OR(COUNTRY_INFO!O37="Unknown",COUNTRY_INFO!O37="Surveillance",COUNTRY_INFO!O37="Not required",COUNTRY_INFO!O37=0),0,IF(INTRO!$E$39="Non-endemic",IF(AND($E37<>0,$I37=""),IF($F37=0,COUNTRY_INFO!O37*$E37,COUNTRY_INFO!O37*($E37-$D37)),IF(AND($E37<>0,$I37<>0),IF($F37=0,COUNTRY_INFO!O37*$I37,COUNTRY_INFO!O37*($I37-$D37)),0)),IF($I37="",COUNTRY_INFO!O37*$E37,COUNTRY_INFO!O37*$I37))) -> 1050 | K37: =MAX(0,IF(OR(COUNTRY_INFO!P37="Unknown",COUNTRY_INFO!P37="Surveillance",COUNTRY_INFO!P37="Not required",COUNTRY_INFO!P37=0),0,IF($E37<>0,IF($D37=0,COUNTRY_INFO!P37*$E37,COUNTRY_INFO!P37*$E37-($F37*COUNTRY_INFO!$P37/(COUNTRY_INFO!$F37+COUNTRY_INFO!$G37)+IF($G37=" ",0,COUNTRY_INFO!$P37/(COUNTRY_INFO!$F37+COUNTRY_INFO!$G37)*$G37*$H37))),0))) -> 2345 | M37: =MAX(0,IF(OR(COUNTRY_INFO!Q37="Unknown",COUNTRY_INFO!Q37="Surveillance",COUNTRY_INFO!Q37="Not required",COUNTRY_INFO!Q37=0),0,IF($E37<>0,IF($D37=0,COUNTRY_INFO!Q37*MIN($E37,$L37),COUNTRY_INFO!Q37*MIN($E37,$L37)-($F37*COUNTRY_INFO!$Q37/(COUNTRY_INFO!$F37+COUNTRY_INFO!$G37)+IF($G37=" ",0,COUNTRY_INFO!$Q37/(COUNTRY_INFO!$F37+COUNTRY_INFO!$G37)*$G37*$H37))),0))) -> 2493 | N37: 5888 | O37: 0 | Q37: 0 | R37: 2345 | T37: 2345 | U37: 0 | W37: 0
A38: =IF(AND(INTRO!$E$37="Non-endemic",INTRO!$E$41="Non-endemic")," ",IF(COUNTRY_INFO!A38=0," ",COUNTRY_INFO!A38)) -> Gabon | B38: =IF(AND(INTRO!$E$37="Non-endemic",INTRO!$E$41="Non-endemic")," ",IF(COUNTRY_INFO!B38=0," ",COUNTRY_INFO!B38)) -> Ngounié | C38: =IF(AND(INTRO!$E$37="Non-endemic",INTRO!$E$41="Non-endemic")," ",IF(COUNTRY_INFO!C38=0," ",COUNTRY_INFO!C38)) -> Mougalaba | D38: =IF(AND(INTRO!$E$37="Non-endemic",INTRO!$E$41="Non-endemic"),0,COUNTRY_INFO!W38) -> 1 | E38: =IF(AND(INTRO!$E$37="Non-endemic",INTRO!$E$41="Non-endemic"),0,COUNTRY_INFO!Y38) -> 2 | F38: =IF($D38=1,IVM!G38,0) -> 71 | G38: 1055 | H38: 2 | J38: =IF(OR(COUNTRY_INFO!O38="Unknown",COUNTRY_INFO!O38="Surveillance",COUNTRY_INFO!O38="Not required",COUNTRY_INFO!O38=0),0,IF(INTRO!$E$39="Non-endemic",IF(AND($E38<>0,$I38=""),IF($F38=0,COUNTRY_INFO!O38*$E38,COUNTRY_INFO!O38*($E38-$D38)),IF(AND($E38<>0,$I38<>0),IF($F38=0,COUNTRY_INFO!O38*$I38,COUNTRY_INFO!O38*($I38-$D38)),0)),IF($I38="",COUNTRY_INFO!O38*$E38,COUNTRY_INFO!O38*$I38))) -> 270 | K38: =MAX(0,IF(OR(COUNTRY_INFO!P38="Unknown",COUNTRY_INFO!P38="Surveillance",COUNTRY_INFO!P38="Not required",COUNTRY_INFO!P38=0),0,IF($E38<>0,IF($D38=0,COUNTRY_INFO!P38*$E38,COUNTRY_INFO!P38*$E38-($F38*COUNTRY_INFO!$P38/(COUNTRY_INFO!$F38+COUNTRY_INFO!$G38)+IF($G38=" ",0,COUNTRY_INFO!$P38/(COUNTRY_INFO!$F38+COUNTRY_INFO!$G38)*$G38*$H38))),0))) -> 19.04262877 | M38: =MAX(0,IF(OR(COUNTRY_INFO!Q38="Unknown",COUNTRY_INFO!Q38="Surveillance",COUNTRY_INFO!Q38="Not required",COUNTRY_INFO!Q38=0),0,IF($E38<>0,IF($D38=0,COUNTRY_INFO!Q38*MIN($E38,$L38),COUNTRY_INFO!Q38*MIN($E38,$L38)-($F38*COUNTRY_INFO!$Q38/(COUNTRY_INFO!$F38+COUNTRY_INFO!$G38)+IF($G38=" ",0,COUNTRY_INFO!$Q38/(COUNTRY_INFO!$F38+COUNTRY_INFO!$G38)*$G38*$H38))),0))) -> 20.30373002 | N38: 309 | O38: 2181 | Q38: 2181 | R38: 19 | T38: 19 | U38: 0 | W38: 0
A39: =IF(AND(INTRO!$E$37="Non-endemic",INTRO!$E$41="Non-endemic")," ",IF(COUNTRY_INFO!A39=0," ",COUNTRY_INFO!A39)) -> Gabon | B39: =IF(AND(INTRO!$E$37="Non-endemic",INTRO!$E$41="Non-endemic")," ",IF(COUNTRY_INFO!B39=0," ",COUNTRY_INFO!B39)) -> Nyanga | C39: =IF(AND(INTRO!$E$37="Non-endemic",INTRO!$E$41="Non-endemic")," ",IF(COUNTRY_INFO!C39=0," ",COUNTRY_INFO!C39)) -> Doutsila | D39: =IF(AND(INTRO!$E$37="Non-endemic",INTRO!$E$41="Non-endemic"),0,COUNTRY_INFO!W39) -> 0 | E39: =IF(AND(INTRO!$E$37="Non-endemic",INTRO!$E$41="Non-endemic"),0,COUNTRY_INFO!Y39) -> 2 | F39: =IF($D39=1,IVM!G39,0) -> 0 | G39: =IF($D39=0, " ", IF(COUNTRY_INFO!$H39=1, IF(COUNTRY_INFO!$L39=1, 0," ")," ")) ->  | J39: =IF(OR(COUNTRY_INFO!O39="Unknown",COUNTRY_INFO!O39="Surveillance",COUNTRY_INFO!O39="Not required",COUNTRY_INFO!O39=0),0,IF(INTRO!$E$39="Non-endemic",IF(AND($E39<>0,$I39=""),IF($F39=0,COUNTRY_INFO!O39*$E39,COUNTRY_INFO!O39*($E39-$D39)),IF(AND($E39<>0,$I39<>0),IF($F39=0,COUNTRY_INFO!O39*$I39,COUNTRY_INFO!O39*($I39-$D39)),0)),IF($I39="",COUNTRY_INFO!O39*$E39,COUNTRY_INFO!O39*$I39))) -> 760 | K39: =MAX(0,IF(OR(COUNTRY_INFO!P39="Unknown",COUNTRY_INFO!P39="Surveillance",COUNTRY_INFO!P39="Not required",COUNTRY_INFO!P39=0),0,IF($E39<>0,IF($D39=0,COUNTRY_INFO!P39*$E39,COUNTRY_INFO!P39*$E39-($F39*COUNTRY_INFO!$P39/(COUNTRY_INFO!$F39+COUNTRY_INFO!$G39)+IF($G39=" ",0,COUNTRY_INFO!$P39/(COUNTRY_INFO!$F39+COUNTRY_INFO!$G39)*$G39*$H39))),0))) -> 1698 | M39: =MAX(0,IF(OR(COUNTRY_INFO!Q39="Unknown",COUNTRY_INFO!Q39="Surveillance",COUNTRY_INFO!Q39="Not required",COUNTRY_INFO!Q39=0),0,IF($E39<>0,IF($D39=0,COUNTRY_INFO!Q39*MIN($E39,$L39),COUNTRY_INFO!Q39*MIN($E39,$L39)-($F39*COUNTRY_INFO!$Q39/(COUNTRY_INFO!$F39+COUNTRY_INFO!$G39)+IF($G39=" ",0,COUNTRY_INFO!$Q39/(COUNTRY_INFO!$F39+COUNTRY_INFO!$G39)*$G39*$H39))),0))) -> 1806 | N39: 4264 | O39: 0 | Q39: 0 | R39: 1698 | T39: 1698 | U39: 0 | W39: 0
A40: =IF(AND(INTRO!$E$37="Non-endemic",INTRO!$E$41="Non-endemic")," ",IF(COUNTRY_INFO!A40=0," ",COUNTRY_INFO!A40)) -> Gabon | B40: =IF(AND(INTRO!$E$37="Non-endemic",INTRO!$E$41="Non-endemic")," ",IF(COUNTRY_INFO!B40=0," ",COUNTRY_INFO!B40)) -> Nyanga | C40: =IF(AND(INTRO!$E$37="Non-endemic",INTRO!$E$41="Non-endemic")," ",IF(COUNTRY_INFO!C40=0," ",COUNTRY_INFO!C40)) -> Basse-Banio | D40: =IF(AND(INTRO!$E$37="Non-endemic",INTRO!$E$41="Non-endemic"),0,COUNTRY_INFO!W40) -> 1 | E40: =IF(AND(INTRO!$E$37="Non-endemic",INTRO!$E$41="Non-endemic"),0,COUNTRY_INFO!Y40) -> 1 | F40: =IF($D40=1,IVM!G40,0) -> 420 | G40: 6592 | H40: 2 | J40: =IF(OR(COUNTRY_INFO!O40="Unknown",COUNTRY_INFO!O40="Surveillance",COUNTRY_INFO!O40="Not required",COUNTRY_INFO!O40=0),0,IF(INTRO!$E$39="Non-endemic",IF(AND($E40<>0,$I40=""),IF($F40=0,COUNTRY_INFO!O40*$E40,COUNTRY_INFO!O40*($E40-$D40)),IF(AND($E40<>0,$I40<>0),IF($F40=0,COUNTRY_INFO!O40*$I40,COUNTRY_INFO!O40*($I40-$D40)),0)),IF($I40="",COUNTRY_INFO!O40*$E40,COUNTRY_INFO!O40*$I40))) -> 843 | K40: =MAX(0,IF(OR(COUNTRY_INFO!P40="Unknown",COUNTRY_INFO!P40="Surveillance",COUNTRY_INFO!P40="Not required",COUNTRY_INFO!P40=0),0,IF($E40<>0,IF($D40=0,COUNTRY_INFO!P40*$E40,COUNTRY_INFO!P40*$E40-($F40*COUNTRY_INFO!$P40/(COUNTRY_INFO!$F40+COUNTRY_INFO!$G40)+IF($G40=" ",0,COUNTRY_INFO!$P40/(COUNTRY_INFO!$F40+COUNTRY_INFO!$G40)*$G40*$H40))),0))) -> 0 | M40: =MAX(0,IF(OR(COUNTRY_INFO!Q40="Unknown",COUNTRY_INFO!Q40="Surveillance",COUNTRY_INFO!Q40="Not required",COUNTRY_INFO!Q40=0),0,IF($E40<>0,IF($D40=0,COUNTRY_INFO!Q40*MIN($E40,$L40),COUNTRY_INFO!Q40*MIN($E40,$L40)-($F40*COUNTRY_INFO!$Q40/(COUNTRY_INFO!$F40+COUNTRY_INFO!$G40)+IF($G40=" ",0,COUNTRY_INFO!$Q40/(COUNTRY_INFO!$F40+COUNTRY_INFO!$G40)*$G40*$H40))),0))) -> 0 | N40: 843 | O40: 13604 | Q40: 13604 | R40: 0 | T40: 0 | U40: 0 | W40: 0
A41: =IF(AND(INTRO!$E$37="Non-endemic",INTRO!$E$41="Non-endemic")," ",IF(COUNTRY_INFO!A41=0," ",COUNTRY_INFO!A41)) -> Gabon | B41: =IF(AND(INTRO!$E$37="Non-endemic",INTRO!$E$41="Non-endemic")," ",IF(COUNTRY_INFO!B41=0," ",COUNTRY_INFO!B41)) -> Nyanga | C41: =IF(AND(INTRO!$E$37="Non-endemic",INTRO!$E$41="Non-endemic")," ",IF(COUNTRY_INFO!C41=0," ",COUNTRY_INFO!C41)) -> Douigny | D41: =IF(AND(INTRO!$E$37="Non-endemic",INTRO!$E$41="Non-endemic"),0,COUNTRY_INFO!W41) -> 0 | E41: =IF(AND(INTRO!$E$37="Non-endemic",INTRO!$E$41="Non-endemic"),0,COUNTRY_INFO!Y41) -> 2 | F41: =IF($D41=1,IVM!G41,0) -> 0 | G41: =IF($D41=0, " ", IF(COUNTRY_INFO!$H41=1, IF(COUNTRY_INFO!$L41=1, 0," ")," ")) ->  | J41: =IF(OR(COUNTRY_INFO!O41="Unknown",COUNTRY_INFO!O41="Surveillance",COUNTRY_INFO!O41="Not required",COUNTRY_INFO!O41=0),0,IF(INTRO!$E$39="Non-endemic",IF(AND($E41<>0,$I41=""),IF($F41=0,COUNTRY_INFO!O41*$E41,COUNTRY_INFO!O41*($E41-$D41)),IF(AND($E41<>0,$I41<>0),IF($F41=0,COUNTRY_INFO!O41*$I41,COUNTRY_INFO!O41*($I41-$D41)),0)),IF($I41="",COUNTRY_INFO!O41*$E41,COUNTRY_INFO!O41*$I41))) -> 1314 | K41: =MAX(0,IF(OR(COUNTRY_INFO!P41="Unknown",COUNTRY_INFO!P41="Surveillance",COUNTRY_INFO!P41="Not required",COUNTRY_INFO!P41=0),0,IF($E41<>0,IF($D41=0,COUNTRY_INFO!P41*$E41,COUNTRY_INFO!P41*$E41-($F41*COUNTRY_INFO!$P41/(COUNTRY_INFO!$F41+COUNTRY_INFO!$G41)+IF($G41=" ",0,COUNTRY_INFO!$P41/(COUNTRY_INFO!$F41+COUNTRY_INFO!$G41)*$G41*$H41))),0))) -> 2934 | M41: =MAX(0,IF(OR(COUNTRY_INFO!Q41="Unknown",COUNTRY_INFO!Q41="Surveillance",COUNTRY_INFO!Q41="Not required",COUNTRY_INFO!Q41=0),0,IF($E41<>0,IF($D41=0,COUNTRY_INFO!Q41*MIN($E41,$L41),COUNTRY_INFO!Q41*MIN($E41,$L41)-($F41*COUNTRY_INFO!$Q41/(COUNTRY_INFO!$F41+COUNTRY_INFO!$G41)+IF($G41=" ",0,COUNTRY_INFO!$Q41/(COUNTRY_INFO!$F41+COUNTRY_INFO!$G41)*$G41*$H41))),0))) -> 3120 | N41: 7368 | O41: 0 | Q41: 0 | R41: 2934 | T41: 2934 | U41: 0 | W41: 0
A42: =IF(AND(INTRO!$E$37="Non-endemic",INTRO!$E$41="Non-endemic")," ",IF(COUNTRY_INFO!A42=0," ",COUNTRY_INFO!A42)) -> Gabon | B42: =IF(AND(INTRO!$E$37="Non-endemic",INTRO!$E$41="Non-endemic")," ",IF(COUNTRY_INFO!B42=0," ",COUNTRY_INFO!B42)) -> Nyanga | C42: =IF(AND(INTRO!$E$37="Non-endemic",INTRO!$E$41="Non-endemic")," ",IF(COUNTRY_INFO!C42=0," ",COUNTRY_INFO!C42)) -> Mongo | D42: =IF(AND(INTRO!$E$37="Non-endemic",INTRO!$E$41="Non-endemic"),0,COUNTRY_INFO!W42) -> 0 | E42: =IF(AND(INTRO!$E$37="Non-endemic",INTRO!$E$41="Non-endemic"),0,COUNTRY_INFO!Y42) -> 1 | F42: =IF($D42=1,IVM!G42,0) -> 0 | G42: =IF($D42=0, " ", IF(COUNTRY_INFO!$H42=1, IF(COUNTRY_INFO!$L42=1, 0," ")," ")) ->  | J42: =IF(OR(COUNTRY_INFO!O42="Unknown",COUNTRY_INFO!O42="Surveillance",COUNTRY_INFO!O42="Not required",COUNTRY_INFO!O42=0),0,IF(INTRO!$E$39="Non-endemic",IF(AND($E42<>0,$I42=""),IF($F42=0,COUNTRY_INFO!O42*$E42,COUNTRY_INFO!O42*($E42-$D42)),IF(AND($E42<>0,$I42<>0),IF($F42=0,COUNTRY_INFO!O42*$I42,COUNTRY_INFO!O42*($I42-$D42)),0)),IF($I42="",COUNTRY_INFO!O42*$E42,COUNTRY_INFO!O42*$I42))) -> 430 | K42: =MAX(0,IF(OR(COUNTRY_INFO!P42="Unknown",COUNTRY_INFO!P42="Surveillance",COUNTRY_INFO!P42="Not required",COUNTRY_INFO!P42=0),0,IF($E42<>0,IF($D42=0,COUNTRY_INFO!P42*$E42,COUNTRY_INFO!P42*$E42-($F42*COUNTRY_INFO!$P42/(COUNTRY_INFO!$F42+COUNTRY_INFO!$G42)+IF($G42=" ",0,COUNTRY_INFO!$P42/(COUNTRY_INFO!$F42+COUNTRY_INFO!$G42)*$G42*$H42))),0))) -> 959 | M42: =MAX(0,IF(OR(COUNTRY_INFO!Q42="Unknown",COUNTRY_INFO!Q42="Surveillance",COUNTRY_INFO!Q42="Not required",COUNTRY_INFO!Q42=0),0,IF($E42<>0,IF($D42=0,COUNTRY_INFO!Q42*MIN($E42,$L42),COUNTRY_INFO!Q42*MIN($E42,$L42)-($F42*COUNTRY_INFO!$Q42/(COUNTRY_INFO!$F42+COUNTRY_INFO!$G42)+IF($G42=" ",0,COUNTRY_INFO!$Q42/(COUNTRY_INFO!$F42+COUNTRY_INFO!$G42)*$G42*$H42))),0))) -> 1020 | N42: 2409 | O42: 0 | Q42: 0 | R42: 959 | T42: 959 | U42: 0 | W42: 0
A43: =IF(AND(INTRO!$E$37="Non-endemic",INTRO!$E$41="Non-endemic")," ",IF(COUNTRY_INFO!A43=0," ",COUNTRY_INFO!A43)) -> Gabon | B43: =IF(AND(INTRO!$E$37="Non-endemic",INTRO!$E$41="Non-endemic")," ",IF(COUNTRY_INFO!B43=0," ",COUNTRY_INFO!B43)) -> Nyanga | C43: =IF(AND(INTRO!$E$37="Non-endemic",INTRO!$E$41="Non-endemic")," ",IF(COUNTRY_INFO!C43=0," ",COUNTRY_INFO!C43)) -> Haute-Banio | D43: =IF(AND(INTRO!$E$37="Non-endemic",INTRO!$E$41="Non-endemic"),0,COUNTRY_INFO!W43) -> 0 | E43: =IF(AND(INTRO!$E$37="Non-endemic",INTRO!$E$41="Non-endemic"),0,COUNTRY_INFO!Y43) -> 2 | F43: =IF($D43=1,IVM!G43,0) -> 0 | G43: =IF($D43=0, " ", IF(COUNTRY_INFO!$H43=1, IF(COUNTRY_INFO!$L43=1, 0," ")," ")) ->  | J43: =IF(OR(COUNTRY_INFO!O43="Unknown",COUNTRY_INFO!O43="Surveillance",COUNTRY_INFO!O43="Not required",COUNTRY_INFO!O43=0),0,IF(INTRO!$E$39="Non-endemic",IF(AND($E43<>0,$I43=""),IF($F43=0,COUNTRY_INFO!O43*$E43,COUNTRY_INFO!O43*($E43-$D43)),IF(AND($E43<>0,$I43<>0),IF($F43=0,COUNTRY_INFO!O43*$I43,COUNTRY_INFO!O43*($I43-$D43)),0)),IF($I43="",COUNTRY_INFO!O43*$E43,COUNTRY_INFO!O43*$I43))) -> 432 | K43: =MAX(0,IF(OR(COUNTRY_INFO!P43="Unknown",COUNTRY_INFO!P43="Surveillance",COUNTRY_INFO!P43="Not required",COUNTRY_INFO!P43=0),0,IF($E43<>0,IF($D43=0,COUNTRY_INFO!P43*$E43,COUNTRY_INFO!P43*$E43-($F43*COUNTRY_INFO!$P43/(COUNTRY_INFO!$F43+COUNTRY_INFO!$G43)+IF($G43=" ",0,COUNTRY_INFO!$P43/(COUNTRY_INFO!$F43+COUNTRY_INFO!$G43)*$G43*$H43))),0))) -> 966 | M43: =MAX(0,IF(OR(COUNTRY_INFO!Q43="Unknown",COUNTRY_INFO!Q43="Surveillance",COUNTRY_INFO!Q43="Not required",COUNTRY_INFO!Q43=0),0,IF($E43<>0,IF($D43=0,COUNTRY_INFO!Q43*MIN($E43,$L43),COUNTRY_INFO!Q43*MIN($E43,$L43)-($F43*COUNTRY_INFO!$Q43/(COUNTRY_INFO!$F43+COUNTRY_INFO!$G43)+IF($G43=" ",0,COUNTRY_INFO!$Q43/(COUNTRY_INFO!$F43+COUNTRY_INFO!$G43)*$G43*$H43))),0))) -> 1026 | N43: 2424 | O43: 0 | Q43: 0 | R43: 966 | T43: 966 | U43: 0 | W43: 0
A44: =IF(AND(INTRO!$E$37="Non-endemic",INTRO!$E$41="Non-endemic")," ",IF(COUNTRY_INFO!A44=0," ",COUNTRY_INFO!A44)) -> Gabon | B44: =IF(AND(INTRO!$E$37="Non-endemic",INTRO!$E$41="Non-endemic")," ",IF(COUNTRY_INFO!B44=0," ",COUNTRY_INFO!B44)) -> Nyanga | C44: =IF(AND(INTRO!$E$37="Non-endemic",INTRO!$E$41="Non-endemic")," ",IF(COUNTRY_INFO!C44=0," ",COUNTRY_INFO!C44)) -> Mougoutsi | D44: =IF(AND(INTRO!$E$37="Non-endemic",INTRO!$E$41="Non-endemic"),0,COUNTRY_INFO!W44) -> 0 | E44: =IF(AND(INTRO!$E$37="Non-endemic",INTRO!$E$41="Non-endemic"),0,COUNTRY_INFO!Y44) -> 1 | F44: =IF($D44=1,IVM!G44,0) -> 0 | G44: =IF($D44=0, " ", IF(COUNTRY_INFO!$H44=1, IF(COUNTRY_INFO!$L44=1, 0," ")," ")) ->  | J44: =IF(OR(COUNTRY_INFO!O44="Unknown",COUNTRY_INFO!O44="Surveillance",COUNTRY_INFO!O44="Not required",COUNTRY_INFO!O44=0),0,IF(INTRO!$E$39="Non-endemic",IF(AND($E44<>0,$I44=""),IF($F44=0,COUNTRY_INFO!O44*$E44,COUNTRY_INFO!O44*($E44-$D44)),IF(AND($E44<>0,$I44<>0),IF($F44=0,COUNTRY_INFO!O44*$I44,COUNTRY_INFO!O44*($I44-$D44)),0)),IF($I44="",COUNTRY_INFO!O44*$E44,COUNTRY_INFO!O44*$I44))) -> 3643 | K44: =MAX(0,IF(OR(COUNTRY_INFO!P44="Unknown",COUNTRY_INFO!P44="Surveillance",COUNTRY_INFO!P44="Not required",COUNTRY_INFO!P44=0),0,IF($E44<>0,IF($D44=0,COUNTRY_INFO!P44*$E44,COUNTRY_INFO!P44*$E44-($F44*COUNTRY_INFO!$P44/(COUNTRY_INFO!$F44+COUNTRY_INFO!$G44)+IF($G44=" ",0,COUNTRY_INFO!$P44/(COUNTRY_INFO!$F44+COUNTRY_INFO!$G44)*$G44*$H44))),0))) -> 8133 | M44: =MAX(0,IF(OR(COUNTRY_INFO!Q44="Unknown",COUNTRY_INFO!Q44="Surveillance",COUNTRY_INFO!Q44="Not required",COUNTRY_INFO!Q44=0),0,IF($E44<>0,IF($D44=0,COUNTRY_INFO!Q44*MIN($E44,$L44),COUNTRY_INFO!Q44*MIN($E44,$L44)-($F44*COUNTRY_INFO!$Q44/(COUNTRY_INFO!$F44+COUNTRY_INFO!$G44)+IF($G44=" ",0,COUNTRY_INFO!$Q44/(COUNTRY_INFO!$F44+COUNTRY_INFO!$G44)*$G44*$H44))),0))) -> 8649 | N44: 20425 | O44: 0 | Q44: 0 | R44: 8133 | T44: 8133 | U44: 0 | W44: 0
A45: =IF(AND(INTRO!$E$37="Non-endemic",INTRO!$E$41="Non-endemic")," ",IF(COUNTRY_INFO!A45=0," ",COUNTRY_INFO!A45)) -> Gabon | B45: =IF(AND(INTRO!$E$37="Non-endemic",INTRO!$E$41="Non-endemic")," ",IF(COUNTRY_INFO!B45=0," ",COUNTRY_INFO!B45)) -> Ogooué-Ivindo | C45: =IF(AND(INTRO!$E$37="Non-endemic",INTRO!$E$41="Non-endemic")," ",IF(COUNTRY_INFO!C45=0," ",COUNTRY_INFO!C45)) -> Lopé | D45: =IF(AND(INTRO!$E$37="Non-endemic",INTRO!$E$41="Non-endemic"),0,COUNTRY_INFO!W45) -> 1 | E45: =IF(AND(INTRO!$E$37="Non-endemic",INTRO!$E$41="Non-endemic"),0,COUNTRY_INFO!Y45) -> 1 | F45: =IF($D45=1,IVM!G45,0) -> 968 | G45: 14247 | H45: 2 | J45: =IF(OR(COUNTRY_INFO!O45="Unknown",COUNTRY_INFO!O45="Surveillance",COUNTRY_INFO!O45="Not required",COUNTRY_INFO!O45=0),0,IF(INTRO!$E$39="Non-endemic",IF(AND($E45<>0,$I45=""),IF($F45=0,COUNTRY_INFO!O45*$E45,COUNTRY_INFO!O45*($E45-$D45)),IF(AND($E45<>0,$I45<>0),IF($F45=0,COUNTRY_INFO!O45*$I45,COUNTRY_INFO!O45*($I45-$D45)),0)),IF($I45="",COUNTRY_INFO!O45*$E45,COUNTRY_INFO!O45*$I45))) -> 1829 | K45: =MAX(0,IF(OR(COUNTRY_INFO!P45="Unknown",COUNTRY_INFO!P45="Surveillance",COUNTRY_INFO!P45="Not required",COUNTRY_INFO!P45=0),0,IF($E45<>0,IF($D45=0,COUNTRY_INFO!P45*$E45,COUNTRY_INFO!P45*$E45-($F45*COUNTRY_INFO!$P45/(COUNTRY_INFO!$F45+COUNTRY_INFO!$G45)+IF($G45=" ",0,COUNTRY_INFO!$P45/(COUNTRY_INFO!$F45+COUNTRY_INFO!$G45)*$G45*$H45))),0))) -> 0 | M45: =MAX(0,IF(OR(COUNTRY_INFO!Q45="Unknown",COUNTRY_INFO!Q45="Surveillance",COUNTRY_INFO!Q45="Not required",COUNTRY_INFO!Q45=0),0,IF($E45<>0,IF($D45=0,COUNTRY_INFO!Q45*MIN($E45,$L45),COUNTRY_INFO!Q45*MIN($E45,$L45)-($F45*COUNTRY_INFO!$Q45/(COUNTRY_INFO!$F45+COUNTRY_INFO!$G45)+IF($G45=" ",0,COUNTRY_INFO!$Q45/(COUNTRY_INFO!$F45+COUNTRY_INFO!$G45)*$G45*$H45))),0))) -> 0 | N45: 1829 | O45: 29462 | Q45: 29462 | R45: 0 | T45: 0 | U45: 0 | W45: 0
A46: =IF(AND(INTRO!$E$37="Non-endemic",INTRO!$E$41="Non-endemic")," ",IF(COUNTRY_INFO!A46=0," ",COUNTRY_INFO!A46)) -> Gabon | B46: =IF(AND(INTRO!$E$37="Non-endemic",INTRO!$E$41="Non-endemic")," ",IF(COUNTRY_INFO!B46=0," ",COUNTRY_INFO!B46)) -> Ogooué-Ivindo | C46: =IF(AND(INTRO!$E$37="Non-endemic",INTRO!$E$41="Non-endemic")," ",IF(COUNTRY_INFO!C46=0," ",COUNTRY_INFO!C46)) -> Ivindo | D46: =IF(AND(INTRO!$E$37="Non-endemic",INTRO!$E$41="Non-endemic"),0,COUNTRY_INFO!W46) -> 1 | E46: =IF(AND(INTRO!$E$37="Non-endemic",INTRO!$E$41="Non-endemic"),0,COUNTRY_INFO!Y46) -> 1 | F46: =IF($D46=1,IVM!G46,0) -> 2133 | G46: 31368 | H46: 2 | J46: =IF(OR(COUNTRY_INFO!O46="Unknown",COUNTRY_INFO!O46="Surveillance",COUNTRY_INFO!O46="Not required",COUNTRY_INFO!O46=0),0,IF(INTRO!$E$39="Non-endemic",IF(AND($E46<>0,$I46=""),IF($F46=0,COUNTRY_INFO!O46*$E46,COUNTRY_INFO!O46*($E46-$D46)),IF(AND($E46<>0,$I46<>0),IF($F46=0,COUNTRY_INFO!O46*$I46,COUNTRY_INFO!O46*($I46-$D46)),0)),IF($I46="",COUNTRY_INFO!O46*$E46,COUNTRY_INFO!O46*$I46))) -> 4028 | K46: =MAX(0,IF(OR(COUNTRY_INFO!P46="Unknown",COUNTRY_INFO!P46="Surveillance",COUNTRY_INFO!P46="Not required",COUNTRY_INFO!P46=0),0,IF($E46<>0,IF($D46=0,COUNTRY_INFO!P46*$E46,COUNTRY_INFO!P46*$E46-($F46*COUNTRY_INFO!$P46/(COUNTRY_INFO!$F46+COUNTRY_INFO!$G46)+IF($G46=" ",0,COUNTRY_INFO!$P46/(COUNTRY_INFO!$F46+COUNTRY_INFO!$G46)*$G46*$H46))),0))) -> 0 | M46: =MAX(0,IF(OR(COUNTRY_INFO!Q46="Unknown",COUNTRY_INFO!Q46="Surveillance",COUNTRY_INFO!Q46="Not required",COUNTRY_INFO!Q46=0),0,IF($E46<>0,IF($D46=0,COUNTRY_INFO!Q46*MIN($E46,$L46),COUNTRY_INFO!Q46*MIN($E46,$L46)-($F46*COUNTRY_INFO!$Q46/(COUNTRY_INFO!$F46+COUNTRY_INFO!$G46)+IF($G46=" ",0,COUNTRY_INFO!$Q46/(COUNTRY_INFO!$F46+COUNTRY_INFO!$G46)*$G46*$H46))),0))) -> 0 | N46: 4028 | O46: 64869 | Q46: 64869 | R46: 0 | T46: 0 | U46: 0 | W46: 0
A47: =IF(AND(INTRO!$E$37="Non-endemic",INTRO!$E$41="Non-endemic")," ",IF(COUNTRY_INFO!A47=0," ",COUNTRY_INFO!A47)) -> Gabon | B47: =IF(AND(INTRO!$E$37="Non-endemic",INTRO!$E$41="Non-endemic")," ",IF(COUNTRY_INFO!B47=0," ",COUNTRY_INFO!B47)) -> Ogooué-Ivindo | C47: =IF(AND(INTRO!$E$37="Non-endemic",INTRO!$E$41="Non-endemic")," ",IF(COUNTRY_INFO!C47=0," ",COUNTRY_INFO!C47)) -> Zadié | D47: =IF(AND(INTRO!$E$37="Non-endemic",INTRO!$E$41="Non-endemic"),0,COUNTRY_INFO!W47) -> 1 | E47: =IF(AND(INTRO!$E$37="Non-endemic",INTRO!$E$41="Non-endemic"),0,COUNTRY_INFO!Y47) -> 2 | F47: =IF($D47=1,IVM!G47,0) -> 880 | G47: 12945 | H47: 2 | J47: =IF(OR(COUNTRY_INFO!O47="Unknown",COUNTRY_INFO!O47="Surveillance",COUNTRY_INFO!O47="Not required",COUNTRY_INFO!O47=0),0,IF(INTRO!$E$39="Non-endemic",IF(AND($E47<>0,$I47=""),IF($F47=0,COUNTRY_INFO!O47*$E47,COUNTRY_INFO!O47*($E47-$D47)),IF(AND($E47<>0,$I47<>0),IF($F47=0,COUNTRY_INFO!O47*$I47,COUNTRY_INFO!O47*($I47-$D47)),0)),IF($I47="",COUNTRY_INFO!O47*$E47,COUNTRY_INFO!O47*$I47))) -> 3324 | K47: =MAX(0,IF(OR(COUNTRY_INFO!P47="Unknown",COUNTRY_INFO!P47="Surveillance",COUNTRY_INFO!P47="Not required",COUNTRY_INFO!P47=0),0,IF($E47<>0,IF($D47=0,COUNTRY_INFO!P47*$E47,COUNTRY_INFO!P47*$E47-($F47*COUNTRY_INFO!$P47/(COUNTRY_INFO!$F47+COUNTRY_INFO!$G47)+IF($G47=" ",0,COUNTRY_INFO!$P47/(COUNTRY_INFO!$F47+COUNTRY_INFO!$G47)*$G47*$H47))),0))) -> 236.2155515 | M47: =MAX(0,IF(OR(COUNTRY_INFO!Q47="Unknown",COUNTRY_INFO!Q47="Surveillance",COUNTRY_INFO!Q47="Not required",COUNTRY_INFO!Q47=0),0,IF($E47<>0,IF($D47=0,COUNTRY_INFO!Q47*MIN($E47,$L47),COUNTRY_INFO!Q47*MIN($E47,$L47)-($F47*COUNTRY_INFO!$Q47/(COUNTRY_INFO!$F47+COUNTRY_INFO!$G47)+IF($G47=" ",0,COUNTRY_INFO!$Q47/(COUNTRY_INFO!$F47+COUNTRY_INFO!$G47)*$G47*$H47))),0))) -> 251.237613 | N47: 3811 | O47: 26770 | Q47: 26770 | R47: 236 | T47: 236 | U47: 0 | W47: 0
A48: =IF(AND(INTRO!$E$37="Non-endemic",INTRO!$E$41="Non-endemic")," ",IF(COUNTRY_INFO!A48=0," ",COUNTRY_INFO!A48)) -> Gabon | B48: =IF(AND(INTRO!$E$37="Non-endemic",INTRO!$E$41="Non-endemic")," ",IF(COUNTRY_INFO!B48=0," ",COUNTRY_INFO!B48)) -> Ogooué-Ivindo | C48: =IF(AND(INTRO!$E$37="Non-endemic",INTRO!$E$41="Non-endemic")," ",IF(COUNTRY_INFO!C48=0," ",COUNTRY_INFO!C48)) -> Mvoung | D48: =IF(AND(INTRO!$E$37="Non-endemic",INTRO!$E$41="Non-endemic"),0,COUNTRY_INFO!W48) -> 1 | E48: =IF(AND(INTRO!$E$37="Non-endemic",INTRO!$E$41="Non-endemic"),0,COUNTRY_INFO!Y48) -> 2 | F48: =IF($D48=1,IVM!G48,0) -> 277 | G48: 4066 | H48: 2 | J48: =IF(OR(COUNTRY_INFO!O48="Unknown",COUNTRY_INFO!O48="Surveillance",COUNTRY_INFO!O48="Not required",COUNTRY_INFO!O48=0),0,IF(INTRO!$E$39="Non-endemic",IF(AND($E48<>0,$I48=""),IF($F48=0,COUNTRY_INFO!O48*$E48,COUNTRY_INFO!O48*($E48-$D48)),IF(AND($E48<>0,$I48<>0),IF($F48=0,COUNTRY_INFO!O48*$I48,COUNTRY_INFO!O48*($I48-$D48)),0)),IF($I48="",COUNTRY_INFO!O48*$E48,COUNTRY_INFO!O48*$I48))) -> 1044 | K48: =MAX(0,IF(OR(COUNTRY_INFO!P48="Unknown",COUNTRY_INFO!P48="Surveillance",COUNTRY_INFO!P48="Not required",COUNTRY_INFO!P48=0),0,IF($E48<>0,IF($D48=0,COUNTRY_INFO!P48*$E48,COUNTRY_INFO!P48*$E48-($F48*COUNTRY_INFO!$P48/(COUNTRY_INFO!$F48+COUNTRY_INFO!$G48)+IF($G48=" ",0,COUNTRY_INFO!$P48/(COUNTRY_INFO!$F48+COUNTRY_INFO!$G48)*$G48*$H48))),0))) -> 74.36840893 | M48: =MAX(0,IF(OR(COUNTRY_INFO!Q48="Unknown",COUNTRY_INFO!Q48="Surveillance",COUNTRY_INFO!Q48="Not required",COUNTRY_INFO!Q48=0),0,IF($E48<>0,IF($D48=0,COUNTRY_INFO!Q48*MIN($E48,$L48),COUNTRY_INFO!Q48*MIN($E48,$L48)-($F48*COUNTRY_INFO!$Q48/(COUNTRY_INFO!$F48+COUNTRY_INFO!$G48)+IF($G48=" ",0,COUNTRY_INFO!$Q48/(COUNTRY_INFO!$F48+COUNTRY_INFO!$G48)*$G48*$H48))),0))) -> 79.08818789 | N48: 1197 | O48: 8409 | Q48: 8409 | R48: 74 | T48: 74 | U48: 0 | W48: 0
A49: =IF(AND(INTRO!$E$37="Non-endemic",INTRO!$E$41="Non-endemic")," ",IF(COUNTRY_INFO!A49=0," ",COUNTRY_INFO!A49)) -> Gabon | B49: =IF(AND(INTRO!$E$37="Non-endemic",INTRO!$E$41="Non-endemic")," ",IF(COUNTRY_INFO!B49=0," ",COUNTRY_INFO!B49)) -> Ogooué-Lolo | C49: =IF(AND(INTRO!$E$37="Non-endemic",INTRO!$E$41="Non-endemic")," ",IF(COUNTRY_INFO!C49=0," ",COUNTRY_INFO!C49)) -> Offoué-Onoye | D49: =IF(AND(INTRO!$E$37="Non-endemic",INTRO!$E$41="Non-endemic"),0,COUNTRY_INFO!W49) -> 1 | E49: =IF(AND(INTRO!$E$37="Non-endemic",INTRO!$E$41="Non-endemic"),0,COUNTRY_INFO!Y49) -> 2 | F49: =IF($D49=1,IVM!G49,0) -> 227 | G49: 2855 | H49: 2 | J49: =IF(OR(COUNTRY_INFO!O49="Unknown",COUNTRY_INFO!O49="Surveillance",COUNTRY_INFO!O49="Not required",COUNTRY_INFO!O49=0),0,IF(INTRO!$E$39="Non-endemic",IF(AND($E49<>0,$I49=""),IF($F49=0,COUNTRY_INFO!O49*$E49,COUNTRY_INFO!O49*($E49-$D49)),IF(AND($E49<>0,$I49<>0),IF($F49=0,COUNTRY_INFO!O49*$I49,COUNTRY_INFO!O49*($I49-$D49)),0)),IF($I49="",COUNTRY_INFO!O49*$E49,COUNTRY_INFO!O49*$I49))) -> 742 | K49: =MAX(0,IF(OR(COUNTRY_INFO!P49="Unknown",COUNTRY_INFO!P49="Surveillance",COUNTRY_INFO!P49="Not required",COUNTRY_INFO!P49=0),0,IF($E49<>0,IF($D49=0,COUNTRY_INFO!P49*$E49,COUNTRY_INFO!P49*$E49-($F49*COUNTRY_INFO!$P49/(COUNTRY_INFO!$F49+COUNTRY_INFO!$G49)+IF($G49=" ",0,COUNTRY_INFO!$P49/(COUNTRY_INFO!$F49+COUNTRY_INFO!$G49)*$G49*$H49))),0))) -> 60.91142116 | M49: =MAX(0,IF(OR(COUNTRY_INFO!Q49="Unknown",COUNTRY_INFO!Q49="Surveillance",COUNTRY_INFO!Q49="Not required",COUNTRY_INFO!Q49=0),0,IF($E49<>0,IF($D49=0,COUNTRY_INFO!Q49*MIN($E49,$L49),COUNTRY_INFO!Q49*MIN($E49,$L49)-($F49*COUNTRY_INFO!$Q49/(COUNTRY_INFO!$F49+COUNTRY_INFO!$G49)+IF($G49=" ",0,COUNTRY_INFO!$Q49/(COUNTRY_INFO!$F49+COUNTRY_INFO!$G49)*$G49*$H49))),0))) -> 64.81505516 | N49: 868 | O49: 5937 | Q49: 5937 | R49: 61 | T49: 61 | U49: 0 | W49: 0
A50: =IF(AND(INTRO!$E$37="Non-endemic",INTRO!$E$41="Non-endemic")," ",IF(COUNTRY_INFO!A50=0," ",COUNTRY_INFO!A50)) -> Gabon | B50: =IF(AND(INTRO!$E$37="Non-endemic",INTRO!$E$41="Non-endemic")," ",IF(COUNTRY_INFO!B50=0," ",COUNTRY_INFO!B50)) -> Ogooué-Lolo | C50: =IF(AND(INTRO!$E$37="Non-endemic",INTRO!$E$41="Non-endemic")," ",IF(COUNTRY_INFO!C50=0," ",COUNTRY_INFO!C50)) -> Lolo-Bouenguidi | D50: =IF(AND(INTRO!$E$37="Non-endemic",INTRO!$E$41="Non-endemic"),0,COUNTRY_INFO!W50) -> 1 | E50: =IF(AND(INTRO!$E$37="Non-endemic",INTRO!$E$41="Non-endemic"),0,COUNTRY_INFO!Y50) -> 1 | F50: =IF($D50=1,IVM!G50,0) -> 2375 | G50: 29838 | H50: 2 | J50: =IF(OR(COUNTRY_INFO!O50="Unknown",COUNTRY_INFO!O50="Surveillance",COUNTRY_INFO!O50="Not required",COUNTRY_INFO!O50=0),0,IF(INTRO!$E$39="Non-endemic",IF(AND($E50<>0,$I50=""),IF($F50=0,COUNTRY_INFO!O50*$E50,COUNTRY_INFO!O50*($E50-$D50)),IF(AND($E50<>0,$I50<>0),IF($F50=0,COUNTRY_INFO!O50*$I50,COUNTRY_INFO!O50*($I50-$D50)),0)),IF($I50="",COUNTRY_INFO!O50*$E50,COUNTRY_INFO!O50*$I50))) -> 3873 | K50: =MAX(0,IF(OR(COUNTRY_INFO!P50="Unknown",COUNTRY_INFO!P50="Surveillance",COUNTRY_INFO!P50="Not required",COUNTRY_INFO!P50=0),0,IF($E50<>0,IF($D50=0,COUNTRY_INFO!P50*$E50,COUNTRY_INFO!P50*$E50-($F50*COUNTRY_INFO!$P50/(COUNTRY_INFO!$F50+COUNTRY_INFO!$G50)+IF($G50=" ",0,COUNTRY_INFO!$P50/(COUNTRY_INFO!$F50+COUNTRY_INFO!$G50)*$G50*$H50))),0))) -> 0 | M50: =MAX(0,IF(OR(COUNTRY_INFO!Q50="Unknown",COUNTRY_INFO!Q50="Surveillance",COUNTRY_INFO!Q50="Not required",COUNTRY_INFO!Q50=0),0,IF($E50<>0,IF($D50=0,COUNTRY_INFO!Q50*MIN($E50,$L50),COUNTRY_INFO!Q50*MIN($E50,$L50)-($F50*COUNTRY_INFO!$Q50/(COUNTRY_INFO!$F50+COUNTRY_INFO!$G50)+IF($G50=" ",0,COUNTRY_INFO!$Q50/(COUNTRY_INFO!$F50+COUNTRY_INFO!$G50)*$G50*$H50))),0))) -> 0 | N50: 3873 | O50: 62051 | Q50: 62051 | R50: 0 | T50: 0 | U50: 0 | W50: 0
A51: =IF(AND(INTRO!$E$37="Non-endemic",INTRO!$E$41="Non-endemic")," ",IF(COUNTRY_INFO!A51=0," ",COUNTRY_INFO!A51)) -> Gabon | B51: =IF(AND(INTRO!$E$37="Non-endemic",INTRO!$E$41="Non-endemic")," ",IF(COUNTRY_INFO!B51=0," ",COUNTRY_INFO!B51)) -> Ogooué-Lolo | C51: =IF(AND(INTRO!$E$37="Non-endemic",INTRO!$E$41="Non-endemic")," ",IF(COUNTRY_INFO!C51=0," ",COUNTRY_INFO!C51)) -> Mulundu | D51: =IF(AND(INTRO!$E$37="Non-endemic",INTRO!$E$41="Non-endemic"),0,COUNTRY_INFO!W51) -> 1 | E51: =IF(AND(INTRO!$E$37="Non-endemic",INTRO!$E$41="Non-endemic"),0,COUNTRY_INFO!Y51) -> 1 | F51: =IF($D51=1,IVM!G51,0) -> 2398 | G51: 30120 | H51: 2 | J51: =IF(OR(COUNTRY_INFO!O51="Unknown",COUNTRY_INFO!O51="Surveillance",COUNTRY_INFO!O51="Not required",COUNTRY_INFO!O51=0),0,IF(INTRO!$E$39="Non-endemic",IF(AND($E51<>0,$I51=""),IF($F51=0,COUNTRY_INFO!O51*$E51,COUNTRY_INFO!O51*($E51-$D51)),IF(AND($E51<>0,$I51<>0),IF($F51=0,COUNTRY_INFO!O51*$I51,COUNTRY_INFO!O51*($I51-$D51)),0)),IF($I51="",COUNTRY_INFO!O51*$E51,COUNTRY_INFO!O51*$I51))) -> 3910 | K51: =MAX(0,IF(OR(COUNTRY_INFO!P51="Unknown",COUNTRY_INFO!P51="Surveillance",COUNTRY_INFO!P51="Not required",COUNTRY_INFO!P51=0),0,IF($E51<>0,IF($D51=0,COUNTRY_INFO!P51*$E51,COUNTRY_INFO!P51*$E51-($F51*COUNTRY_INFO!$P51/(COUNTRY_INFO!$F51+COUNTRY_INFO!$G51)+IF($G51=" ",0,COUNTRY_INFO!$P51/(COUNTRY_INFO!$F51+COUNTRY_INFO!$G51)*$G51*$H51))),0))) -> 0 | M51: =MAX(0,IF(OR(COUNTRY_INFO!Q51="Unknown",COUNTRY_INFO!Q51="Surveillance",COUNTRY_INFO!Q51="Not required",COUNTRY_INFO!Q51=0),0,IF($E51<>0,IF($D51=0,COUNTRY_INFO!Q51*MIN($E51,$L51),COUNTRY_INFO!Q51*MIN($E51,$L51)-($F51*COUNTRY_INFO!$Q51/(COUNTRY_INFO!$F51+COUNTRY_INFO!$G51)+IF($G51=" ",0,COUNTRY_INFO!$Q51/(COUNTRY_INFO!$F51+COUNTRY_INFO!$G51)*$G51*$H51))),0))) -> 0 | N51: 3910 | O51: 62638 | Q51: 62638 | R51: 0 | T51: 0 | U51: 0 | W51: 0
A52: =IF(AND(INTRO!$E$37="Non-endemic",INTRO!$E$41="Non-endemic")," ",IF(COUNTRY_INFO!A52=0," ",COUNTRY_INFO!A52)) -> Gabon | B52: =IF(AND(INTRO!$E$37="Non-endemic",INTRO!$E$41="Non-endemic")," ",IF(COUNTRY_INFO!B52=0," ",COUNTRY_INFO!B52)) -> Ogooué-Lolo | C52: =IF(AND(INTRO!$E$37="Non-endemic",INTRO!$E$41="Non-endemic")," ",IF(COUNTRY_INFO!C52=0," ",COUNTRY_INFO!C52)) -> Lombo-Bouenguidi | D52: =IF(AND(INTRO!$E$37="Non-endemic",INTRO!$E$41="Non-endemic"),0,COUNTRY_INFO!W52) -> 0 | E52: =IF(AND(INTRO!$E$37="Non-endemic",INTRO!$E$41="Non-endemic"),0,COUNTRY_INFO!Y52) -> 2 | F52: =IF($D52=1,IVM!G52,0) -> 0 | G52: =IF($D52=0, " ", IF(COUNTRY_INFO!$H52=1, IF(COUNTRY_INFO!$L52=1, 0," ")," ")) ->  | J52: =IF(OR(COUNTRY_INFO!O52="Unknown",COUNTRY_INFO!O52="Surveillance",COUNTRY_INFO!O52="Not required",COUNTRY_INFO!O52=0),0,IF(INTRO!$E$39="Non-endemic",IF(AND($E52<>0,$I52=""),IF($F52=0,COUNTRY_INFO!O52*$E52,COUNTRY_INFO!O52*($E52-$D52)),IF(AND($E52<>0,$I52<>0),IF($F52=0,COUNTRY_INFO!O52*$I52,COUNTRY_INFO!O52*($I52-$D52)),0)),IF($I52="",COUNTRY_INFO!O52*$E52,COUNTRY_INFO!O52*$I52))) -> 1022 | K52: =MAX(0,IF(OR(COUNTRY_INFO!P52="Unknown",COUNTRY_INFO!P52="Surveillance",COUNTRY_INFO!P52="Not required",COUNTRY_INFO!P52=0),0,IF($E52<>0,IF($D52=0,COUNTRY_INFO!P52*$E52,COUNTRY_INFO!P52*$E52-($F52*COUNTRY_INFO!$P52/(COUNTRY_INFO!$F52+COUNTRY_INFO!$G52)+IF($G52=" ",0,COUNTRY_INFO!$P52/(COUNTRY_INFO!$F52+COUNTRY_INFO!$G52)*$G52*$H52))),0))) -> 2284 | M52: =MAX(0,IF(OR(COUNTRY_INFO!Q52="Unknown",COUNTRY_INFO!Q52="Surveillance",COUNTRY_INFO!Q52="Not required",COUNTRY_INFO!Q52=0),0,IF($E52<>0,IF($D52=0,COUNTRY_INFO!Q52*MIN($E52,$L52),COUNTRY_INFO!Q52*MIN($E52,$L52)-($F52*COUNTRY_INFO!$Q52/(COUNTRY_INFO!$F52+COUNTRY_INFO!$G52)+IF($G52=" ",0,COUNTRY_INFO!$Q52/(COUNTRY_INFO!$F52+COUNTRY_INFO!$G52)*$G52*$H52))),0))) -> 2428 | N52: 5734 | O52: 0 | Q52: 0 | R52: 2284 | T52: 2284 | U52: 0 | W52: 0
A53: =IF(AND(INTRO!$E$37="Non-endemic",INTRO!$E$41="Non-endemic")," ",IF(COUNTRY_INFO!A53=0," ",COUNTRY_INFO!A53)) -> Gabon | B53: =IF(AND(INTRO!$E$37="Non-endemic",INTRO!$E$41="Non-endemic")," ",IF(COUNTRY_INFO!B53=0," ",COUNTRY_INFO!B53)) -> Ogooué-maritime | C53: =IF(AND(INTRO!$E$37="Non-endemic",INTRO!$E$41="Non-endemic")," ",IF(COUNTRY_INFO!C53=0," ",COUNTRY_INFO!C53)) -> Ndougou | D53: =IF(AND(INTRO!$E$37="Non-endemic",INTRO!$E$41="Non-endemic"),0,COUNTRY_INFO!W53) -> 0 | E53: =IF(AND(INTRO!$E$37="Non-endemic",INTRO!$E$41="Non-endemic"),0,COUNTRY_INFO!Y53) -> 1 | F53: =IF($D53=1,IVM!G53,0) -> 0 | G53: =IF($D53=0, " ", IF(COUNTRY_INFO!$H53=1, IF(COUNTRY_INFO!$L53=1, 0," ")," ")) ->  | J53: =IF(OR(COUNTRY_INFO!O53="Unknown",COUNTRY_INFO!O53="Surveillance",COUNTRY_INFO!O53="Not required",COUNTRY_INFO!O53=0),0,IF(INTRO!$E$39="Non-endemic",IF(AND($E53<>0,$I53=""),IF($F53=0,COUNTRY_INFO!O53*$E53,COUNTRY_INFO!O53*($E53-$D53)),IF(AND($E53<>0,$I53<>0),IF($F53=0,COUNTRY_INFO!O53*$I53,COUNTRY_INFO!O53*($I53-$D53)),0)),IF($I53="",COUNTRY_INFO!O53*$E53,COUNTRY_INFO!O53*$I53))) -> 1379 | K53: =MAX(0,IF(OR(COUNTRY_INFO!P53="Unknown",COUNTRY_INFO!P53="Surveillance",COUNTRY_INFO!P53="Not required",COUNTRY_INFO!P53=0),0,IF($E53<>0,IF($D53=0,COUNTRY_INFO!P53*$E53,COUNTRY_INFO!P53*$E53-($F53*COUNTRY_INFO!$P53/(COUNTRY_INFO!$F53+COUNTRY_INFO!$G53)+IF($G53=" ",0,COUNTRY_INFO!$P53/(COUNTRY_INFO!$F53+COUNTRY_INFO!$G53)*$G53*$H53))),0))) -> 3078 | M53: =MAX(0,IF(OR(COUNTRY_INFO!Q53="Unknown",COUNTRY_INFO!Q53="Surveillance",COUNTRY_INFO!Q53="Not required",COUNTRY_INFO!Q53=0),0,IF($E53<>0,IF($D53=0,COUNTRY_INFO!Q53*MIN($E53,$L53),COUNTRY_INFO!Q53*MIN($E53,$L53)-($F53*COUNTRY_INFO!$Q53/(COUNTRY_INFO!$F53+COUNTRY_INFO!$G53)+IF($G53=" ",0,COUNTRY_INFO!$Q53/(COUNTRY_INFO!$F53+COUNTRY_INFO!$G53)*$G53*$H53))),0))) -> 3273 | N53: 7730 | O53: 0 | Q53: 0 | R53: 3078 | T53: 3078 | U53: 0 | W53: 0
A54: =IF(AND(INTRO!$E$37="Non-endemic",INTRO!$E$41="Non-endemic")," ",IF(COUNTRY_INFO!A54=0," ",COUNTRY_INFO!A54)) -> Gabon | B54: =IF(AND(INTRO!$E$37="Non-endemic",INTRO!$E$41="Non-endemic")," ",IF(COUNTRY_INFO!B54=0," ",COUNTRY_INFO!B54)) -> Ogooué-maritime | C54: =IF(AND(INTRO!$E$37="Non-endemic",INTRO!$E$41="Non-endemic")," ",IF(COUNTRY_INFO!C54=0," ",COUNTRY_INFO!C54)) -> Etimboué | D54: =IF(AND(INTRO!$E$37="Non-endemic",INTRO!$E$41="Non-endemic"),0,COUNTRY_INFO!W54) -> 0 | E54: =IF(AND(INTRO!$E$37="Non-endemic",INTRO!$E$41="Non-endemic"),0,COUNTRY_INFO!Y54) -> 1 | F54: =IF($D54=1,IVM!G54,0) -> 0 | G54: =IF($D54=0, " ", IF(COUNTRY_INFO!$H54=1, IF(COUNTRY_INFO!$L54=1, 0," ")," ")) ->  | J54: =IF(OR(COUNTRY_INFO!O54="Unknown",COUNTRY_INFO!O54="Surveillance",COUNTRY_INFO!O54="Not required",COUNTRY_INFO!O54=0),0,IF(INTRO!$E$39="Non-endemic",IF(AND($E54<>0,$I54=""),IF($F54=0,COUNTRY_INFO!O54*$E54,COUNTRY_INFO!O54*($E54-$D54)),IF(AND($E54<>0,$I54<>0),IF($F54=0,COUNTRY_INFO!O54*$I54,COUNTRY_INFO!O54*($I54-$D54)),0)),IF($I54="",COUNTRY_INFO!O54*$E54,COUNTRY_INFO!O54*$I54))) -> 616 | K54: =MAX(0,IF(OR(COUNTRY_INFO!P54="Unknown",COUNTRY_INFO!P54="Surveillance",COUNTRY_INFO!P54="Not required",COUNTRY_INFO!P54=0),0,IF($E54<>0,IF($D54=0,COUNTRY_INFO!P54*$E54,COUNTRY_INFO!P54*$E54-($F54*COUNTRY_INFO!$P54/(COUNTRY_INFO!$F54+COUNTRY_INFO!$G54)+IF($G54=" ",0,COUNTRY_INFO!$P54/(COUNTRY_INFO!$F54+COUNTRY_INFO!$G54)*$G54*$H54))),0))) -> 1374 | M54: =MAX(0,IF(OR(COUNTRY_INFO!Q54="Unknown",COUNTRY_INFO!Q54="Surveillance",COUNTRY_INFO!Q54="Not required",COUNTRY_INFO!Q54=0),0,IF($E54<>0,IF($D54=0,COUNTRY_INFO!Q54*MIN($E54,$L54),COUNTRY_INFO!Q54*MIN($E54,$L54)-($F54*COUNTRY_INFO!$Q54/(COUNTRY_INFO!$F54+COUNTRY_INFO!$G54)+IF($G54=" ",0,COUNTRY_INFO!$Q54/(COUNTRY_INFO!$F54+COUNTRY_INFO!$G54)*$G54*$H54))),0))) -> 1461 | N54: 3451 | O54: 0 | Q54: 0 | R54: 1374 | T54: 1374 | U54: 0 | W54: 0
A55: =IF(AND(INTRO!$E$37="Non-endemic",INTRO!$E$41="Non-endemic")," ",IF(COUNTRY_INFO!A55=0," ",COUNTRY_INFO!A55)) -> Gabon | B55: =IF(AND(INTRO!$E$37="Non-endemic",INTRO!$E$41="Non-endemic")," ",IF(COUNTRY_INFO!B55=0," ",COUNTRY_INFO!B55)) -> Ogooué-maritime | C55: =IF(AND(INTRO!$E$37="Non-endemic",INTRO!$E$41="Non-endemic")," ",IF(COUNTRY_INFO!C55=0," ",COUNTRY_INFO!C55)) -> Bendjé | D55: =IF(AND(INTRO!$E$37="Non-endemic",INTRO!$E$41="Non-endemic"),0,COUNTRY_INFO!W55) -> 0 | E55: =IF(AND(INTRO!$E$37="Non-endemic",INTRO!$E$41="Non-endemic"),0,COUNTRY_INFO!Y55) -> 0 | F55: =IF($D55=1,IVM!G55,0) -> 0 | G55: =IF($D55=0, " ", IF(COUNTRY_INFO!$H55=1, IF(COUNTRY_INFO!$L55=1, 0," ")," ")) ->  | J55: =IF(OR(COUNTRY_INFO!O55="Unknown",COUNTRY_INFO!O55="Surveillance",COUNTRY_INFO!O55="Not required",COUNTRY_INFO!O55=0),0,IF(INTRO!$E$39="Non-endemic",IF(AND($E55<>0,$I55=""),IF($F55=0,COUNTRY_INFO!O55*$E55,COUNTRY_INFO!O55*($E55-$D55)),IF(AND($E55<>0,$I55<>0),IF($F55=0,COUNTRY_INFO!O55*$I55,COUNTRY_INFO!O55*($I55-$D55)),0)),IF($I55="",COUNTRY_INFO!O55*$E55,COUNTRY_INFO!O55*$I55))) -> 0 | K55: =MAX(0,IF(OR(COUNTRY_INFO!P55="Unknown",COUNTRY_INFO!P55="Surveillance",COUNTRY_INFO!P55="Not required",COUNTRY_INFO!P55=0),0,IF($E55<>0,IF($D55=0,COUNTRY_INFO!P55*$E55,COUNTRY_INFO!P55*$E55-($F55*COUNTRY_INFO!$P55/(COUNTRY_INFO!$F55+COUNTRY_INFO!$G55)+IF($G55=" ",0,COUNTRY_INFO!$P55/(COUNTRY_INFO!$F55+COUNTRY_INFO!$G55)*$G55*$H55))),0))) -> 0 | M55: =MAX(0,IF(OR(COUNTRY_INFO!Q55="Unknown",COUNTRY_INFO!Q55="Surveillance",COUNTRY_INFO!Q55="Not required",COUNTRY_INFO!Q55=0),0,IF($E55<>0,IF($D55=0,COUNTRY_INFO!Q55*MIN($E55,$L55),COUNTRY_INFO!Q55*MIN($E55,$L55)-($F55*COUNTRY_INFO!$Q55/(COUNTRY_INFO!$F55+COUNTRY_INFO!$G55)+IF($G55=" ",0,COUNTRY_INFO!$Q55/(COUNTRY_INFO!$F55+COUNTRY_INFO!$G55)*$G55*$H55))),0))) -> 0 | N55: 0 | O55: 0 | Q55: 0 | R55: 0 | T55: 0 | U55: 0 | W55: 0
A56: =IF(AND(INTRO!$E$37="Non-endemic",INTRO!$E$41="Non-endemic")," ",IF(COUNTRY_INFO!A56=0," ",COUNTRY_INFO!A56)) -> Gabon | B56: =IF(AND(INTRO!$E$37="Non-endemic",INTRO!$E$41="Non-endemic")," ",IF(COUNTRY_INFO!B56=0," ",COUNTRY_INFO!B56)) -> Woleu-Ntem | C56: =IF(AND(INTRO!$E$37="Non-endemic",INTRO!$E$41="Non-endemic")," ",IF(COUNTRY_INFO!C56=0," ",COUNTRY_INFO!C56)) -> Ntem | D56: =IF(AND(INTRO!$E$37="Non-endemic",INTRO!$E$41="Non-endemic"),0,COUNTRY_INFO!W56) -> 0 | E56: =IF(AND(INTRO!$E$37="Non-endemic",INTRO!$E$41="Non-endemic"),0,COUNTRY_INFO!Y56) -> 2 | F56: =IF($D56=1,IVM!G56,0) -> 0 | G56: =IF($D56=0, " ", IF(COUNTRY_INFO!$H56=1, IF(COUNTRY_INFO!$L56=1, 0," ")," ")) ->  | J56: =IF(OR(COUNTRY_INFO!O56="Unknown",COUNTRY_INFO!O56="Surveillance",COUNTRY_INFO!O56="Not required",COUNTRY_INFO!O56=0),0,IF(INTRO!$E$39="Non-endemic",IF(AND($E56<>0,$I56=""),IF($F56=0,COUNTRY_INFO!O56*$E56,COUNTRY_INFO!O56*($E56-$D56)),IF(AND($E56<>0,$I56<>0),IF($F56=0,COUNTRY_INFO!O56*$I56,COUNTRY_INFO!O56*($I56-$D56)),0)),IF($I56="",COUNTRY_INFO!O56*$E56,COUNTRY_INFO!O56*$I56))) -> 10254 | K56: =MAX(0,IF(OR(COUNTRY_INFO!P56="Unknown",COUNTRY_INFO!P56="Surveillance",COUNTRY_INFO!P56="Not required",COUNTRY_INFO!P56=0),0,IF($E56<>0,IF($D56=0,COUNTRY_INFO!P56*$E56,COUNTRY_INFO!P56*$E56-($F56*COUNTRY_INFO!$P56/(COUNTRY_INFO!$F56+COUNTRY_INFO!$G56)+IF($G56=" ",0,COUNTRY_INFO!$P56/(COUNTRY_INFO!$F56+COUNTRY_INFO!$G56)*$G56*$H56))),0))) -> 22892 | M56: =MAX(0,IF(OR(COUNTRY_INFO!Q56="Unknown",COUNTRY_INFO!Q56="Surveillance",COUNTRY_INFO!Q56="Not required",COUNTRY_INFO!Q56=0),0,IF($E56<>0,IF($D56=0,COUNTRY_INFO!Q56*MIN($E56,$L56),COUNTRY_INFO!Q56*MIN($E56,$L56)-($F56*COUNTRY_INFO!$Q56/(COUNTRY_INFO!$F56+COUNTRY_INFO!$G56)+IF($G56=" ",0,COUNTRY_INFO!$Q56/(COUNTRY_INFO!$F56+COUNTRY_INFO!$G56)*$G56*$H56))),0))) -> 24344 | N56: 57490 | O56: 0 | Q56: 0 | R56: 22892 | T56: 22892 | U56: 0 | W56: 0
A57: =IF(AND(INTRO!$E$37="Non-endemic",INTRO!$E$41="Non-endemic")," ",IF(COUNTRY_INFO!A57=0," ",COUNTRY_INFO!A57)) -> Gabon | B57: =IF(AND(INTRO!$E$37="Non-endemic",INTRO!$E$41="Non-endemic")," ",IF(COUNTRY_INFO!B57=0," ",COUNTRY_INFO!B57)) -> Woleu-Ntem | C57: =IF(AND(INTRO!$E$37="Non-endemic",INTRO!$E$41="Non-endemic")," ",IF(COUNTRY_INFO!C57=0," ",COUNTRY_INFO!C57)) -> Haut-Komo | D57: =IF(AND(INTRO!$E$37="Non-endemic",INTRO!$E$41="Non-endemic"),0,COUNTRY_INFO!W57) -> 0 | E57: =IF(AND(INTRO!$E$37="Non-endemic",INTRO!$E$41="Non-endemic"),0,COUNTRY_INFO!Y57) -> 2 | F57: =IF($D57=1,IVM!G57,0) -> 0 | G57: =IF($D57=0, " ", IF(COUNTRY_INFO!$H57=1, IF(COUNTRY_INFO!$L57=1, 0," ")," ")) ->  | J57: =IF(OR(COUNTRY_INFO!O57="Unknown",COUNTRY_INFO!O57="Surveillance",COUNTRY_INFO!O57="Not required",COUNTRY_INFO!O57=0),0,IF(INTRO!$E$39="Non-endemic",IF(AND($E57<>0,$I57=""),IF($F57=0,COUNTRY_INFO!O57*$E57,COUNTRY_INFO!O57*($E57-$D57)),IF(AND($E57<>0,$I57<>0),IF($F57=0,COUNTRY_INFO!O57*$I57,COUNTRY_INFO!O57*($I57-$D57)),0)),IF($I57="",COUNTRY_INFO!O57*$E57,COUNTRY_INFO!O57*$I57))) -> 980 | K57: =MAX(0,IF(OR(COUNTRY_INFO!P57="Unknown",COUNTRY_INFO!P57="Surveillance",COUNTRY_INFO!P57="Not required",COUNTRY_INFO!P57=0),0,IF($E57<>0,IF($D57=0,COUNTRY_INFO!P57*$E57,COUNTRY_INFO!P57*$E57-($F57*COUNTRY_INFO!$P57/(COUNTRY_INFO!$F57+COUNTRY_INFO!$G57)+IF($G57=" ",0,COUNTRY_INFO!$P57/(COUNTRY_INFO!$F57+COUNTRY_INFO!$G57)*$G57*$H57))),0))) -> 2188 | M57: =MAX(0,IF(OR(COUNTRY_INFO!Q57="Unknown",COUNTRY_INFO!Q57="Surveillance",COUNTRY_INFO!Q57="Not required",COUNTRY_INFO!Q57=0),0,IF($E57<>0,IF($D57=0,COUNTRY_INFO!Q57*MIN($E57,$L57),COUNTRY_INFO!Q57*MIN($E57,$L57)-($F57*COUNTRY_INFO!$Q57/(COUNTRY_INFO!$F57+COUNTRY_INFO!$G57)+IF($G57=" ",0,COUNTRY_INFO!$Q57/(COUNTRY_INFO!$F57+COUNTRY_INFO!$G57)*$G57*$H57))),0))) -> 2328 | N57: 5496 | O57: 0 | Q57: 0 | R57: 2188 | T57: 2188 | U57: 0 | W57: 0
A58: =IF(AND(INTRO!$E$37="Non-endemic",INTRO!$E$41="Non-endemic")," ",IF(COUNTRY_INFO!A58=0," ",COUNTRY_INFO!A58)) -> Gabon | B58: =IF(AND(INTRO!$E$37="Non-endemic",INTRO!$E$41="Non-endemic")," ",IF(COUNTRY_INFO!B58=0," ",COUNTRY_INFO!B58)) -> Woleu-Ntem | C58: =IF(AND(INTRO!$E$37="Non-endemic",INTRO!$E$41="Non-endemic")," ",IF(COUNTRY_INFO!C58=0," ",COUNTRY_INFO!C58)) -> Haut-Ntem | D58: =IF(AND(INTRO!$E$37="Non-endemic",INTRO!$E$41="Non-endemic"),0,COUNTRY_INFO!W58) -> 0 | E58: =IF(AND(INTRO!$E$37="Non-endemic",INTRO!$E$41="Non-endemic"),0,COUNTRY_INFO!Y58) -> 2 | F58: =IF($D58=1,IVM!G58,0) -> 0 | G58: =IF($D58=0, " ", IF(COUNTRY_INFO!$H58=1, IF(COUNTRY_INFO!$L58=1, 0," ")," ")) ->  | J58: =IF(OR(COUNTRY_INFO!O58="Unknown",COUNTRY_INFO!O58="Surveillance",COUNTRY_INFO!O58="Not required",COUNTRY_INFO!O58=0),0,IF(INTRO!$E$39="Non-endemic",IF(AND($E58<>0,$I58=""),IF($F58=0,COUNTRY_INFO!O58*$E58,COUNTRY_INFO!O58*($E58-$D58)),IF(AND($E58<>0,$I58<>0),IF($F58=0,COUNTRY_INFO!O58*$I58,COUNTRY_INFO!O58*($I58-$D58)),0)),IF($I58="",COUNTRY_INFO!O58*$E58,COUNTRY_INFO!O58*$I58))) -> 3224 | K58: =MAX(0,IF(OR(COUNTRY_INFO!P58="Unknown",COUNTRY_INFO!P58="Surveillance",COUNTRY_INFO!P58="Not required",COUNTRY_INFO!P58=0),0,IF($E58<>0,IF($D58=0,COUNTRY_INFO!P58*$E58,COUNTRY_INFO!P58*$E58-($F58*COUNTRY_INFO!$P58/(COUNTRY_INFO!$F58+COUNTRY_INFO!$G58)+IF($G58=" ",0,COUNTRY_INFO!$P58/(COUNTRY_INFO!$F58+COUNTRY_INFO!$G58)*$G58*$H58))),0))) -> 7196 | M58: =MAX(0,IF(OR(COUNTRY_INFO!Q58="Unknown",COUNTRY_INFO!Q58="Surveillance",COUNTRY_INFO!Q58="Not required",COUNTRY_INFO!Q58=0),0,IF($E58<>0,IF($D58=0,COUNTRY_INFO!Q58*MIN($E58,$L58),COUNTRY_INFO!Q58*MIN($E58,$L58)-($F58*COUNTRY_INFO!$Q58/(COUNTRY_INFO!$F58+COUNTRY_INFO!$G58)+IF($G58=" ",0,COUNTRY_INFO!$Q58/(COUNTRY_INFO!$F58+COUNTRY_INFO!$G58)*$G58*$H58))),0))) -> 7652 | N58: 18072 | O58: 0 | Q58: 0 | R58: 7196 | T58: 7196 | U58: 0 | W58: 0
A59: =IF(AND(INTRO!$E$37="Non-endemic",INTRO!$E$41="Non-endemic")," ",IF(COUNTRY_INFO!A59=0," ",COUNTRY_INFO!A59)) -> Gabon | B59: =IF(AND(INTRO!$E$37="Non-endemic",INTRO!$E$41="Non-endemic")," ",IF(COUNTRY_INFO!B59=0," ",COUNTRY_INFO!B59)) -> Woleu-Ntem | C59: =IF(AND(INTRO!$E$37="Non-endemic",INTRO!$E$41="Non-endemic")," ",IF(COUNTRY_INFO!C59=0," ",COUNTRY_INFO!C59)) -> Okano | D59: =IF(AND(INTRO!$E$37="Non-endemic",INTRO!$E$41="Non-endemic"),0,COUNTRY_INFO!W59) -> 0 | E59: =IF(AND(INTRO!$E$37="Non-endemic",INTRO!$E$41="Non-endemic"),0,COUNTRY_INFO!Y59) -> 2 | F59: =IF($D59=1,IVM!G59,0) -> 0 | G59: =IF($D59=0, " ", IF(COUNTRY_INFO!$H59=1, IF(COUNTRY_INFO!$L59=1, 0," ")," ")) ->  | J59: =IF(OR(COUNTRY_INFO!O59="Unknown",COUNTRY_INFO!O59="Surveillance",COUNTRY_INFO!O59="Not required",COUNTRY_INFO!O59=0),0,IF(INTRO!$E$39="Non-endemic",IF(AND($E59<>0,$I59=""),IF($F59=0,COUNTRY_INFO!O59*$E59,COUNTRY_INFO!O59*($E59-$D59)),IF(AND($E59<>0,$I59<>0),IF($F59=0,COUNTRY_INFO!O59*$I59,COUNTRY_INFO!O59*($I59-$D59)),0)),IF($I59="",COUNTRY_INFO!O59*$E59,COUNTRY_INFO!O59*$I59))) -> 4004 | K59: =MAX(0,IF(OR(COUNTRY_INFO!P59="Unknown",COUNTRY_INFO!P59="Surveillance",COUNTRY_INFO!P59="Not required",COUNTRY_INFO!P59=0),0,IF($E59<>0,IF($D59=0,COUNTRY_INFO!P59*$E59,COUNTRY_INFO!P59*$E59-($F59*COUNTRY_INFO!$P59/(COUNTRY_INFO!$F59+COUNTRY_INFO!$G59)+IF($G59=" ",0,COUNTRY_INFO!$P59/(COUNTRY_INFO!$F59+COUNTRY_INFO!$G59)*$G59*$H59))),0))) -> 8938 | M59: =MAX(0,IF(OR(COUNTRY_INFO!Q59="Unknown",COUNTRY_INFO!Q59="Surveillance",COUNTRY_INFO!Q59="Not required",COUNTRY_INFO!Q59=0),0,IF($E59<>0,IF($D59=0,COUNTRY_INFO!Q59*MIN($E59,$L59),COUNTRY_INFO!Q59*MIN($E59,$L59)-($F59*COUNTRY_INFO!$Q59/(COUNTRY_INFO!$F59+COUNTRY_INFO!$G59)+IF($G59=" ",0,COUNTRY_INFO!$Q59/(COUNTRY_INFO!$F59+COUNTRY_INFO!$G59)*$G59*$H59))),0))) -> 9504 | N59: 22446 | O59: 0 | Q59: 0 | R59: 8938 | T59: 8938 | U59: 0 | W59: 0
A60: =IF(AND(INTRO!$E$37="Non-endemic",INTRO!$E$41="Non-endemic")," ",IF(COUNTRY_INFO!A60=0," ",COUNTRY_INFO!A60)) -> Gabon | B60: =IF(AND(INTRO!$E$37="Non-endemic",INTRO!$E$41="Non-endemic")," ",IF(COUNTRY_INFO!B60=0," ",COUNTRY_INFO!B60)) -> Woleu-Ntem | C60: =IF(AND(INTRO!$E$37="Non-endemic",INTRO!$E$41="Non-endemic")," ",IF(COUNTRY_INFO!C60=0," ",COUNTRY_INFO!C60)) -> Woleu | D60: =IF(AND(INTRO!$E$37="Non-endemic",INTRO!$E$41="Non-endemic"),0,COUNTRY_INFO!W60) -> 0 | E60: =IF(AND(INTRO!$E$37="Non-endemic",INTRO!$E$41="Non-endemic"),0,COUNTRY_INFO!Y60) -> 1 | F60: =IF($D60=1,IVM!G60,0) -> 0 | G60: =IF($D60=0, " ", IF(COUNTRY_INFO!$H60=1, IF(COUNTRY_INFO!$L60=1, 0," ")," ")) ->  | J60: =IF(OR(COUNTRY_INFO!O60="Unknown",COUNTRY_INFO!O60="Surveillance",COUNTRY_INFO!O60="Not required",COUNTRY_INFO!O60=0),0,IF(INTRO!$E$39="Non-endemic",IF(AND($E60<>0,$I60=""),IF($F60=0,COUNTRY_INFO!O60*$E60,COUNTRY_INFO!O60*($E60-$D60)),IF(AND($E60<>0,$I60<>0),IF($F60=0,COUNTRY_INFO!O60*$I60,COUNTRY_INFO!O60*($I60-$D60)),0)),IF($I60="",COUNTRY_INFO!O60*$E60,COUNTRY_INFO!O60*$I60))) -> 10238 | K60: =MAX(0,IF(OR(COUNTRY_INFO!P60="Unknown",COUNTRY_INFO!P60="Surveillance",COUNTRY_INFO!P60="Not required",COUNTRY_INFO!P60=0),0,IF($E60<>0,IF($D60=0,COUNTRY_INFO!P60*$E60,COUNTRY_INFO!P60*$E60-($F60*COUNTRY_INFO!$P60/(COUNTRY_INFO!$F60+COUNTRY_INFO!$G60)+IF($G60=" ",0,COUNTRY_INFO!$P60/(COUNTRY_INFO!$F60+COUNTRY_INFO!$G60)*$G60*$H60))),0))) -> 22856 | M60: =MAX(0,IF(OR(COUNTRY_INFO!Q60="Unknown",COUNTRY_INFO!Q60="Surveillance",COUNTRY_INFO!Q60="Not required",COUNTRY_INFO!Q60=0),0,IF($E60<>0,IF($D60=0,COUNTRY_INFO!Q60*MIN($E60,$L60),COUNTRY_INFO!Q60*MIN($E60,$L60)-($F60*COUNTRY_INFO!$Q60/(COUNTRY_INFO!$F60+COUNTRY_INFO!$G60)+IF($G60=" ",0,COUNTRY_INFO!$Q60/(COUNTRY_INFO!$F60+COUNTRY_INFO!$G60)*$G60*$H60))),0))) -> 24306 | N60: 57400 | O60: 0 | Q60: 0 | R60: 22856 | T60: 22856 | U60: 0 | W60: 0

Sheet PZQ
A1: Praziquantel (PZQ)
A2: Administrative structure, eligible population by age group, treatment plan and information about tablets
A4: TOTAL | E4: =SUBTOTAL(9,E$10:E$1010) -> 26706 | F4: 26704 | G4: 63882 | H4: 117292 | J4: 0 | M4: =SUBTOTAL(9,M$10:M$1010) -> 0 | N4: 53408 | O4: 191646 | P4: 245054 | Q4: 0 | R4: 245054
A6: Country administrative structure | D6: Treatment plan SCH | E6: Target population for SCH | I6: Hot spots | K6: Previous year MDA | M6: Praziquantel (PZQ)
A7: Country | B7: Province/State | C7: District | E7: PreSAC | F7: SAC | G7: Adults | H7: Total | I7: Planned | J7: Population | K7: Rounds | L7: Age groups | M7: PreSAC | N7: SAC | O7: Adults | P7: Total required | Q7: Remaining in stock | R7: Tablets to be procured
A10: =IF(INTRO!$E$43="Non-endemic"," ", IF(COUNTRY_INFO!A10=0," ",COUNTRY_INFO!A10)) -> Gabon | B10: =IF(INTRO!$E$43="Non-endemic"," ", IF(COUNTRY_INFO!B10=0," ",COUNTRY_INFO!B10)) -> Libreville -Owendo | C10: =IF(INTRO!$E$43="Non-endemic"," ", IF(COUNTRY_INFO!C10=0," ",COUNTRY_INFO!C10)) -> Libreville 1 | D10: =IF(INTRO!$E$43="Non-endemic", "Not required", COUNTRY_INFO!Z10) -> 0 | E10: =IF(OR(COUNTRY_INFO!S10="Unknown",COUNTRY_INFO!S10="Surveillance",COUNTRY_INFO!S10="Not required",COUNTRY_INFO!S10=0),0,IF($D10<>0, COUNTRY_INFO!S10,0)) -> 0 | F10: =IF(OR(COUNTRY_INFO!T10="Unknown",COUNTRY_INFO!T10="Surveillance",COUNTRY_INFO!T10="Not required",COUNTRY_INFO!T10=0),0,IF($D10<>0, COUNTRY_INFO!T10,0)) -> 0 | G10: =IF(OR(COUNTRY_INFO!U10="Unknown",COUNTRY_INFO!U10="Surveillance",COUNTRY_INFO!U10="Not required",COUNTRY_INFO!U10=0),0,IF($D10<>0, COUNTRY_INFO!U10,0)) -> 0 | H10: =SUM(E10:G10) -> 0 | N10: =IF($I10<>"Yes",$F10*2,($F10+ROUND(J10*$F10/SUM(COUNTRY_INFO!$E10:$G10),0))*2) -> 0 | O10: =IF($I10<>"Yes",$G10*3,($G10+ROUND(J10*$G10/SUM(COUNTRY_INFO!$E10:$G10),0))*3) -> 0 | P10: =SUM(M10:O10) -> 0 | R10: =IF($P10>$Q10,P10-Q10,0) -> 0
A11: =IF(INTRO!$E$43="Non-endemic"," ", IF(COUNTRY_INFO!A11=0," ",COUNTRY_INFO!A11)) -> Gabon | B11: =IF(INTRO!$E$43="Non-endemic"," ", IF(COUNTRY_INFO!B11=0," ",COUNTRY_INFO!B11)) -> Libreville -Owendo | C11: =IF(INTRO!$E$43="Non-endemic"," ", IF(COUNTRY_INFO!C11=0," ",COUNTRY_INFO!C11)) -> Libreville 2 | D11: =IF(INTRO!$E$43="Non-endemic", "Not required", COUNTRY_INFO!Z11) -> 0 | E11: =IF(OR(COUNTRY_INFO!S11="Unknown",COUNTRY_INFO!S11="Surveillance",COUNTRY_INFO!S11="Not required",COUNTRY_INFO!S11=0),0,IF($D11<>0, COUNTRY_INFO!S11,0)) -> 0 | F11: =IF(OR(COUNTRY_INFO!T11="Unknown",COUNTRY_INFO!T11="Surveillance",COUNTRY_INFO!T11="Not required",COUNTRY_INFO!T11=0),0,IF($D11<>0, COUNTRY_INFO!T11,0)) -> 0 | G11: =IF(OR(COUNTRY_INFO!U11="Unknown",COUNTRY_INFO!U11="Surveillance",COUNTRY_INFO!U11="Not required",COUNTRY_INFO!U11=0),0,IF($D11<>0, COUNTRY_INFO!U11,0)) -> 0 | H11: =SUM(E11:G11) -> 0 | N11: =IF($I11<>"Yes",$F11*2,($F11+ROUND(J11*$F11/SUM(COUNTRY_INFO!$E11:$G11),0))*2) -> 0 | O11: =IF($I11<>"Yes",$G11*3,($G11+ROUND(J11*$G11/SUM(COUNTRY_INFO!$E11:$G11),0))*3) -> 0 | P11: =SUM(M11:O11) -> 0 | R11: =IF($P11>$Q11,P11-Q11,0) -> 0
A12: =IF(INTRO!$E$43="Non-endemic"," ", IF(COUNTRY_INFO!A12=0," ",COUNTRY_INFO!A12)) -> Gabon | B12: =IF(INTRO!$E$43="Non-endemic"," ", IF(COUNTRY_INFO!B12=0," ",COUNTRY_INFO!B12)) -> Libreville -Owendo | C12: =IF(INTRO!$E$43="Non-endemic"," ", IF(COUNTRY_INFO!C12=0," ",COUNTRY_INFO!C12)) -> Libreville 3 | D12: =IF(INTRO!$E$43="Non-endemic", "Not required", COUNTRY_INFO!Z12) -> 0 | E12: =IF(OR(COUNTRY_INFO!S12="Unknown",COUNTRY_INFO!S12="Surveillance",COUNTRY_INFO!S12="Not required",COUNTRY_INFO!S12=0),0,IF($D12<>0, COUNTRY_INFO!S12,0)) -> 0 | F12: =IF(OR(COUNTRY_INFO!T12="Unknown",COUNTRY_INFO!T12="Surveillance",COUNTRY_INFO!T12="Not required",COUNTRY_INFO!T12=0),0,IF($D12<>0, COUNTRY_INFO!T12,0)) -> 0 | G12: =IF(OR(COUNTRY_INFO!U12="Unknown",COUNTRY_INFO!U12="Surveillance",COUNTRY_INFO!U12="Not required",COUNTRY_INFO!U12=0),0,IF($D12<>0, COUNTRY_INFO!U12,0)) -> 0 | H12: 0 | N12: =IF($I12<>"Yes",$F12*2,($F12+ROUND(J12*$F12/SUM(COUNTRY_INFO!$E12:$G12),0))*2) -> 0 | O12: =IF($I12<>"Yes",$G12*3,($G12+ROUND(J12*$G12/SUM(COUNTRY_INFO!$E12:$G12),0))*3) -> 0 | P12: 0 | R12: 0
A13: =IF(INTRO!$E$43="Non-endemic"," ", IF(COUNTRY_INFO!A13=0," ",COUNTRY_INFO!A13)) -> Gabon | B13: =IF(INTRO!$E$43="Non-endemic"," ", IF(COUNTRY_INFO!B13=0," ",COUNTRY_INFO!B13)) -> Libreville -Owendo | C13: =IF(INTRO!$E$43="Non-endemic"," ", IF(COUNTRY_INFO!C13=0," ",COUNTRY_INFO!C13)) -> Owendo | D13: =IF(INTRO!$E$43="Non-endemic", "Not required", COUNTRY_INFO!Z13) -> 0 | E13: =IF(OR(COUNTRY_INFO!S13="Unknown",COUNTRY_INFO!S13="Surveillance",COUNTRY_INFO!S13="Not required",COUNTRY_INFO!S13=0),0,IF($D13<>0, COUNTRY_INFO!S13,0)) -> 0 | F13: =IF(OR(COUNTRY_INFO!T13="Unknown",COUNTRY_INFO!T13="Surveillance",COUNTRY_INFO!T13="Not required",COUNTRY_INFO!T13=0),0,IF($D13<>0, COUNTRY_INFO!T13,0)) -> 0 | G13: =IF(OR(COUNTRY_INFO!U13="Unknown",COUNTRY_INFO!U13="Surveillance",COUNTRY_INFO!U13="Not required",COUNTRY_INFO!U13=0),0,IF($D13<>0, COUNTRY_INFO!U13,0)) -> 0 | H13: 0 | N13: =IF($I13<>"Yes",$F13*2,($F13+ROUND(J13*$F13/SUM(COUNTRY_INFO!$E13:$G13),0))*2) -> 0 | O13: =IF($I13<>"Yes",$G13*3,($G13+ROUND(J13*$G13/SUM(COUNTRY_INFO!$E13:$G13),0))*3) -> 0 | P13: 0 | R13: 0
A14: =IF(INTRO!$E$43="Non-endemic"," ", IF(COUNTRY_INFO!A14=0," ",COUNTRY_INFO!A14)) -> Gabon | B14: =IF(INTRO!$E$43="Non-endemic"," ", IF(COUNTRY_INFO!B14=0," ",COUNTRY_INFO!B14)) -> Estuaire | C14: =IF(INTRO!$E$43="Non-endemic"," ", IF(COUNTRY_INFO!C14=0," ",COUNTRY_INFO!C14)) -> Komo-Mondah | D14: =IF(INTRO!$E$43="Non-endemic", "Not required", COUNTRY_INFO!Z14) -> 1 | E14: =IF(OR(COUNTRY_INFO!S14="Unknown",COUNTRY_INFO!S14="Surveillance",COUNTRY_INFO!S14="Not required",COUNTRY_INFO!S14=0),0,IF($D14<>0, COUNTRY_INFO!S14,0)) -> 3037 | F14: =IF(OR(COUNTRY_INFO!T14="Unknown",COUNTRY_INFO!T14="Surveillance",COUNTRY_INFO!T14="Not required",COUNTRY_INFO!T14=0),0,IF($D14<>0, COUNTRY_INFO!T14,0)) -> 3037 | G14: =IF(OR(COUNTRY_INFO!U14="Unknown",COUNTRY_INFO!U14="Surveillance",COUNTRY_INFO!U14="Not required",COUNTRY_INFO!U14=0),0,IF($D14<>0, COUNTRY_INFO!U14,0)) -> 7266 | H14: 13340 | N14: =IF($I14<>"Yes",$F14*2,($F14+ROUND(J14*$F14/SUM(COUNTRY_INFO!$E14:$G14),0))*2) -> 6074 | O14: =IF($I14<>"Yes",$G14*3,($G14+ROUND(J14*$G14/SUM(COUNTRY_INFO!$E14:$G14),0))*3) -> 21798 | P14: 27872 | R14: 27872
A15: =IF(INTRO!$E$43="Non-endemic"," ", IF(COUNTRY_INFO!A15=0," ",COUNTRY_INFO!A15)) -> Gabon | B15: =IF(INTRO!$E$43="Non-endemic"," ", IF(COUNTRY_INFO!B15=0," ",COUNTRY_INFO!B15)) -> Estuaire | C15: =IF(INTRO!$E$43="Non-endemic"," ", IF(COUNTRY_INFO!C15=0," ",COUNTRY_INFO!C15)) -> Komo-Kango | D15: =IF(INTRO!$E$43="Non-endemic", "Not required", COUNTRY_INFO!Z15) -> 1 | E15: =IF(OR(COUNTRY_INFO!S15="Unknown",COUNTRY_INFO!S15="Surveillance",COUNTRY_INFO!S15="Not required",COUNTRY_INFO!S15=0),0,IF($D15<>0, COUNTRY_INFO!S15,0)) -> 630 | F15: =IF(OR(COUNTRY_INFO!T15="Unknown",COUNTRY_INFO!T15="Surveillance",COUNTRY_INFO!T15="Not required",COUNTRY_INFO!T15=0),0,IF($D15<>0, COUNTRY_INFO!T15,0)) -> 630 | G15: =IF(OR(COUNTRY_INFO!U15="Unknown",COUNTRY_INFO!U15="Surveillance",COUNTRY_INFO!U15="Not required",COUNTRY_INFO!U15=0),0,IF($D15<>0, COUNTRY_INFO!U15,0)) -> 1507 | H15: 2767 | N15: =IF($I15<>"Yes",$F15*2,($F15+ROUND(J15*$F15/SUM(COUNTRY_INFO!$E15:$G15),0))*2) -> 1260 | O15: =IF($I15<>"Yes",$G15*3,($G15+ROUND(J15*$G15/SUM(COUNTRY_INFO!$E15:$G15),0))*3) -> 4521 | P15: 5781 | R15: 5781
A16: =IF(INTRO!$E$43="Non-endemic"," ", IF(COUNTRY_INFO!A16=0," ",COUNTRY_INFO!A16)) -> Gabon | B16: =IF(INTRO!$E$43="Non-endemic"," ", IF(COUNTRY_INFO!B16=0," ",COUNTRY_INFO!B16)) -> Estuaire | C16: =IF(INTRO!$E$43="Non-endemic"," ", IF(COUNTRY_INFO!C16=0," ",COUNTRY_INFO!C16)) -> Noya | D16: =IF(INTRO!$E$43="Non-endemic", "Not required", COUNTRY_INFO!Z16) -> 0 | E16: =IF(OR(COUNTRY_INFO!S16="Unknown",COUNTRY_INFO!S16="Surveillance",COUNTRY_INFO!S16="Not required",COUNTRY_INFO!S16=0),0,IF($D16<>0, COUNTRY_INFO!S16,0)) -> 0 | F16: =IF(OR(COUNTRY_INFO!T16="Unknown",COUNTRY_INFO!T16="Surveillance",COUNTRY_INFO!T16="Not required",COUNTRY_INFO!T16=0),0,IF($D16<>0, COUNTRY_INFO!T16,0)) -> 0 | G16: =IF(OR(COUNTRY_INFO!U16="Unknown",COUNTRY_INFO!U16="Surveillance",COUNTRY_INFO!U16="Not required",COUNTRY_INFO!U16=0),0,IF($D16<>0, COUNTRY_INFO!U16,0)) -> 0 | H16: 0 | N16: =IF($I16<>"Yes",$F16*2,($F16+ROUND(J16*$F16/SUM(COUNTRY_INFO!$E16:$G16),0))*2) -> 0 | O16: =IF($I16<>"Yes",$G16*3,($G16+ROUND(J16*$G16/SUM(COUNTRY_INFO!$E16:$G16),0))*3) -> 0 | P16: 0 | R16: 0
A17: =IF(INTRO!$E$43="Non-endemic"," ", IF(COUNTRY_INFO!A17=0," ",COUNTRY_INFO!A17)) -> Gabon | B17: =IF(INTRO!$E$43="Non-endemic"," ", IF(COUNTRY_INFO!B17=0," ",COUNTRY_INFO!B17)) -> Haut Ogooué | C17: =IF(INTRO!$E$43="Non-endemic"," ", IF(COUNTRY_INFO!C17=0," ",COUNTRY_INFO!C17)) -> Bayi-brikolo | D17: =IF(INTRO!$E$43="Non-endemic", "Not required", COUNTRY_INFO!Z17) -> 0 | E17: =IF(OR(COUNTRY_INFO!S17="Unknown",COUNTRY_INFO!S17="Surveillance",COUNTRY_INFO!S17="Not required",COUNTRY_INFO!S17=0),0,IF($D17<>0, COUNTRY_INFO!S17,0)) -> 0 | F17: =IF(OR(COUNTRY_INFO!T17="Unknown",COUNTRY_INFO!T17="Surveillance",COUNTRY_INFO!T17="Not required",COUNTRY_INFO!T17=0),0,IF($D17<>0, COUNTRY_INFO!T17,0)) -> 0 | G17: =IF(OR(COUNTRY_INFO!U17="Unknown",COUNTRY_INFO!U17="Surveillance",COUNTRY_INFO!U17="Not required",COUNTRY_INFO!U17=0),0,IF($D17<>0, COUNTRY_INFO!U17,0)) -> 0 | H17: 0 | N17: =IF($I17<>"Yes",$F17*2,($F17+ROUND(J17*$F17/SUM(COUNTRY_INFO!$E17:$G17),0))*2) -> 0 | O17: =IF($I17<>"Yes",$G17*3,($G17+ROUND(J17*$G17/SUM(COUNTRY_INFO!$E17:$G17),0))*3) -> 0 | P17: 0 | R17: 0
A18: =IF(INTRO!$E$43="Non-endemic"," ", IF(COUNTRY_INFO!A18=0," ",COUNTRY_INFO!A18)) -> Gabon | B18: =IF(INTRO!$E$43="Non-endemic"," ", IF(COUNTRY_INFO!B18=0," ",COUNTRY_INFO!B18)) -> Haut Ogooué | C18: =IF(INTRO!$E$43="Non-endemic"," ", IF(COUNTRY_INFO!C18=0," ",COUNTRY_INFO!C18)) -> Lékoni-lékori | D18: =IF(INTRO!$E$43="Non-endemic", "Not required", COUNTRY_INFO!Z18) -> 0 | E18: =IF(OR(COUNTRY_INFO!S18="Unknown",COUNTRY_INFO!S18="Surveillance",COUNTRY_INFO!S18="Not required",COUNTRY_INFO!S18=0),0,IF($D18<>0, COUNTRY_INFO!S18,0)) -> 0 | F18: =IF(OR(COUNTRY_INFO!T18="Unknown",COUNTRY_INFO!T18="Surveillance",COUNTRY_INFO!T18="Not required",COUNTRY_INFO!T18=0),0,IF($D18<>0, COUNTRY_INFO!T18,0)) -> 0 | G18: =IF(OR(COUNTRY_INFO!U18="Unknown",COUNTRY_INFO!U18="Surveillance",COUNTRY_INFO!U18="Not required",COUNTRY_INFO!U18=0),0,IF($D18<>0, COUNTRY_INFO!U18,0)) -> 0 | H18: 0 | N18: =IF($I18<>"Yes",$F18*2,($F18+ROUND(J18*$F18/SUM(COUNTRY_INFO!$E18:$G18),0))*2) -> 0 | O18: =IF($I18<>"Yes",$G18*3,($G18+ROUND(J18*$G18/SUM(COUNTRY_INFO!$E18:$G18),0))*3) -> 0 | P18: 0 | R18: 0
A19: =IF(INTRO!$E$43="Non-endemic"," ", IF(COUNTRY_INFO!A19=0," ",COUNTRY_INFO!A19)) -> Gabon | B19: =IF(INTRO!$E$43="Non-endemic"," ", IF(COUNTRY_INFO!B19=0," ",COUNTRY_INFO!B19)) -> Haut Ogooué | C19: =IF(INTRO!$E$43="Non-endemic"," ", IF(COUNTRY_INFO!C19=0," ",COUNTRY_INFO!C19)) -> Lékoko | D19: =IF(INTRO!$E$43="Non-endemic", "Not required", COUNTRY_INFO!Z19) -> 0 | E19: =IF(OR(COUNTRY_INFO!S19="Unknown",COUNTRY_INFO!S19="Surveillance",COUNTRY_INFO!S19="Not required",COUNTRY_INFO!S19=0),0,IF($D19<>0, COUNTRY_INFO!S19,0)) -> 0 | F19: =IF(OR(COUNTRY_INFO!T19="Unknown",COUNTRY_INFO!T19="Surveillance",COUNTRY_INFO!T19="Not required",COUNTRY_INFO!T19=0),0,IF($D19<>0, COUNTRY_INFO!T19,0)) -> 0 | G19: =IF(OR(COUNTRY_INFO!U19="Unknown",COUNTRY_INFO!U19="Surveillance",COUNTRY_INFO!U19="Not required",COUNTRY_INFO!U19=0),0,IF($D19<>0, COUNTRY_INFO!U19,0)) -> 0 | H19: 0 | N19: =IF($I19<>"Yes",$F19*2,($F19+ROUND(J19*$F19/SUM(COUNTRY_INFO!$E19:$G19),0))*2) -> 0 | O19: =IF($I19<>"Yes",$G19*3,($G19+ROUND(J19*$G19/SUM(COUNTRY_INFO!$E19:$G19),0))*3) -> 0 | P19: 0 | R19: 0
A20: =IF(INTRO!$E$43="Non-endemic"," ", IF(COUNTRY_INFO!A20=0," ",COUNTRY_INFO!A20)) -> Gabon | B20: =IF(INTRO!$E$43="Non-endemic"," ", IF(COUNTRY_INFO!B20=0," ",COUNTRY_INFO!B20)) -> Haut Ogooué | C20: =IF(INTRO!$E$43="Non-endemic"," ", IF(COUNTRY_INFO!C20=0," ",COUNTRY_INFO!C20)) -> Djouori-Agnili | D20: =IF(INTRO!$E$43="Non-endemic", "Not required", COUNTRY_INFO!Z20) -> 0 | E20: =IF(OR(COUNTRY_INFO!S20="Unknown",COUNTRY_INFO!S20="Surveillance",COUNTRY_INFO!S20="Not required",COUNTRY_INFO!S20=0),0,IF($D20<>0, COUNTRY_INFO!S20,0)) -> 0 | F20: =IF(OR(COUNTRY_INFO!T20="Unknown",COUNTRY_INFO!T20="Surveillance",COUNTRY_INFO!T20="Not required",COUNTRY_INFO!T20=0),0,IF($D20<>0, COUNTRY_INFO!T20,0)) -> 0 | G20: =IF(OR(COUNTRY_INFO!U20="Unknown",COUNTRY_INFO!U20="Surveillance",COUNTRY_INFO!U20="Not required",COUNTRY_INFO!U20=0),0,IF($D20<>0, COUNTRY_INFO!U20,0)) -> 0 | H20: 0 | N20: =IF($I20<>"Yes",$F20*2,($F20+ROUND(J20*$F20/SUM(COUNTRY_INFO!$E20:$G20),0))*2) -> 0 | O20: =IF($I20<>"Yes",$G20*3,($G20+ROUND(J20*$G20/SUM(COUNTRY_INFO!$E20:$G20),0))*3) -> 0 | P20: 0 | R20: 0
A21: =IF(INTRO!$E$43="Non-endemic"," ", IF(COUNTRY_INFO!A21=0," ",COUNTRY_INFO!A21)) -> Gabon | B21: =IF(INTRO!$E$43="Non-endemic"," ", IF(COUNTRY_INFO!B21=0," ",COUNTRY_INFO!B21)) -> Haut Ogooué | C21: =IF(INTRO!$E$43="Non-endemic"," ", IF(COUNTRY_INFO!C21=0," ",COUNTRY_INFO!C21)) -> Ogooué -létili | D21: =IF(INTRO!$E$43="Non-endemic", "Not required", COUNTRY_INFO!Z21) -> 0 | E21: =IF(OR(COUNTRY_INFO!S21="Unknown",COUNTRY_INFO!S21="Surveillance",COUNTRY_INFO!S21="Not required",COUNTRY_INFO!S21=0),0,IF($D21<>0, COUNTRY_INFO!S21,0)) -> 0 | F21: =IF(OR(COUNTRY_INFO!T21="Unknown",COUNTRY_INFO!T21="Surveillance",COUNTRY_INFO!T21="Not required",COUNTRY_INFO!T21=0),0,IF($D21<>0, COUNTRY_INFO!T21,0)) -> 0 | G21: =IF(OR(COUNTRY_INFO!U21="Unknown",COUNTRY_INFO!U21="Surveillance",COUNTRY_INFO!U21="Not required",COUNTRY_INFO!U21=0),0,IF($D21<>0, COUNTRY_INFO!U21,0)) -> 0 | H21: 0 | N21: =IF($I21<>"Yes",$F21*2,($F21+ROUND(J21*$F21/SUM(COUNTRY_INFO!$E21:$G21),0))*2) -> 0 | O21: =IF($I21<>"Yes",$G21*3,($G21+ROUND(J21*$G21/SUM(COUNTRY_INFO!$E21:$G21),0))*3) -> 0 | P21: 0 | R21: 0
A22: =IF(INTRO!$E$43="Non-endemic"," ", IF(COUNTRY_INFO!A22=0," ",COUNTRY_INFO!A22)) -> Gabon | B22: =IF(INTRO!$E$43="Non-endemic"," ", IF(COUNTRY_INFO!B22=0," ",COUNTRY_INFO!B22)) -> Haut Ogooué | C22: =IF(INTRO!$E$43="Non-endemic"," ", IF(COUNTRY_INFO!C22=0," ",COUNTRY_INFO!C22)) -> Mpassa | D22: =IF(INTRO!$E$43="Non-endemic", "Not required", COUNTRY_INFO!Z22) -> 1 | E22: =IF(OR(COUNTRY_INFO!S22="Unknown",COUNTRY_INFO!S22="Surveillance",COUNTRY_INFO!S22="Not required",COUNTRY_INFO!S22=0),0,IF($D22<>0, COUNTRY_INFO!S22,0)) -> 2982 | F22: =IF(OR(COUNTRY_INFO!T22="Unknown",COUNTRY_INFO!T22="Surveillance",COUNTRY_INFO!T22="Not required",COUNTRY_INFO!T22=0),0,IF($D22<>0, COUNTRY_INFO!T22,0)) -> 2982 | G22: =IF(OR(COUNTRY_INFO!U22="Unknown",COUNTRY_INFO!U22="Surveillance",COUNTRY_INFO!U22="Not required",COUNTRY_INFO!U22=0),0,IF($D22<>0, COUNTRY_INFO!U22,0)) -> 7135 | H22: 13099 | N22: =IF($I22<>"Yes",$F22*2,($F22+ROUND(J22*$F22/SUM(COUNTRY_INFO!$E22:$G22),0))*2) -> 5964 | O22: =IF($I22<>"Yes",$G22*3,($G22+ROUND(J22*$G22/SUM(COUNTRY_INFO!$E22:$G22),0))*3) -> 21405 | P22: 27369 | R22: 27369
A23: =IF(INTRO!$E$43="Non-endemic"," ", IF(COUNTRY_INFO!A23=0," ",COUNTRY_INFO!A23)) -> Gabon | B23: =IF(INTRO!$E$43="Non-endemic"," ", IF(COUNTRY_INFO!B23=0," ",COUNTRY_INFO!B23)) -> Haut Ogooué | C23: =IF(INTRO!$E$43="Non-endemic"," ", IF(COUNTRY_INFO!C23=0," ",COUNTRY_INFO!C23)) -> Plateaux | D23: =IF(INTRO!$E$43="Non-endemic", "Not required", COUNTRY_INFO!Z23) -> 0 | E23: =IF(OR(COUNTRY_INFO!S23="Unknown",COUNTRY_INFO!S23="Surveillance",COUNTRY_INFO!S23="Not required",COUNTRY_INFO!S23=0),0,IF($D23<>0, COUNTRY_INFO!S23,0)) -> 0 | F23: =IF(OR(COUNTRY_INFO!T23="Unknown",COUNTRY_INFO!T23="Surveillance",COUNTRY_INFO!T23="Not required",COUNTRY_INFO!T23=0),0,IF($D23<>0, COUNTRY_INFO!T23,0)) -> 0 | G23: =IF(OR(COUNTRY_INFO!U23="Unknown",COUNTRY_INFO!U23="Surveillance",COUNTRY_INFO!U23="Not required",COUNTRY_INFO!U23=0),0,IF($D23<>0, COUNTRY_INFO!U23,0)) -> 0 | H23: 0 | N23: =IF($I23<>"Yes",$F23*2,($F23+ROUND(J23*$F23/SUM(COUNTRY_INFO!$E23:$G23),0))*2) -> 0 | O23: =IF($I23<>"Yes",$G23*3,($G23+ROUND(J23*$G23/SUM(COUNTRY_INFO!$E23:$G23),0))*3) -> 0 | P23: 0 | R23: 0
A24: =IF(INTRO!$E$43="Non-endemic"," ", IF(COUNTRY_INFO!A24=0," ",COUNTRY_INFO!A24)) -> Gabon | B24: =IF(INTRO!$E$43="Non-endemic"," ", IF(COUNTRY_INFO!B24=0," ",COUNTRY_INFO!B24)) -> Haut Ogooué | C24: =IF(INTRO!$E$43="Non-endemic"," ", IF(COUNTRY_INFO!C24=0," ",COUNTRY_INFO!C24)) -> Lébombi-Léyou | D24: =IF(INTRO!$E$43="Non-endemic", "Not required", COUNTRY_INFO!Z24) -> 0 | E24: =IF(OR(COUNTRY_INFO!S24="Unknown",COUNTRY_INFO!S24="Surveillance",COUNTRY_INFO!S24="Not required",COUNTRY_INFO!S24=0),0,IF($D24<>0, COUNTRY_INFO!S24,0)) -> 0 | F24: =IF(OR(COUNTRY_INFO!T24="Unknown",COUNTRY_INFO!T24="Surveillance",COUNTRY_INFO!T24="Not required",COUNTRY_INFO!T24=0),0,IF($D24<>0, COUNTRY_INFO!T24,0)) -> 0 | G24: =IF(OR(COUNTRY_INFO!U24="Unknown",COUNTRY_INFO!U24="Surveillance",COUNTRY_INFO!U24="Not required",COUNTRY_INFO!U24=0),0,IF($D24<>0, COUNTRY_INFO!U24,0)) -> 0 | H24: 0 | N24: =IF($I24<>"Yes",$F24*2,($F24+ROUND(J24*$F24/SUM(COUNTRY_INFO!$E24:$G24),0))*2) -> 0 | O24: =IF($I24<>"Yes",$G24*3,($G24+ROUND(J24*$G24/SUM(COUNTRY_INFO!$E24:$G24),0))*3) -> 0 | P24: 0 | R24: 0
A25: =IF(INTRO!$E$43="Non-endemic"," ", IF(COUNTRY_INFO!A25=0," ",COUNTRY_INFO!A25)) -> Gabon | B25: =IF(INTRO!$E$43="Non-endemic"," ", IF(COUNTRY_INFO!B25=0," ",COUNTRY_INFO!B25)) -> Haut Ogooué | C25: =IF(INTRO!$E$43="Non-endemic"," ", IF(COUNTRY_INFO!C25=0," ",COUNTRY_INFO!C25)) -> Lékabi-léwolo | D25: =IF(INTRO!$E$43="Non-endemic", "Not required", COUNTRY_INFO!Z25) -> 0 | E25: =IF(OR(COUNTRY_INFO!S25="Unknown",COUNTRY_INFO!S25="Surveillance",COUNTRY_INFO!S25="Not required",COUNTRY_INFO!S25=0),0,IF($D25<>0, COUNTRY_INFO!S25,0)) -> 0 | F25: =IF(OR(COUNTRY_INFO!T25="Unknown",COUNTRY_INFO!T25="Surveillance",COUNTRY_INFO!T25="Not required",COUNTRY_INFO!T25=0),0,IF($D25<>0, COUNTRY_INFO!T25,0)) -> 0 | G25: =IF(OR(COUNTRY_INFO!U25="Unknown",COUNTRY_INFO!U25="Surveillance",COUNTRY_INFO!U25="Not required",COUNTRY_INFO!U25=0),0,IF($D25<>0, COUNTRY_INFO!U25,0)) -> 0 | H25: 0 | N25: =IF($I25<>"Yes",$F25*2,($F25+ROUND(J25*$F25/SUM(COUNTRY_INFO!$E25:$G25),0))*2) -> 0 | O25: =IF($I25<>"Yes",$G25*3,($G25+ROUND(J25*$G25/SUM(COUNTRY_INFO!$E25:$G25),0))*3) -> 0 | P25: 0 | R25: 0
A26: =IF(INTRO!$E$43="Non-endemic"," ", IF(COUNTRY_INFO!A26=0," ",COUNTRY_INFO!A26)) -> Gabon | B26: =IF(INTRO!$E$43="Non-endemic"," ", IF(COUNTRY_INFO!B26=0," ",COUNTRY_INFO!B26)) -> Haut Ogooué | C26: =IF(INTRO!$E$43="Non-endemic"," ", IF(COUNTRY_INFO!C26=0," ",COUNTRY_INFO!C26)) -> Sébé-brikoli | D26: =IF(INTRO!$E$43="Non-endemic", "Not required", COUNTRY_INFO!Z26) -> 1 | E26: =IF(OR(COUNTRY_INFO!S26="Unknown",COUNTRY_INFO!S26="Surveillance",COUNTRY_INFO!S26="Not required",COUNTRY_INFO!S26=0),0,IF($D26<>0, COUNTRY_INFO!S26,0)) -> 107 | F26: =IF(OR(COUNTRY_INFO!T26="Unknown",COUNTRY_INFO!T26="Surveillance",COUNTRY_INFO!T26="Not required",COUNTRY_INFO!T26=0),0,IF($D26<>0, COUNTRY_INFO!T26,0)) -> 107 | G26: =IF(OR(COUNTRY_INFO!U26="Unknown",COUNTRY_INFO!U26="Surveillance",COUNTRY_INFO!U26="Not required",COUNTRY_INFO!U26=0),0,IF($D26<>0, COUNTRY_INFO!U26,0)) -> 256 | H26: 470 | N26: =IF($I26<>"Yes",$F26*2,($F26+ROUND(J26*$F26/SUM(COUNTRY_INFO!$E26:$G26),0))*2) -> 214 | O26: =IF($I26<>"Yes",$G26*3,($G26+ROUND(J26*$G26/SUM(COUNTRY_INFO!$E26:$G26),0))*3) -> 768 | P26: 982 | R26: 982
A27: =IF(INTRO!$E$43="Non-endemic"," ", IF(COUNTRY_INFO!A27=0," ",COUNTRY_INFO!A27)) -> Gabon | B27: =IF(INTRO!$E$43="Non-endemic"," ", IF(COUNTRY_INFO!B27=0," ",COUNTRY_INFO!B27)) -> Haut Ogooué | C27: =IF(INTRO!$E$43="Non-endemic"," ", IF(COUNTRY_INFO!C27=0," ",COUNTRY_INFO!C27)) -> Djoué | D27: =IF(INTRO!$E$43="Non-endemic", "Not required", COUNTRY_INFO!Z27) -> 0 | E27: =IF(OR(COUNTRY_INFO!S27="Unknown",COUNTRY_INFO!S27="Surveillance",COUNTRY_INFO!S27="Not required",COUNTRY_INFO!S27=0),0,IF($D27<>0, COUNTRY_INFO!S27,0)) -> 0 | F27: =IF(OR(COUNTRY_INFO!T27="Unknown",COUNTRY_INFO!T27="Surveillance",COUNTRY_INFO!T27="Not required",COUNTRY_INFO!T27=0),0,IF($D27<>0, COUNTRY_INFO!T27,0)) -> 0 | G27: =IF(OR(COUNTRY_INFO!U27="Unknown",COUNTRY_INFO!U27="Surveillance",COUNTRY_INFO!U27="Not required",COUNTRY_INFO!U27=0),0,IF($D27<>0, COUNTRY_INFO!U27,0)) -> 0 | H27: 0 | N27: =IF($I27<>"Yes",$F27*2,($F27+ROUND(J27*$F27/SUM(COUNTRY_INFO!$E27:$G27),0))*2) -> 0 | O27: =IF($I27<>"Yes",$G27*3,($G27+ROUND(J27*$G27/SUM(COUNTRY_INFO!$E27:$G27),0))*3) -> 0 | P27: 0 | R27: 0
A28: =IF(INTRO!$E$43="Non-endemic"," ", IF(COUNTRY_INFO!A28=0," ",COUNTRY_INFO!A28)) -> Gabon | B28: =IF(INTRO!$E$43="Non-endemic"," ", IF(COUNTRY_INFO!B28=0," ",COUNTRY_INFO!B28)) -> Moyen Ogooué | C28: =IF(INTRO!$E$43="Non-endemic"," ", IF(COUNTRY_INFO!C28=0," ",COUNTRY_INFO!C28)) -> Ogooué et Lacs | D28: =IF(INTRO!$E$43="Non-endemic", "Not required", COUNTRY_INFO!Z28) -> 1 | E28: =IF(OR(COUNTRY_INFO!S28="Unknown",COUNTRY_INFO!S28="Surveillance",COUNTRY_INFO!S28="Not required",COUNTRY_INFO!S28=0),0,IF($D28<>0, COUNTRY_INFO!S28,0)) -> 4392 | F28: =IF(OR(COUNTRY_INFO!T28="Unknown",COUNTRY_INFO!T28="Surveillance",COUNTRY_INFO!T28="Not required",COUNTRY_INFO!T28=0),0,IF($D28<>0, COUNTRY_INFO!T28,0)) -> 4391 | G28: =IF(OR(COUNTRY_INFO!U28="Unknown",COUNTRY_INFO!U28="Surveillance",COUNTRY_INFO!U28="Not required",COUNTRY_INFO!U28=0),0,IF($D28<>0, COUNTRY_INFO!U28,0)) -> 10503 | H28: 19286 | N28: =IF($I28<>"Yes",$F28*2,($F28+ROUND(J28*$F28/SUM(COUNTRY_INFO!$E28:$G28),0))*2) -> 8782 | O28: =IF($I28<>"Yes",$G28*3,($G28+ROUND(J28*$G28/SUM(COUNTRY_INFO!$E28:$G28),0))*3) -> 31509 | P28: 40291 | R28: 40291
A29: =IF(INTRO!$E$43="Non-endemic"," ", IF(COUNTRY_INFO!A29=0," ",COUNTRY_INFO!A29)) -> Gabon | B29: =IF(INTRO!$E$43="Non-endemic"," ", IF(COUNTRY_INFO!B29=0," ",COUNTRY_INFO!B29)) -> Moyen Ogooué | C29: =IF(INTRO!$E$43="Non-endemic"," ", IF(COUNTRY_INFO!C29=0," ",COUNTRY_INFO!C29)) -> Abanga -Bigné | D29: =IF(INTRO!$E$43="Non-endemic", "Not required", COUNTRY_INFO!Z29) -> 1 | E29: =IF(OR(COUNTRY_INFO!S29="Unknown",COUNTRY_INFO!S29="Surveillance",COUNTRY_INFO!S29="Not required",COUNTRY_INFO!S29=0),0,IF($D29<>0, COUNTRY_INFO!S29,0)) -> 91 | F29: =IF(OR(COUNTRY_INFO!T29="Unknown",COUNTRY_INFO!T29="Surveillance",COUNTRY_INFO!T29="Not required",COUNTRY_INFO!T29=0),0,IF($D29<>0, COUNTRY_INFO!T29,0)) -> 91 | G29: =IF(OR(COUNTRY_INFO!U29="Unknown",COUNTRY_INFO!U29="Surveillance",COUNTRY_INFO!U29="Not required",COUNTRY_INFO!U29=0),0,IF($D29<>0, COUNTRY_INFO!U29,0)) -> 215 | H29: 397 | N29: =IF($I29<>"Yes",$F29*2,($F29+ROUND(J29*$F29/SUM(COUNTRY_INFO!$E29:$G29),0))*2) -> 182 | O29: =IF($I29<>"Yes",$G29*3,($G29+ROUND(J29*$G29/SUM(COUNTRY_INFO!$E29:$G29),0))*3) -> 645 | P29: 827 | R29: 827
A30: =IF(INTRO!$E$43="Non-endemic"," ", IF(COUNTRY_INFO!A30=0," ",COUNTRY_INFO!A30)) -> Gabon | B30: =IF(INTRO!$E$43="Non-endemic"," ", IF(COUNTRY_INFO!B30=0," ",COUNTRY_INFO!B30)) -> Ngounié | C30: =IF(INTRO!$E$43="Non-endemic"," ", IF(COUNTRY_INFO!C30=0," ",COUNTRY_INFO!C30)) -> Tsamba -Magotsi | D30: =IF(INTRO!$E$43="Non-endemic", "Not required", COUNTRY_INFO!Z30) -> 1 | E30: =IF(OR(COUNTRY_INFO!S30="Unknown",COUNTRY_INFO!S30="Surveillance",COUNTRY_INFO!S30="Not required",COUNTRY_INFO!S30=0),0,IF($D30<>0, COUNTRY_INFO!S30,0)) -> 684 | F30: =IF(OR(COUNTRY_INFO!T30="Unknown",COUNTRY_INFO!T30="Surveillance",COUNTRY_INFO!T30="Not required",COUNTRY_INFO!T30=0),0,IF($D30<>0, COUNTRY_INFO!T30,0)) -> 684 | G30: =IF(OR(COUNTRY_INFO!U30="Unknown",COUNTRY_INFO!U30="Surveillance",COUNTRY_INFO!U30="Not required",COUNTRY_INFO!U30=0),0,IF($D30<>0, COUNTRY_INFO!U30,0)) -> 1639 | H30: 3007 | N30: =IF($I30<>"Yes",$F30*2,($F30+ROUND(J30*$F30/SUM(COUNTRY_INFO!$E30:$G30),0))*2) -> 1368 | O30: =IF($I30<>"Yes",$G30*3,($G30+ROUND(J30*$G30/SUM(COUNTRY_INFO!$E30:$G30),0))*3) -> 4917 | P30: 6285 | R30: 6285
A31: =IF(INTRO!$E$43="Non-endemic"," ", IF(COUNTRY_INFO!A31=0," ",COUNTRY_INFO!A31)) -> Gabon | B31: =IF(INTRO!$E$43="Non-endemic"," ", IF(COUNTRY_INFO!B31=0," ",COUNTRY_INFO!B31)) -> Ngounié | C31: =IF(INTRO!$E$43="Non-endemic"," ", IF(COUNTRY_INFO!C31=0," ",COUNTRY_INFO!C31)) -> Louetsi-Wano | D31: =IF(INTRO!$E$43="Non-endemic", "Not required", COUNTRY_INFO!Z31) -> 0 | E31: =IF(OR(COUNTRY_INFO!S31="Unknown",COUNTRY_INFO!S31="Surveillance",COUNTRY_INFO!S31="Not required",COUNTRY_INFO!S31=0),0,IF($D31<>0, COUNTRY_INFO!S31,0)) -> 0 | F31: =IF(OR(COUNTRY_INFO!T31="Unknown",COUNTRY_INFO!T31="Surveillance",COUNTRY_INFO!T31="Not required",COUNTRY_INFO!T31=0),0,IF($D31<>0, COUNTRY_INFO!T31,0)) -> 0 | G31: =IF(OR(COUNTRY_INFO!U31="Unknown",COUNTRY_INFO!U31="Surveillance",COUNTRY_INFO!U31="Not required",COUNTRY_INFO!U31=0),0,IF($D31<>0, COUNTRY_INFO!U31,0)) -> 0 | H31: 0 | N31: =IF($I31<>"Yes",$F31*2,($F31+ROUND(J31*$F31/SUM(COUNTRY_INFO!$E31:$G31),0))*2) -> 0 | O31: =IF($I31<>"Yes",$G31*3,($G31+ROUND(J31*$G31/SUM(COUNTRY_INFO!$E31:$G31),0))*3) -> 0 | P31: 0 | R31: 0
A32: =IF(INTRO!$E$43="Non-endemic"," ", IF(COUNTRY_INFO!A32=0," ",COUNTRY_INFO!A32)) -> Gabon | B32: =IF(INTRO!$E$43="Non-endemic"," ", IF(COUNTRY_INFO!B32=0," ",COUNTRY_INFO!B32)) -> Ngounié | C32: =IF(INTRO!$E$43="Non-endemic"," ", IF(COUNTRY_INFO!C32=0," ",COUNTRY_INFO!C32)) -> Louetsi-Bibaka | D32: =IF(INTRO!$E$43="Non-endemic", "Not required", COUNTRY_INFO!Z32) -> 0 | E32: =IF(OR(COUNTRY_INFO!S32="Unknown",COUNTRY_INFO!S32="Surveillance",COUNTRY_INFO!S32="Not required",COUNTRY_INFO!S32=0),0,IF($D32<>0, COUNTRY_INFO!S32,0)) -> 0 | F32: =IF(OR(COUNTRY_INFO!T32="Unknown",COUNTRY_INFO!T32="Surveillance",COUNTRY_INFO!T32="Not required",COUNTRY_INFO!T32=0),0,IF($D32<>0, COUNTRY_INFO!T32,0)) -> 0 | G32: =IF(OR(COUNTRY_INFO!U32="Unknown",COUNTRY_INFO!U32="Surveillance",COUNTRY_INFO!U32="Not required",COUNTRY_INFO!U32=0),0,IF($D32<>0, COUNTRY_INFO!U32,0)) -> 0 | H32: 0 | N32: =IF($I32<>"Yes",$F32*2,($F32+ROUND(J32*$F32/SUM(COUNTRY_INFO!$E32:$G32),0))*2) -> 0 | O32: =IF($I32<>"Yes",$G32*3,($G32+ROUND(J32*$G32/SUM(COUNTRY_INFO!$E32:$G32),0))*3) -> 0 | P32: 0 | R32: 0
A33: =IF(INTRO!$E$43="Non-endemic"," ", IF(COUNTRY_INFO!A33=0," ",COUNTRY_INFO!A33)) -> Gabon | B33: =IF(INTRO!$E$43="Non-endemic"," ", IF(COUNTRY_INFO!B33=0," ",COUNTRY_INFO!B33)) -> Ngounié | C33: =IF(INTRO!$E$43="Non-endemic"," ", IF(COUNTRY_INFO!C33=0," ",COUNTRY_INFO!C33)) -> Ndolou | D33: =IF(INTRO!$E$43="Non-endemic", "Not required", COUNTRY_INFO!Z33) -> 0 | E33: =IF(OR(COUNTRY_INFO!S33="Unknown",COUNTRY_INFO!S33="Surveillance",COUNTRY_INFO!S33="Not required",COUNTRY_INFO!S33=0),0,IF($D33<>0, COUNTRY_INFO!S33,0)) -> 0 | F33: =IF(OR(COUNTRY_INFO!T33="Unknown",COUNTRY_INFO!T33="Surveillance",COUNTRY_INFO!T33="Not required",COUNTRY_INFO!T33=0),0,IF($D33<>0, COUNTRY_INFO!T33,0)) -> 0 | G33: =IF(OR(COUNTRY_INFO!U33="Unknown",COUNTRY_INFO!U33="Surveillance",COUNTRY_INFO!U33="Not required",COUNTRY_INFO!U33=0),0,IF($D33<>0, COUNTRY_INFO!U33,0)) -> 0 | H33: 0 | N33: =IF($I33<>"Yes",$F33*2,($F33+ROUND(J33*$F33/SUM(COUNTRY_INFO!$E33:$G33),0))*2) -> 0 | O33: =IF($I33<>"Yes",$G33*3,($G33+ROUND(J33*$G33/SUM(COUNTRY_INFO!$E33:$G33),0))*3) -> 0 | P33: 0 | R33: 0
A34: =IF(INTRO!$E$43="Non-endemic"," ", IF(COUNTRY_INFO!A34=0," ",COUNTRY_INFO!A34)) -> Gabon | B34: =IF(INTRO!$E$43="Non-endemic"," ", IF(COUNTRY_INFO!B34=0," ",COUNTRY_INFO!B34)) -> Ngounié | C34: =IF(INTRO!$E$43="Non-endemic"," ", IF(COUNTRY_INFO!C34=0," ",COUNTRY_INFO!C34)) -> Boumi-Louetsi | D34: =IF(INTRO!$E$43="Non-endemic", "Not required", COUNTRY_INFO!Z34) -> 0 | E34: =IF(OR(COUNTRY_INFO!S34="Unknown",COUNTRY_INFO!S34="Surveillance",COUNTRY_INFO!S34="Not required",COUNTRY_INFO!S34=0),0,IF($D34<>0, COUNTRY_INFO!S34,0)) -> 0 | F34: =IF(OR(COUNTRY_INFO!T34="Unknown",COUNTRY_INFO!T34="Surveillance",COUNTRY_INFO!T34="Not required",COUNTRY_INFO!T34=0),0,IF($D34<>0, COUNTRY_INFO!T34,0)) -> 0 | G34: =IF(OR(COUNTRY_INFO!U34="Unknown",COUNTRY_INFO!U34="Surveillance",COUNTRY_INFO!U34="Not required",COUNTRY_INFO!U34=0),0,IF($D34<>0, COUNTRY_INFO!U34,0)) -> 0 | H34: 0 | N34: =IF($I34<>"Yes",$F34*2,($F34+ROUND(J34*$F34/SUM(COUNTRY_INFO!$E34:$G34),0))*2) -> 0 | O34: =IF($I34<>"Yes",$G34*3,($G34+ROUND(J34*$G34/SUM(COUNTRY_INFO!$E34:$G34),0))*3) -> 0 | P34: 0 | R34: 0
A35: =IF(INTRO!$E$43="Non-endemic"," ", IF(COUNTRY_INFO!A35=0," ",COUNTRY_INFO!A35)) -> Gabon | B35: =IF(INTRO!$E$43="Non-endemic"," ", IF(COUNTRY_INFO!B35=0," ",COUNTRY_INFO!B35)) -> Ngounié | C35: =IF(INTRO!$E$43="Non-endemic"," ", IF(COUNTRY_INFO!C35=0," ",COUNTRY_INFO!C35)) -> Ogoulou | D35: =IF(INTRO!$E$43="Non-endemic", "Not required", COUNTRY_INFO!Z35) -> 0 | E35: =IF(OR(COUNTRY_INFO!S35="Unknown",COUNTRY_INFO!S35="Surveillance",COUNTRY_INFO!S35="Not required",COUNTRY_INFO!S35=0),0,IF($D35<>0, COUNTRY_INFO!S35,0)) -> 0 | F35: =IF(OR(COUNTRY_INFO!T35="Unknown",COUNTRY_INFO!T35="Surveillance",COUNTRY_INFO!T35="Not required",COUNTRY_INFO!T35=0),0,IF($D35<>0, COUNTRY_INFO!T35,0)) -> 0 | G35: =IF(OR(COUNTRY_INFO!U35="Unknown",COUNTRY_INFO!U35="Surveillance",COUNTRY_INFO!U35="Not required",COUNTRY_INFO!U35=0),0,IF($D35<>0, COUNTRY_INFO!U35,0)) -> 0 | H35: 0 | N35: =IF($I35<>"Yes",$F35*2,($F35+ROUND(J35*$F35/SUM(COUNTRY_INFO!$E35:$G35),0))*2) -> 0 | O35: =IF($I35<>"Yes",$G35*3,($G35+ROUND(J35*$G35/SUM(COUNTRY_INFO!$E35:$G35),0))*3) -> 0 | P35: 0 | R35: 0
A36: =IF(INTRO!$E$43="Non-endemic"," ", IF(COUNTRY_INFO!A36=0," ",COUNTRY_INFO!A36)) -> Gabon | B36: =IF(INTRO!$E$43="Non-endemic"," ", IF(COUNTRY_INFO!B36=0," ",COUNTRY_INFO!B36)) -> Ngounié | C36: =IF(INTRO!$E$43="Non-endemic"," ", IF(COUNTRY_INFO!C36=0," ",COUNTRY_INFO!C36)) -> Douya-Onoye | D36: =IF(INTRO!$E$43="Non-endemic", "Not required", COUNTRY_INFO!Z36) -> 1 | E36: =IF(OR(COUNTRY_INFO!S36="Unknown",COUNTRY_INFO!S36="Surveillance",COUNTRY_INFO!S36="Not required",COUNTRY_INFO!S36=0),0,IF($D36<>0, COUNTRY_INFO!S36,0)) -> 2998 | F36: =IF(OR(COUNTRY_INFO!T36="Unknown",COUNTRY_INFO!T36="Surveillance",COUNTRY_INFO!T36="Not required",COUNTRY_INFO!T36=0),0,IF($D36<>0, COUNTRY_INFO!T36,0)) -> 2998 | G36: =IF(OR(COUNTRY_INFO!U36="Unknown",COUNTRY_INFO!U36="Surveillance",COUNTRY_INFO!U36="Not required",COUNTRY_INFO!U36=0),0,IF($D36<>0, COUNTRY_INFO!U36,0)) -> 7175 | H36: 13171 | N36: =IF($I36<>"Yes",$F36*2,($F36+ROUND(J36*$F36/SUM(COUNTRY_INFO!$E36:$G36),0))*2) -> 5996 | O36: =IF($I36<>"Yes",$G36*3,($G36+ROUND(J36*$G36/SUM(COUNTRY_INFO!$E36:$G36),0))*3) -> 21525 | P36: 27521 | R36: 27521
A37: =IF(INTRO!$E$43="Non-endemic"," ", IF(COUNTRY_INFO!A37=0," ",COUNTRY_INFO!A37)) -> Gabon | B37: =IF(INTRO!$E$43="Non-endemic"," ", IF(COUNTRY_INFO!B37=0," ",COUNTRY_INFO!B37)) -> Ngounié | C37: =IF(INTRO!$E$43="Non-endemic"," ", IF(COUNTRY_INFO!C37=0," ",COUNTRY_INFO!C37)) -> Dola | D37: =IF(INTRO!$E$43="Non-endemic", "Not required", COUNTRY_INFO!Z37) -> 1 | E37: =IF(OR(COUNTRY_INFO!S37="Unknown",COUNTRY_INFO!S37="Surveillance",COUNTRY_INFO!S37="Not required",COUNTRY_INFO!S37=0),0,IF($D37<>0, COUNTRY_INFO!S37,0)) -> 672 | F37: =IF(OR(COUNTRY_INFO!T37="Unknown",COUNTRY_INFO!T37="Surveillance",COUNTRY_INFO!T37="Not required",COUNTRY_INFO!T37=0),0,IF($D37<>0, COUNTRY_INFO!T37,0)) -> 672 | G37: =IF(OR(COUNTRY_INFO!U37="Unknown",COUNTRY_INFO!U37="Surveillance",COUNTRY_INFO!U37="Not required",COUNTRY_INFO!U37=0),0,IF($D37<>0, COUNTRY_INFO!U37,0)) -> 1608 | H37: 2952 | N37: =IF($I37<>"Yes",$F37*2,($F37+ROUND(J37*$F37/SUM(COUNTRY_INFO!$E37:$G37),0))*2) -> 1344 | O37: =IF($I37<>"Yes",$G37*3,($G37+ROUND(J37*$G37/SUM(COUNTRY_INFO!$E37:$G37),0))*3) -> 4824 | P37: 6168 | R37: 6168
A38: =IF(INTRO!$E$43="Non-endemic"," ", IF(COUNTRY_INFO!A38=0," ",COUNTRY_INFO!A38)) -> Gabon | B38: =IF(INTRO!$E$43="Non-endemic"," ", IF(COUNTRY_INFO!B38=0," ",COUNTRY_INFO!B38)) -> Ngounié | C38: =IF(INTRO!$E$43="Non-endemic"," ", IF(COUNTRY_INFO!C38=0," ",COUNTRY_INFO!C38)) -> Mougalaba | D38: =IF(INTRO!$E$43="Non-endemic", "Not required", COUNTRY_INFO!Z38) -> 0 | E38: =IF(OR(COUNTRY_INFO!S38="Unknown",COUNTRY_INFO!S38="Surveillance",COUNTRY_INFO!S38="Not required",COUNTRY_INFO!S38=0),0,IF($D38<>0, COUNTRY_INFO!S38,0)) -> 0 | F38: =IF(OR(COUNTRY_INFO!T38="Unknown",COUNTRY_INFO!T38="Surveillance",COUNTRY_INFO!T38="Not required",COUNTRY_INFO!T38=0),0,IF($D38<>0, COUNTRY_INFO!T38,0)) -> 0 | G38: =IF(OR(COUNTRY_INFO!U38="Unknown",COUNTRY_INFO!U38="Surveillance",COUNTRY_INFO!U38="Not required",COUNTRY_INFO!U38=0),0,IF($D38<>0, COUNTRY_INFO!U38,0)) -> 0 | H38: 0 | N38: =IF($I38<>"Yes",$F38*2,($F38+ROUND(J38*$F38/SUM(COUNTRY_INFO!$E38:$G38),0))*2) -> 0 | O38: =IF($I38<>"Yes",$G38*3,($G38+ROUND(J38*$G38/SUM(COUNTRY_INFO!$E38:$G38),0))*3) -> 0 | P38: 0 | R38: 0
A39: =IF(INTRO!$E$43="Non-endemic"," ", IF(COUNTRY_INFO!A39=0," ",COUNTRY_INFO!A39)) -> Gabon | B39: =IF(INTRO!$E$43="Non-endemic"," ", IF(COUNTRY_INFO!B39=0," ",COUNTRY_INFO!B39)) -> Nyanga | C39: =IF(INTRO!$E$43="Non-endemic"," ", IF(COUNTRY_INFO!C39=0," ",COUNTRY_INFO!C39)) -> Doutsila | D39: =IF(INTRO!$E$43="Non-endemic", "Not required", COUNTRY_INFO!Z39) -> 0 | E39: =IF(OR(COUNTRY_INFO!S39="Unknown",COUNTRY_INFO!S39="Surveillance",COUNTRY_INFO!S39="Not required",COUNTRY_INFO!S39=0),0,IF($D39<>0, COUNTRY_INFO!S39,0)) -> 0 | F39: =IF(OR(COUNTRY_INFO!T39="Unknown",COUNTRY_INFO!T39="Surveillance",COUNTRY_INFO!T39="Not required",COUNTRY_INFO!T39=0),0,IF($D39<>0, COUNTRY_INFO!T39,0)) -> 0 | G39: =IF(OR(COUNTRY_INFO!U39="Unknown",COUNTRY_INFO!U39="Surveillance",COUNTRY_INFO!U39="Not required",COUNTRY_INFO!U39=0),0,IF($D39<>0, COUNTRY_INFO!U39,0)) -> 0 | H39: 0 | N39: =IF($I39<>"Yes",$F39*2,($F39+ROUND(J39*$F39/SUM(COUNTRY_INFO!$E39:$G39),0))*2) -> 0 | O39: =IF($I39<>"Yes",$G39*3,($G39+ROUND(J39*$G39/SUM(COUNTRY_INFO!$E39:$G39),0))*3) -> 0 | P39: 0 | R39: 0
A40: =IF(INTRO!$E$43="Non-endemic"," ", IF(COUNTRY_INFO!A40=0," ",COUNTRY_INFO!A40)) -> Gabon | B40: =IF(INTRO!$E$43="Non-endemic"," ", IF(COUNTRY_INFO!B40=0," ",COUNTRY_INFO!B40)) -> Nyanga | C40: =IF(INTRO!$E$43="Non-endemic"," ", IF(COUNTRY_INFO!C40=0," ",COUNTRY_INFO!C40)) -> Basse-Banio | D40: =IF(INTRO!$E$43="Non-endemic", "Not required", COUNTRY_INFO!Z40) -> 0 | E40: =IF(OR(COUNTRY_INFO!S40="Unknown",COUNTRY_INFO!S40="Surveillance",COUNTRY_INFO!S40="Not required",COUNTRY_INFO!S40=0),0,IF($D40<>0, COUNTRY_INFO!S40,0)) -> 0 | F40: =IF(OR(COUNTRY_INFO!T40="Unknown",COUNTRY_INFO!T40="Surveillance",COUNTRY_INFO!T40="Not required",COUNTRY_INFO!T40=0),0,IF($D40<>0, COUNTRY_INFO!T40,0)) -> 0 | G40: =IF(OR(COUNTRY_INFO!U40="Unknown",COUNTRY_INFO!U40="Surveillance",COUNTRY_INFO!U40="Not required",COUNTRY_INFO!U40=0),0,IF($D40<>0, COUNTRY_INFO!U40,0)) -> 0 | H40: 0 | N40: =IF($I40<>"Yes",$F40*2,($F40+ROUND(J40*$F40/SUM(COUNTRY_INFO!$E40:$G40),0))*2) -> 0 | O40: =IF($I40<>"Yes",$G40*3,($G40+ROUND(J40*$G40/SUM(COUNTRY_INFO!$E40:$G40),0))*3) -> 0 | P40: 0 | R40: 0
A41: =IF(INTRO!$E$43="Non-endemic"," ", IF(COUNTRY_INFO!A41=0," ",COUNTRY_INFO!A41)) -> Gabon | B41: =IF(INTRO!$E$43="Non-endemic"," ", IF(COUNTRY_INFO!B41=0," ",COUNTRY_INFO!B41)) -> Nyanga | C41: =IF(INTRO!$E$43="Non-endemic"," ", IF(COUNTRY_INFO!C41=0," ",COUNTRY_INFO!C41)) -> Douigny | D41: =IF(INTRO!$E$43="Non-endemic", "Not required", COUNTRY_INFO!Z41) -> 0 | E41: =IF(OR(COUNTRY_INFO!S41="Unknown",COUNTRY_INFO!S41="Surveillance",COUNTRY_INFO!S41="Not required",COUNTRY_INFO!S41=0),0,IF($D41<>0, COUNTRY_INFO!S41,0)) -> 0 | F41: =IF(OR(COUNTRY_INFO!T41="Unknown",COUNTRY_INFO!T41="Surveillance",COUNTRY_INFO!T41="Not required",COUNTRY_INFO!T41=0),0,IF($D41<>0, COUNTRY_INFO!T41,0)) -> 0 | G41: =IF(OR(COUNTRY_INFO!U41="Unknown",COUNTRY_INFO!U41="Surveillance",COUNTRY_INFO!U41="Not required",COUNTRY_INFO!U41=0),0,IF($D41<>0, COUNTRY_INFO!U41,0)) -> 0 | H41: 0 | N41: =IF($I41<>"Yes",$F41*2,($F41+ROUND(J41*$F41/SUM(COUNTRY_INFO!$E41:$G41),0))*2) -> 0 | O41: =IF($I41<>"Yes",$G41*3,($G41+ROUND(J41*$G41/SUM(COUNTRY_INFO!$E41:$G41),0))*3) -> 0 | P41: 0 | R41: 0
A42: =IF(INTRO!$E$43="Non-endemic"," ", IF(COUNTRY_INFO!A42=0," ",COUNTRY_INFO!A42)) -> Gabon | B42: =IF(INTRO!$E$43="Non-endemic"," ", IF(COUNTRY_INFO!B42=0," ",COUNTRY_INFO!B42)) -> Nyanga | C42: =IF(INTRO!$E$43="Non-endemic"," ", IF(COUNTRY_INFO!C42=0," ",COUNTRY_INFO!C42)) -> Mongo | D42: =IF(INTRO!$E$43="Non-endemic", "Not required", COUNTRY_INFO!Z42) -> 0 | E42: =IF(OR(COUNTRY_INFO!S42="Unknown",COUNTRY_INFO!S42="Surveillance",COUNTRY_INFO!S42="Not required",COUNTRY_INFO!S42=0),0,IF($D42<>0, COUNTRY_INFO!S42,0)) -> 0 | F42: =IF(OR(COUNTRY_INFO!T42="Unknown",COUNTRY_INFO!T42="Surveillance",COUNTRY_INFO!T42="Not required",COUNTRY_INFO!T42=0),0,IF($D42<>0, COUNTRY_INFO!T42,0)) -> 0 | G42: =IF(OR(COUNTRY_INFO!U42="Unknown",COUNTRY_INFO!U42="Surveillance",COUNTRY_INFO!U42="Not required",COUNTRY_INFO!U42=0),0,IF($D42<>0, COUNTRY_INFO!U42,0)) -> 0 | H42: 0 | N42: =IF($I42<>"Yes",$F42*2,($F42+ROUND(J42*$F42/SUM(COUNTRY_INFO!$E42:$G42),0))*2) -> 0 | O42: =IF($I42<>"Yes",$G42*3,($G42+ROUND(J42*$G42/SUM(COUNTRY_INFO!$E42:$G42),0))*3) -> 0 | P42: 0 | R42: 0
A43: =IF(INTRO!$E$43="Non-endemic"," ", IF(COUNTRY_INFO!A43=0," ",COUNTRY_INFO!A43)) -> Gabon | B43: =IF(INTRO!$E$43="Non-endemic"," ", IF(COUNTRY_INFO!B43=0," ",COUNTRY_INFO!B43)) -> Nyanga | C43: =IF(INTRO!$E$43="Non-endemic"," ", IF(COUNTRY_INFO!C43=0," ",COUNTRY_INFO!C43)) -> Haute-Banio | D43: =IF(INTRO!$E$43="Non-endemic", "Not required", COUNTRY_INFO!Z43) -> 0 | E43: =IF(OR(COUNTRY_INFO!S43="Unknown",COUNTRY_INFO!S43="Surveillance",COUNTRY_INFO!S43="Not required",COUNTRY_INFO!S43=0),0,IF($D43<>0, COUNTRY_INFO!S43,0)) -> 0 | F43: =IF(OR(COUNTRY_INFO!T43="Unknown",COUNTRY_INFO!T43="Surveillance",COUNTRY_INFO!T43="Not required",COUNTRY_INFO!T43=0),0,IF($D43<>0, COUNTRY_INFO!T43,0)) -> 0 | G43: =IF(OR(COUNTRY_INFO!U43="Unknown",COUNTRY_INFO!U43="Surveillance",COUNTRY_INFO!U43="Not required",COUNTRY_INFO!U43=0),0,IF($D43<>0, COUNTRY_INFO!U43,0)) -> 0 | H43: 0 | N43: =IF($I43<>"Yes",$F43*2,($F43+ROUND(J43*$F43/SUM(COUNTRY_INFO!$E43:$G43),0))*2) -> 0 | O43: =IF($I43<>"Yes",$G43*3,($G43+ROUND(J43*$G43/SUM(COUNTRY_INFO!$E43:$G43),0))*3) -> 0 | P43: 0 | R43: 0
A44: =IF(INTRO!$E$43="Non-endemic"," ", IF(COUNTRY_INFO!A44=0," ",COUNTRY_INFO!A44)) -> Gabon | B44: =IF(INTRO!$E$43="Non-endemic"," ", IF(COUNTRY_INFO!B44=0," ",COUNTRY_INFO!B44)) -> Nyanga | C44: =IF(INTRO!$E$43="Non-endemic"," ", IF(COUNTRY_INFO!C44=0," ",COUNTRY_INFO!C44)) -> Mougoutsi | D44: =IF(INTRO!$E$43="Non-endemic", "Not required", COUNTRY_INFO!Z44) -> 0 | E44: =IF(OR(COUNTRY_INFO!S44="Unknown",COUNTRY_INFO!S44="Surveillance",COUNTRY_INFO!S44="Not required",COUNTRY_INFO!S44=0),0,IF($D44<>0, COUNTRY_INFO!S44,0)) -> 0 | F44: =IF(OR(COUNTRY_INFO!T44="Unknown",COUNTRY_INFO!T44="Surveillance",COUNTRY_INFO!T44="Not required",COUNTRY_INFO!T44=0),0,IF($D44<>0, COUNTRY_INFO!T44,0)) -> 0 | G44: =IF(OR(COUNTRY_INFO!U44="Unknown",COUNTRY_INFO!U44="Surveillance",COUNTRY_INFO!U44="Not required",COUNTRY_INFO!U44=0),0,IF($D44<>0, COUNTRY_INFO!U44,0)) -> 0 | H44: 0 | N44: =IF($I44<>"Yes",$F44*2,($F44+ROUND(J44*$F44/SUM(COUNTRY_INFO!$E44:$G44),0))*2) -> 0 | O44: =IF($I44<>"Yes",$G44*3,($G44+ROUND(J44*$G44/SUM(COUNTRY_INFO!$E44:$G44),0))*3) -> 0 | P44: 0 | R44: 0
A45: =IF(INTRO!$E$43="Non-endemic"," ", IF(COUNTRY_INFO!A45=0," ",COUNTRY_INFO!A45)) -> Gabon | B45: =IF(INTRO!$E$43="Non-endemic"," ", IF(COUNTRY_INFO!B45=0," ",COUNTRY_INFO!B45)) -> Ogooué-Ivindo | C45: =IF(INTRO!$E$43="Non-endemic"," ", IF(COUNTRY_INFO!C45=0," ",COUNTRY_INFO!C45)) -> Lopé | D45: =IF(INTRO!$E$43="Non-endemic", "Not required", COUNTRY_INFO!Z45) -> 0 | E45: =IF(OR(COUNTRY_INFO!S45="Unknown",COUNTRY_INFO!S45="Surveillance",COUNTRY_INFO!S45="Not required",COUNTRY_INFO!S45=0),0,IF($D45<>0, COUNTRY_INFO!S45,0)) -> 0 | F45: =IF(OR(COUNTRY_INFO!T45="Unknown",COUNTRY_INFO!T45="Surveillance",COUNTRY_INFO!T45="Not required",COUNTRY_INFO!T45=0),0,IF($D45<>0, COUNTRY_INFO!T45,0)) -> 0 | G45: =IF(OR(COUNTRY_INFO!U45="Unknown",COUNTRY_INFO!U45="Surveillance",COUNTRY_INFO!U45="Not required",COUNTRY_INFO!U45=0),0,IF($D45<>0, COUNTRY_INFO!U45,0)) -> 0 | H45: 0 | N45: =IF($I45<>"Yes",$F45*2,($F45+ROUND(J45*$F45/SUM(COUNTRY_INFO!$E45:$G45),0))*2) -> 0 | O45: =IF($I45<>"Yes",$G45*3,($G45+ROUND(J45*$G45/SUM(COUNTRY_INFO!$E45:$G45),0))*3) -> 0 | P45: 0 | R45: 0
A46: =IF(INTRO!$E$43="Non-endemic"," ", IF(COUNTRY_INFO!A46=0," ",COUNTRY_INFO!A46)) -> Gabon | B46: =IF(INTRO!$E$43="Non-endemic"," ", IF(COUNTRY_INFO!B46=0," ",COUNTRY_INFO!B46)) -> Ogooué-Ivindo | C46: =IF(INTRO!$E$43="Non-endemic"," ", IF(COUNTRY_INFO!C46=0," ",COUNTRY_INFO!C46)) -> Ivindo | D46: =IF(INTRO!$E$43="Non-endemic", "Not required", COUNTRY_INFO!Z46) -> 0 | E46: =IF(OR(COUNTRY_INFO!S46="Unknown",COUNTRY_INFO!S46="Surveillance",COUNTRY_INFO!S46="Not required",COUNTRY_INFO!S46=0),0,IF($D46<>0, COUNTRY_INFO!S46,0)) -> 0 | F46: =IF(OR(COUNTRY_INFO!T46="Unknown",COUNTRY_INFO!T46="Surveillance",COUNTRY_INFO!T46="Not required",COUNTRY_INFO!T46=0),0,IF($D46<>0, COUNTRY_INFO!T46,0)) -> 0 | G46: =IF(OR(COUNTRY_INFO!U46="Unknown",COUNTRY_INFO!U46="Surveillance",COUNTRY_INFO!U46="Not required",COUNTRY_INFO!U46=0),0,IF($D46<>0, COUNTRY_INFO!U46,0)) -> 0 | H46: 0 | N46: =IF($I46<>"Yes",$F46*2,($F46+ROUND(J46*$F46/SUM(COUNTRY_INFO!$E46:$G46),0))*2) -> 0 | O46: =IF($I46<>"Yes",$G46*3,($G46+ROUND(J46*$G46/SUM(COUNTRY_INFO!$E46:$G46),0))*3) -> 0 | P46: 0 | R46: 0
A47: =IF(INTRO!$E$43="Non-endemic"," ", IF(COUNTRY_INFO!A47=0," ",COUNTRY_INFO!A47)) -> Gabon | B47: =IF(INTRO!$E$43="Non-endemic"," ", IF(COUNTRY_INFO!B47=0," ",COUNTRY_INFO!B47)) -> Ogooué-Ivindo | C47: =IF(INTRO!$E$43="Non-endemic"," ", IF(COUNTRY_INFO!C47=0," ",COUNTRY_INFO!C47)) -> Zadié | D47: =IF(INTRO!$E$43="Non-endemic", "Not required", COUNTRY_INFO!Z47) -> 0 | E47: =IF(OR(COUNTRY_INFO!S47="Unknown",COUNTRY_INFO!S47="Surveillance",COUNTRY_INFO!S47="Not required",COUNTRY_INFO!S47=0),0,IF($D47<>0, COUNTRY_INFO!S47,0)) -> 0 | F47: =IF(OR(COUNTRY_INFO!T47="Unknown",COUNTRY_INFO!T47="Surveillance",COUNTRY_INFO!T47="Not required",COUNTRY_INFO!T47=0),0,IF($D47<>0, COUNTRY_INFO!T47,0)) -> 0 | G47: =IF(OR(COUNTRY_INFO!U47="Unknown",COUNTRY_INFO!U47="Surveillance",COUNTRY_INFO!U47="Not required",COUNTRY_INFO!U47=0),0,IF($D47<>0, COUNTRY_INFO!U47,0)) -> 0 | H47: 0 | N47: =IF($I47<>"Yes",$F47*2,($F47+ROUND(J47*$F47/SUM(COUNTRY_INFO!$E47:$G47),0))*2) -> 0 | O47: =IF($I47<>"Yes",$G47*3,($G47+ROUND(J47*$G47/SUM(COUNTRY_INFO!$E47:$G47),0))*3) -> 0 | P47: 0 | R47: 0
A48: =IF(INTRO!$E$43="Non-endemic"," ", IF(COUNTRY_INFO!A48=0," ",COUNTRY_INFO!A48)) -> Gabon | B48: =IF(INTRO!$E$43="Non-endemic"," ", IF(COUNTRY_INFO!B48=0," ",COUNTRY_INFO!B48)) -> Ogooué-Ivindo | C48: =IF(INTRO!$E$43="Non-endemic"," ", IF(COUNTRY_INFO!C48=0," ",COUNTRY_INFO!C48)) -> Mvoung | D48: =IF(INTRO!$E$43="Non-endemic", "Not required", COUNTRY_INFO!Z48) -> 1 | E48: =IF(OR(COUNTRY_INFO!S48="Unknown",COUNTRY_INFO!S48="Surveillance",COUNTRY_INFO!S48="Not required",COUNTRY_INFO!S48=0),0,IF($D48<>0, COUNTRY_INFO!S48,0)) -> 46 | F48: =IF(OR(COUNTRY_INFO!T48="Unknown",COUNTRY_INFO!T48="Surveillance",COUNTRY_INFO!T48="Not required",COUNTRY_INFO!T48=0),0,IF($D48<>0, COUNTRY_INFO!T48,0)) -> 46 | G48: =IF(OR(COUNTRY_INFO!U48="Unknown",COUNTRY_INFO!U48="Surveillance",COUNTRY_INFO!U48="Not required",COUNTRY_INFO!U48=0),0,IF($D48<>0, COUNTRY_INFO!U48,0)) -> 108 | H48: 200 | N48: =IF($I48<>"Yes",$F48*2,($F48+ROUND(J48*$F48/SUM(COUNTRY_INFO!$E48:$G48),0))*2) -> 92 | O48: =IF($I48<>"Yes",$G48*3,($G48+ROUND(J48*$G48/SUM(COUNTRY_INFO!$E48:$G48),0))*3) -> 324 | P48: 416 | R48: 416
A49: =IF(INTRO!$E$43="Non-endemic"," ", IF(COUNTRY_INFO!A49=0," ",COUNTRY_INFO!A49)) -> Gabon | B49: =IF(INTRO!$E$43="Non-endemic"," ", IF(COUNTRY_INFO!B49=0," ",COUNTRY_INFO!B49)) -> Ogooué-Lolo | C49: =IF(INTRO!$E$43="Non-endemic"," ", IF(COUNTRY_INFO!C49=0," ",COUNTRY_INFO!C49)) -> Offoué-Onoye | D49: =IF(INTRO!$E$43="Non-endemic", "Not required", COUNTRY_INFO!Z49) -> 1 | E49: =IF(OR(COUNTRY_INFO!S49="Unknown",COUNTRY_INFO!S49="Surveillance",COUNTRY_INFO!S49="Not required",COUNTRY_INFO!S49=0),0,IF($D49<>0, COUNTRY_INFO!S49,0)) -> 55 | F49: =IF(OR(COUNTRY_INFO!T49="Unknown",COUNTRY_INFO!T49="Surveillance",COUNTRY_INFO!T49="Not required",COUNTRY_INFO!T49=0),0,IF($D49<>0, COUNTRY_INFO!T49,0)) -> 55 | G49: =IF(OR(COUNTRY_INFO!U49="Unknown",COUNTRY_INFO!U49="Surveillance",COUNTRY_INFO!U49="Not required",COUNTRY_INFO!U49=0),0,IF($D49<>0, COUNTRY_INFO!U49,0)) -> 132 | H49: 242 | N49: =IF($I49<>"Yes",$F49*2,($F49+ROUND(J49*$F49/SUM(COUNTRY_INFO!$E49:$G49),0))*2) -> 110 | O49: =IF($I49<>"Yes",$G49*3,($G49+ROUND(J49*$G49/SUM(COUNTRY_INFO!$E49:$G49),0))*3) -> 396 | P49: 506 | R49: 506
A50: =IF(INTRO!$E$43="Non-endemic"," ", IF(COUNTRY_INFO!A50=0," ",COUNTRY_INFO!A50)) -> Gabon | B50: =IF(INTRO!$E$43="Non-endemic"," ", IF(COUNTRY_INFO!B50=0," ",COUNTRY_INFO!B50)) -> Ogooué-Lolo | C50: =IF(INTRO!$E$43="Non-endemic"," ", IF(COUNTRY_INFO!C50=0," ",COUNTRY_INFO!C50)) -> Lolo-Bouenguidi | D50: =IF(INTRO!$E$43="Non-endemic", "Not required", COUNTRY_INFO!Z50) -> 1 | E50: =IF(OR(COUNTRY_INFO!S50="Unknown",COUNTRY_INFO!S50="Surveillance",COUNTRY_INFO!S50="Not required",COUNTRY_INFO!S50=0),0,IF($D50<>0, COUNTRY_INFO!S50,0)) -> 2468 | F50: =IF(OR(COUNTRY_INFO!T50="Unknown",COUNTRY_INFO!T50="Surveillance",COUNTRY_INFO!T50="Not required",COUNTRY_INFO!T50=0),0,IF($D50<>0, COUNTRY_INFO!T50,0)) -> 2468 | G50: =IF(OR(COUNTRY_INFO!U50="Unknown",COUNTRY_INFO!U50="Surveillance",COUNTRY_INFO!U50="Not required",COUNTRY_INFO!U50=0),0,IF($D50<>0, COUNTRY_INFO!U50,0)) -> 5903 | H50: 10839 | N50: =IF($I50<>"Yes",$F50*2,($F50+ROUND(J50*$F50/SUM(COUNTRY_INFO!$E50:$G50),0))*2) -> 4936 | O50: =IF($I50<>"Yes",$G50*3,($G50+ROUND(J50*$G50/SUM(COUNTRY_INFO!$E50:$G50),0))*3) -> 17709 | P50: 22645 | R50: 22645
A51: =IF(INTRO!$E$43="Non-endemic"," ", IF(COUNTRY_INFO!A51=0," ",COUNTRY_INFO!A51)) -> Gabon | B51: =IF(INTRO!$E$43="Non-endemic"," ", IF(COUNTRY_INFO!B51=0," ",COUNTRY_INFO!B51)) -> Ogooué-Lolo | C51: =IF(INTRO!$E$43="Non-endemic"," ", IF(COUNTRY_INFO!C51=0," ",COUNTRY_INFO!C51)) -> Mulundu | D51: =IF(INTRO!$E$43="Non-endemic", "Not required", COUNTRY_INFO!Z51) -> 1 | E51: =IF(OR(COUNTRY_INFO!S51="Unknown",COUNTRY_INFO!S51="Surveillance",COUNTRY_INFO!S51="Not required",COUNTRY_INFO!S51=0),0,IF($D51<>0, COUNTRY_INFO!S51,0)) -> 752 | F51: =IF(OR(COUNTRY_INFO!T51="Unknown",COUNTRY_INFO!T51="Surveillance",COUNTRY_INFO!T51="Not required",COUNTRY_INFO!T51=0),0,IF($D51<>0, COUNTRY_INFO!T51,0)) -> 752 | G51: =IF(OR(COUNTRY_INFO!U51="Unknown",COUNTRY_INFO!U51="Surveillance",COUNTRY_INFO!U51="Not required",COUNTRY_INFO!U51=0),0,IF($D51<>0, COUNTRY_INFO!U51,0)) -> 1797 | H51: 3301 | N51: =IF($I51<>"Yes",$F51*2,($F51+ROUND(J51*$F51/SUM(COUNTRY_INFO!$E51:$G51),0))*2) -> 1504 | O51: =IF($I51<>"Yes",$G51*3,($G51+ROUND(J51*$G51/SUM(COUNTRY_INFO!$E51:$G51),0))*3) -> 5391 | P51: 6895 | R51: 6895
A52: =IF(INTRO!$E$43="Non-endemic"," ", IF(COUNTRY_INFO!A52=0," ",COUNTRY_INFO!A52)) -> Gabon | B52: =IF(INTRO!$E$43="Non-endemic"," ", IF(COUNTRY_INFO!B52=0," ",COUNTRY_INFO!B52)) -> Ogooué-Lolo | C52: =IF(INTRO!$E$43="Non-endemic"," ", IF(COUNTRY_INFO!C52=0," ",COUNTRY_INFO!C52)) -> Lombo-Bouenguidi | D52: =IF(INTRO!$E$43="Non-endemic", "Not required", COUNTRY_INFO!Z52) -> 0 | E52: =IF(OR(COUNTRY_INFO!S52="Unknown",COUNTRY_INFO!S52="Surveillance",COUNTRY_INFO!S52="Not required",COUNTRY_INFO!S52=0),0,IF($D52<>0, COUNTRY_INFO!S52,0)) -> 0 | F52: =IF(OR(COUNTRY_INFO!T52="Unknown",COUNTRY_INFO!T52="Surveillance",COUNTRY_INFO!T52="Not required",COUNTRY_INFO!T52=0),0,IF($D52<>0, COUNTRY_INFO!T52,0)) -> 0 | G52: =IF(OR(COUNTRY_INFO!U52="Unknown",COUNTRY_INFO!U52="Surveillance",COUNTRY_INFO!U52="Not required",COUNTRY_INFO!U52=0),0,IF($D52<>0, COUNTRY_INFO!U52,0)) -> 0 | H52: 0 | N52: =IF($I52<>"Yes",$F52*2,($F52+ROUND(J52*$F52/SUM(COUNTRY_INFO!$E52:$G52),0))*2) -> 0 | O52: =IF($I52<>"Yes",$G52*3,($G52+ROUND(J52*$G52/SUM(COUNTRY_INFO!$E52:$G52),0))*3) -> 0 | P52: 0 | R52: 0
A53: =IF(INTRO!$E$43="Non-endemic"," ", IF(COUNTRY_INFO!A53=0," ",COUNTRY_INFO!A53)) -> Gabon | B53: =IF(INTRO!$E$43="Non-endemic"," ", IF(COUNTRY_INFO!B53=0," ",COUNTRY_INFO!B53)) -> Ogooué-maritime | C53: =IF(INTRO!$E$43="Non-endemic"," ", IF(COUNTRY_INFO!C53=0," ",COUNTRY_INFO!C53)) -> Ndougou | D53: =IF(INTRO!$E$43="Non-endemic", "Not required", COUNTRY_INFO!Z53) -> 0 | E53: =IF(OR(COUNTRY_INFO!S53="Unknown",COUNTRY_INFO!S53="Surveillance",COUNTRY_INFO!S53="Not required",COUNTRY_INFO!S53=0),0,IF($D53<>0, COUNTRY_INFO!S53,0)) -> 0 | F53: =IF(OR(COUNTRY_INFO!T53="Unknown",COUNTRY_INFO!T53="Surveillance",COUNTRY_INFO!T53="Not required",COUNTRY_INFO!T53=0),0,IF($D53<>0, COUNTRY_INFO!T53,0)) -> 0 | G53: =IF(OR(COUNTRY_INFO!U53="Unknown",COUNTRY_INFO!U53="Surveillance",COUNTRY_INFO!U53="Not required",COUNTRY_INFO!U53=0),0,IF($D53<>0, COUNTRY_INFO!U53,0)) -> 0 | H53: 0 | N53: =IF($I53<>"Yes",$F53*2,($F53+ROUND(J53*$F53/SUM(COUNTRY_INFO!$E53:$G53),0))*2) -> 0 | O53: =IF($I53<>"Yes",$G53*3,($G53+ROUND(J53*$G53/SUM(COUNTRY_INFO!$E53:$G53),0))*3) -> 0 | P53: 0 | R53: 0
A54: =IF(INTRO!$E$43="Non-endemic"," ", IF(COUNTRY_INFO!A54=0," ",COUNTRY_INFO!A54)) -> Gabon | B54: =IF(INTRO!$E$43="Non-endemic"," ", IF(COUNTRY_INFO!B54=0," ",COUNTRY_INFO!B54)) -> Ogooué-maritime | C54: =IF(INTRO!$E$43="Non-endemic"," ", IF(COUNTRY_INFO!C54=0," ",COUNTRY_INFO!C54)) -> Etimboué | D54: =IF(INTRO!$E$43="Non-endemic", "Not required", COUNTRY_INFO!Z54) -> 0 | E54: =IF(OR(COUNTRY_INFO!S54="Unknown",COUNTRY_INFO!S54="Surveillance",COUNTRY_INFO!S54="Not required",COUNTRY_INFO!S54=0),0,IF($D54<>0, COUNTRY_INFO!S54,0)) -> 0 | F54: =IF(OR(COUNTRY_INFO!T54="Unknown",COUNTRY_INFO!T54="Surveillance",COUNTRY_INFO!T54="Not required",COUNTRY_INFO!T54=0),0,IF($D54<>0, COUNTRY_INFO!T54,0)) -> 0 | G54: =IF(OR(COUNTRY_INFO!U54="Unknown",COUNTRY_INFO!U54="Surveillance",COUNTRY_INFO!U54="Not required",COUNTRY_INFO!U54=0),0,IF($D54<>0, COUNTRY_INFO!U54,0)) -> 0 | H54: 0 | N54: =IF($I54<>"Yes",$F54*2,($F54+ROUND(J54*$F54/SUM(COUNTRY_INFO!$E54:$G54),0))*2) -> 0 | O54: =IF($I54<>"Yes",$G54*3,($G54+ROUND(J54*$G54/SUM(COUNTRY_INFO!$E54:$G54),0))*3) -> 0 | P54: 0 | R54: 0
A55: =IF(INTRO!$E$43="Non-endemic"," ", IF(COUNTRY_INFO!A55=0," ",COUNTRY_INFO!A55)) -> Gabon | B55: =IF(INTRO!$E$43="Non-endemic"," ", IF(COUNTRY_INFO!B55=0," ",COUNTRY_INFO!B55)) -> Ogooué-maritime | C55: =IF(INTRO!$E$43="Non-endemic"," ", IF(COUNTRY_INFO!C55=0," ",COUNTRY_INFO!C55)) -> Bendjé | D55: =IF(INTRO!$E$43="Non-endemic", "Not required", COUNTRY_INFO!Z55) -> 1 | E55: =IF(OR(COUNTRY_INFO!S55="Unknown",COUNTRY_INFO!S55="Surveillance",COUNTRY_INFO!S55="Not required",COUNTRY_INFO!S55=0),0,IF($D55<>0, COUNTRY_INFO!S55,0)) -> 7792 | F55: =IF(OR(COUNTRY_INFO!T55="Unknown",COUNTRY_INFO!T55="Surveillance",COUNTRY_INFO!T55="Not required",COUNTRY_INFO!T55=0),0,IF($D55<>0, COUNTRY_INFO!T55,0)) -> 7791 | G55: =IF(OR(COUNTRY_INFO!U55="Unknown",COUNTRY_INFO!U55="Surveillance",COUNTRY_INFO!U55="Not required",COUNTRY_INFO!U55=0),0,IF($D55<>0, COUNTRY_INFO!U55,0)) -> 18638 | H55: 34221 | N55: =IF($I55<>"Yes",$F55*2,($F55+ROUND(J55*$F55/SUM(COUNTRY_INFO!$E55:$G55),0))*2) -> 15582 | O55: =IF($I55<>"Yes",$G55*3,($G55+ROUND(J55*$G55/SUM(COUNTRY_INFO!$E55:$G55),0))*3) -> 55914 | P55: 71496 | R55: 71496
A56: =IF(INTRO!$E$43="Non-endemic"," ", IF(COUNTRY_INFO!A56=0," ",COUNTRY_INFO!A56)) -> Gabon | B56: =IF(INTRO!$E$43="Non-endemic"," ", IF(COUNTRY_INFO!B56=0," ",COUNTRY_INFO!B56)) -> Woleu-Ntem | C56: =IF(INTRO!$E$43="Non-endemic"," ", IF(COUNTRY_INFO!C56=0," ",COUNTRY_INFO!C56)) -> Ntem | D56: =IF(INTRO!$E$43="Non-endemic", "Not required", COUNTRY_INFO!Z56) -> 0 | E56: =IF(OR(COUNTRY_INFO!S56="Unknown",COUNTRY_INFO!S56="Surveillance",COUNTRY_INFO!S56="Not required",COUNTRY_INFO!S56=0),0,IF($D56<>0, COUNTRY_INFO!S56,0)) -> 0 | F56: =IF(OR(COUNTRY_INFO!T56="Unknown",COUNTRY_INFO!T56="Surveillance",COUNTRY_INFO!T56="Not required",COUNTRY_INFO!T56=0),0,IF($D56<>0, COUNTRY_INFO!T56,0)) -> 0 | G56: =IF(OR(COUNTRY_INFO!U56="Unknown",COUNTRY_INFO!U56="Surveillance",COUNTRY_INFO!U56="Not required",COUNTRY_INFO!U56=0),0,IF($D56<>0, COUNTRY_INFO!U56,0)) -> 0 | H56: 0 | N56: =IF($I56<>"Yes",$F56*2,($F56+ROUND(J56*$F56/SUM(COUNTRY_INFO!$E56:$G56),0))*2) -> 0 | O56: =IF($I56<>"Yes",$G56*3,($G56+ROUND(J56*$G56/SUM(COUNTRY_INFO!$E56:$G56),0))*3) -> 0 | P56: 0 | R56: 0
A57: =IF(INTRO!$E$43="Non-endemic"," ", IF(COUNTRY_INFO!A57=0," ",COUNTRY_INFO!A57)) -> Gabon | B57: =IF(INTRO!$E$43="Non-endemic"," ", IF(COUNTRY_INFO!B57=0," ",COUNTRY_INFO!B57)) -> Woleu-Ntem | C57: =IF(INTRO!$E$43="Non-endemic"," ", IF(COUNTRY_INFO!C57=0," ",COUNTRY_INFO!C57)) -> Haut-Komo | D57: =IF(INTRO!$E$43="Non-endemic", "Not required", COUNTRY_INFO!Z57) -> 0 | E57: =IF(OR(COUNTRY_INFO!S57="Unknown",COUNTRY_INFO!S57="Surveillance",COUNTRY_INFO!S57="Not required",COUNTRY_INFO!S57=0),0,IF($D57<>0, COUNTRY_INFO!S57,0)) -> 0 | F57: =IF(OR(COUNTRY_INFO!T57="Unknown",COUNTRY_INFO!T57="Surveillance",COUNTRY_INFO!T57="Not required",COUNTRY_INFO!T57=0),0,IF($D57<>0, COUNTRY_INFO!T57,0)) -> 0 | G57: =IF(OR(COUNTRY_INFO!U57="Unknown",COUNTRY_INFO!U57="Surveillance",COUNTRY_INFO!U57="Not required",COUNTRY_INFO!U57=0),0,IF($D57<>0, COUNTRY_INFO!U57,0)) -> 0 | H57: 0 | N57: =IF($I57<>"Yes",$F57*2,($F57+ROUND(J57*$F57/SUM(COUNTRY_INFO!$E57:$G57),0))*2) -> 0 | O57: =IF($I57<>"Yes",$G57*3,($G57+ROUND(J57*$G57/SUM(COUNTRY_INFO!$E57:$G57),0))*3) -> 0 | P57: 0 | R57: 0
A58: =IF(INTRO!$E$43="Non-endemic"," ", IF(COUNTRY_INFO!A58=0," ",COUNTRY_INFO!A58)) -> Gabon | B58: =IF(INTRO!$E$43="Non-endemic"," ", IF(COUNTRY_INFO!B58=0," ",COUNTRY_INFO!B58)) -> Woleu-Ntem | C58: =IF(INTRO!$E$43="Non-endemic"," ", IF(COUNTRY_INFO!C58=0," ",COUNTRY_INFO!C58)) -> Haut-Ntem | D58: =IF(INTRO!$E$43="Non-endemic", "Not required", COUNTRY_INFO!Z58) -> 0 | E58: =IF(OR(COUNTRY_INFO!S58="Unknown",COUNTRY_INFO!S58="Surveillance",COUNTRY_INFO!S58="Not required",COUNTRY_INFO!S58=0),0,IF($D58<>0, COUNTRY_INFO!S58,0)) -> 0 | F58: =IF(OR(COUNTRY_INFO!T58="Unknown",COUNTRY_INFO!T58="Surveillance",COUNTRY_INFO!T58="Not required",COUNTRY_INFO!T58=0),0,IF($D58<>0, COUNTRY_INFO!T58,0)) -> 0 | G58: =IF(OR(COUNTRY_INFO!U58="Unknown",COUNTRY_INFO!U58="Surveillance",COUNTRY_INFO!U58="Not required",COUNTRY_INFO!U58=0),0,IF($D58<>0, COUNTRY_INFO!U58,0)) -> 0 | H58: 0 | N58: =IF($I58<>"Yes",$F58*2,($F58+ROUND(J58*$F58/SUM(COUNTRY_INFO!$E58:$G58),0))*2) -> 0 | O58: =IF($I58<>"Yes",$G58*3,($G58+ROUND(J58*$G58/SUM(COUNTRY_INFO!$E58:$G58),0))*3) -> 0 | P58: 0 | R58: 0
A59: =IF(INTRO!$E$43="Non-endemic"," ", IF(COUNTRY_INFO!A59=0," ",COUNTRY_INFO!A59)) -> Gabon | B59: =IF(INTRO!$E$43="Non-endemic"," ", IF(COUNTRY_INFO!B59=0," ",COUNTRY_INFO!B59)) -> Woleu-Ntem | C59: =IF(INTRO!$E$43="Non-endemic"," ", IF(COUNTRY_INFO!C59=0," ",COUNTRY_INFO!C59)) -> Okano | D59: =IF(INTRO!$E$43="Non-endemic", "Not required", COUNTRY_INFO!Z59) -> 0 | E59: =IF(OR(COUNTRY_INFO!S59="Unknown",COUNTRY_INFO!S59="Surveillance",COUNTRY_INFO!S59="Not required",COUNTRY_INFO!S59=0),0,IF($D59<>0, COUNTRY_INFO!S59,0)) -> 0 | F59: =IF(OR(COUNTRY_INFO!T59="Unknown",COUNTRY_INFO!T59="Surveillance",COUNTRY_INFO!T59="Not required",COUNTRY_INFO!T59=0),0,IF($D59<>0, COUNTRY_INFO!T59,0)) -> 0 | G59: =IF(OR(COUNTRY_INFO!U59="Unknown",COUNTRY_INFO!U59="Surveillance",COUNTRY_INFO!U59="Not required",COUNTRY_INFO!U59=0),0,IF($D59<>0, COUNTRY_INFO!U59,0)) -> 0 | H59: 0 | N59: =IF($I59<>"Yes",$F59*2,($F59+ROUND(J59*$F59/SUM(COUNTRY_INFO!$E59:$G59),0))*2) -> 0 | O59: =IF($I59<>"Yes",$G59*3,($G59+ROUND(J59*$G59/SUM(COUNTRY_INFO!$E59:$G59),0))*3) -> 0 | P59: 0 | R59: 0
A60: =IF(INTRO!$E$43="Non-endemic"," ", IF(COUNTRY_INFO!A60=0," ",COUNTRY_INFO!A60)) -> Gabon | B60: =IF(INTRO!$E$43="Non-endemic"," ", IF(COUNTRY_INFO!B60=0," ",COUNTRY_INFO!B60)) -> Woleu-Ntem | C60: =IF(INTRO!$E$43="Non-endemic"," ", IF(COUNTRY_INFO!C60=0," ",COUNTRY_INFO!C60)) -> Woleu | D60: =IF(INTRO!$E$43="Non-endemic", "Not required", COUNTRY_INFO!Z60) -> 0 | E60: =IF(OR(COUNTRY_INFO!S60="Unknown",COUNTRY_INFO!S60="Surveillance",COUNTRY_INFO!S60="Not required",COUNTRY_INFO!S60=0),0,IF($D60<>0, COUNTRY_INFO!S60,0)) -> 0 | F60: =IF(OR(COUNTRY_INFO!T60="Unknown",COUNTRY_INFO!T60="Surveillance",COUNTRY_INFO!T60="Not required",COUNTRY_INFO!T60=0),0,IF($D60<>0, COUNTRY_INFO!T60,0)) -> 0 | G60: =IF(OR(COUNTRY_INFO!U60="Unknown",COUNTRY_INFO!U60="Surveillance",COUNTRY_INFO!U60="Not required",COUNTRY_INFO!U60=0),0,IF($D60<>0, COUNTRY_INFO!U60,0)) -> 0 | H60: 0 | N60: =IF($I60<>"Yes",$F60*2,($F60+ROUND(J60*$F60/SUM(COUNTRY_INFO!$E60:$G60),0))*2) -> 0 | O60: =IF($I60<>"Yes",$G60*3,($G60+ROUND(J60*$G60/SUM(COUNTRY_INFO!$E60:$G60),0))*3) -> 0 | P60: 0 | R60: 0

Sheet IVM
A1: Ivermectin (IVM)
A2: Administrative structure, eligible population by age group, treatment plan and information about tablets
A4: TOTAL | D4: =SUBTOTAL(9,D$10:D$1010) -> 808894 | G4: =SUBTOTAL(9,G$10:G$1010) -> 26298 | H4: 0 | I4: 73634.4 | J4: 0 | K4: 0 | L4: 73634.4 | M4: 0 | N4: 73634.4
A6: Country administrative structure | D6: Population requiring treatment with IVM | E6: Treatment plan | G6: Target population | I6: Ivermectin (IVM)
A7: Country | B7: Province/State | C7: District | E7: LF | F7: Oncho | G7: LF | H7: Oncho | I7: LF only | J7: Oncho only | K7: LF+Oncho | L7: Total required | M7: Remaining in stock | N7: Tablets to be procured
A10: =IF(INTRO!$E$39="Non-endemic"," ",IF(COUNTRY_INFO!A10=0," ",COUNTRY_INFO!A10)) -> Gabon | B10: =IF(INTRO!$E$39="Non-endemic"," ",IF(COUNTRY_INFO!B10=0," ",COUNTRY_INFO!B10)) -> Libreville -Owendo | C10: =IF(INTRO!$E$39="Non-endemic"," ",IF(COUNTRY_INFO!C10=0," ",COUNTRY_INFO!C10)) -> Libreville 1 | D10: =IF(INTRO!$E$39="Non-endemic",0,IF(INTRO!$E$39="Endemic but PC is not required",IF(COUNTRY_INFO!$H10=1,COUNTRY_INFO!F10+COUNTRY_INFO!G10,0),IF(COUNTRY_INFO!$H10=1,COUNTRY_INFO!F10+COUNTRY_INFO!G10,IF(COUNTRY_INFO!$I10=1,IF(COUNTRY_INFO!N10>=(COUNTRY_INFO!F10+COUNTRY_INFO!G10),COUNTRY_INFO!F10+COUNTRY_INFO!G10,COUNTRY_INFO!$N10),0)))) -> 0 | E10: =IF(AND(INTRO!$E$39="Non-endemic",INTRO!$E$37="Non-endemic"),"Not required",IF(INTRO!$E$39="Non-endemic","Treat with DEC",COUNTRY_INFO!W10)) -> 0 | F10: =IF(INTRO!$E$39<>"Non-endemic",COUNTRY_INFO!X10,"Not required") -> 0 | G10: =IF(COUNTRY_INFO!H10=1, IF($E10=1,IF(ALB_MBD!$G10<>" ",COUNTRY_INFO!F10+COUNTRY_INFO!G10-ALB_MBD!$G10,COUNTRY_INFO!F10+COUNTRY_INFO!G10), 0),0) -> 0 | H10: =IF(INTRO!$E$39<>"Endemic",0, IF(AND(COUNTRY_INFO!$I10=1,$F10<>0),IF(COUNTRY_INFO!N10>=(COUNTRY_INFO!F10+COUNTRY_INFO!G10),COUNTRY_INFO!F10+COUNTRY_INFO!G10,COUNTRY_INFO!$N10), 0)) -> 0 | I10: =IF(G10<H10,0,IF($E10=1, (G10-H10)*2.8, 0)) -> 0 | J10: =IF($E10<$F10, H10*(F10-E10)*2.8, 0) -> 0 | K10: =IF(AND($E10=1, $F10<>0), H10*2.8, 0) -> 0 | L10: =SUM(I10:K10) -> 0 | N10: =IF($L10>$M10,$L10-$M10,0) -> 0
A11: =IF(INTRO!$E$39="Non-endemic"," ",IF(COUNTRY_INFO!A11=0," ",COUNTRY_INFO!A11)) -> Gabon | B11: =IF(INTRO!$E$39="Non-endemic"," ",IF(COUNTRY_INFO!B11=0," ",COUNTRY_INFO!B11)) -> Libreville -Owendo | C11: =IF(INTRO!$E$39="Non-endemic"," ",IF(COUNTRY_INFO!C11=0," ",COUNTRY_INFO!C11)) -> Libreville 2 | D11: =IF(INTRO!$E$39="Non-endemic",0,IF(INTRO!$E$39="Endemic but PC is not required",IF(COUNTRY_INFO!$H11=1,COUNTRY_INFO!F11+COUNTRY_INFO!G11,0),IF(COUNTRY_INFO!$H11=1,COUNTRY_INFO!F11+COUNTRY_INFO!G11,IF(COUNTRY_INFO!$I11=1,IF(COUNTRY_INFO!N11>=(COUNTRY_INFO!F11+COUNTRY_INFO!G11),COUNTRY_INFO!F11+COUNTRY_INFO!G11,COUNTRY_INFO!$N11),0)))) -> 0 | E11: =IF(AND(INTRO!$E$39="Non-endemic",INTRO!$E$37="Non-endemic"),"Not required",IF(INTRO!$E$39="Non-endemic","Treat with DEC",COUNTRY_INFO!W11)) -> 0 | F11: =IF(INTRO!$E$39<>"Non-endemic",COUNTRY_INFO!X11,"Not required") -> 0 | G11: =IF(COUNTRY_INFO!H11=1, IF($E11=1,IF(ALB_MBD!$G11<>" ",COUNTRY_INFO!F11+COUNTRY_INFO!G11-ALB_MBD!$G11,COUNTRY_INFO!F11+COUNTRY_INFO!G11), 0),0) -> 0 | H11: =IF(INTRO!$E$39<>"Endemic",0, IF(AND(COUNTRY_INFO!$I11=1,$F11<>0),IF(COUNTRY_INFO!N11>=(COUNTRY_INFO!F11+COUNTRY_INFO!G11),COUNTRY_INFO!F11+COUNTRY_INFO!G11,COUNTRY_INFO!$N11), 0)) -> 0 | I11: =IF(G11<H11,0,IF($E11=1, (G11-H11)*2.8, 0)) -> 0 | J11: =IF($E11<$F11, H11*(F11-E11)*2.8, 0) -> 0 | K11: =IF(AND($E11=1, $F11<>0), H11*2.8, 0) -> 0 | L11: =SUM(I11:K11) -> 0 | N11: 0
A12: =IF(INTRO!$E$39="Non-endemic"," ",IF(COUNTRY_INFO!A12=0," ",COUNTRY_INFO!A12)) -> Gabon | B12: =IF(INTRO!$E$39="Non-endemic"," ",IF(COUNTRY_INFO!B12=0," ",COUNTRY_INFO!B12)) -> Libreville -Owendo | C12: =IF(INTRO!$E$39="Non-endemic"," ",IF(COUNTRY_INFO!C12=0," ",COUNTRY_INFO!C12)) -> Libreville 3 | D12: =IF(INTRO!$E$39="Non-endemic",0,IF(INTRO!$E$39="Endemic but PC is not required",IF(COUNTRY_INFO!$H12=1,COUNTRY_INFO!F12+COUNTRY_INFO!G12,0),IF(COUNTRY_INFO!$H12=1,COUNTRY_INFO!F12+COUNTRY_INFO!G12,IF(COUNTRY_INFO!$I12=1,IF(COUNTRY_INFO!N12>=(COUNTRY_INFO!F12+COUNTRY_INFO!G12),COUNTRY_INFO!F12+COUNTRY_INFO!G12,COUNTRY_INFO!$N12),0)))) -> 0 | E12: =IF(AND(INTRO!$E$39="Non-endemic",INTRO!$E$37="Non-endemic"),"Not required",IF(INTRO!$E$39="Non-endemic","Treat with DEC",COUNTRY_INFO!W12)) -> 0 | F12: =IF(INTRO!$E$39<>"Non-endemic",COUNTRY_INFO!X12,"Not required") -> 0 | G12: =IF(COUNTRY_INFO!H12=1, IF($E12=1,IF(ALB_MBD!$G12<>" ",COUNTRY_INFO!F12+COUNTRY_INFO!G12-ALB_MBD!$G12,COUNTRY_INFO!F12+COUNTRY_INFO!G12), 0),0) -> 0 | H12: =IF(INTRO!$E$39<>"Endemic",0, IF(AND(COUNTRY_INFO!$I12=1,$F12<>0),IF(COUNTRY_INFO!N12>=(COUNTRY_INFO!F12+COUNTRY_INFO!G12),COUNTRY_INFO!F12+COUNTRY_INFO!G12,COUNTRY_INFO!$N12), 0)) -> 0 | I12: 0 | J12: 0 | K12: 0 | L12: 0 | N12: 0
A13: =IF(INTRO!$E$39="Non-endemic"," ",IF(COUNTRY_INFO!A13=0," ",COUNTRY_INFO!A13)) -> Gabon | B13: =IF(INTRO!$E$39="Non-endemic"," ",IF(COUNTRY_INFO!B13=0," ",COUNTRY_INFO!B13)) -> Libreville -Owendo | C13: =IF(INTRO!$E$39="Non-endemic"," ",IF(COUNTRY_INFO!C13=0," ",COUNTRY_INFO!C13)) -> Owendo | D13: =IF(INTRO!$E$39="Non-endemic",0,IF(INTRO!$E$39="Endemic but PC is not required",IF(COUNTRY_INFO!$H13=1,COUNTRY_INFO!F13+COUNTRY_INFO!G13,0),IF(COUNTRY_INFO!$H13=1,COUNTRY_INFO!F13+COUNTRY_INFO!G13,IF(COUNTRY_INFO!$I13=1,IF(COUNTRY_INFO!N13>=(COUNTRY_INFO!F13+COUNTRY_INFO!G13),COUNTRY_INFO!F13+COUNTRY_INFO!G13,COUNTRY_INFO!$N13),0)))) -> 0 | E13: =IF(AND(INTRO!$E$39="Non-endemic",INTRO!$E$37="Non-endemic"),"Not required",IF(INTRO!$E$39="Non-endemic","Treat with DEC",COUNTRY_INFO!W13)) -> 0 | F13: =IF(INTRO!$E$39<>"Non-endemic",COUNTRY_INFO!X13,"Not required") -> 0 | G13: =IF(COUNTRY_INFO!H13=1, IF($E13=1,IF(ALB_MBD!$G13<>" ",COUNTRY_INFO!F13+COUNTRY_INFO!G13-ALB_MBD!$G13,COUNTRY_INFO!F13+COUNTRY_INFO!G13), 0),0) -> 0 | H13: =IF(INTRO!$E$39<>"Endemic",0, IF(AND(COUNTRY_INFO!$I13=1,$F13<>0),IF(COUNTRY_INFO!N13>=(COUNTRY_INFO!F13+COUNTRY_INFO!G13),COUNTRY_INFO!F13+COUNTRY_INFO!G13,COUNTRY_INFO!$N13), 0)) -> 0 | I13: 0 | J13: 0 | K13: 0 | L13: 0 | N13: 0
A14: =IF(INTRO!$E$39="Non-endemic"," ",IF(COUNTRY_INFO!A14=0," ",COUNTRY_INFO!A14)) -> Gabon | B14: =IF(INTRO!$E$39="Non-endemic"," ",IF(COUNTRY_INFO!B14=0," ",COUNTRY_INFO!B14)) -> Estuaire | C14: =IF(INTRO!$E$39="Non-endemic"," ",IF(COUNTRY_INFO!C14=0," ",COUNTRY_INFO!C14)) -> Komo-Mondah | D14: =IF(INTRO!$E$39="Non-endemic",0,IF(INTRO!$E$39="Endemic but PC is not required",IF(COUNTRY_INFO!$H14=1,COUNTRY_INFO!F14+COUNTRY_INFO!G14,0),IF(COUNTRY_INFO!$H14=1,COUNTRY_INFO!F14+COUNTRY_INFO!G14,IF(COUNTRY_INFO!$I14=1,IF(COUNTRY_INFO!N14>=(COUNTRY_INFO!F14+COUNTRY_INFO!G14),COUNTRY_INFO!F14+COUNTRY_INFO!G14,COUNTRY_INFO!$N14),0)))) -> 96678 | E14: =IF(AND(INTRO!$E$39="Non-endemic",INTRO!$E$37="Non-endemic"),"Not required",IF(INTRO!$E$39="Non-endemic","Treat with DEC",COUNTRY_INFO!W14)) -> 1 | F14: =IF(INTRO!$E$39<>"Non-endemic",COUNTRY_INFO!X14,"Not required") -> 0 | G14: =IF(COUNTRY_INFO!H14=1, IF($E14=1,IF(ALB_MBD!$G14<>" ",COUNTRY_INFO!F14+COUNTRY_INFO!G14-ALB_MBD!$G14,COUNTRY_INFO!F14+COUNTRY_INFO!G14), 0),0) -> 8942 | H14: =IF(INTRO!$E$39<>"Endemic",0, IF(AND(COUNTRY_INFO!$I14=1,$F14<>0),IF(COUNTRY_INFO!N14>=(COUNTRY_INFO!F14+COUNTRY_INFO!G14),COUNTRY_INFO!F14+COUNTRY_INFO!G14,COUNTRY_INFO!$N14), 0)) -> 0 | I14: 25037.6 | J14: 0 | K14: 0 | L14: 25037.6 | N14: 25037.6
A15: =IF(INTRO!$E$39="Non-endemic"," ",IF(COUNTRY_INFO!A15=0," ",COUNTRY_INFO!A15)) -> Gabon | B15: =IF(INTRO!$E$39="Non-endemic"," ",IF(COUNTRY_INFO!B15=0," ",COUNTRY_INFO!B15)) -> Estuaire | C15: =IF(INTRO!$E$39="Non-endemic"," ",IF(COUNTRY_INFO!C15=0," ",COUNTRY_INFO!C15)) -> Komo-Kango | D15: =IF(INTRO!$E$39="Non-endemic",0,IF(INTRO!$E$39="Endemic but PC is not required",IF(COUNTRY_INFO!$H15=1,COUNTRY_INFO!F15+COUNTRY_INFO!G15,0),IF(COUNTRY_INFO!$H15=1,COUNTRY_INFO!F15+COUNTRY_INFO!G15,IF(COUNTRY_INFO!$I15=1,IF(COUNTRY_INFO!N15>=(COUNTRY_INFO!F15+COUNTRY_INFO!G15),COUNTRY_INFO!F15+COUNTRY_INFO!G15,COUNTRY_INFO!$N15),0)))) -> 0 | E15: =IF(AND(INTRO!$E$39="Non-endemic",INTRO!$E$37="Non-endemic"),"Not required",IF(INTRO!$E$39="Non-endemic","Treat with DEC",COUNTRY_INFO!W15)) -> 0 | F15: =IF(INTRO!$E$39<>"Non-endemic",COUNTRY_INFO!X15,"Not required") -> 0 | G15: =IF(COUNTRY_INFO!H15=1, IF($E15=1,IF(ALB_MBD!$G15<>" ",COUNTRY_INFO!F15+COUNTRY_INFO!G15-ALB_MBD!$G15,COUNTRY_INFO!F15+COUNTRY_INFO!G15), 0),0) -> 0 | H15: =IF(INTRO!$E$39<>"Endemic",0, IF(AND(COUNTRY_INFO!$I15=1,$F15<>0),IF(COUNTRY_INFO!N15>=(COUNTRY_INFO!F15+COUNTRY_INFO!G15),COUNTRY_INFO!F15+COUNTRY_INFO!G15,COUNTRY_INFO!$N15), 0)) -> 0 | I15: 0 | J15: 0 | K15: 0 | L15: 0 | N15: 0
A16: =IF(INTRO!$E$39="Non-endemic"," ",IF(COUNTRY_INFO!A16=0," ",COUNTRY_INFO!A16)) -> Gabon | B16: =IF(INTRO!$E$39="Non-endemic"," ",IF(COUNTRY_INFO!B16=0," ",COUNTRY_INFO!B16)) -> Estuaire | C16: =IF(INTRO!$E$39="Non-endemic"," ",IF(COUNTRY_INFO!C16=0," ",COUNTRY_INFO!C16)) -> Noya | D16: =IF(INTRO!$E$39="Non-endemic",0,IF(INTRO!$E$39="Endemic but PC is not required",IF(COUNTRY_INFO!$H16=1,COUNTRY_INFO!F16+COUNTRY_INFO!G16,0),IF(COUNTRY_INFO!$H16=1,COUNTRY_INFO!F16+COUNTRY_INFO!G16,IF(COUNTRY_INFO!$I16=1,IF(COUNTRY_INFO!N16>=(COUNTRY_INFO!F16+COUNTRY_INFO!G16),COUNTRY_INFO!F16+COUNTRY_INFO!G16,COUNTRY_INFO!$N16),0)))) -> 0 | E16: =IF(AND(INTRO!$E$39="Non-endemic",INTRO!$E$37="Non-endemic"),"Not required",IF(INTRO!$E$39="Non-endemic","Treat with DEC",COUNTRY_INFO!W16)) -> 0 | F16: =IF(INTRO!$E$39<>"Non-endemic",COUNTRY_INFO!X16,"Not required") -> 0 | G16: =IF(COUNTRY_INFO!H16=1, IF($E16=1,IF(ALB_MBD!$G16<>" ",COUNTRY_INFO!F16+COUNTRY_INFO!G16-ALB_MBD!$G16,COUNTRY_INFO!F16+COUNTRY_INFO!G16), 0),0) -> 0 | H16: =IF(INTRO!$E$39<>"Endemic",0, IF(AND(COUNTRY_INFO!$I16=1,$F16<>0),IF(COUNTRY_INFO!N16>=(COUNTRY_INFO!F16+COUNTRY_INFO!G16),COUNTRY_INFO!F16+COUNTRY_INFO!G16,COUNTRY_INFO!$N16), 0)) -> 0 | I16: 0 | J16: 0 | K16: 0 | L16: 0 | N16: 0
A17: =IF(INTRO!$E$39="Non-endemic"," ",IF(COUNTRY_INFO!A17=0," ",COUNTRY_INFO!A17)) -> Gabon | B17: =IF(INTRO!$E$39="Non-endemic"," ",IF(COUNTRY_INFO!B17=0," ",COUNTRY_INFO!B17)) -> Haut Ogooué | C17: =IF(INTRO!$E$39="Non-endemic"," ",IF(COUNTRY_INFO!C17=0," ",COUNTRY_INFO!C17)) -> Bayi-brikolo | D17: =IF(INTRO!$E$39="Non-endemic",0,IF(INTRO!$E$39="Endemic but PC is not required",IF(COUNTRY_INFO!$H17=1,COUNTRY_INFO!F17+COUNTRY_INFO!G17,0),IF(COUNTRY_INFO!$H17=1,COUNTRY_INFO!F17+COUNTRY_INFO!G17,IF(COUNTRY_INFO!$I17=1,IF(COUNTRY_INFO!N17>=(COUNTRY_INFO!F17+COUNTRY_INFO!G17),COUNTRY_INFO!F17+COUNTRY_INFO!G17,COUNTRY_INFO!$N17),0)))) -> 0 | E17: =IF(AND(INTRO!$E$39="Non-endemic",INTRO!$E$37="Non-endemic"),"Not required",IF(INTRO!$E$39="Non-endemic","Treat with DEC",COUNTRY_INFO!W17)) -> 0 | F17: =IF(INTRO!$E$39<>"Non-endemic",COUNTRY_INFO!X17,"Not required") -> 0 | G17: =IF(COUNTRY_INFO!H17=1, IF($E17=1,IF(ALB_MBD!$G17<>" ",COUNTRY_INFO!F17+COUNTRY_INFO!G17-ALB_MBD!$G17,COUNTRY_INFO!F17+COUNTRY_INFO!G17), 0),0) -> 0 | H17: =IF(INTRO!$E$39<>"Endemic",0, IF(AND(COUNTRY_INFO!$I17=1,$F17<>0),IF(COUNTRY_INFO!N17>=(COUNTRY_INFO!F17+COUNTRY_INFO!G17),COUNTRY_INFO!F17+COUNTRY_INFO!G17,COUNTRY_INFO!$N17), 0)) -> 0 | I17: 0 | J17: 0 | K17: 0 | L17: 0 | N17: 0
A18: =IF(INTRO!$E$39="Non-endemic"," ",IF(COUNTRY_INFO!A18=0," ",COUNTRY_INFO!A18)) -> Gabon | B18: =IF(INTRO!$E$39="Non-endemic"," ",IF(COUNTRY_INFO!B18=0," ",COUNTRY_INFO!B18)) -> Haut Ogooué | C18: =IF(INTRO!$E$39="Non-endemic"," ",IF(COUNTRY_INFO!C18=0," ",COUNTRY_INFO!C18)) -> Lékoni-lékori | D18: =IF(INTRO!$E$39="Non-endemic",0,IF(INTRO!$E$39="Endemic but PC is not required",IF(COUNTRY_INFO!$H18=1,COUNTRY_INFO!F18+COUNTRY_INFO!G18,0),IF(COUNTRY_INFO!$H18=1,COUNTRY_INFO!F18+COUNTRY_INFO!G18,IF(COUNTRY_INFO!$I18=1,IF(COUNTRY_INFO!N18>=(COUNTRY_INFO!F18+COUNTRY_INFO!G18),COUNTRY_INFO!F18+COUNTRY_INFO!G18,COUNTRY_INFO!$N18),0)))) -> 0 | E18: =IF(AND(INTRO!$E$39="Non-endemic",INTRO!$E$37="Non-endemic"),"Not required",IF(INTRO!$E$39="Non-endemic","Treat with DEC",COUNTRY_INFO!W18)) -> 0 | F18: =IF(INTRO!$E$39<>"Non-endemic",COUNTRY_INFO!X18,"Not required") -> 0 | G18: =IF(COUNTRY_INFO!H18=1, IF($E18=1,IF(ALB_MBD!$G18<>" ",COUNTRY_INFO!F18+COUNTRY_INFO!G18-ALB_MBD!$G18,COUNTRY_INFO!F18+COUNTRY_INFO!G18), 0),0) -> 0 | H18: =IF(INTRO!$E$39<>"Endemic",0, IF(AND(COUNTRY_INFO!$I18=1,$F18<>0),IF(COUNTRY_INFO!N18>=(COUNTRY_INFO!F18+COUNTRY_INFO!G18),COUNTRY_INFO!F18+COUNTRY_INFO!G18,COUNTRY_INFO!$N18), 0)) -> 0 | I18: 0 | J18: 0 | K18: 0 | L18: 0 | N18: 0
A19: =IF(INTRO!$E$39="Non-endemic"," ",IF(COUNTRY_INFO!A19=0," ",COUNTRY_INFO!A19)) -> Gabon | B19: =IF(INTRO!$E$39="Non-endemic"," ",IF(COUNTRY_INFO!B19=0," ",COUNTRY_INFO!B19)) -> Haut Ogooué | C19: =IF(INTRO!$E$39="Non-endemic"," ",IF(COUNTRY_INFO!C19=0," ",COUNTRY_INFO!C19)) -> Lékoko | D19: =IF(INTRO!$E$39="Non-endemic",0,IF(INTRO!$E$39="Endemic but PC is not required",IF(COUNTRY_INFO!$H19=1,COUNTRY_INFO!F19+COUNTRY_INFO!G19,0),IF(COUNTRY_INFO!$H19=1,COUNTRY_INFO!F19+COUNTRY_INFO!G19,IF(COUNTRY_INFO!$I19=1,IF(COUNTRY_INFO!N19>=(COUNTRY_INFO!F19+COUNTRY_INFO!G19),COUNTRY_INFO!F19+COUNTRY_INFO!G19,COUNTRY_INFO!$N19),0)))) -> 0 | E19: =IF(AND(INTRO!$E$39="Non-endemic",INTRO!$E$37="Non-endemic"),"Not required",IF(INTRO!$E$39="Non-endemic","Treat with DEC",COUNTRY_INFO!W19)) -> 0 | F19: =IF(INTRO!$E$39<>"Non-endemic",COUNTRY_INFO!X19,"Not required") -> 0 | G19: =IF(COUNTRY_INFO!H19=1, IF($E19=1,IF(ALB_MBD!$G19<>" ",COUNTRY_INFO!F19+COUNTRY_INFO!G19-ALB_MBD!$G19,COUNTRY_INFO!F19+COUNTRY_INFO!G19), 0),0) -> 0 | H19: =IF(INTRO!$E$39<>"Endemic",0, IF(AND(COUNTRY_INFO!$I19=1,$F19<>0),IF(COUNTRY_INFO!N19>=(COUNTRY_INFO!F19+COUNTRY_INFO!G19),COUNTRY_INFO!F19+COUNTRY_INFO!G19,COUNTRY_INFO!$N19), 0)) -> 0 | I19: 0 | J19: 0 | K19: 0 | L19: 0 | N19: 0
A20: =IF(INTRO!$E$39="Non-endemic"," ",IF(COUNTRY_INFO!A20=0," ",COUNTRY_INFO!A20)) -> Gabon | B20: =IF(INTRO!$E$39="Non-endemic"," ",IF(COUNTRY_INFO!B20=0," ",COUNTRY_INFO!B20)) -> Haut Ogooué | C20: =IF(INTRO!$E$39="Non-endemic"," ",IF(COUNTRY_INFO!C20=0," ",COUNTRY_INFO!C20)) -> Djouori-Agnili | D20: =IF(INTRO!$E$39="Non-endemic",0,IF(INTRO!$E$39="Endemic but PC is not required",IF(COUNTRY_INFO!$H20=1,COUNTRY_INFO!F20+COUNTRY_INFO!G20,0),IF(COUNTRY_INFO!$H20=1,COUNTRY_INFO!F20+COUNTRY_INFO!G20,IF(COUNTRY_INFO!$I20=1,IF(COUNTRY_INFO!N20>=(COUNTRY_INFO!F20+COUNTRY_INFO!G20),COUNTRY_INFO!F20+COUNTRY_INFO!G20,COUNTRY_INFO!$N20),0)))) -> 6475 | E20: =IF(AND(INTRO!$E$39="Non-endemic",INTRO!$E$37="Non-endemic"),"Not required",IF(INTRO!$E$39="Non-endemic","Treat with DEC",COUNTRY_INFO!W20)) -> 1 | F20: =IF(INTRO!$E$39<>"Non-endemic",COUNTRY_INFO!X20,"Not required") -> 0 | G20: =IF(COUNTRY_INFO!H20=1, IF($E20=1,IF(ALB_MBD!$G20<>" ",COUNTRY_INFO!F20+COUNTRY_INFO!G20-ALB_MBD!$G20,COUNTRY_INFO!F20+COUNTRY_INFO!G20), 0),0) -> 732 | H20: =IF(INTRO!$E$39<>"Endemic",0, IF(AND(COUNTRY_INFO!$I20=1,$F20<>0),IF(COUNTRY_INFO!N20>=(COUNTRY_INFO!F20+COUNTRY_INFO!G20),COUNTRY_INFO!F20+COUNTRY_INFO!G20,COUNTRY_INFO!$N20), 0)) -> 0 | I20: 2049.6 | J20: 0 | K20: 0 | L20: 2049.6 | N20: 2049.6
A21: =IF(INTRO!$E$39="Non-endemic"," ",IF(COUNTRY_INFO!A21=0," ",COUNTRY_INFO!A21)) -> Gabon | B21: =IF(INTRO!$E$39="Non-endemic"," ",IF(COUNTRY_INFO!B21=0," ",COUNTRY_INFO!B21)) -> Haut Ogooué | C21: =IF(INTRO!$E$39="Non-endemic"," ",IF(COUNTRY_INFO!C21=0," ",COUNTRY_INFO!C21)) -> Ogooué -létili | D21: =IF(INTRO!$E$39="Non-endemic",0,IF(INTRO!$E$39="Endemic but PC is not required",IF(COUNTRY_INFO!$H21=1,COUNTRY_INFO!F21+COUNTRY_INFO!G21,0),IF(COUNTRY_INFO!$H21=1,COUNTRY_INFO!F21+COUNTRY_INFO!G21,IF(COUNTRY_INFO!$I21=1,IF(COUNTRY_INFO!N21>=(COUNTRY_INFO!F21+COUNTRY_INFO!G21),COUNTRY_INFO!F21+COUNTRY_INFO!G21,COUNTRY_INFO!$N21),0)))) -> 0 | E21: =IF(AND(INTRO!$E$39="Non-endemic",INTRO!$E$37="Non-endemic"),"Not required",IF(INTRO!$E$39="Non-endemic","Treat with DEC",COUNTRY_INFO!W21)) -> 0 | F21: =IF(INTRO!$E$39<>"Non-endemic",COUNTRY_INFO!X21,"Not required") -> 0 | G21: =IF(COUNTRY_INFO!H21=1, IF($E21=1,IF(ALB_MBD!$G21<>" ",COUNTRY_INFO!F21+COUNTRY_INFO!G21-ALB_MBD!$G21,COUNTRY_INFO!F21+COUNTRY_INFO!G21), 0),0) -> 0 | H21: =IF(INTRO!$E$39<>"Endemic",0, IF(AND(COUNTRY_INFO!$I21=1,$F21<>0),IF(COUNTRY_INFO!N21>=(COUNTRY_INFO!F21+COUNTRY_INFO!G21),COUNTRY_INFO!F21+COUNTRY_INFO!G21,COUNTRY_INFO!$N21), 0)) -> 0 | I21: 0 | J21: 0 | K21: 0 | L21: 0 | N21: 0
A22: =IF(INTRO!$E$39="Non-endemic"," ",IF(COUNTRY_INFO!A22=0," ",COUNTRY_INFO!A22)) -> Gabon | B22: =IF(INTRO!$E$39="Non-endemic"," ",IF(COUNTRY_INFO!B22=0," ",COUNTRY_INFO!B22)) -> Haut Ogooué | C22: =IF(INTRO!$E$39="Non-endemic"," ",IF(COUNTRY_INFO!C22=0," ",COUNTRY_INFO!C22)) -> Mpassa | D22: =IF(INTRO!$E$39="Non-endemic",0,IF(INTRO!$E$39="Endemic but PC is not required",IF(COUNTRY_INFO!$H22=1,COUNTRY_INFO!F22+COUNTRY_INFO!G22,0),IF(COUNTRY_INFO!$H22=1,COUNTRY_INFO!F22+COUNTRY_INFO!G22,IF(COUNTRY_INFO!$I22=1,IF(COUNTRY_INFO!N22>=(COUNTRY_INFO!F22+COUNTRY_INFO!G22),COUNTRY_INFO!F22+COUNTRY_INFO!G22,COUNTRY_INFO!$N22),0)))) -> 163649 | E22: =IF(AND(INTRO!$E$39="Non-endemic",INTRO!$E$37="Non-endemic"),"Not required",IF(INTRO!$E$39="Non-endemic","Treat with DEC",COUNTRY_INFO!W22)) -> 0 | F22: =IF(INTRO!$E$39<>"Non-endemic",COUNTRY_INFO!X22,"Not required") -> 0 | G22: =IF(COUNTRY_INFO!H22=1, IF($E22=1,IF(ALB_MBD!$G22<>" ",COUNTRY_INFO!F22+COUNTRY_INFO!G22-ALB_MBD!$G22,COUNTRY_INFO!F22+COUNTRY_INFO!G22), 0),0) -> 0 | H22: =IF(INTRO!$E$39<>"Endemic",0, IF(AND(COUNTRY_INFO!$I22=1,$F22<>0),IF(COUNTRY_INFO!N22>=(COUNTRY_INFO!F22+COUNTRY_INFO!G22),COUNTRY_INFO!F22+COUNTRY_INFO!G22,COUNTRY_INFO!$N22), 0)) -> 0 | I22: 0 | J22: 0 | K22: 0 | L22: 0 | N22: 0
A23: =IF(INTRO!$E$39="Non-endemic"," ",IF(COUNTRY_INFO!A23=0," ",COUNTRY_INFO!A23)) -> Gabon | B23: =IF(INTRO!$E$39="Non-endemic"," ",IF(COUNTRY_INFO!B23=0," ",COUNTRY_INFO!B23)) -> Haut Ogooué | C23: =IF(INTRO!$E$39="Non-endemic"," ",IF(COUNTRY_INFO!C23=0," ",COUNTRY_INFO!C23)) -> Plateaux | D23: =IF(INTRO!$E$39="Non-endemic",0,IF(INTRO!$E$39="Endemic but PC is not required",IF(COUNTRY_INFO!$H23=1,COUNTRY_INFO!F23+COUNTRY_INFO!G23,0),IF(COUNTRY_INFO!$H23=1,COUNTRY_INFO!F23+COUNTRY_INFO!G23,IF(COUNTRY_INFO!$I23=1,IF(COUNTRY_INFO!N23>=(COUNTRY_INFO!F23+COUNTRY_INFO!G23),COUNTRY_INFO!F23+COUNTRY_INFO!G23,COUNTRY_INFO!$N23),0)))) -> 0 | E23: =IF(AND(INTRO!$E$39="Non-endemic",INTRO!$E$37="Non-endemic"),"Not required",IF(INTRO!$E$39="Non-endemic","Treat with DEC",COUNTRY_INFO!W23)) -> 0 | F23: =IF(INTRO!$E$39<>"Non-endemic",COUNTRY_INFO!X23,"Not required") -> 0 | G23: =IF(COUNTRY_INFO!H23=1, IF($E23=1,IF(ALB_MBD!$G23<>" ",COUNTRY_INFO!F23+COUNTRY_INFO!G23-ALB_MBD!$G23,COUNTRY_INFO!F23+COUNTRY_INFO!G23), 0),0) -> 0 | H23: =IF(INTRO!$E$39<>"Endemic",0, IF(AND(COUNTRY_INFO!$I23=1,$F23<>0),IF(COUNTRY_INFO!N23>=(COUNTRY_INFO!F23+COUNTRY_INFO!G23),COUNTRY_INFO!F23+COUNTRY_INFO!G23,COUNTRY_INFO!$N23), 0)) -> 0 | I23: 0 | J23: 0 | K23: 0 | L23: 0 | N23: 0
A24: =IF(INTRO!$E$39="Non-endemic"," ",IF(COUNTRY_INFO!A24=0," ",COUNTRY_INFO!A24)) -> Gabon | B24: =IF(INTRO!$E$39="Non-endemic"," ",IF(COUNTRY_INFO!B24=0," ",COUNTRY_INFO!B24)) -> Haut Ogooué | C24: =IF(INTRO!$E$39="Non-endemic"," ",IF(COUNTRY_INFO!C24=0," ",COUNTRY_INFO!C24)) -> Lébombi-Léyou | D24: =IF(INTRO!$E$39="Non-endemic",0,IF(INTRO!$E$39="Endemic but PC is not required",IF(COUNTRY_INFO!$H24=1,COUNTRY_INFO!F24+COUNTRY_INFO!G24,0),IF(COUNTRY_INFO!$H24=1,COUNTRY_INFO!F24+COUNTRY_INFO!G24,IF(COUNTRY_INFO!$I24=1,IF(COUNTRY_INFO!N24>=(COUNTRY_INFO!F24+COUNTRY_INFO!G24),COUNTRY_INFO!F24+COUNTRY_INFO!G24,COUNTRY_INFO!$N24),0)))) -> 72507 | E24: =IF(AND(INTRO!$E$39="Non-endemic",INTRO!$E$37="Non-endemic"),"Not required",IF(INTRO!$E$39="Non-endemic","Treat with DEC",COUNTRY_INFO!W24)) -> 0 | F24: =IF(INTRO!$E$39<>"Non-endemic",COUNTRY_INFO!X24,"Not required") -> 0 | G24: =IF(COUNTRY_INFO!H24=1, IF($E24=1,IF(ALB_MBD!$G24<>" ",COUNTRY_INFO!F24+COUNTRY_INFO!G24-ALB_MBD!$G24,COUNTRY_INFO!F24+COUNTRY_INFO!G24), 0),0) -> 0 | H24: =IF(INTRO!$E$39<>"Endemic",0, IF(AND(COUNTRY_INFO!$I24=1,$F24<>0),IF(COUNTRY_INFO!N24>=(COUNTRY_INFO!F24+COUNTRY_INFO!G24),COUNTRY_INFO!F24+COUNTRY_INFO!G24,COUNTRY_INFO!$N24), 0)) -> 0 | I24: 0 | J24: 0 | K24: 0 | L24: 0 | N24: 0
A25: =IF(INTRO!$E$39="Non-endemic"," ",IF(COUNTRY_INFO!A25=0," ",COUNTRY_INFO!A25)) -> Gabon | B25: =IF(INTRO!$E$39="Non-endemic"," ",IF(COUNTRY_INFO!B25=0," ",COUNTRY_INFO!B25)) -> Haut Ogooué | C25: =IF(INTRO!$E$39="Non-endemic"," ",IF(COUNTRY_INFO!C25=0," ",COUNTRY_INFO!C25)) -> Lékabi-léwolo | D25: =IF(INTRO!$E$39="Non-endemic",0,IF(INTRO!$E$39="Endemic but PC is not required",IF(COUNTRY_INFO!$H25=1,COUNTRY_INFO!F25+COUNTRY_INFO!G25,0),IF(COUNTRY_INFO!$H25=1,COUNTRY_INFO!F25+COUNTRY_INFO!G25,IF(COUNTRY_INFO!$I25=1,IF(COUNTRY_INFO!N25>=(COUNTRY_INFO!F25+COUNTRY_INFO!G25),COUNTRY_INFO!F25+COUNTRY_INFO!G25,COUNTRY_INFO!$N25),0)))) -> 0 | E25: =IF(AND(INTRO!$E$39="Non-endemic",INTRO!$E$37="Non-endemic"),"Not required",IF(INTRO!$E$39="Non-endemic","Treat with DEC",COUNTRY_INFO!W25)) -> 0 | F25: =IF(INTRO!$E$39<>"Non-endemic",COUNTRY_INFO!X25,"Not required") -> 0 | G25: =IF(COUNTRY_INFO!H25=1, IF($E25=1,IF(ALB_MBD!$G25<>" ",COUNTRY_INFO!F25+COUNTRY_INFO!G25-ALB_MBD!$G25,COUNTRY_INFO!F25+COUNTRY_INFO!G25), 0),0) -> 0 | H25: =IF(INTRO!$E$39<>"Endemic",0, IF(AND(COUNTRY_INFO!$I25=1,$F25<>0),IF(COUNTRY_INFO!N25>=(COUNTRY_INFO!F25+COUNTRY_INFO!G25),COUNTRY_INFO!F25+COUNTRY_INFO!G25,COUNTRY_INFO!$N25), 0)) -> 0 | I25: 0 | J25: 0 | K25: 0 | L25: 0 | N25: 0
A26: =IF(INTRO!$E$39="Non-endemic"," ",IF(COUNTRY_INFO!A26=0," ",COUNTRY_INFO!A26)) -> Gabon | B26: =IF(INTRO!$E$39="Non-endemic"," ",IF(COUNTRY_INFO!B26=0," ",COUNTRY_INFO!B26)) -> Haut Ogooué | C26: =IF(INTRO!$E$39="Non-endemic"," ",IF(COUNTRY_INFO!C26=0," ",COUNTRY_INFO!C26)) -> Sébé-brikoli | D26: =IF(INTRO!$E$39="Non-endemic",0,IF(INTRO!$E$39="Endemic but PC is not required",IF(COUNTRY_INFO!$H26=1,COUNTRY_INFO!F26+COUNTRY_INFO!G26,0),IF(COUNTRY_INFO!$H26=1,COUNTRY_INFO!F26+COUNTRY_INFO!G26,IF(COUNTRY_INFO!$I26=1,IF(COUNTRY_INFO!N26>=(COUNTRY_INFO!F26+COUNTRY_INFO!G26),COUNTRY_INFO!F26+COUNTRY_INFO!G26,COUNTRY_INFO!$N26),0)))) -> 19838 | E26: =IF(AND(INTRO!$E$39="Non-endemic",INTRO!$E$37="Non-endemic"),"Not required",IF(INTRO!$E$39="Non-endemic","Treat with DEC",COUNTRY_INFO!W26)) -> 0 | F26: =IF(INTRO!$E$39<>"Non-endemic",COUNTRY_INFO!X26,"Not required") -> 0 | G26: =IF(COUNTRY_INFO!H26=1, IF($E26=1,IF(ALB_MBD!$G26<>" ",COUNTRY_INFO!F26+COUNTRY_INFO!G26-ALB_MBD!$G26,COUNTRY_INFO!F26+COUNTRY_INFO!G26), 0),0) -> 0 | H26: =IF(INTRO!$E$39<>"Endemic",0, IF(AND(COUNTRY_INFO!$I26=1,$F26<>0),IF(COUNTRY_INFO!N26>=(COUNTRY_INFO!F26+COUNTRY_INFO!G26),COUNTRY_INFO!F26+COUNTRY_INFO!G26,COUNTRY_INFO!$N26), 0)) -> 0 | I26: 0 | J26: 0 | K26: 0 | L26: 0 | N26: 0
A27: =IF(INTRO!$E$39="Non-endemic"," ",IF(COUNTRY_INFO!A27=0," ",COUNTRY_INFO!A27)) -> Gabon | B27: =IF(INTRO!$E$39="Non-endemic"," ",IF(COUNTRY_INFO!B27=0," ",COUNTRY_INFO!B27)) -> Haut Ogooué | C27: =IF(INTRO!$E$39="Non-endemic"," ",IF(COUNTRY_INFO!C27=0," ",COUNTRY_INFO!C27)) -> Djoué | D27: =IF(INTRO!$E$39="Non-endemic",0,IF(INTRO!$E$39="Endemic but PC is not required",IF(COUNTRY_INFO!$H27=1,COUNTRY_INFO!F27+COUNTRY_INFO!G27,0),IF(COUNTRY_INFO!$H27=1,COUNTRY_INFO!F27+COUNTRY_INFO!G27,IF(COUNTRY_INFO!$I27=1,IF(COUNTRY_INFO!N27>=(COUNTRY_INFO!F27+COUNTRY_INFO!G27),COUNTRY_INFO!F27+COUNTRY_INFO!G27,COUNTRY_INFO!$N27),0)))) -> 0 | E27: =IF(AND(INTRO!$E$39="Non-endemic",INTRO!$E$37="Non-endemic"),"Not required",IF(INTRO!$E$39="Non-endemic","Treat with DEC",COUNTRY_INFO!W27)) -> 0 | F27: =IF(INTRO!$E$39<>"Non-endemic",COUNTRY_INFO!X27,"Not required") -> 0 | G27: =IF(COUNTRY_INFO!H27=1, IF($E27=1,IF(ALB_MBD!$G27<>" ",COUNTRY_INFO!F27+COUNTRY_INFO!G27-ALB_MBD!$G27,COUNTRY_INFO!F27+COUNTRY_INFO!G27), 0),0) -> 0 | H27: =IF(INTRO!$E$39<>"Endemic",0, IF(AND(COUNTRY_INFO!$I27=1,$F27<>0),IF(COUNTRY_INFO!N27>=(COUNTRY_INFO!F27+COUNTRY_INFO!G27),COUNTRY_INFO!F27+COUNTRY_INFO!G27,COUNTRY_INFO!$N27), 0)) -> 0 | I27: 0 | J27: 0 | K27: 0 | L27: 0 | N27: 0
A28: =IF(INTRO!$E$39="Non-endemic"," ",IF(COUNTRY_INFO!A28=0," ",COUNTRY_INFO!A28)) -> Gabon | B28: =IF(INTRO!$E$39="Non-endemic"," ",IF(COUNTRY_INFO!B28=0," ",COUNTRY_INFO!B28)) -> Moyen Ogooué | C28: =IF(INTRO!$E$39="Non-endemic"," ",IF(COUNTRY_INFO!C28=0," ",COUNTRY_INFO!C28)) -> Ogooué et Lacs | D28: =IF(INTRO!$E$39="Non-endemic",0,IF(INTRO!$E$39="Endemic but PC is not required",IF(COUNTRY_INFO!$H28=1,COUNTRY_INFO!F28+COUNTRY_INFO!G28,0),IF(COUNTRY_INFO!$H28=1,COUNTRY_INFO!F28+COUNTRY_INFO!G28,IF(COUNTRY_INFO!$I28=1,IF(COUNTRY_INFO!N28>=(COUNTRY_INFO!F28+COUNTRY_INFO!G28),COUNTRY_INFO!F28+COUNTRY_INFO!G28,COUNTRY_INFO!$N28),0)))) -> 0 | E28: =IF(AND(INTRO!$E$39="Non-endemic",INTRO!$E$37="Non-endemic"),"Not required",IF(INTRO!$E$39="Non-endemic","Treat with DEC",COUNTRY_INFO!W28)) -> 0 | F28: =IF(INTRO!$E$39<>"Non-endemic",COUNTRY_INFO!X28,"Not required") -> 0 | G28: =IF(COUNTRY_INFO!H28=1, IF($E28=1,IF(ALB_MBD!$G28<>" ",COUNTRY_INFO!F28+COUNTRY_INFO!G28-ALB_MBD!$G28,COUNTRY_INFO!F28+COUNTRY_INFO!G28), 0),0) -> 0 | H28: =IF(INTRO!$E$39<>"Endemic",0, IF(AND(COUNTRY_INFO!$I28=1,$F28<>0),IF(COUNTRY_INFO!N28>=(COUNTRY_INFO!F28+COUNTRY_INFO!G28),COUNTRY_INFO!F28+COUNTRY_INFO!G28,COUNTRY_INFO!$N28), 0)) -> 0 | I28: 0 | J28: 0 | K28: 0 | L28: 0 | N28: 0
A29: =IF(INTRO!$E$39="Non-endemic"," ",IF(COUNTRY_INFO!A29=0," ",COUNTRY_INFO!A29)) -> Gabon | B29: =IF(INTRO!$E$39="Non-endemic"," ",IF(COUNTRY_INFO!B29=0," ",COUNTRY_INFO!B29)) -> Moyen Ogooué | C29: =IF(INTRO!$E$39="Non-endemic"," ",IF(COUNTRY_INFO!C29=0," ",COUNTRY_INFO!C29)) -> Abanga -Bigné | D29: =IF(INTRO!$E$39="Non-endemic",0,IF(INTRO!$E$39="Endemic but PC is not required",IF(COUNTRY_INFO!$H29=1,COUNTRY_INFO!F29+COUNTRY_INFO!G29,0),IF(COUNTRY_INFO!$H29=1,COUNTRY_INFO!F29+COUNTRY_INFO!G29,IF(COUNTRY_INFO!$I29=1,IF(COUNTRY_INFO!N29>=(COUNTRY_INFO!F29+COUNTRY_INFO!G29),COUNTRY_INFO!F29+COUNTRY_INFO!G29,COUNTRY_INFO!$N29),0)))) -> 17345 | E29: =IF(AND(INTRO!$E$39="Non-endemic",INTRO!$E$37="Non-endemic"),"Not required",IF(INTRO!$E$39="Non-endemic","Treat with DEC",COUNTRY_INFO!W29)) -> 1 | F29: =IF(INTRO!$E$39<>"Non-endemic",COUNTRY_INFO!X29,"Not required") -> 0 | G29: =IF(COUNTRY_INFO!H29=1, IF($E29=1,IF(ALB_MBD!$G29<>" ",COUNTRY_INFO!F29+COUNTRY_INFO!G29-ALB_MBD!$G29,COUNTRY_INFO!F29+COUNTRY_INFO!G29), 0),0) -> 1964 | H29: =IF(INTRO!$E$39<>"Endemic",0, IF(AND(COUNTRY_INFO!$I29=1,$F29<>0),IF(COUNTRY_INFO!N29>=(COUNTRY_INFO!F29+COUNTRY_INFO!G29),COUNTRY_INFO!F29+COUNTRY_INFO!G29,COUNTRY_INFO!$N29), 0)) -> 0 | I29: 5499.2 | J29: 0 | K29: 0 | L29: 5499.2 | N29: 5499.2
A30: =IF(INTRO!$E$39="Non-endemic"," ",IF(COUNTRY_INFO!A30=0," ",COUNTRY_INFO!A30)) -> Gabon | B30: =IF(INTRO!$E$39="Non-endemic"," ",IF(COUNTRY_INFO!B30=0," ",COUNTRY_INFO!B30)) -> Ngounié | C30: =IF(INTRO!$E$39="Non-endemic"," ",IF(COUNTRY_INFO!C30=0," ",COUNTRY_INFO!C30)) -> Tsamba -Magotsi | D30: =IF(INTRO!$E$39="Non-endemic",0,IF(INTRO!$E$39="Endemic but PC is not required",IF(COUNTRY_INFO!$H30=1,COUNTRY_INFO!F30+COUNTRY_INFO!G30,0),IF(COUNTRY_INFO!$H30=1,COUNTRY_INFO!F30+COUNTRY_INFO!G30,IF(COUNTRY_INFO!$I30=1,IF(COUNTRY_INFO!N30>=(COUNTRY_INFO!F30+COUNTRY_INFO!G30),COUNTRY_INFO!F30+COUNTRY_INFO!G30,COUNTRY_INFO!$N30),0)))) -> 14855 | E30: =IF(AND(INTRO!$E$39="Non-endemic",INTRO!$E$37="Non-endemic"),"Not required",IF(INTRO!$E$39="Non-endemic","Treat with DEC",COUNTRY_INFO!W30)) -> 0 | F30: =IF(INTRO!$E$39<>"Non-endemic",COUNTRY_INFO!X30,"Not required") -> 0 | G30: =IF(COUNTRY_INFO!H30=1, IF($E30=1,IF(ALB_MBD!$G30<>" ",COUNTRY_INFO!F30+COUNTRY_INFO!G30-ALB_MBD!$G30,COUNTRY_INFO!F30+COUNTRY_INFO!G30), 0),0) -> 0 | H30: =IF(INTRO!$E$39<>"Endemic",0, IF(AND(COUNTRY_INFO!$I30=1,$F30<>0),IF(COUNTRY_INFO!N30>=(COUNTRY_INFO!F30+COUNTRY_INFO!G30),COUNTRY_INFO!F30+COUNTRY_INFO!G30,COUNTRY_INFO!$N30), 0)) -> 0 | I30: 0 | J30: 0 | K30: 0 | L30: 0 | N30: 0
A31: =IF(INTRO!$E$39="Non-endemic"," ",IF(COUNTRY_INFO!A31=0," ",COUNTRY_INFO!A31)) -> Gabon | B31: =IF(INTRO!$E$39="Non-endemic"," ",IF(COUNTRY_INFO!B31=0," ",COUNTRY_INFO!B31)) -> Ngounié | C31: =IF(INTRO!$E$39="Non-endemic"," ",IF(COUNTRY_INFO!C31=0," ",COUNTRY_INFO!C31)) -> Louetsi-Wano | D31: =IF(INTRO!$E$39="Non-endemic",0,IF(INTRO!$E$39="Endemic but PC is not required",IF(COUNTRY_INFO!$H31=1,COUNTRY_INFO!F31+COUNTRY_INFO!G31,0),IF(COUNTRY_INFO!$H31=1,COUNTRY_INFO!F31+COUNTRY_INFO!G31,IF(COUNTRY_INFO!$I31=1,IF(COUNTRY_INFO!N31>=(COUNTRY_INFO!F31+COUNTRY_INFO!G31),COUNTRY_INFO!F31+COUNTRY_INFO!G31,COUNTRY_INFO!$N31),0)))) -> 10734 | E31: =IF(AND(INTRO!$E$39="Non-endemic",INTRO!$E$37="Non-endemic"),"Not required",IF(INTRO!$E$39="Non-endemic","Treat with DEC",COUNTRY_INFO!W31)) -> 1 | F31: =IF(INTRO!$E$39<>"Non-endemic",COUNTRY_INFO!X31,"Not required") -> 0 | G31: =IF(COUNTRY_INFO!H31=1, IF($E31=1,IF(ALB_MBD!$G31<>" ",COUNTRY_INFO!F31+COUNTRY_INFO!G31-ALB_MBD!$G31,COUNTRY_INFO!F31+COUNTRY_INFO!G31), 0),0) -> 684 | H31: =IF(INTRO!$E$39<>"Endemic",0, IF(AND(COUNTRY_INFO!$I31=1,$F31<>0),IF(COUNTRY_INFO!N31>=(COUNTRY_INFO!F31+COUNTRY_INFO!G31),COUNTRY_INFO!F31+COUNTRY_INFO!G31,COUNTRY_INFO!$N31), 0)) -> 0 | I31: 1915.2 | J31: 0 | K31: 0 | L31: 1915.2 | N31: 1915.2
A32: =IF(INTRO!$E$39="Non-endemic"," ",IF(COUNTRY_INFO!A32=0," ",COUNTRY_INFO!A32)) -> Gabon | B32: =IF(INTRO!$E$39="Non-endemic"," ",IF(COUNTRY_INFO!B32=0," ",COUNTRY_INFO!B32)) -> Ngounié | C32: =IF(INTRO!$E$39="Non-endemic"," ",IF(COUNTRY_INFO!C32=0," ",COUNTRY_INFO!C32)) -> Louetsi-Bibaka | D32: =IF(INTRO!$E$39="Non-endemic",0,IF(INTRO!$E$39="Endemic but PC is not required",IF(COUNTRY_INFO!$H32=1,COUNTRY_INFO!F32+COUNTRY_INFO!G32,0),IF(COUNTRY_INFO!$H32=1,COUNTRY_INFO!F32+COUNTRY_INFO!G32,IF(COUNTRY_INFO!$I32=1,IF(COUNTRY_INFO!N32>=(COUNTRY_INFO!F32+COUNTRY_INFO!G32),COUNTRY_INFO!F32+COUNTRY_INFO!G32,COUNTRY_INFO!$N32),0)))) -> 2504 | E32: =IF(AND(INTRO!$E$39="Non-endemic",INTRO!$E$37="Non-endemic"),"Not required",IF(INTRO!$E$39="Non-endemic","Treat with DEC",COUNTRY_INFO!W32)) -> 1 | F32: =IF(INTRO!$E$39<>"Non-endemic",COUNTRY_INFO!X32,"Not required") -> 0 | G32: =IF(COUNTRY_INFO!H32=1, IF($E32=1,IF(ALB_MBD!$G32<>" ",COUNTRY_INFO!F32+COUNTRY_INFO!G32-ALB_MBD!$G32,COUNTRY_INFO!F32+COUNTRY_INFO!G32), 0),0) -> 159 | H32: =IF(INTRO!$E$39<>"Endemic",0, IF(AND(COUNTRY_INFO!$I32=1,$F32<>0),IF(COUNTRY_INFO!N32>=(COUNTRY_INFO!F32+COUNTRY_INFO!G32),COUNTRY_INFO!F32+COUNTRY_INFO!G32,COUNTRY_INFO!$N32), 0)) -> 0 | I32: 445.2 | J32: 0 | K32: 0 | L32: 445.2 | N32: 445.2
A33: =IF(INTRO!$E$39="Non-endemic"," ",IF(COUNTRY_INFO!A33=0," ",COUNTRY_INFO!A33)) -> Gabon | B33: =IF(INTRO!$E$39="Non-endemic"," ",IF(COUNTRY_INFO!B33=0," ",COUNTRY_INFO!B33)) -> Ngounié | C33: =IF(INTRO!$E$39="Non-endemic"," ",IF(COUNTRY_INFO!C33=0," ",COUNTRY_INFO!C33)) -> Ndolou | D33: =IF(INTRO!$E$39="Non-endemic",0,IF(INTRO!$E$39="Endemic but PC is not required",IF(COUNTRY_INFO!$H33=1,COUNTRY_INFO!F33+COUNTRY_INFO!G33,0),IF(COUNTRY_INFO!$H33=1,COUNTRY_INFO!F33+COUNTRY_INFO!G33,IF(COUNTRY_INFO!$I33=1,IF(COUNTRY_INFO!N33>=(COUNTRY_INFO!F33+COUNTRY_INFO!G33),COUNTRY_INFO!F33+COUNTRY_INFO!G33,COUNTRY_INFO!$N33),0)))) -> 5874 | E33: =IF(AND(INTRO!$E$39="Non-endemic",INTRO!$E$37="Non-endemic"),"Not required",IF(INTRO!$E$39="Non-endemic","Treat with DEC",COUNTRY_INFO!W33)) -> 1 | F33: =IF(INTRO!$E$39<>"Non-endemic",COUNTRY_INFO!X33,"Not required") -> 0 | G33: =IF(COUNTRY_INFO!H33=1, IF($E33=1,IF(ALB_MBD!$G33<>" ",COUNTRY_INFO!F33+COUNTRY_INFO!G33-ALB_MBD!$G33,COUNTRY_INFO!F33+COUNTRY_INFO!G33), 0),0) -> 374 | H33: =IF(INTRO!$E$39<>"Endemic",0, IF(AND(COUNTRY_INFO!$I33=1,$F33<>0),IF(COUNTRY_INFO!N33>=(COUNTRY_INFO!F33+COUNTRY_INFO!G33),COUNTRY_INFO!F33+COUNTRY_INFO!G33,COUNTRY_INFO!$N33), 0)) -> 0 | I33: 1047.2 | J33: 0 | K33: 0 | L33: 1047.2 | N33: 1047.2
A34: =IF(INTRO!$E$39="Non-endemic"," ",IF(COUNTRY_INFO!A34=0," ",COUNTRY_INFO!A34)) -> Gabon | B34: =IF(INTRO!$E$39="Non-endemic"," ",IF(COUNTRY_INFO!B34=0," ",COUNTRY_INFO!B34)) -> Ngounié | C34: =IF(INTRO!$E$39="Non-endemic"," ",IF(COUNTRY_INFO!C34=0," ",COUNTRY_INFO!C34)) -> Boumi-Louetsi | D34: =IF(INTRO!$E$39="Non-endemic",0,IF(INTRO!$E$39="Endemic but PC is not required",IF(COUNTRY_INFO!$H34=1,COUNTRY_INFO!F34+COUNTRY_INFO!G34,0),IF(COUNTRY_INFO!$H34=1,COUNTRY_INFO!F34+COUNTRY_INFO!G34,IF(COUNTRY_INFO!$I34=1,IF(COUNTRY_INFO!N34>=(COUNTRY_INFO!F34+COUNTRY_INFO!G34),COUNTRY_INFO!F34+COUNTRY_INFO!G34,COUNTRY_INFO!$N34),0)))) -> 15132 | E34: =IF(AND(INTRO!$E$39="Non-endemic",INTRO!$E$37="Non-endemic"),"Not required",IF(INTRO!$E$39="Non-endemic","Treat with DEC",COUNTRY_INFO!W34)) -> 1 | F34: =IF(INTRO!$E$39<>"Non-endemic",COUNTRY_INFO!X34,"Not required") -> 0 | G34: =IF(COUNTRY_INFO!H34=1, IF($E34=1,IF(ALB_MBD!$G34<>" ",COUNTRY_INFO!F34+COUNTRY_INFO!G34-ALB_MBD!$G34,COUNTRY_INFO!F34+COUNTRY_INFO!G34), 0),0) -> 963 | H34: =IF(INTRO!$E$39<>"Endemic",0, IF(AND(COUNTRY_INFO!$I34=1,$F34<>0),IF(COUNTRY_INFO!N34>=(COUNTRY_INFO!F34+COUNTRY_INFO!G34),COUNTRY_INFO!F34+COUNTRY_INFO!G34,COUNTRY_INFO!$N34), 0)) -> 0 | I34: 2696.4 | J34: 0 | K34: 0 | L34: 2696.4 | N34: 2696.4
A35: =IF(INTRO!$E$39="Non-endemic"," ",IF(COUNTRY_INFO!A35=0," ",COUNTRY_INFO!A35)) -> Gabon | B35: =IF(INTRO!$E$39="Non-endemic"," ",IF(COUNTRY_INFO!B35=0," ",COUNTRY_INFO!B35)) -> Ngounié | C35: =IF(INTRO!$E$39="Non-endemic"," ",IF(COUNTRY_INFO!C35=0," ",COUNTRY_INFO!C35)) -> Ogoulou | D35: =IF(INTRO!$E$39="Non-endemic",0,IF(INTRO!$E$39="Endemic but PC is not required",IF(COUNTRY_INFO!$H35=1,COUNTRY_INFO!F35+COUNTRY_INFO!G35,0),IF(COUNTRY_INFO!$H35=1,COUNTRY_INFO!F35+COUNTRY_INFO!G35,IF(COUNTRY_INFO!$I35=1,IF(COUNTRY_INFO!N35>=(COUNTRY_INFO!F35+COUNTRY_INFO!G35),COUNTRY_INFO!F35+COUNTRY_INFO!G35,COUNTRY_INFO!$N35),0)))) -> 8184 | E35: =IF(AND(INTRO!$E$39="Non-endemic",INTRO!$E$37="Non-endemic"),"Not required",IF(INTRO!$E$39="Non-endemic","Treat with DEC",COUNTRY_INFO!W35)) -> 1 | F35: =IF(INTRO!$E$39<>"Non-endemic",COUNTRY_INFO!X35,"Not required") -> 0 | G35: =IF(COUNTRY_INFO!H35=1, IF($E35=1,IF(ALB_MBD!$G35<>" ",COUNTRY_INFO!F35+COUNTRY_INFO!G35-ALB_MBD!$G35,COUNTRY_INFO!F35+COUNTRY_INFO!G35), 0),0) -> 521 | H35: =IF(INTRO!$E$39<>"Endemic",0, IF(AND(COUNTRY_INFO!$I35=1,$F35<>0),IF(COUNTRY_INFO!N35>=(COUNTRY_INFO!F35+COUNTRY_INFO!G35),COUNTRY_INFO!F35+COUNTRY_INFO!G35,COUNTRY_INFO!$N35), 0)) -> 0 | I35: 1458.8 | J35: 0 | K35: 0 | L35: 1458.8 | N35: 1458.8
A36: =IF(INTRO!$E$39="Non-endemic"," ",IF(COUNTRY_INFO!A36=0," ",COUNTRY_INFO!A36)) -> Gabon | B36: =IF(INTRO!$E$39="Non-endemic"," ",IF(COUNTRY_INFO!B36=0," ",COUNTRY_INFO!B36)) -> Ngounié | C36: =IF(INTRO!$E$39="Non-endemic"," ",IF(COUNTRY_INFO!C36=0," ",COUNTRY_INFO!C36)) -> Douya-Onoye | D36: =IF(INTRO!$E$39="Non-endemic",0,IF(INTRO!$E$39="Endemic but PC is not required",IF(COUNTRY_INFO!$H36=1,COUNTRY_INFO!F36+COUNTRY_INFO!G36,0),IF(COUNTRY_INFO!$H36=1,COUNTRY_INFO!F36+COUNTRY_INFO!G36,IF(COUNTRY_INFO!$I36=1,IF(COUNTRY_INFO!N36>=(COUNTRY_INFO!F36+COUNTRY_INFO!G36),COUNTRY_INFO!F36+COUNTRY_INFO!G36,COUNTRY_INFO!$N36),0)))) -> 34699 | E36: =IF(AND(INTRO!$E$39="Non-endemic",INTRO!$E$37="Non-endemic"),"Not required",IF(INTRO!$E$39="Non-endemic","Treat with DEC",COUNTRY_INFO!W36)) -> 1 | F36: =IF(INTRO!$E$39<>"Non-endemic",COUNTRY_INFO!X36,"Not required") -> 0 | G36: =IF(COUNTRY_INFO!H36=1, IF($E36=1,IF(ALB_MBD!$G36<>" ",COUNTRY_INFO!F36+COUNTRY_INFO!G36-ALB_MBD!$G36,COUNTRY_INFO!F36+COUNTRY_INFO!G36), 0),0) -> 2210 | H36: =IF(INTRO!$E$39<>"Endemic",0, IF(AND(COUNTRY_INFO!$I36=1,$F36<>0),IF(COUNTRY_INFO!N36>=(COUNTRY_INFO!F36+COUNTRY_INFO!G36),COUNTRY_INFO!F36+COUNTRY_INFO!G36,COUNTRY_INFO!$N36), 0)) -> 0 | I36: 6188 | J36: 0 | K36: 0 | L36: 6188 | N36: 6188
A37: =IF(INTRO!$E$39="Non-endemic"," ",IF(COUNTRY_INFO!A37=0," ",COUNTRY_INFO!A37)) -> Gabon | B37: =IF(INTRO!$E$39="Non-endemic"," ",IF(COUNTRY_INFO!B37=0," ",COUNTRY_INFO!B37)) -> Ngounié | C37: =IF(INTRO!$E$39="Non-endemic"," ",IF(COUNTRY_INFO!C37=0," ",COUNTRY_INFO!C37)) -> Dola | D37: =IF(INTRO!$E$39="Non-endemic",0,IF(INTRO!$E$39="Endemic but PC is not required",IF(COUNTRY_INFO!$H37=1,COUNTRY_INFO!F37+COUNTRY_INFO!G37,0),IF(COUNTRY_INFO!$H37=1,COUNTRY_INFO!F37+COUNTRY_INFO!G37,IF(COUNTRY_INFO!$I37=1,IF(COUNTRY_INFO!N37>=(COUNTRY_INFO!F37+COUNTRY_INFO!G37),COUNTRY_INFO!F37+COUNTRY_INFO!G37,COUNTRY_INFO!$N37),0)))) -> 8735 | E37: =IF(AND(INTRO!$E$39="Non-endemic",INTRO!$E$37="Non-endemic"),"Not required",IF(INTRO!$E$39="Non-endemic","Treat with DEC",COUNTRY_INFO!W37)) -> 0 | F37: =IF(INTRO!$E$39<>"Non-endemic",COUNTRY_INFO!X37,"Not required") -> 0 | G37: =IF(COUNTRY_INFO!H37=1, IF($E37=1,IF(ALB_MBD!$G37<>" ",COUNTRY_INFO!F37+COUNTRY_INFO!G37-ALB_MBD!$G37,COUNTRY_INFO!F37+COUNTRY_INFO!G37), 0),0) -> 0 | H37: =IF(INTRO!$E$39<>"Endemic",0, IF(AND(COUNTRY_INFO!$I37=1,$F37<>0),IF(COUNTRY_INFO!N37>=(COUNTRY_INFO!F37+COUNTRY_INFO!G37),COUNTRY_INFO!F37+COUNTRY_INFO!G37,COUNTRY_INFO!$N37), 0)) -> 0 | I37: 0 | J37: 0 | K37: 0 | L37: 0 | N37: 0
A38: =IF(INTRO!$E$39="Non-endemic"," ",IF(COUNTRY_INFO!A38=0," ",COUNTRY_INFO!A38)) -> Gabon | B38: =IF(INTRO!$E$39="Non-endemic"," ",IF(COUNTRY_INFO!B38=0," ",COUNTRY_INFO!B38)) -> Ngounié | C38: =IF(INTRO!$E$39="Non-endemic"," ",IF(COUNTRY_INFO!C38=0," ",COUNTRY_INFO!C38)) -> Mougalaba | D38: =IF(INTRO!$E$39="Non-endemic",0,IF(INTRO!$E$39="Endemic but PC is not required",IF(COUNTRY_INFO!$H38=1,COUNTRY_INFO!F38+COUNTRY_INFO!G38,0),IF(COUNTRY_INFO!$H38=1,COUNTRY_INFO!F38+COUNTRY_INFO!G38,IF(COUNTRY_INFO!$I38=1,IF(COUNTRY_INFO!N38>=(COUNTRY_INFO!F38+COUNTRY_INFO!G38),COUNTRY_INFO!F38+COUNTRY_INFO!G38,COUNTRY_INFO!$N38),0)))) -> 1126 | E38: =IF(AND(INTRO!$E$39="Non-endemic",INTRO!$E$37="Non-endemic"),"Not required",IF(INTRO!$E$39="Non-endemic","Treat with DEC",COUNTRY_INFO!W38)) -> 1 | F38: =IF(INTRO!$E$39<>"Non-endemic",COUNTRY_INFO!X38,"Not required") -> 0 | G38: =IF(COUNTRY_INFO!H38=1, IF($E38=1,IF(ALB_MBD!$G38<>" ",COUNTRY_INFO!F38+COUNTRY_INFO!G38-ALB_MBD!$G38,COUNTRY_INFO!F38+COUNTRY_INFO!G38), 0),0) -> 71 | H38: =IF(INTRO!$E$39<>"Endemic",0, IF(AND(COUNTRY_INFO!$I38=1,$F38<>0),IF(COUNTRY_INFO!N38>=(COUNTRY_INFO!F38+COUNTRY_INFO!G38),COUNTRY_INFO!F38+COUNTRY_INFO!G38,COUNTRY_INFO!$N38), 0)) -> 0 | I38: 198.8 | J38: 0 | K38: 0 | L38: 198.8 | N38: 198.8
A39: =IF(INTRO!$E$39="Non-endemic"," ",IF(COUNTRY_INFO!A39=0," ",COUNTRY_INFO!A39)) -> Gabon | B39: =IF(INTRO!$E$39="Non-endemic"," ",IF(COUNTRY_INFO!B39=0," ",COUNTRY_INFO!B39)) -> Nyanga | C39: =IF(INTRO!$E$39="Non-endemic"," ",IF(COUNTRY_INFO!C39=0," ",COUNTRY_INFO!C39)) -> Doutsila | D39: =IF(INTRO!$E$39="Non-endemic",0,IF(INTRO!$E$39="Endemic but PC is not required",IF(COUNTRY_INFO!$H39=1,COUNTRY_INFO!F39+COUNTRY_INFO!G39,0),IF(COUNTRY_INFO!$H39=1,COUNTRY_INFO!F39+COUNTRY_INFO!G39,IF(COUNTRY_INFO!$I39=1,IF(COUNTRY_INFO!N39>=(COUNTRY_INFO!F39+COUNTRY_INFO!G39),COUNTRY_INFO!F39+COUNTRY_INFO!G39,COUNTRY_INFO!$N39),0)))) -> 0 | E39: =IF(AND(INTRO!$E$39="Non-endemic",INTRO!$E$37="Non-endemic"),"Not required",IF(INTRO!$E$39="Non-endemic","Treat with DEC",COUNTRY_INFO!W39)) -> 0 | F39: =IF(INTRO!$E$39<>"Non-endemic",COUNTRY_INFO!X39,"Not required") -> 0 | G39: =IF(COUNTRY_INFO!H39=1, IF($E39=1,IF(ALB_MBD!$G39<>" ",COUNTRY_INFO!F39+COUNTRY_INFO!G39-ALB_MBD!$G39,COUNTRY_INFO!F39+COUNTRY_INFO!G39), 0),0) -> 0 | H39: =IF(INTRO!$E$39<>"Endemic",0, IF(AND(COUNTRY_INFO!$I39=1,$F39<>0),IF(COUNTRY_INFO!N39>=(COUNTRY_INFO!F39+COUNTRY_INFO!G39),COUNTRY_INFO!F39+COUNTRY_INFO!G39,COUNTRY_INFO!$N39), 0)) -> 0 | I39: 0 | J39: 0 | K39: 0 | L39: 0 | N39: 0
A40: =IF(INTRO!$E$39="Non-endemic"," ",IF(COUNTRY_INFO!A40=0," ",COUNTRY_INFO!A40)) -> Gabon | B40: =IF(INTRO!$E$39="Non-endemic"," ",IF(COUNTRY_INFO!B40=0," ",COUNTRY_INFO!B40)) -> Nyanga | C40: =IF(INTRO!$E$39="Non-endemic"," ",IF(COUNTRY_INFO!C40=0," ",COUNTRY_INFO!C40)) -> Basse-Banio | D40: =IF(INTRO!$E$39="Non-endemic",0,IF(INTRO!$E$39="Endemic but PC is not required",IF(COUNTRY_INFO!$H40=1,COUNTRY_INFO!F40+COUNTRY_INFO!G40,0),IF(COUNTRY_INFO!$H40=1,COUNTRY_INFO!F40+COUNTRY_INFO!G40,IF(COUNTRY_INFO!$I40=1,IF(COUNTRY_INFO!N40>=(COUNTRY_INFO!F40+COUNTRY_INFO!G40),COUNTRY_INFO!F40+COUNTRY_INFO!G40,COUNTRY_INFO!$N40),0)))) -> 7012 | E40: =IF(AND(INTRO!$E$39="Non-endemic",INTRO!$E$37="Non-endemic"),"Not required",IF(INTRO!$E$39="Non-endemic","Treat with DEC",COUNTRY_INFO!W40)) -> 1 | F40: =IF(INTRO!$E$39<>"Non-endemic",COUNTRY_INFO!X40,"Not required") -> 0 | G40: =IF(COUNTRY_INFO!H40=1, IF($E40=1,IF(ALB_MBD!$G40<>" ",COUNTRY_INFO!F40+COUNTRY_INFO!G40-ALB_MBD!$G40,COUNTRY_INFO!F40+COUNTRY_INFO!G40), 0),0) -> 420 | H40: =IF(INTRO!$E$39<>"Endemic",0, IF(AND(COUNTRY_INFO!$I40=1,$F40<>0),IF(COUNTRY_INFO!N40>=(COUNTRY_INFO!F40+COUNTRY_INFO!G40),COUNTRY_INFO!F40+COUNTRY_INFO!G40,COUNTRY_INFO!$N40), 0)) -> 0 | I40: 1176 | J40: 0 | K40: 0 | L40: 1176 | N40: 1176
A41: =IF(INTRO!$E$39="Non-endemic"," ",IF(COUNTRY_INFO!A41=0," ",COUNTRY_INFO!A41)) -> Gabon | B41: =IF(INTRO!$E$39="Non-endemic"," ",IF(COUNTRY_INFO!B41=0," ",COUNTRY_INFO!B41)) -> Nyanga | C41: =IF(INTRO!$E$39="Non-endemic"," ",IF(COUNTRY_INFO!C41=0," ",COUNTRY_INFO!C41)) -> Douigny | D41: =IF(INTRO!$E$39="Non-endemic",0,IF(INTRO!$E$39="Endemic but PC is not required",IF(COUNTRY_INFO!$H41=1,COUNTRY_INFO!F41+COUNTRY_INFO!G41,0),IF(COUNTRY_INFO!$H41=1,COUNTRY_INFO!F41+COUNTRY_INFO!G41,IF(COUNTRY_INFO!$I41=1,IF(COUNTRY_INFO!N41>=(COUNTRY_INFO!F41+COUNTRY_INFO!G41),COUNTRY_INFO!F41+COUNTRY_INFO!G41,COUNTRY_INFO!$N41),0)))) -> 5464 | E41: =IF(AND(INTRO!$E$39="Non-endemic",INTRO!$E$37="Non-endemic"),"Not required",IF(INTRO!$E$39="Non-endemic","Treat with DEC",COUNTRY_INFO!W41)) -> 0 | F41: =IF(INTRO!$E$39<>"Non-endemic",COUNTRY_INFO!X41,"Not required") -> 0 | G41: =IF(COUNTRY_INFO!H41=1, IF($E41=1,IF(ALB_MBD!$G41<>" ",COUNTRY_INFO!F41+COUNTRY_INFO!G41-ALB_MBD!$G41,COUNTRY_INFO!F41+COUNTRY_INFO!G41), 0),0) -> 0 | H41: =IF(INTRO!$E$39<>"Endemic",0, IF(AND(COUNTRY_INFO!$I41=1,$F41<>0),IF(COUNTRY_INFO!N41>=(COUNTRY_INFO!F41+COUNTRY_INFO!G41),COUNTRY_INFO!F41+COUNTRY_INFO!G41,COUNTRY_INFO!$N41), 0)) -> 0 | I41: 0 | J41: 0 | K41: 0 | L41: 0 | N41: 0
A42: =IF(INTRO!$E$39="Non-endemic"," ",IF(COUNTRY_INFO!A42=0," ",COUNTRY_INFO!A42)) -> Gabon | B42: =IF(INTRO!$E$39="Non-endemic"," ",IF(COUNTRY_INFO!B42=0," ",COUNTRY_INFO!B42)) -> Nyanga | C42: =IF(INTRO!$E$39="Non-endemic"," ",IF(COUNTRY_INFO!C42=0," ",COUNTRY_INFO!C42)) -> Mongo | D42: =IF(INTRO!$E$39="Non-endemic",0,IF(INTRO!$E$39="Endemic but PC is not required",IF(COUNTRY_INFO!$H42=1,COUNTRY_INFO!F42+COUNTRY_INFO!G42,0),IF(COUNTRY_INFO!$H42=1,COUNTRY_INFO!F42+COUNTRY_INFO!G42,IF(COUNTRY_INFO!$I42=1,IF(COUNTRY_INFO!N42>=(COUNTRY_INFO!F42+COUNTRY_INFO!G42),COUNTRY_INFO!F42+COUNTRY_INFO!G42,COUNTRY_INFO!$N42),0)))) -> 3573 | E42: =IF(AND(INTRO!$E$39="Non-endemic",INTRO!$E$37="Non-endemic"),"Not required",IF(INTRO!$E$39="Non-endemic","Treat with DEC",COUNTRY_INFO!W42)) -> 0 | F42: =IF(INTRO!$E$39<>"Non-endemic",COUNTRY_INFO!X42,"Not required") -> 0 | G42: =IF(COUNTRY_INFO!H42=1, IF($E42=1,IF(ALB_MBD!$G42<>" ",COUNTRY_INFO!F42+COUNTRY_INFO!G42-ALB_MBD!$G42,COUNTRY_INFO!F42+COUNTRY_INFO!G42), 0),0) -> 0 | H42: =IF(INTRO!$E$39<>"Endemic",0, IF(AND(COUNTRY_INFO!$I42=1,$F42<>0),IF(COUNTRY_INFO!N42>=(COUNTRY_INFO!F42+COUNTRY_INFO!G42),COUNTRY_INFO!F42+COUNTRY_INFO!G42,COUNTRY_INFO!$N42), 0)) -> 0 | I42: 0 | J42: 0 | K42: 0 | L42: 0 | N42: 0
A43: =IF(INTRO!$E$39="Non-endemic"," ",IF(COUNTRY_INFO!A43=0," ",COUNTRY_INFO!A43)) -> Gabon | B43: =IF(INTRO!$E$39="Non-endemic"," ",IF(COUNTRY_INFO!B43=0," ",COUNTRY_INFO!B43)) -> Nyanga | C43: =IF(INTRO!$E$39="Non-endemic"," ",IF(COUNTRY_INFO!C43=0," ",COUNTRY_INFO!C43)) -> Haute-Banio | D43: =IF(INTRO!$E$39="Non-endemic",0,IF(INTRO!$E$39="Endemic but PC is not required",IF(COUNTRY_INFO!$H43=1,COUNTRY_INFO!F43+COUNTRY_INFO!G43,0),IF(COUNTRY_INFO!$H43=1,COUNTRY_INFO!F43+COUNTRY_INFO!G43,IF(COUNTRY_INFO!$I43=1,IF(COUNTRY_INFO!N43>=(COUNTRY_INFO!F43+COUNTRY_INFO!G43),COUNTRY_INFO!F43+COUNTRY_INFO!G43,COUNTRY_INFO!$N43),0)))) -> 0 | E43: =IF(AND(INTRO!$E$39="Non-endemic",INTRO!$E$37="Non-endemic"),"Not required",IF(INTRO!$E$39="Non-endemic","Treat with DEC",COUNTRY_INFO!W43)) -> 0 | F43: =IF(INTRO!$E$39<>"Non-endemic",COUNTRY_INFO!X43,"Not required") -> 0 | G43: =IF(COUNTRY_INFO!H43=1, IF($E43=1,IF(ALB_MBD!$G43<>" ",COUNTRY_INFO!F43+COUNTRY_INFO!G43-ALB_MBD!$G43,COUNTRY_INFO!F43+COUNTRY_INFO!G43), 0),0) -> 0 | H43: =IF(INTRO!$E$39<>"Endemic",0, IF(AND(COUNTRY_INFO!$I43=1,$F43<>0),IF(COUNTRY_INFO!N43>=(COUNTRY_INFO!F43+COUNTRY_INFO!G43),COUNTRY_INFO!F43+COUNTRY_INFO!G43,COUNTRY_INFO!$N43), 0)) -> 0 | I43: 0 | J43: 0 | K43: 0 | L43: 0 | N43: 0
A44: =IF(INTRO!$E$39="Non-endemic"," ",IF(COUNTRY_INFO!A44=0," ",COUNTRY_INFO!A44)) -> Gabon | B44: =IF(INTRO!$E$39="Non-endemic"," ",IF(COUNTRY_INFO!B44=0," ",COUNTRY_INFO!B44)) -> Nyanga | C44: =IF(INTRO!$E$39="Non-endemic"," ",IF(COUNTRY_INFO!C44=0," ",COUNTRY_INFO!C44)) -> Mougoutsi | D44: =IF(INTRO!$E$39="Non-endemic",0,IF(INTRO!$E$39="Endemic but PC is not required",IF(COUNTRY_INFO!$H44=1,COUNTRY_INFO!F44+COUNTRY_INFO!G44,0),IF(COUNTRY_INFO!$H44=1,COUNTRY_INFO!F44+COUNTRY_INFO!G44,IF(COUNTRY_INFO!$I44=1,IF(COUNTRY_INFO!N44>=(COUNTRY_INFO!F44+COUNTRY_INFO!G44),COUNTRY_INFO!F44+COUNTRY_INFO!G44,COUNTRY_INFO!$N44),0)))) -> 30298 | E44: =IF(AND(INTRO!$E$39="Non-endemic",INTRO!$E$37="Non-endemic"),"Not required",IF(INTRO!$E$39="Non-endemic","Treat with DEC",COUNTRY_INFO!W44)) -> 0 | F44: =IF(INTRO!$E$39<>"Non-endemic",COUNTRY_INFO!X44,"Not required") -> 0 | G44: =IF(COUNTRY_INFO!H44=1, IF($E44=1,IF(ALB_MBD!$G44<>" ",COUNTRY_INFO!F44+COUNTRY_INFO!G44-ALB_MBD!$G44,COUNTRY_INFO!F44+COUNTRY_INFO!G44), 0),0) -> 0 | H44: =IF(INTRO!$E$39<>"Endemic",0, IF(AND(COUNTRY_INFO!$I44=1,$F44<>0),IF(COUNTRY_INFO!N44>=(COUNTRY_INFO!F44+COUNTRY_INFO!G44),COUNTRY_INFO!F44+COUNTRY_INFO!G44,COUNTRY_INFO!$N44), 0)) -> 0 | I44: 0 | J44: 0 | K44: 0 | L44: 0 | N44: 0
A45: =IF(INTRO!$E$39="Non-endemic"," ",IF(COUNTRY_INFO!A45=0," ",COUNTRY_INFO!A45)) -> Gabon | B45: =IF(INTRO!$E$39="Non-endemic"," ",IF(COUNTRY_INFO!B45=0," ",COUNTRY_INFO!B45)) -> Ogooué-Ivindo | C45: =IF(INTRO!$E$39="Non-endemic"," ",IF(COUNTRY_INFO!C45=0," ",COUNTRY_INFO!C45)) -> Lopé | D45: =IF(INTRO!$E$39="Non-endemic",0,IF(INTRO!$E$39="Endemic but PC is not required",IF(COUNTRY_INFO!$H45=1,COUNTRY_INFO!F45+COUNTRY_INFO!G45,0),IF(COUNTRY_INFO!$H45=1,COUNTRY_INFO!F45+COUNTRY_INFO!G45,IF(COUNTRY_INFO!$I45=1,IF(COUNTRY_INFO!N45>=(COUNTRY_INFO!F45+COUNTRY_INFO!G45),COUNTRY_INFO!F45+COUNTRY_INFO!G45,COUNTRY_INFO!$N45),0)))) -> 15215 | E45: =IF(AND(INTRO!$E$39="Non-endemic",INTRO!$E$37="Non-endemic"),"Not required",IF(INTRO!$E$39="Non-endemic","Treat with DEC",COUNTRY_INFO!W45)) -> 1 | F45: =IF(INTRO!$E$39<>"Non-endemic",COUNTRY_INFO!X45,"Not required") -> 0 | G45: =IF(COUNTRY_INFO!H45=1, IF($E45=1,IF(ALB_MBD!$G45<>" ",COUNTRY_INFO!F45+COUNTRY_INFO!G45-ALB_MBD!$G45,COUNTRY_INFO!F45+COUNTRY_INFO!G45), 0),0) -> 968 | H45: =IF(INTRO!$E$39<>"Endemic",0, IF(AND(COUNTRY_INFO!$I45=1,$F45<>0),IF(COUNTRY_INFO!N45>=(COUNTRY_INFO!F45+COUNTRY_INFO!G45),COUNTRY_INFO!F45+COUNTRY_INFO!G45,COUNTRY_INFO!$N45), 0)) -> 0 | I45: 2710.4 | J45: 0 | K45: 0 | L45: 2710.4 | N45: 2710.4
A46: =IF(INTRO!$E$39="Non-endemic"," ",IF(COUNTRY_INFO!A46=0," ",COUNTRY_INFO!A46)) -> Gabon | B46: =IF(INTRO!$E$39="Non-endemic"," ",IF(COUNTRY_INFO!B46=0," ",COUNTRY_INFO!B46)) -> Ogooué-Ivindo | C46: =IF(INTRO!$E$39="Non-endemic"," ",IF(COUNTRY_INFO!C46=0," ",COUNTRY_INFO!C46)) -> Ivindo | D46: =IF(INTRO!$E$39="Non-endemic",0,IF(INTRO!$E$39="Endemic but PC is not required",IF(COUNTRY_INFO!$H46=1,COUNTRY_INFO!F46+COUNTRY_INFO!G46,0),IF(COUNTRY_INFO!$H46=1,COUNTRY_INFO!F46+COUNTRY_INFO!G46,IF(COUNTRY_INFO!$I46=1,IF(COUNTRY_INFO!N46>=(COUNTRY_INFO!F46+COUNTRY_INFO!G46),COUNTRY_INFO!F46+COUNTRY_INFO!G46,COUNTRY_INFO!$N46),0)))) -> 33501 | E46: =IF(AND(INTRO!$E$39="Non-endemic",INTRO!$E$37="Non-endemic"),"Not required",IF(INTRO!$E$39="Non-endemic","Treat with DEC",COUNTRY_INFO!W46)) -> 1 | F46: =IF(INTRO!$E$39<>"Non-endemic",COUNTRY_INFO!X46,"Not required") -> 0 | G46: =IF(COUNTRY_INFO!H46=1, IF($E46=1,IF(ALB_MBD!$G46<>" ",COUNTRY_INFO!F46+COUNTRY_INFO!G46-ALB_MBD!$G46,COUNTRY_INFO!F46+COUNTRY_INFO!G46), 0),0) -> 2133 | H46: =IF(INTRO!$E$39<>"Endemic",0, IF(AND(COUNTRY_INFO!$I46=1,$F46<>0),IF(COUNTRY_INFO!N46>=(COUNTRY_INFO!F46+COUNTRY_INFO!G46),COUNTRY_INFO!F46+COUNTRY_INFO!G46,COUNTRY_INFO!$N46), 0)) -> 0 | I46: 5972.4 | J46: 0 | K46: 0 | L46: 5972.4 | N46: 5972.4
A47: =IF(INTRO!$E$39="Non-endemic"," ",IF(COUNTRY_INFO!A47=0," ",COUNTRY_INFO!A47)) -> Gabon | B47: =IF(INTRO!$E$39="Non-endemic"," ",IF(COUNTRY_INFO!B47=0," ",COUNTRY_INFO!B47)) -> Ogooué-Ivindo | C47: =IF(INTRO!$E$39="Non-endemic"," ",IF(COUNTRY_INFO!C47=0," ",COUNTRY_INFO!C47)) -> Zadié | D47: =IF(INTRO!$E$39="Non-endemic",0,IF(INTRO!$E$39="Endemic but PC is not required",IF(COUNTRY_INFO!$H47=1,COUNTRY_INFO!F47+COUNTRY_INFO!G47,0),IF(COUNTRY_INFO!$H47=1,COUNTRY_INFO!F47+COUNTRY_INFO!G47,IF(COUNTRY_INFO!$I47=1,IF(COUNTRY_INFO!N47>=(COUNTRY_INFO!F47+COUNTRY_INFO!G47),COUNTRY_INFO!F47+COUNTRY_INFO!G47,COUNTRY_INFO!$N47),0)))) -> 13825 | E47: =IF(AND(INTRO!$E$39="Non-endemic",INTRO!$E$37="Non-endemic"),"Not required",IF(INTRO!$E$39="Non-endemic","Treat with DEC",COUNTRY_INFO!W47)) -> 1 | F47: =IF(INTRO!$E$39<>"Non-endemic",COUNTRY_INFO!X47,"Not required") -> 0 | G47: =IF(COUNTRY_INFO!H47=1, IF($E47=1,IF(ALB_MBD!$G47<>" ",COUNTRY_INFO!F47+COUNTRY_INFO!G47-ALB_MBD!$G47,COUNTRY_INFO!F47+COUNTRY_INFO!G47), 0),0) -> 880 | H47: =IF(INTRO!$E$39<>"Endemic",0, IF(AND(COUNTRY_INFO!$I47=1,$F47<>0),IF(COUNTRY_INFO!N47>=(COUNTRY_INFO!F47+COUNTRY_INFO!G47),COUNTRY_INFO!F47+COUNTRY_INFO!G47,COUNTRY_INFO!$N47), 0)) -> 0 | I47: 2464 | J47: 0 | K47: 0 | L47: 2464 | N47: 2464
A48: =IF(INTRO!$E$39="Non-endemic"," ",IF(COUNTRY_INFO!A48=0," ",COUNTRY_INFO!A48)) -> Gabon | B48: =IF(INTRO!$E$39="Non-endemic"," ",IF(COUNTRY_INFO!B48=0," ",COUNTRY_INFO!B48)) -> Ogooué-Ivindo | C48: =IF(INTRO!$E$39="Non-endemic"," ",IF(COUNTRY_INFO!C48=0," ",COUNTRY_INFO!C48)) -> Mvoung | D48: =IF(INTRO!$E$39="Non-endemic",0,IF(INTRO!$E$39="Endemic but PC is not required",IF(COUNTRY_INFO!$H48=1,COUNTRY_INFO!F48+COUNTRY_INFO!G48,0),IF(COUNTRY_INFO!$H48=1,COUNTRY_INFO!F48+COUNTRY_INFO!G48,IF(COUNTRY_INFO!$I48=1,IF(COUNTRY_INFO!N48>=(COUNTRY_INFO!F48+COUNTRY_INFO!G48),COUNTRY_INFO!F48+COUNTRY_INFO!G48,COUNTRY_INFO!$N48),0)))) -> 4343 | E48: =IF(AND(INTRO!$E$39="Non-endemic",INTRO!$E$37="Non-endemic"),"Not required",IF(INTRO!$E$39="Non-endemic","Treat with DEC",COUNTRY_INFO!W48)) -> 1 | F48: =IF(INTRO!$E$39<>"Non-endemic",COUNTRY_INFO!X48,"Not required") -> 0 | G48: =IF(COUNTRY_INFO!H48=1, IF($E48=1,IF(ALB_MBD!$G48<>" ",COUNTRY_INFO!F48+COUNTRY_INFO!G48-ALB_MBD!$G48,COUNTRY_INFO!F48+COUNTRY_INFO!G48), 0),0) -> 277 | H48: =IF(INTRO!$E$39<>"Endemic",0, IF(AND(COUNTRY_INFO!$I48=1,$F48<>0),IF(COUNTRY_INFO!N48>=(COUNTRY_INFO!F48+COUNTRY_INFO!G48),COUNTRY_INFO!F48+COUNTRY_INFO!G48,COUNTRY_INFO!$N48), 0)) -> 0 | I48: 775.6 | J48: 0 | K48: 0 | L48: 775.6 | N48: 775.6
A49: =IF(INTRO!$E$39="Non-endemic"," ",IF(COUNTRY_INFO!A49=0," ",COUNTRY_INFO!A49)) -> Gabon | B49: =IF(INTRO!$E$39="Non-endemic"," ",IF(COUNTRY_INFO!B49=0," ",COUNTRY_INFO!B49)) -> Ogooué-Lolo | C49: =IF(INTRO!$E$39="Non-endemic"," ",IF(COUNTRY_INFO!C49=0," ",COUNTRY_INFO!C49)) -> Offoué-Onoye | D49: =IF(INTRO!$E$39="Non-endemic",0,IF(INTRO!$E$39="Endemic but PC is not required",IF(COUNTRY_INFO!$H49=1,COUNTRY_INFO!F49+COUNTRY_INFO!G49,0),IF(COUNTRY_INFO!$H49=1,COUNTRY_INFO!F49+COUNTRY_INFO!G49,IF(COUNTRY_INFO!$I49=1,IF(COUNTRY_INFO!N49>=(COUNTRY_INFO!F49+COUNTRY_INFO!G49),COUNTRY_INFO!F49+COUNTRY_INFO!G49,COUNTRY_INFO!$N49),0)))) -> 3082 | E49: =IF(AND(INTRO!$E$39="Non-endemic",INTRO!$E$37="Non-endemic"),"Not required",IF(INTRO!$E$39="Non-endemic","Treat with DEC",COUNTRY_INFO!W49)) -> 1 | F49: =IF(INTRO!$E$39<>"Non-endemic",COUNTRY_INFO!X49,"Not required") -> 0 | G49: =IF(COUNTRY_INFO!H49=1, IF($E49=1,IF(ALB_MBD!$G49<>" ",COUNTRY_INFO!F49+COUNTRY_INFO!G49-ALB_MBD!$G49,COUNTRY_INFO!F49+COUNTRY_INFO!G49), 0),0) -> 227 | H49: =IF(INTRO!$E$39<>"Endemic",0, IF(AND(COUNTRY_INFO!$I49=1,$F49<>0),IF(COUNTRY_INFO!N49>=(COUNTRY_INFO!F49+COUNTRY_INFO!G49),COUNTRY_INFO!F49+COUNTRY_INFO!G49,COUNTRY_INFO!$N49), 0)) -> 0 | I49: 635.6 | J49: 0 | K49: 0 | L49: 635.6 | N49: 635.6
A50: =IF(INTRO!$E$39="Non-endemic"," ",IF(COUNTRY_INFO!A50=0," ",COUNTRY_INFO!A50)) -> Gabon | B50: =IF(INTRO!$E$39="Non-endemic"," ",IF(COUNTRY_INFO!B50=0," ",COUNTRY_INFO!B50)) -> Ogooué-Lolo | C50: =IF(INTRO!$E$39="Non-endemic"," ",IF(COUNTRY_INFO!C50=0," ",COUNTRY_INFO!C50)) -> Lolo-Bouenguidi | D50: =IF(INTRO!$E$39="Non-endemic",0,IF(INTRO!$E$39="Endemic but PC is not required",IF(COUNTRY_INFO!$H50=1,COUNTRY_INFO!F50+COUNTRY_INFO!G50,0),IF(COUNTRY_INFO!$H50=1,COUNTRY_INFO!F50+COUNTRY_INFO!G50,IF(COUNTRY_INFO!$I50=1,IF(COUNTRY_INFO!N50>=(COUNTRY_INFO!F50+COUNTRY_INFO!G50),COUNTRY_INFO!F50+COUNTRY_INFO!G50,COUNTRY_INFO!$N50),0)))) -> 32213 | E50: =IF(AND(INTRO!$E$39="Non-endemic",INTRO!$E$37="Non-endemic"),"Not required",IF(INTRO!$E$39="Non-endemic","Treat with DEC",COUNTRY_INFO!W50)) -> 1 | F50: =IF(INTRO!$E$39<>"Non-endemic",COUNTRY_INFO!X50,"Not required") -> 0 | G50: =IF(COUNTRY_INFO!H50=1, IF($E50=1,IF(ALB_MBD!$G50<>" ",COUNTRY_INFO!F50+COUNTRY_INFO!G50-ALB_MBD!$G50,COUNTRY_INFO!F50+COUNTRY_INFO!G50), 0),0) -> 2375 | H50: =IF(INTRO!$E$39<>"Endemic",0, IF(AND(COUNTRY_INFO!$I50=1,$F50<>0),IF(COUNTRY_INFO!N50>=(COUNTRY_INFO!F50+COUNTRY_INFO!G50),COUNTRY_INFO!F50+COUNTRY_INFO!G50,COUNTRY_INFO!$N50), 0)) -> 0 | I50: 6650 | J50: 0 | K50: 0 | L50: 6650 | N50: 6650
A51: =IF(INTRO!$E$39="Non-endemic"," ",IF(COUNTRY_INFO!A51=0," ",COUNTRY_INFO!A51)) -> Gabon | B51: =IF(INTRO!$E$39="Non-endemic"," ",IF(COUNTRY_INFO!B51=0," ",COUNTRY_INFO!B51)) -> Ogooué-Lolo | C51: =IF(INTRO!$E$39="Non-endemic"," ",IF(COUNTRY_INFO!C51=0," ",COUNTRY_INFO!C51)) -> Mulundu | D51: =IF(INTRO!$E$39="Non-endemic",0,IF(INTRO!$E$39="Endemic but PC is not required",IF(COUNTRY_INFO!$H51=1,COUNTRY_INFO!F51+COUNTRY_INFO!G51,0),IF(COUNTRY_INFO!$H51=1,COUNTRY_INFO!F51+COUNTRY_INFO!G51,IF(COUNTRY_INFO!$I51=1,IF(COUNTRY_INFO!N51>=(COUNTRY_INFO!F51+COUNTRY_INFO!G51),COUNTRY_INFO!F51+COUNTRY_INFO!G51,COUNTRY_INFO!$N51),0)))) -> 32518 | E51: =IF(AND(INTRO!$E$39="Non-endemic",INTRO!$E$37="Non-endemic"),"Not required",IF(INTRO!$E$39="Non-endemic","Treat with DEC",COUNTRY_INFO!W51)) -> 1 | F51: =IF(INTRO!$E$39<>"Non-endemic",COUNTRY_INFO!X51,"Not required") -> 0 | G51: =IF(COUNTRY_INFO!H51=1, IF($E51=1,IF(ALB_MBD!$G51<>" ",COUNTRY_INFO!F51+COUNTRY_INFO!G51-ALB_MBD!$G51,COUNTRY_INFO!F51+COUNTRY_INFO!G51), 0),0) -> 2398 | H51: =IF(INTRO!$E$39<>"Endemic",0, IF(AND(COUNTRY_INFO!$I51=1,$F51<>0),IF(COUNTRY_INFO!N51>=(COUNTRY_INFO!F51+COUNTRY_INFO!G51),COUNTRY_INFO!F51+COUNTRY_INFO!G51,COUNTRY_INFO!$N51), 0)) -> 0 | I51: 6714.4 | J51: 0 | K51: 0 | L51: 6714.4 | N51: 6714.4
A52: =IF(INTRO!$E$39="Non-endemic"," ",IF(COUNTRY_INFO!A52=0," ",COUNTRY_INFO!A52)) -> Gabon | B52: =IF(INTRO!$E$39="Non-endemic"," ",IF(COUNTRY_INFO!B52=0," ",COUNTRY_INFO!B52)) -> Ogooué-Lolo | C52: =IF(INTRO!$E$39="Non-endemic"," ",IF(COUNTRY_INFO!C52=0," ",COUNTRY_INFO!C52)) -> Lombo-Bouenguidi | D52: =IF(INTRO!$E$39="Non-endemic",0,IF(INTRO!$E$39="Endemic but PC is not required",IF(COUNTRY_INFO!$H52=1,COUNTRY_INFO!F52+COUNTRY_INFO!G52,0),IF(COUNTRY_INFO!$H52=1,COUNTRY_INFO!F52+COUNTRY_INFO!G52,IF(COUNTRY_INFO!$I52=1,IF(COUNTRY_INFO!N52>=(COUNTRY_INFO!F52+COUNTRY_INFO!G52),COUNTRY_INFO!F52+COUNTRY_INFO!G52,COUNTRY_INFO!$N52),0)))) -> 4253 | E52: =IF(AND(INTRO!$E$39="Non-endemic",INTRO!$E$37="Non-endemic"),"Not required",IF(INTRO!$E$39="Non-endemic","Treat with DEC",COUNTRY_INFO!W52)) -> 0 | F52: =IF(INTRO!$E$39<>"Non-endemic",COUNTRY_INFO!X52,"Not required") -> 0 | G52: =IF(COUNTRY_INFO!H52=1, IF($E52=1,IF(ALB_MBD!$G52<>" ",COUNTRY_INFO!F52+COUNTRY_INFO!G52-ALB_MBD!$G52,COUNTRY_INFO!F52+COUNTRY_INFO!G52), 0),0) -> 0 | H52: =IF(INTRO!$E$39<>"Endemic",0, IF(AND(COUNTRY_INFO!$I52=1,$F52<>0),IF(COUNTRY_INFO!N52>=(COUNTRY_INFO!F52+COUNTRY_INFO!G52),COUNTRY_INFO!F52+COUNTRY_INFO!G52,COUNTRY_INFO!$N52), 0)) -> 0 | I52: 0 | J52: 0 | K52: 0 | L52: 0 | N52: 0
A53: =IF(INTRO!$E$39="Non-endemic"," ",IF(COUNTRY_INFO!A53=0," ",COUNTRY_INFO!A53)) -> Gabon | B53: =IF(INTRO!$E$39="Non-endemic"," ",IF(COUNTRY_INFO!B53=0," ",COUNTRY_INFO!B53)) -> Ogooué-maritime | C53: =IF(INTRO!$E$39="Non-endemic"," ",IF(COUNTRY_INFO!C53=0," ",COUNTRY_INFO!C53)) -> Ndougou | D53: =IF(INTRO!$E$39="Non-endemic",0,IF(INTRO!$E$39="Endemic but PC is not required",IF(COUNTRY_INFO!$H53=1,COUNTRY_INFO!F53+COUNTRY_INFO!G53,0),IF(COUNTRY_INFO!$H53=1,COUNTRY_INFO!F53+COUNTRY_INFO!G53,IF(COUNTRY_INFO!$I53=1,IF(COUNTRY_INFO!N53>=(COUNTRY_INFO!F53+COUNTRY_INFO!G53),COUNTRY_INFO!F53+COUNTRY_INFO!G53,COUNTRY_INFO!$N53),0)))) -> 0 | E53: =IF(AND(INTRO!$E$39="Non-endemic",INTRO!$E$37="Non-endemic"),"Not required",IF(INTRO!$E$39="Non-endemic","Treat with DEC",COUNTRY_INFO!W53)) -> 0 | F53: =IF(INTRO!$E$39<>"Non-endemic",COUNTRY_INFO!X53,"Not required") -> 0 | G53: =IF(COUNTRY_INFO!H53=1, IF($E53=1,IF(ALB_MBD!$G53<>" ",COUNTRY_INFO!F53+COUNTRY_INFO!G53-ALB_MBD!$G53,COUNTRY_INFO!F53+COUNTRY_INFO!G53), 0),0) -> 0 | H53: =IF(INTRO!$E$39<>"Endemic",0, IF(AND(COUNTRY_INFO!$I53=1,$F53<>0),IF(COUNTRY_INFO!N53>=(COUNTRY_INFO!F53+COUNTRY_INFO!G53),COUNTRY_INFO!F53+COUNTRY_INFO!G53,COUNTRY_INFO!$N53), 0)) -> 0 | I53: 0 | J53: 0 | K53: 0 | L53: 0 | N53: 0
A54: =IF(INTRO!$E$39="Non-endemic"," ",IF(COUNTRY_INFO!A54=0," ",COUNTRY_INFO!A54)) -> Gabon | B54: =IF(INTRO!$E$39="Non-endemic"," ",IF(COUNTRY_INFO!B54=0," ",COUNTRY_INFO!B54)) -> Ogooué-maritime | C54: =IF(INTRO!$E$39="Non-endemic"," ",IF(COUNTRY_INFO!C54=0," ",COUNTRY_INFO!C54)) -> Etimboué | D54: =IF(INTRO!$E$39="Non-endemic",0,IF(INTRO!$E$39="Endemic but PC is not required",IF(COUNTRY_INFO!$H54=1,COUNTRY_INFO!F54+COUNTRY_INFO!G54,0),IF(COUNTRY_INFO!$H54=1,COUNTRY_INFO!F54+COUNTRY_INFO!G54,IF(COUNTRY_INFO!$I54=1,IF(COUNTRY_INFO!N54>=(COUNTRY_INFO!F54+COUNTRY_INFO!G54),COUNTRY_INFO!F54+COUNTRY_INFO!G54,COUNTRY_INFO!$N54),0)))) -> 0 | E54: =IF(AND(INTRO!$E$39="Non-endemic",INTRO!$E$37="Non-endemic"),"Not required",IF(INTRO!$E$39="Non-endemic","Treat with DEC",COUNTRY_INFO!W54)) -> 0 | F54: =IF(INTRO!$E$39<>"Non-endemic",COUNTRY_INFO!X54,"Not required") -> 0 | G54: =IF(COUNTRY_INFO!H54=1, IF($E54=1,IF(ALB_MBD!$G54<>" ",COUNTRY_INFO!F54+COUNTRY_INFO!G54-ALB_MBD!$G54,COUNTRY_INFO!F54+COUNTRY_INFO!G54), 0),0) -> 0 | H54: =IF(INTRO!$E$39<>"Endemic",0, IF(AND(COUNTRY_INFO!$I54=1,$F54<>0),IF(COUNTRY_INFO!N54>=(COUNTRY_INFO!F54+COUNTRY_INFO!G54),COUNTRY_INFO!F54+COUNTRY_INFO!G54,COUNTRY_INFO!$N54), 0)) -> 0 | I54: 0 | J54: 0 | K54: 0 | L54: 0 | N54: 0
A55: =IF(INTRO!$E$39="Non-endemic"," ",IF(COUNTRY_INFO!A55=0," ",COUNTRY_INFO!A55)) -> Gabon | B55: =IF(INTRO!$E$39="Non-endemic"," ",IF(COUNTRY_INFO!B55=0," ",COUNTRY_INFO!B55)) -> Ogooué-maritime | C55: =IF(INTRO!$E$39="Non-endemic"," ",IF(COUNTRY_INFO!C55=0," ",COUNTRY_INFO!C55)) -> Bendjé | D55: =IF(INTRO!$E$39="Non-endemic",0,IF(INTRO!$E$39="Endemic but PC is not required",IF(COUNTRY_INFO!$H55=1,COUNTRY_INFO!F55+COUNTRY_INFO!G55,0),IF(COUNTRY_INFO!$H55=1,COUNTRY_INFO!F55+COUNTRY_INFO!G55,IF(COUNTRY_INFO!$I55=1,IF(COUNTRY_INFO!N55>=(COUNTRY_INFO!F55+COUNTRY_INFO!G55),COUNTRY_INFO!F55+COUNTRY_INFO!G55,COUNTRY_INFO!$N55),0)))) -> 0 | E55: =IF(AND(INTRO!$E$39="Non-endemic",INTRO!$E$37="Non-endemic"),"Not required",IF(INTRO!$E$39="Non-endemic","Treat with DEC",COUNTRY_INFO!W55)) -> 0 | F55: =IF(INTRO!$E$39<>"Non-endemic",COUNTRY_INFO!X55,"Not required") -> 0 | G55: =IF(COUNTRY_INFO!H55=1, IF($E55=1,IF(ALB_MBD!$G55<>" ",COUNTRY_INFO!F55+COUNTRY_INFO!G55-ALB_MBD!$G55,COUNTRY_INFO!F55+COUNTRY_INFO!G55), 0),0) -> 0 | H55: =IF(INTRO!$E$39<>"Endemic",0, IF(AND(COUNTRY_INFO!$I55=1,$F55<>0),IF(COUNTRY_INFO!N55>=(COUNTRY_INFO!F55+COUNTRY_INFO!G55),COUNTRY_INFO!F55+COUNTRY_INFO!G55,COUNTRY_INFO!$N55), 0)) -> 0 | I55: 0 | J55: 0 | K55: 0 | L55: 0 | N55: 0
A56: =IF(INTRO!$E$39="Non-endemic"," ",IF(COUNTRY_INFO!A56=0," ",COUNTRY_INFO!A56)) -> Gabon | B56: =IF(INTRO!$E$39="Non-endemic"," ",IF(COUNTRY_INFO!B56=0," ",COUNTRY_INFO!B56)) -> Woleu-Ntem | C56: =IF(INTRO!$E$39="Non-endemic"," ",IF(COUNTRY_INFO!C56=0," ",COUNTRY_INFO!C56)) -> Ntem | D56: =IF(INTRO!$E$39="Non-endemic",0,IF(INTRO!$E$39="Endemic but PC is not required",IF(COUNTRY_INFO!$H56=1,COUNTRY_INFO!F56+COUNTRY_INFO!G56,0),IF(COUNTRY_INFO!$H56=1,COUNTRY_INFO!F56+COUNTRY_INFO!G56,IF(COUNTRY_INFO!$I56=1,IF(COUNTRY_INFO!N56>=(COUNTRY_INFO!F56+COUNTRY_INFO!G56),COUNTRY_INFO!F56+COUNTRY_INFO!G56,COUNTRY_INFO!$N56),0)))) -> 42638 | E56: =IF(AND(INTRO!$E$39="Non-endemic",INTRO!$E$37="Non-endemic"),"Not required",IF(INTRO!$E$39="Non-endemic","Treat with DEC",COUNTRY_INFO!W56)) -> 0 | F56: =IF(INTRO!$E$39<>"Non-endemic",COUNTRY_INFO!X56,"Not required") -> 0 | G56: =IF(COUNTRY_INFO!H56=1, IF($E56=1,IF(ALB_MBD!$G56<>" ",COUNTRY_INFO!F56+COUNTRY_INFO!G56-ALB_MBD!$G56,COUNTRY_INFO!F56+COUNTRY_INFO!G56), 0),0) -> 0 | H56: =IF(INTRO!$E$39<>"Endemic",0, IF(AND(COUNTRY_INFO!$I56=1,$F56<>0),IF(COUNTRY_INFO!N56>=(COUNTRY_INFO!F56+COUNTRY_INFO!G56),COUNTRY_INFO!F56+COUNTRY_INFO!G56,COUNTRY_INFO!$N56), 0)) -> 0 | I56: 0 | J56: 0 | K56: 0 | L56: 0 | N56: 0
A57: =IF(INTRO!$E$39="Non-endemic"," ",IF(COUNTRY_INFO!A57=0," ",COUNTRY_INFO!A57)) -> Gabon | B57: =IF(INTRO!$E$39="Non-endemic"," ",IF(COUNTRY_INFO!B57=0," ",COUNTRY_INFO!B57)) -> Woleu-Ntem | C57: =IF(INTRO!$E$39="Non-endemic"," ",IF(COUNTRY_INFO!C57=0," ",COUNTRY_INFO!C57)) -> Haut-Komo | D57: =IF(INTRO!$E$39="Non-endemic",0,IF(INTRO!$E$39="Endemic but PC is not required",IF(COUNTRY_INFO!$H57=1,COUNTRY_INFO!F57+COUNTRY_INFO!G57,0),IF(COUNTRY_INFO!$H57=1,COUNTRY_INFO!F57+COUNTRY_INFO!G57,IF(COUNTRY_INFO!$I57=1,IF(COUNTRY_INFO!N57>=(COUNTRY_INFO!F57+COUNTRY_INFO!G57),COUNTRY_INFO!F57+COUNTRY_INFO!G57,COUNTRY_INFO!$N57),0)))) -> 4076 | E57: =IF(AND(INTRO!$E$39="Non-endemic",INTRO!$E$37="Non-endemic"),"Not required",IF(INTRO!$E$39="Non-endemic","Treat with DEC",COUNTRY_INFO!W57)) -> 0 | F57: =IF(INTRO!$E$39<>"Non-endemic",COUNTRY_INFO!X57,"Not required") -> 0 | G57: =IF(COUNTRY_INFO!H57=1, IF($E57=1,IF(ALB_MBD!$G57<>" ",COUNTRY_INFO!F57+COUNTRY_INFO!G57-ALB_MBD!$G57,COUNTRY_INFO!F57+COUNTRY_INFO!G57), 0),0) -> 0 | H57: =IF(INTRO!$E$39<>"Endemic",0, IF(AND(COUNTRY_INFO!$I57=1,$F57<>0),IF(COUNTRY_INFO!N57>=(COUNTRY_INFO!F57+COUNTRY_INFO!G57),COUNTRY_INFO!F57+COUNTRY_INFO!G57,COUNTRY_INFO!$N57), 0)) -> 0 | I57: 0 | J57: 0 | K57: 0 | L57: 0 | N57: 0
A58: =IF(INTRO!$E$39="Non-endemic"," ",IF(COUNTRY_INFO!A58=0," ",COUNTRY_INFO!A58)) -> Gabon | B58: =IF(INTRO!$E$39="Non-endemic"," ",IF(COUNTRY_INFO!B58=0," ",COUNTRY_INFO!B58)) -> Woleu-Ntem | C58: =IF(INTRO!$E$39="Non-endemic"," ",IF(COUNTRY_INFO!C58=0," ",COUNTRY_INFO!C58)) -> Haut-Ntem | D58: =IF(INTRO!$E$39="Non-endemic",0,IF(INTRO!$E$39="Endemic but PC is not required",IF(COUNTRY_INFO!$H58=1,COUNTRY_INFO!F58+COUNTRY_INFO!G58,0),IF(COUNTRY_INFO!$H58=1,COUNTRY_INFO!F58+COUNTRY_INFO!G58,IF(COUNTRY_INFO!$I58=1,IF(COUNTRY_INFO!N58>=(COUNTRY_INFO!F58+COUNTRY_INFO!G58),COUNTRY_INFO!F58+COUNTRY_INFO!G58,COUNTRY_INFO!$N58),0)))) -> 13403 | E58: =IF(AND(INTRO!$E$39="Non-endemic",INTRO!$E$37="Non-endemic"),"Not required",IF(INTRO!$E$39="Non-endemic","Treat with DEC",COUNTRY_INFO!W58)) -> 0 | F58: =IF(INTRO!$E$39<>"Non-endemic",COUNTRY_INFO!X58,"Not required") -> 0 | G58: =IF(COUNTRY_INFO!H58=1, IF($E58=1,IF(ALB_MBD!$G58<>" ",COUNTRY_INFO!F58+COUNTRY_INFO!G58-ALB_MBD!$G58,COUNTRY_INFO!F58+COUNTRY_INFO!G58), 0),0) -> 0 | H58: =IF(INTRO!$E$39<>"Endemic",0, IF(AND(COUNTRY_INFO!$I58=1,$F58<>0),IF(COUNTRY_INFO!N58>=(COUNTRY_INFO!F58+COUNTRY_INFO!G58),COUNTRY_INFO!F58+COUNTRY_INFO!G58,COUNTRY_INFO!$N58), 0)) -> 0 | I58: 0 | J58: 0 | K58: 0 | L58: 0 | N58: 0
A59: =IF(INTRO!$E$39="Non-endemic"," ",IF(COUNTRY_INFO!A59=0," ",COUNTRY_INFO!A59)) -> Gabon | B59: =IF(INTRO!$E$39="Non-endemic"," ",IF(COUNTRY_INFO!B59=0," ",COUNTRY_INFO!B59)) -> Woleu-Ntem | C59: =IF(INTRO!$E$39="Non-endemic"," ",IF(COUNTRY_INFO!C59=0," ",COUNTRY_INFO!C59)) -> Okano | D59: =IF(INTRO!$E$39="Non-endemic",0,IF(INTRO!$E$39="Endemic but PC is not required",IF(COUNTRY_INFO!$H59=1,COUNTRY_INFO!F59+COUNTRY_INFO!G59,0),IF(COUNTRY_INFO!$H59=1,COUNTRY_INFO!F59+COUNTRY_INFO!G59,IF(COUNTRY_INFO!$I59=1,IF(COUNTRY_INFO!N59>=(COUNTRY_INFO!F59+COUNTRY_INFO!G59),COUNTRY_INFO!F59+COUNTRY_INFO!G59,COUNTRY_INFO!$N59),0)))) -> 0 | E59: =IF(AND(INTRO!$E$39="Non-endemic",INTRO!$E$37="Non-endemic"),"Not required",IF(INTRO!$E$39="Non-endemic","Treat with DEC",COUNTRY_INFO!W59)) -> 0 | F59: =IF(INTRO!$E$39<>"Non-endemic",COUNTRY_INFO!X59,"Not required") -> 0 | G59: =IF(COUNTRY_INFO!H59=1, IF($E59=1,IF(ALB_MBD!$G59<>" ",COUNTRY_INFO!F59+COUNTRY_INFO!G59-ALB_MBD!$G59,COUNTRY_INFO!F59+COUNTRY_INFO!G59), 0),0) -> 0 | H59: =IF(INTRO!$E$39<>"Endemic",0, IF(AND(COUNTRY_INFO!$I59=1,$F59<>0),IF(COUNTRY_INFO!N59>=(COUNTRY_INFO!F59+COUNTRY_INFO!G59),COUNTRY_INFO!F59+COUNTRY_INFO!G59,COUNTRY_INFO!$N59), 0)) -> 0 | I59: 0 | J59: 0 | K59: 0 | L59: 0 | N59: 0
A60: =IF(INTRO!$E$39="Non-endemic"," ",IF(COUNTRY_INFO!A60=0," ",COUNTRY_INFO!A60)) -> Gabon | B60: =IF(INTRO!$E$39="Non-endemic"," ",IF(COUNTRY_INFO!B60=0," ",COUNTRY_INFO!B60)) -> Woleu-Ntem | C60: =IF(INTRO!$E$39="Non-endemic"," ",IF(COUNTRY_INFO!C60=0," ",COUNTRY_INFO!C60)) -> Woleu | D60: =IF(INTRO!$E$39="Non-endemic",0,IF(INTRO!$E$39="Endemic but PC is not required",IF(COUNTRY_INFO!$H60=1,COUNTRY_INFO!F60+COUNTRY_INFO!G60,0),IF(COUNTRY_INFO!$H60=1,COUNTRY_INFO!F60+COUNTRY_INFO!G60,IF(COUNTRY_INFO!$I60=1,IF(COUNTRY_INFO!N60>=(COUNTRY_INFO!F60+COUNTRY_INFO!G60),COUNTRY_INFO!F60+COUNTRY_INFO!G60,COUNTRY_INFO!$N60),0)))) -> 85145 | E60: =IF(AND(INTRO!$E$39="Non-endemic",INTRO!$E$37="Non-endemic"),"Not required",IF(INTRO!$E$39="Non-endemic","Treat with DEC",COUNTRY_INFO!W60)) -> 0 | F60: =IF(INTRO!$E$39<>"Non-endemic",COUNTRY_INFO!X60,"Not required") -> 0 | G60: =IF(COUNTRY_INFO!H60=1, IF($E60=1,IF(ALB_MBD!$G60<>" ",COUNTRY_INFO!F60+COUNTRY_INFO!G60-ALB_MBD!$G60,COUNTRY_INFO!F60+COUNTRY_INFO!G60), 0),0) -> 0 | H60: =IF(INTRO!$E$39<>"Endemic",0, IF(AND(COUNTRY_INFO!$I60=1,$F60<>0),IF(COUNTRY_INFO!N60>=(COUNTRY_INFO!F60+COUNTRY_INFO!G60),COUNTRY_INFO!F60+COUNTRY_INFO!G60,COUNTRY_INFO!$N60), 0)) -> 0 | I60: 0 | J60: 0 | K60: 0 | L60: 0 | N60: 0

Sheet SUMMARY
B2: Joint request for selected PC medicines v.4.1 (Loa)
B4: This form constitutes an official government request to WHO for the supply of the PC medicines. To ensure the medicines are delivered on time, the request for PC medicines should be submitted at least 9 months before the first date of MDA planned in the calendar year of the request.
B6: Country | C6: =IF(INTRO!$E$33<>0,INTRO!$E$33," ") -> Gabon | G6: Year | H6: =IF(INTRO!$E$35<>0,INTRO!$E$35," ") -> 2024
B8: Information on PC medicines requested to WHO
B10: PC medicine | C10: Target group | D10: Number of tablets | H10: Specify source
D11: Required | E11: In stock | F11: In pipeline | G11: Requested
B12: Diethylcarbamazine citrate | C12: ALL | G12: =IF(D12>(E12+F12),D12-E12-F12, 0) -> 0
G13: 0
B14: Ivermectin | C14: ALL | D14: 73634.4 | E14: 0 | G14: 73634.4 | H14: OMS
B16: Albendazole for LF | C16: ALL | D16: 654622 | E16: 0 | G16: 654622 | H16: OMS
G17: 0
B18: Albendazole for STH | C18: PreSAC | G18: 0
C19: SAC | D19: 281878.1625 | G19: 281878.1625 | H19: OMS
C20: WRA | G20: 0
B22: Mebendazole | C22: PreSAC | G22: 0
C23: SAC | G23: 0
C24: WRA | G24: 0
B26: Praziquantel | C26: PreSAC | D26: 0 | G26: 0
C27: SAC | D27: 53408 | G27: 53408 | H27: OMS
C28: Adults | D28: 191646 | G28: =IF(D28>(E28+F28),D28-E28-F28, 0) -> 191646 | H28: OMS
B30: Number of people to be treated with donated medicine ( see User Guide for details )
B32: Disease | F32: Round 1 | G32: Round 2 | H32: Round 3
B33: Lymphatic filariasis | C33: These figures are estimated only for targeted age groups to be treated with donated medicines in areas where treatment for a specific disease is planned | F33: 340460 | G33: 314162
B34: Onchocerciasis | F34: 0 | G34: 0
B35: Schistosomiasis | F35: 90586 | G35: 0
B36: Soil-transmitted helminthiases | F36: 815441 | G36: 254426 | H36: 0
B40: Information on planned PC interventions
B42: PC medicine | C42: Planned date of the 1st round of PC | E42: Planned date of the 2nd round of PC | G42: Date by which the medicine should arrive to the national warehouse
B43: Diethylcarbamazine citrate
B44: Ivermectin
B45: Albendazole for LF | C45: March | D45: 2024 | G45: December | H45: 2023
B46: Albendazole for STH | C46: March | D46: 2024 | E46: September | F46: 2024 | G46: December | H46: 2023
B47: Mebendazole
B48: Praziquantel | C48: March | D48: 2024 | G48: December | H48: 2023
B50: Checklist
B51: Submission
B52: What should be submitted?
B53: The supply of the requested medicines should be based on up-to-date epidemiological data, specific usage plans, and capacity for implementation. The following checklist ensures that all necessary forms and information are provided to WHO (in electronic format).
B54: Joint request for selected PC medicines
B55: Joint reporting form
B56: PC epidemiological data reporting form
B58: Availability of funding for implementation in the year for which the medicines are requested
B60: Diseases targeted for implementation | C60: Total treatments | D60: Funding secured for | E60: Source | H60: Amount
B61: =B33 -> Lymphatic filariasis | C61: =SUM(F33:H33) -> 654622 | E61: OMS
B62: =B34 -> Onchocerciasis | C62: =SUM(F34:H34) -> 0
B63: =B35 -> Schistosomiasis | C63: =SUM(F35:H35) -> 90586 | E63: OMS
B64: =B36 -> Soil-transmitted helminthiases | C64: =SUM(F36:H36) -> 1069867 | E64: OMS
B66: Who should fill in the form?
B67: National NTD coordinator should compile all required information needed to complete the request form. In the absence of such a coordinator, specific programme managers should coordinate their respective part. The final single request must be approved by the Ministry of Health.
B69: Information on person(s) who has filled in the form
B71: Title | C71: Name | E71: Phone | G71: Email | H71: Date
B72: NTD/PC Coordinator | C72: Dr ATSAME Julienne | E72: 24106047314 | G72: julienneatsame@yahoo.fr
C73: MOUIHHISSI Jeanne ep NDJOUNDOU | E73: 24106050791 | G73: jeannendjoundou@gmail.com
C74: KOUMBA KOUMBA Phlémon | E74: 24166547084 | G74: kkoumbaphilemon@gmail,com
B79: The WHO recommends that all serious adverse events suspected to be associated with use of PC medicines should be reported in accordance with national Pharmacovigilance guidelines. In the absence of a national Pharmacovigilance system, contact the WHO Neglected Tropical Disease department for guidance.
B80: The WHO is committed to facilitate PC medicines donation with a free-of-charge supply of a) albendazole, mebendazole and praziquantel to the MoH’s national warehouse; and b) diethylcarbamazine citrate to the entry port/airport of recipient countries.
B81: The institution submitting the present request is responsible for a) arranging the offloading of the medicines from the truck and storing it in the national warehouse and subsequent shipment to the final distribution centres; b) for registering the donated medicine, if required, by the relevant national regulatory authorities; and c) for informing about any changes of their PC campaigns (e.g. postpone of the planned MDA date, replacement of NTD coordinator, etc.).
C82: I have read and accept WHO Data Sharing Policy
C83: I confirm that all information provided in this form is complete and correct
B84: Name and signature of NTD coordinator or Ministry of Health representative | D84: Dr ATSAME Julienne
B85: Date:
